Workbook

Sheet 이용자편의사항
A2: 이용자의 편의 및 유의사항
A4: 1. 조사개요
A6: 1) 조사목적
A7: 주택금융 및 유동화증권(MBS∙MBB) 관련 통계의 제공을 통해 주택금융시장 동향에 관한 대국민 서비스를 제고하고 정부의 주택금융정책 수립에 기여
A10: 2) 법적근거
A11: (공사법 제22조 제13호) 주택금융에 관한 조사ㆍ연구 및 통계자료의 수집ㆍ작성과 국내외 유관 기관과의 교류ㆍ협력
A14: 3) 국가승인통계
A15: 「공사업무통계」중 보금자리론 및 MBS∙MBB, 주택금융신용보증, 주택연금, 주택구입부담지수, 주택구입물량지수는 통계법 제18조(통계작성의 승인)에 의해 국가승인통계로 지정되어 있음
A19: 2. 유의사항
A21: □ '보금자리론 판매실적'의 판매금액은 금융기관에서 대출취급 후 한국주택금융공사(이하 공사)에 양도하지 않은 판매실적을 포함하며, 잔액은 공사가 금융기관으로부터 양수한 자산만을 기준으로 함
A24: □ 'MBS∙MBB 발행실적'은 보금자리론 이외에 공사가 금융기관으로부터 양수한 주택담보대출을 기초로 발행된 MBS∙MBB를 포함
A27: □ 'MBS∙MBB 기초자산 상환 및 연체현황'은 공사에서 채권보유 중인 대출은 제외하고 MBS∙MBB 발행의 기초자산인 주택담보대출을 대상으로 산출
A30: □ '지역별 PIR 및 LIR'은 공사가 금융기관으로부터 양수한 자산(보금자리론 및 내집마련 디딤돌대출)을 기초로 산출되는 통계이며 국토교통부(국토연구원)의 주거실태조사, 한국부동산원의 주택가격동향 조사에서 전국을 대상으로 조사하여 공표하는 PIR과는 차이가 있으므로 자료 이용에 유의바람
A34: □ 주택금융신용보증기금은 1988년에 최초 설립되었으며, 2004년 3월 1일 한국주택금융공사법 제정에 따라 공사 내 설치되어 공사가 관리․운용
A37: □ 주택연금 상품의 가입연령이 '20년 4월 1일부터 만 60세에서 만 55세 이상으로 완화됨

Sheet 목차
A1: 번호 | B1: 목차 | C1: CONTENTS
A2: 공사업무통계 | C2: HF Statistics
A3: 주택구입부담지수 | C3: K-HAI(Korea-Housing Affordability Index)
A4: 1 | B4: 지역별 주택구입부담지수 | C4: K-HAI(Korea-Housing Affordability Index) by Region
A5: =+A4+1 -> 2 | B5: 주택규모별 주택구입부담지수 | C5: K-HAI(Korea-Housing Affordability Index) by Housing Size
A6: 주택구입물량지수 | C6: K-HOI(Korea-Housing Opportunity Index)
A7: =+A5+1 -> 3 | B7: 지역별 주택구입물량지수 | C7: K-HOI(Korea-Housing Oppotunity Index) by Region
A8: 보금자리론 및 유동화증권(MBS∙MBB) | C8: Bogeumjari(Mortgage) Loan & MBS∙MBB(Mortgage-Backed Securities∙Bond)
A9: 4 | B9: 보금자리론판매실적 | C9: Bogeumjari(Mortgage) Loan Origination
A10: 5 | B10: 적격대출 판매실적 | C10: Conforming Loan Origination
A11: 6 | B11: MBS 발행실적 | C11: Issuance of MBS(Mortgage-Backed Securities)
A12: 7 | B12: MBS 기초자산 상환 및 연체현황 | C12: Prepayment and Delinquency of Mortgage Pool(MBS)
A13: 8 | B13: MBB 발행실적 | C13: Issuance of MBB(Mortgage-Backed Bond)
A14: 9 | B14: MBB 기초자산 상환 및 연체현황 | C14: Prepayment and Delinquency of Mortgage Pool(MBB)
A15: 10 | B15: 지역별 판매실적 | C15: Bogeumjari(Mortgage) Loan Origination by Region
A16: 11 | B16: 금융기관별 판매실적 | C16: Bogeumjari(Mortgage) Loan Origination by Lenders
A17: 12 | B17: LTV 수준별 대출금액 및 잔액 현황 | C17: Bogeumjari(Mortgage) Loan Origination and Outstanding by LTV
A18: 13 | B18: DTI 수준별 대출금액 및 잔액 현황 | C18: Bogeumjari(Mortgage) Loan Origination and Outstanding by DTI
A19: 14 | B19: 대출기간별 대출금액 및 잔액 현황 | C19: Bogeumjari(Mortgage) Loan Origination and Outstanding by Loan Term
A20: 15 | B20: 주택유형별 대출금액 및 잔액 현황 | C20: Bogeumjari(Mortgage) Loan Origination and Outstanding by Housing Type
A21: 16 | B21: 연령구간별 대출금액 및 잔액 현황 | C21: Bogeumjari(Mortgage) Loan Origination and Outstanding by Age
A22: 17 | B22: 소득수준별 대출금액 및 잔액 현황 | C22: Bogeumjari(Mortgage) Loan Origination and Outstanding by Income
A23: 18 | B23: 지역별 PIR 및 LIR | C23: Price Income Ratio and Loan Income Ratio by Region
A24: 19 | B24: 자금용도별 대출금액 및 잔액 현황 | C24: Bogeumjari(Mortgage) Loan Origination and Outstanding by Loan Purpose
A25: 주택금융신용보증 | C25: Housing Finance Credit Guarantee
A26: =+A24+1 -> 20 | B26: 주택금융신용보증 잔액현황 | C26: Housing Finance Credit Guarantee Outstanding
A27: =+A26+1 -> 21 | B27: 금융기관별 주택금융신용보증 공급현황 | C27: Housing Finance Credit Guarantee Origination by Lenders
A28: 22 | B28: 금융기관별 주택금융신용보증 잔액현황 | C28: Housing Finance Credit Guarantee Outstanding by Lenders
A29: 23 | B29: 지역별 주택금융신용보증 공급현황 | C29: Housing Finance Credit Guarantee Origination by Region
A30: 24 | B30: 보증종류별 주택금융신용보증 공급현황 | C30: Housing Finance Credit Guarantee Origination by Type
A31: 25 | B31: 보증종류별 주택금융신용보증 잔액현황 | C31: Housing Finance Credit Guarantee Outstanding by Type
A32: 26 | B32: 주신보기금 출연기준 주택자금대출 규모 | C32: The amount of Housing Loans originated by HFCG Fund contributing lenders
A33: 주택연금 | C33: JooTaekYeonKeum(Reverse Mortgage)
A34: =+A32+1 -> 27 | B34: 지급방식별 주택연금 공급현황 | C34: JooTaekYeonKeum(Reverse Mortgage) Guarantee Origination by Payment Type
A35: =+A34+1 -> 28 | B35: 지급방식별 주택연금 잔액현황 | C35: JooTaekYeonKeum(Reverse Mortgage) Guarantee Outstanding by Payment Type
A36: 29 | B36: 지급유형별 주택연금 공급현황 | C36: JooTaekYeonKeum(Reverse Mortgage) Guarantee Origination by Payment Option
A37: 30 | B37: 지급유형별 주택연금 잔액현황 | C37: JooTaekYeonKeum(Reverse Mortgage) Guarantee Outstanding by Payment Option
A38: 31 | B38: 지역별 주택연금 공급현황 | C38: JooTaekYeonKeum(Reverse Mortgage) Guarantee Origination by Region
A39: 32 | B39: 지역별 주택연금 잔액현황 | C39: JooTaekYeonKeum(Reverse Mortgage) Guarantee Outstanding by Region
A40: 33 | B40: 금융기관별 주택연금 공급현황 | C40: JooTaekYeonKeum(Reverse Mortgage) Guarantee Origination by Lenders
A41: 34 | B41: 금융기관별 주택연금 잔액현황 | C41: JooTaekYeonKeum(Reverse Mortgage) Guarantee Outstanding by Lenders
A42: 35 | B42: 주택연금 보증잔액 현황 | C42: JooTaekYeonKeum(Reverse Mortgage) Guarantee Outstanding
A43: 36 | B43: 연령구간별 주택연금 공급현황 | C43: JooTaekYeonKeum(Reverse Mortgage) Guarantee Origination by Age
A44: 37 | B44: 성별 주택연금 공급현황 | C44: JooTaekYeonKeum(Reverse Mortgage) Guarantee Origination by Sex

Sheet 1. 지역별 주택구입부담지수
A1: 1. 지역별 주택구입부담지수1) 2) | K1: K-HAI(Korea-Housing Affordability Index) by Region
A4: 분기말 | C4: 전국 | D4: 서울 | E4: 부산 | F4: 대구 | G4: 인천 | H4: 광주 | I4: 대전 | J4: 울산 | K4: 세종 | L4: 경기 | M4: 강원 | N4: 충북 | O4: 충남 | P4: 전북 | Q4: 전남 | R4: 경북 | S4: 경남 | T4: 제주 | U4: 분기말
A6: End of quarter | C6: Total | D6: Seoul | E6: Busan | F6: Daegu | G6: Incheon | H6: Gwangju | I6: Daejeon | J6: Ulsan | K6: Sejong | L6: Gyeonggi | M6: Gangwon | N6: Chungbuk | O6: Chungnam | P6: Jeonbuk | Q6: Jeonnam | R6: Gyeongbuk | S6: Gyeongnam | T6: Jeju | U6: End of quarter
A8: 2004 | B8: 1/4 | C8: 67.5 | D8: 116.3 | E8: 60.2 | F8: 60.4 | G8: 69.1 | H8: 39.0 | I8: 62.5 | J8: 38.5 | L8: 81.8 | M8: 34.0 | N8: 36.3 | O8: 43.9 | P8: 32.1 | Q8: 25.5 | R8: 33.4 | S8: 43.7 | T8: 41.1 | U8: 1/4 | V8: 2004
B9: 2/4 | C9: 66.9 | D9: 120.5 | E9: 61.2 | F9: 64.4 | G9: 68.5 | H9: 38.6 | I9: 63.7 | J9: 37.6 | L9: 82.4 | M9: 34.2 | N9: 35.2 | O9: 43.6 | P9: 32.7 | Q9: 26.1 | R9: 31.9 | S9: 44.2 | T9: 41.9 | U9: 2/4
B10: 3/4 | C10: 60.0 | D10: 108.5 | E10: 54.8 | F10: 58.0 | G10: 61.5 | H10: 34.7 | I10: 56.7 | J10: 33.8 | L10: 72.8 | M10: 31.8 | N10: 31.7 | O10: 37.6 | P10: 30.0 | Q10: 23.7 | R10: 28.4 | S10: 39.8 | T10: 37.7 | U10: 3/4
B11: 4/4 | C11: 59.8 | D11: 108.7 | E11: 54.2 | F11: 58.6 | G11: 60.5 | H11: 35.6 | I11: 57.4 | J11: 34.7 | L11: 72.1 | M11: 32.4 | N11: 32.3 | O11: 37.6 | P11: 30.6 | Q11: 23.5 | R11: 29.0 | S11: 41.0 | T11: 40.2 | U11: 4/4
A13: 2005 | B13: 1/4 | C13: 58.1 | D13: 106.6 | E13: 53.3 | F13: 57.9 | G13: 59.0 | H13: 34.6 | I13: 56.0 | J13: 33.9 | L13: 70.3 | M13: 31.9 | N13: 32.0 | O13: 36.7 | P13: 30.1 | Q13: 22.8 | R13: 28.0 | S13: 40.0 | T13: 38.4 | U13: 1/4 | V13: 2005
B14: 2/4 | C14: 58.9 | D14: 113.6 | E14: 56.2 | F14: 61.2 | G14: 59.9 | H14: 35.1 | I14: 58.3 | J14: 33.3 | L14: 72.5 | M14: 31.6 | N14: 34.4 | O14: 38.6 | P14: 31.5 | Q14: 22.4 | R14: 29.0 | S14: 39.6 | T14: 42.9 | U14: 2/4
B15: 3/4 | C15: 57.9 | D15: 111.5 | E15: 54.5 | F15: 60.9 | G15: 58.5 | H15: 34.6 | I15: 55.4 | J15: 32.9 | L15: 71.0 | M15: 30.7 | N15: 34.1 | O15: 37.9 | P15: 31.2 | Q15: 21.8 | R15: 28.4 | S15: 39.1 | T15: 41.4 | U15: 3/4
B16: 4/4 | C16: 60.1 | D16: 116.7 | E16: 55.8 | F16: 64.0 | G16: 60.3 | H16: 35.8 | I16: 57.0 | J16: 34.3 | L16: 73.8 | M16: 33.0 | N16: 35.7 | O16: 40.2 | P16: 32.6 | Q16: 22.7 | R16: 29.7 | S16: 40.5 | T16: 42.6 | U16: 4/4
A18: 2006 | B18: 1/4 | C18: 57.6 | D18: 115.1 | E18: 52.9 | F18: 61.8 | G18: 57.6 | H18: 34.7 | I18: 56.6 | J18: 33.3 | L18: 71.4 | M18: 31.5 | N18: 35.9 | O18: 38.1 | P18: 31.2 | Q18: 21.5 | R18: 29.1 | S18: 38.4 | T18: 42.6 | U18: 1/4 | V18: 2006
B19: 2/4 | C19: 61.0 | D19: 126.9 | E19: 55.8 | F19: 62.9 | G19: 60.7 | H19: 36.4 | I19: 57.1 | J19: 36.6 | L19: 77.6 | M19: 33.4 | N19: 38.9 | O19: 40.4 | P19: 33.3 | Q19: 22.5 | R19: 31.6 | S19: 39.9 | T19: 45.3 | U19: 2/4
B20: 3/4 | C20: 60.9 | D20: 127.2 | E20: 54.7 | F20: 61.8 | G20: 61.8 | H20: 35.9 | I20: 55.6 | J20: 37.4 | L20: 79.7 | M20: 33.2 | N20: 38.1 | O20: 39.4 | P20: 32.9 | Q20: 22.7 | R20: 31.4 | S20: 39.8 | T20: 44.5 | U20: 3/4
B21: 4/4 | C21: 66.1 | D21: 145.9 | E21: 53.9 | F21: 61.2 | G21: 66.3 | H21: 35.6 | I21: 54.9 | J21: 39.5 | L21: 95.7 | M21: 32.9 | N21: 38.7 | O21: 39.0 | P21: 32.9 | Q21: 22.5 | R21: 31.8 | S21: 39.1 | T21: 44.8 | U21: 4/4
A23: 2007 | B23: 1/4 | C23: 67.3 | D23: 148.8 | E23: 53.6 | F23: 61.7 | G23: 68.2 | H23: 35.9 | I23: 54.5 | J23: 41.1 | L23: 98.4 | M23: 33.2 | N23: 38.5 | O23: 39.2 | P23: 32.9 | Q23: 22.4 | R23: 32.1 | S23: 38.9 | T23: 44.5 | U23: 1/4 | V23: 2007
B24: 2/4 | C24: 70.4 | D24: 154.9 | E24: 54.7 | F24: 64.2 | G24: 71.0 | H24: 37.5 | I24: 56.9 | J24: 43.7 | L24: 102.1 | M24: 34.1 | N24: 38.6 | O24: 41.5 | P24: 33.3 | Q24: 24.4 | R24: 34.6 | S24: 41.4 | T24: 46.5 | U24: 2/4
B25: 3/4 | C25: 68.7 | D25: 151.9 | E25: 53.0 | F25: 62.2 | G25: 71.0 | H25: 36.4 | I25: 54.5 | J25: 42.8 | L25: 99.0 | M25: 32.9 | N25: 37.4 | O25: 40.4 | P25: 33.0 | Q25: 23.6 | R25: 33.8 | S25: 40.8 | T25: 45.1 | U25: 3/4
B26: 4/4 | C26: 73.1 | D26: 160.6 | E26: 56.2 | F26: 65.0 | G26: 77.6 | H26: 38.5 | I26: 57.6 | J26: 45.9 | L26: 104.5 | M26: 34.3 | N26: 39.3 | O26: 42.1 | P26: 35.0 | Q26: 25.5 | R26: 36.0 | S26: 43.1 | T26: 48.2 | U26: 4/4
A28: 2008 | B28: 1/4 | C28: 69.7 | D28: 151.4 | E28: 52.9 | F28: 59.9 | G28: 75.7 | H28: 35.6 | I28: 53.5 | J28: 42.3 | L28: 98.3 | M28: 31.2 | N28: 36.6 | O28: 39.4 | P28: 33.4 | Q28: 23.9 | R28: 33.6 | S28: 39.7 | T28: 44.4 | U28: 1/4 | V28: 2008
B29: 2/4 | C29: 76.2 | D29: 164.8 | E29: 57.3 | F29: 61.0 | G29: 87.0 | H29: 36.9 | I29: 56.9 | J29: 44.0 | L29: 105.2 | M29: 34.3 | N29: 39.5 | O29: 41.7 | P29: 37.3 | Q29: 26.1 | R29: 35.3 | S29: 41.3 | T29: 45.8 | U29: 2/4
B30: 3/4 | C30: 75.8 | D30: 162.0 | E30: 56.6 | F30: 59.7 | G30: 90.6 | H30: 36.1 | I30: 56.3 | J30: 43.0 | L30: 103.7 | M30: 34.8 | N30: 39.2 | O30: 41.5 | P30: 37.0 | Q30: 26.3 | R30: 35.2 | S30: 41.5 | T30: 44.8 | U30: 3/4
B31: 4/4 | C31: 75.3 | D31: 157.8 | E31: 57.1 | F31: 58.3 | G31: 90.3 | H31: 36.2 | I31: 55.8 | J31: 43.1 | L31: 101.7 | M31: 35.0 | N31: 39.4 | O31: 42.0 | P31: 37.1 | Q31: 26.8 | R31: 34.8 | S31: 42.0 | T31: 44.9 | U31: 4/4
A33: 2009 | B33: 1/4 | C33: 66.2 | D33: 141.0 | E33: 51.7 | F33: 51.5 | G33: 79.1 | H33: 32.8 | I33: 49.8 | J33: 40.2 | L33: 89.1 | M33: 31.7 | N33: 35.2 | O33: 38.3 | P33: 34.2 | Q33: 24.3 | R33: 31.7 | S33: 39.0 | T33: 40.1 | U33: 1/4 | V33: 2009
B34: 2/4 | C34: 67.9 | D34: 144.3 | E34: 53.2 | F34: 51.7 | G34: 80.5 | H34: 33.1 | I34: 51.6 | J34: 40.9 | L34: 91.5 | M34: 32.2 | N34: 35.8 | O34: 39.7 | P34: 35.4 | Q34: 25.1 | R34: 32.2 | S34: 40.2 | T34: 40.8 | U34: 2/4
B35: 3/4 | C35: 69.6 | D35: 149.8 | E35: 54.6 | F35: 52.1 | G35: 83.5 | H35: 34.8 | I35: 52.4 | J35: 43.8 | L35: 92.5 | M35: 32.5 | N35: 36.7 | O35: 40.6 | P35: 37.1 | Q35: 25.6 | R35: 32.4 | S35: 42.0 | T35: 42.5 | U35: 3/4
B36: 4/4 | C36: 70.7 | D36: 150.8 | E36: 56.8 | F36: 53.7 | G36: 84.8 | H36: 35.7 | I36: 54.3 | J36: 44.8 | L36: 92.6 | M36: 32.9 | N36: 37.8 | O36: 41.7 | P36: 37.6 | Q36: 26.4 | R36: 32.4 | S36: 43.0 | T36: 42.6 | U36: 4/4
A38: 2010 | B38: 1/4 | C38: 66.1 | D38: 139.2 | E38: 55.0 | F38: 51.5 | G38: 78.7 | H38: 33.7 | I38: 51.8 | J38: 42.0 | L38: 87.2 | M38: 30.6 | N38: 35.1 | O38: 39.4 | P38: 35.7 | Q38: 25.0 | R38: 30.1 | S38: 41.5 | T38: 41.5 | U38: 1/4 | V38: 2010
B39: 2/4 | C39: 64.7 | D39: 134.7 | E39: 56.2 | F39: 50.4 | G39: 77.0 | H39: 33.2 | I39: 51.5 | J39: 41.7 | L39: 83.7 | M39: 30.5 | N39: 35.3 | O39: 38.6 | P39: 37.0 | Q39: 25.9 | R39: 29.7 | S39: 41.4 | T39: 42.7 | U39: 2/4
B40: 3/4 | C40: 62.6 | D40: 131.0 | E40: 56.9 | F40: 48.3 | G40: 73.0 | H40: 33.2 | I40: 52.4 | J40: 40.9 | L40: 81.0 | M40: 29.6 | N40: 34.3 | O40: 36.6 | P40: 35.6 | Q40: 25.7 | R40: 28.1 | S40: 42.2 | T40: 42.1 | U40: 3/4
B41: 4/4 | C41: 63.8 | D41: 131.0 | E41: 61.0 | F41: 49.3 | G41: 73.4 | H41: 34.1 | I41: 54.4 | J41: 42.7 | L41: 81.0 | M41: 30.7 | N41: 35.8 | O41: 37.3 | P41: 37.7 | Q41: 26.4 | R41: 29.0 | S41: 45.4 | T41: 42.4 | U41: 4/4
A43: 2011 | B43: 1/4 | C43: 63.9 | D43: 127.0 | E43: 65.2 | F43: 49.5 | G43: 70.7 | H43: 35.9 | I43: 56.3 | J43: 43.3 | L43: 78.5 | M43: 30.8 | N43: 36.5 | O43: 38.1 | P43: 37.4 | Q43: 27.0 | R43: 28.3 | S43: 50.3 | T43: 40.8 | U43: 1/4 | V43: 2011
B44: 2/4 | C44: 66.6 | D44: 123.0 | E44: 65.1 | F44: 53.5 | G44: 70.0 | H44: 41.7 | I44: 60.6 | J44: 43.6 | L44: 82.6 | M44: 32.4 | N44: 39.5 | O44: 39.0 | P44: 37.8 | Q44: 28.4 | R44: 29.0 | S44: 53.0 | T44: 43.7 | U44: 2/4
B45: 3/4 | C45: 65.7 | D45: 117.8 | E45: 65.2 | F45: 53.9 | G45: 66.9 | H45: 41.9 | I45: 61.7 | J45: 44.4 | L45: 80.3 | M45: 34.7 | N45: 41.6 | O45: 39.4 | P45: 38.4 | Q45: 28.9 | R45: 28.7 | S45: 52.5 | T45: 44.0 | U45: 3/4
B46: 4/4 | C46: 66.9 | D46: 119.4 | E46: 67.3 | F46: 56.4 | G46: 67.4 | H46: 44.1 | I46: 63.7 | J46: 47.0 | L46: 81.9 | M46: 37.1 | N46: 44.1 | O46: 41.9 | P46: 41.2 | Q46: 31.8 | R46: 31.3 | S46: 54.5 | T46: 46.8 | U46: 4/4
A48: 2012 | B48: 1/4 | C48: 62.3 | D48: 110.8 | E48: 62.6 | F48: 53.7 | G48: 62.7 | H48: 41.4 | I48: 59.3 | J48: 45.1 | L48: 76.2 | M48: 36.2 | N48: 42.5 | O48: 40.2 | P48: 40.0 | Q48: 30.3 | R48: 30.2 | S48: 50.7 | T48: 47.2 | U48: 1/4 | V48: 2012
B49: 2/4 | C49: 65.3 | D49: 114.1 | E49: 65.1 | F49: 57.5 | G49: 64.8 | H49: 44.7 | I49: 61.6 | J49: 48.9 | L49: 77.6 | M49: 37.6 | N49: 45.0 | O49: 43.1 | P49: 41.2 | Q49: 31.2 | R49: 32.7 | S49: 52.7 | T49: 49.0 | U49: 2/4
B50: 3/4 | C50: 59.4 | D50: 104.8 | E50: 60.4 | F50: 54.0 | G50: 59.1 | H50: 41.6 | I50: 55.4 | J50: 45.4 | L50: 69.8 | M50: 34.5 | N50: 41.6 | O50: 40.8 | P50: 38.3 | Q50: 28.6 | R50: 30.9 | S50: 48.7 | T50: 46.9 | U50: 3/4
B51: 4/4 | C51: 59.9 | D51: 104.3 | E51: 60.1 | F51: 55.3 | G51: 59.6 | H51: 42.4 | I51: 55.1 | J51: 46.0 | L51: 69.7 | M51: 34.6 | N51: 41.9 | O51: 41.8 | P51: 38.2 | Q51: 28.9 | R51: 32.0 | S51: 48.1 | T51: 50.7 | U51: 4/4
A53: 2013 | B53: 1/4 | C53: 53.7 | D53: 94.8 | E53: 53.8 | F53: 50.4 | G53: 51.9 | H53: 38.4 | I53: 49.9 | J53: 40.7 | L53: 61.8 | M53: 34.0 | N53: 39.2 | O53: 36.9 | P53: 35.8 | Q53: 27.5 | R53: 30.1 | S53: 44.8 | T53: 45.1 | U53: 1/4 | V53: 2013
B54: 2/4 | C54: 54.3 | D54: 94.6 | E54: 54.3 | F54: 53.4 | G54: 52.4 | H54: 39.8 | I54: 51.1 | J54: 41.8 | L54: 61.6 | M54: 33.9 | N54: 39.1 | O54: 36.8 | P54: 34.2 | Q54: 27.4 | R54: 31.4 | S54: 43.9 | T54: 45.8 | U54: 2/4
B55: 3/4 | C55: 52.3 | D55: 90.4 | E55: 54.0 | F55: 54.9 | G55: 50.8 | H55: 38.5 | I55: 50.0 | J55: 43.6 | L55: 60.2 | M55: 33.1 | N55: 37.8 | O55: 36.0 | P55: 34.2 | Q55: 26.3 | R55: 31.5 | S55: 43.9 | T55: 44.4 | U55: 3/4
B56: 4/4 | C56: 53.8 | D56: 90.1 | E56: 54.1 | F56: 58.5 | G56: 51.6 | H56: 40.1 | I56: 51.4 | J56: 43.7 | L56: 61.7 | M56: 33.6 | N56: 38.6 | O56: 38.1 | P56: 34.3 | Q56: 26.4 | R56: 33.6 | S56: 44.0 | T56: 44.5 | U56: 4/4
A58: 2014 | B58: 1/4 | C58: 51.5 | D58: 86.8 | E58: 52.5 | F58: 58.6 | G58: 50.1 | H58: 39.8 | I58: 49.2 | J58: 44.9 | L58: 59.1 | M58: 32.2 | N58: 37.6 | O58: 37.1 | P58: 32.9 | Q58: 25.2 | R58: 32.8 | S58: 42.1 | T58: 43.4 | U58: 1/4 | V58: 2014
B59: 2/4 | C59: 54.6 | D59: 89.9 | E59: 55.8 | F59: 63.0 | G59: 53.2 | H59: 42.1 | I59: 51.6 | J59: 47.6 | L59: 62.5 | M59: 31.7 | N59: 39.7 | O59: 39.1 | P59: 34.0 | Q59: 25.5 | R59: 35.4 | S59: 45.0 | T59: 44.2 | U59: 2/4
B60: 3/4 | C60: 52.3 | D60: 88.5 | E60: 55.3 | F60: 63.2 | G60: 51.7 | H60: 40.7 | I60: 48.6 | J60: 46.2 | L60: 60.9 | M60: 31.0 | N60: 40.0 | O60: 38.1 | P60: 32.7 | Q60: 24.5 | R60: 34.3 | S60: 44.4 | T60: 43.6 | U60: 3/4
B61: 4/4 | C61: 54.3 | D61: 91.9 | E61: 57.5 | F61: 67.1 | G61: 53.7 | H61: 41.7 | I61: 49.9 | J61: 48.2 | L61: 63.1 | M61: 31.8 | N61: 42.4 | O61: 39.8 | P61: 33.5 | Q61: 25.2 | R61: 35.8 | S61: 46.2 | T61: 45.5 | U61: 4/4
A63: 2015 | B63: 1/4 | C63: 50.3 | D63: 83.7 | E63: 53.0 | F63: 62.8 | G63: 50.2 | H63: 39.3 | I63: 45.4 | J63: 44.8 | L63: 58.7 | M63: 28.9 | N63: 38.7 | O63: 36.2 | P63: 30.5 | Q63: 23.5 | R63: 32.6 | S63: 42.7 | T63: 43.1 | U63: 1/4 | V63: 2015
B64: 2/4 | C64: 55.3 | D64: 91.5 | E64: 57.2 | F64: 70.4 | G64: 55.5 | H64: 44.2 | I64: 49.1 | J64: 48.4 | L64: 63.9 | M64: 31.6 | N64: 41.3 | O64: 38.7 | P64: 32.6 | Q64: 25.1 | R64: 35.5 | S64: 45.6 | T64: 48.2 | U64: 2/4
B65: 3/4 | C65: 54.5 | D65: 90.4 | E65: 57.3 | F65: 72.2 | G65: 54.9 | H65: 44.5 | I65: 48.0 | J65: 49.0 | L65: 62.8 | M65: 30.9 | N65: 39.8 | O65: 37.1 | P65: 31.8 | Q65: 24.4 | R65: 34.2 | S65: 45.2 | T65: 49.9 | U65: 3/4
B66: 4/4 | C66: 56.4 | D66: 93.7 | E66: 60.6 | F66: 73.9 | G66: 58.2 | H66: 46.5 | I66: 48.6 | J66: 51.9 | L66: 64.9 | M66: 32.2 | N66: 40.6 | O66: 37.5 | P66: 32.7 | Q66: 25.5 | R66: 34.7 | S66: 46.4 | T66: 65.3 | U66: 4/4
A68: 2016 | B68: 1/4 | C68: 56.5 | D68: 95.2 | E68: 61.9 | F68: 71.4 | G68: 57.7 | H68: 47.1 | I68: 48.9 | J68: 51.5 | L68: 65.3 | M68: 33.2 | N68: 40.4 | O68: 38.2 | P68: 33.5 | Q68: 26.6 | R68: 35.4 | S68: 48.7 | T68: 69.2 | U68: 1/4 | V68: 2016
B69: 2/4 | C69: 55.3 | D69: 94.1 | E69: 60.5 | F69: 70.5 | G69: 57.0 | H69: 46.1 | I69: 47.8 | J69: 51.4 | L69: 64.4 | M69: 33.2 | N69: 39.7 | O69: 36.7 | P69: 32.3 | Q69: 26.0 | R69: 34.4 | S69: 46.9 | T69: 70.6 | U69: 2/4
B70: 3/4 | C70: 56.0 | D70: 96.8 | E70: 62.5 | F70: 69.2 | G70: 57.7 | H70: 46.1 | I70: 47.9 | J70: 53.1 | L70: 65.1 | M70: 33.7 | N70: 39.1 | O70: 36.9 | P70: 32.6 | Q70: 26.6 | R70: 33.9 | S70: 47.0 | T70: 73.6 | U70: 3/4
B71: 4/4 | C71: 58.9 | D71: 102.4 | E71: 68.4 | F71: 70.6 | G71: 61.3 | H71: 46.9 | I71: 50.5 | J71: 54.7 | L71: 68.9 | M71: 36.6 | N71: 39.9 | O71: 37.9 | P71: 33.9 | Q71: 28.0 | R71: 33.6 | S71: 48.4 | T71: 78.9 | U71: 4/4
A73: 2017 | B73: 1/4 | C73: 59.3 | D73: 103.6 | E73: 70.8 | F73: 72.0 | G73: 62.0 | H73: 46.9 | I73: 51.5 | J73: 57.0 | L73: 69.7 | M73: 36.6 | N73: 39.8 | O73: 37.2 | P73: 34.4 | Q73: 28.4 | R73: 33.3 | S73: 47.8 | T73: 85.1 | U73: 1/4 | V73: 2017
B74: 2/4 | C74: 60.1 | D74: 107.2 | E74: 73.0 | F74: 72.2 | G74: 61.6 | H74: 47.4 | I74: 51.9 | J74: 57.8 | L74: 69.9 | M74: 38.7 | N74: 39.4 | O74: 36.8 | P74: 35.4 | Q74: 29.6 | R74: 33.1 | S74: 47.9 | T74: 87.7 | U74: 2/4
B75: 3/4 | C75: 60.1 | D75: 110.3 | E75: 73.0 | F75: 72.9 | G75: 62.8 | H75: 47.7 | I75: 52.4 | J75: 55.9 | L75: 70.4 | M75: 38.0 | N75: 39.4 | O75: 36.7 | P75: 36.3 | Q75: 30.3 | R75: 32.5 | S75: 47.2 | T75: 87.6 | U75: 3/4
B76: 4/4 | C76: 61.3 | D76: 116.7 | E76: 73.5 | F76: 72.0 | G76: 65.1 | H76: 48.6 | I76: 53.1 | J76: 56.8 | L76: 71.5 | M76: 39.9 | N76: 39.4 | O76: 38.1 | P76: 36.5 | Q76: 31.3 | R76: 33.3 | S76: 46.4 | T76: 82.6 | U76: 4/4
A78: 2018 | B78: 1/4 | C78: 60.1 | D78: 118.8 | E78: 71.4 | F78: 72.3 | G78: 65.1 | H78: 48.1 | I78: 53.1 | J78: 54.5 | L78: 70.8 | M78: 38.8 | N78: 37.7 | O78: 37.1 | P78: 36.2 | Q78: 31.3 | R78: 32.7 | S78: 44.6 | T78: 84.1 | U78: 1/4
B79: 2/4 | C79: 59.3 | D79: 122.7 | E79: 69.9 | F79: 71.8 | G79: 64.3 | H79: 47.5 | I79: 51.9 | J79: 52.6 | L79: 69.9 | M79: 38.3 | N79: 36.8 | O79: 36.4 | P79: 35.7 | Q79: 31.4 | R79: 31.7 | S79: 42.8 | T79: 84.5 | U79: 2/4
B80: 3/4 | C80: 57.5 | D80: 130.3 | E80: 65.8 | F80: 69.1 | G80: 62.8 | H80: 47.4 | I80: 50.7 | J80: 50.3 | L80: 68.3 | M80: 37.7 | N80: 35.2 | O80: 36.4 | P80: 33.6 | Q80: 30.5 | R80: 29.7 | S80: 41.7 | T80: 88.1 | U80: 3/4
B81: 4/4 | C81: 56.6 | D81: 133.3 | E81: 63.6 | F81: 68.7 | G81: 61.3 | H81: 48.9 | I81: 51.0 | J81: 47.4 | L81: 67.8 | M81: 36.2 | N81: 33.1 | O81: 35.9 | P81: 33.4 | Q81: 30.9 | R81: 29.0 | S81: 40.6 | T81: 87.7 | U81: 4/4 | V81: 2018
A83: 2019 | B83: 1/4 | C83: 54.6 | D83: 129.9 | E83: 61.3 | F83: 66.3 | G83: 59.7 | H83: 48.3 | I83: 50.0 | J83: 45.3 | L83: 66.0 | M83: 34.6 | N83: 31.1 | O83: 34.6 | P83: 31.3 | Q83: 30.2 | R83: 27.8 | S83: 38.5 | T83: 82.7 | U83: 1/4 | V83: 2019
B84: 2/4 | C84: 52.4 | D84: 124.6 | E84: 58.3 | F84: 63.6 | G84: 57.3 | H84: 45.8 | I84: 48.2 | J84: 43.2 | L84: 63.4 | M84: 33.0 | N84: 30.4 | O84: 33.2 | P84: 29.4 | Q84: 28.7 | R84: 26.6 | S84: 36.4 | T84: 75.4 | U84: 2/4
B85: 3/4 | C85: 51.1 | D85: 123.6 | E85: 57.2 | F85: 61.3 | G85: 56.7 | H85: 43.9 | I85: 49.2 | J85: 43.2 | L85: 62.1 | M85: 31.3 | N85: 29.6 | O85: 32.7 | P85: 29.2 | Q85: 28.2 | R85: 26.3 | S85: 35.6 | T85: 71.8 | U85: 3/4
B86: 4/4 | C86: 50.5 | D86: 126.6 | E86: 56.4 | F86: 60.3 | G86: 55.4 | H86: 43.6 | I86: 50.8 | J86: 43.2 | L86: 61.8 | M86: 30.4 | N86: 29.1 | O86: 32.0 | P86: 28.7 | Q86: 27.9 | R86: 25.6 | S86: 34.9 | T86: 70.3 | U86: 4/4
B88: 1/4 | C88: 49.7 | D88: 132.2 | E88: 53.9 | F88: 58.7 | G88: 54.2 | H88: 42.7 | I88: 52.4 | J88: 42.3 | L88: 61.9 | M88: 29.0 | N88: 28.2 | O88: 31.0 | P88: 27.2 | Q88: 26.7 | R88: 24.3 | S88: 33.3 | T88: 66.6 | U88: 1/4
B89: 2/4 | C89: 52.1 | D89: 142.8 | E89: 55.5 | F89: 59.9 | G89: 57.3 | H89: 43.5 | I89: 57.8 | J89: 44.1 | L89: 68.8 | M89: 30.3 | N89: 31.2 | O89: 31.5 | P89: 27.4 | Q89: 26.7 | R89: 24.4 | S89: 34.2 | T89: 64.5 | U89: 2/4
A90: 2020 | B90: 3/4 | C90: 52.3 | D90: 144.5 | E90: 54.2 | F90: 60.3 | G90: 56.9 | H90: 42.9 | I90: 58.0 | J90: 43.3 | L90: 68.9 | M90: 30.6 | N90: 30.4 | O90: 31.2 | P90: 27.2 | Q90: 26.8 | R90: 24.3 | S90: 33.5 | T90: 64.4 | U90: 3/4 | V90: 2020
B91: 4/4 | C91: 57.4 | D91: 153.4 | E91: 61.3 | F91: 64.1 | G91: 58.9 | H91: 44.3 | I91: 61.9 | J91: 48.3 | K91: 127.8 | L91: 76.4 | M91: 31.1 | N91: 30.9 | O91: 32.4 | P91: 27.4 | Q91: 27.5 | R91: 25.5 | S91: 35.2 | T91: 67.3 | U91: 4/4
A93: 2021 | B93: 1/4 | C93: 63.6 | D93: 166.2 | E93: 66.1 | F93: 70.2 | G93: 63.1 | H93: 45.9 | I93: 66.4 | J93: 53.5 | K93: 135.7 | L93: 86.5 | M93: 31.7 | N93: 31.7 | O93: 34.2 | P93: 28.8 | Q93: 28.8 | R93: 26.7 | S93: 37.6 | T93: 69.2 | U93: 1/4 | V93: 2021
B94: 2/4 | C94: 68.3 | D94: 172.9 | E94: 68.6 | F94: 72.3 | G94: 72.2 | H94: 48.1 | I94: 69.3 | J94: 54.2 | K94: 140.4 | L94: 93.4 | M94: 32.1 | N94: 33.4 | O94: 35.6 | P94: 29.7 | Q94: 29.2 | R94: 27.2 | S94: 38.1 | T94: 66.8 | U94: 2/4
B95: 3/4 | C95: 73.5 | D95: 182.0 | E95: 71.2 | F95: 73.4 | G95: 80.5 | H95: 49.5 | I95: 75.4 | J95: 56.4 | K95: 142.3 | L95: 102.2 | M95: 33.4 | N95: 35.1 | O95: 37.4 | P95: 31.4 | Q95: 30.1 | R95: 28.7 | S95: 39.2 | T95: 66.8 | U95: 3/4
B96: 4/4 | C96: 83.5 | D96: 199.2 | E96: 82.1 | F96: 78.6 | G96: 91.4 | H96: 59.4 | I96: 83.7 | J96: 61.0 | K96: 144.8 | L96: 113.7 | M96: 38.1 | N96: 40.2 | O96: 41.4 | P96: 36.2 | Q96: 33.0 | R96: 33.1 | S96: 44.0 | T96: 78.9 | U96: 4/4
A98: 2022 | B98: 1/4 | C98: 84.6 | D98: 203.7 | E98: 83.9 | F98: 78.6 | G98: 94.4 | H98: 61.3 | I98: 84.3 | J98: 61.5 | K98: 138.8 | L98: 115.6 | M98: 39.8 | N98: 41.1 | O98: 42.8 | P98: 37.5 | Q98: 33.6 | R98: 33.7 | S98: 45.4 | T98: 80.9 | U98: 1/4 | V98: 2022
B99: 2/4 | C99: 84.9 | D99: 204.0 | E99: 83.7 | F99: 76.6 | G99: 94.1 | H99: 62.2 | I99: 84.1 | J99: 61.8 | K99: 133.3 | L99: 115.8 | M99: 41.2 | N99: 41.3 | O99: 43.7 | P99: 37.8 | Q99: 33.3 | R99: 34.6 | S99: 45.8 | T99: 85.0 | U99: 2/4
A101: 1) 주택구입부담지수(K-HAI) = 대출상환가능소득 / 중간가구소득(월) *100 = (원리금 상환액 / DTI) / 중간가구소득(월) * 100
A102: - 원리금상환액은 LTV 47.9%, DTI 25.7%, 만기 20년 원리금균등 상환대출의 매월 상환액
A103: - 중간소득가구가 표준대출을 받아 중간가격 주택을 구입하는 경우의 상환부담을 나타내는 지수로서, 지수가 낮을(높을)수록 주택구입부담이 완화(가중)됨을 의미
A104: - 주택담보대출 상환으로 가구소득의 약25%를 부담하면 주택구입부담지수는 100으로 산출됨
A105: 2) 통계청 가계동향조사(2011.02.24)의 가계소득 시계열 수치 변경에 따라 과거 시계열 전체 변경. (2011.3월)
A106: 고용노동부 지역별 사업체 노동력조사의 월급여액 수치 변경으로 2011.2/4분기말 K-HAI 수치 조정. (2011.12월)
A107: 이용자 편의 증대를 위해 주택구입능력지수에서 주택구입부담지수로 명칭 변경. (2012.1월)
A108: 주택가격동향조사가 KB 국민은행에서 한국부동산원으로 이관됨에 따라, 동 지수 산출을 위한 주택가격도 '13.1/4분기 시점 이후 지수에 대해서는 KB 국민은행에서 한국부동산원 주택가격으로 변경 적용('14.3월)
A109: 고용노동부 지역별 사업체 노동력조사의 자료 변경에 따라 '세종'지역 신규 추가('21.3월)
A111: ※ 자료: K-HAI를 작성하는데 필요한 주택담보대출금리는 한국은행의 신규취급 예금은행 주택담보대출금리를, 중간주택가격은 '12년 12월까지는 국민은행의 'KB아파트 시세' /
A112: '13년 1월 이후부터는 한국부동산원 아파트시세를, 중간가구소득은 통계청 '가계조사'의 2인 이상 도시근로자 가계소득의 5·6분위 소득에 노동부 '매월 노동통계조사'의 5인 이상
A113: 사업체 상용근로자 월급여 총액의 전국 대비 지역별 환산비율을 적용하였음

Sheet 2. 주택규모별 주택구입부담지수
A1: 2. 주택규모별 주택구입부담지수1) 2) | K1: K-HAI(Korea-Housing Affordability Index) by Housing Size
A4: 분기말 | C4: 전국 | D4: 서울 | E4: 부산 | F4: 대구 | G4: 인천 | H4: 광주 | I4: 대전 | J4: 울산 | K4: 세종 | L4: 경기 | M4: 강원 | N4: 충북 | O4: 충남 | P4: 전북 | Q4: 전남 | R4: 경북 | S4: 경남 | T4: 제주 | U4: 분기말
A6: End of quarter | C6: Total | D6: Seoul | E6: Busan | F6: Daegu | G6: Incheon | H6: Gwangju | I6: Daejeon | J6: Ulsan | K6: Sejong | L6: Gyeonggi | M6: Gangwon | N6: Chungbuk | O6: Chungnam | P6: Jeonbuk | Q6: Jeonnam | R6: Gyeongbuk | S6: Gyeongnam | T6: Jeju | U6: End of quarter
A8: 60㎡ 이하 | M8: 60㎡ or less
A9: 2008 | B9: 1/4 | C9: 39.8 | D9: 87.9 | E9: 36.3 | F9: 39.9 | G9: 52.8 | H9: 26.2 | I9: 28.6 | J9: 30.5 | L9: 62.6 | M9: 24.9 | N9: 27.8 | O9: 27.0 | P9: 23.8 | Q9: 16.9 | R9: 24.3 | S9: 29.3 | T9: 31.8 | U9: 1/4 | V9: 2008
B10: 2/4 | C10: 44.9 | D10: 102.8 | E10: 39.5 | F10: 40.7 | G10: 61.4 | H10: 27.0 | I10: 30.6 | J10: 32.1 | L10: 69.6 | M10: 27.0 | N10: 29.3 | O10: 28.3 | P10: 26.8 | Q10: 17.8 | R10: 25.5 | S10: 30.3 | T10: 34.1 | U10: 2/4
B11: 3/4 | C11: 45.4 | D11: 103.3 | E11: 39.1 | F11: 39.9 | G11: 65.5 | H11: 26.5 | I11: 30.2 | J11: 31.4 | L11: 69.5 | M11: 26.5 | N11: 28.7 | O11: 28.6 | P11: 26.7 | Q11: 18.2 | R11: 25.2 | S11: 30.6 | T11: 33.4 | U11: 3/4
B12: 4/4 | C12: 45.4 | D12: 101.6 | E12: 39.4 | F12: 39.2 | G12: 65.6 | H12: 27.0 | I12: 30.2 | J12: 31.5 | L12: 69.0 | M12: 26.9 | N12: 28.7 | O12: 28.9 | P12: 27.5 | Q12: 18.8 | R12: 25.2 | S12: 31.2 | T12: 34.2 | U12: 4/4
A14: 2009 | B14: 1/4 | C14: 39.9 | D14: 89.2 | E14: 35.2 | F14: 34.4 | G14: 58.0 | H14: 24.1 | I14: 27.0 | J14: 28.5 | L14: 60.0 | M14: 24.3 | N14: 25.7 | O14: 26.0 | P14: 25.4 | Q14: 17.2 | R14: 22.5 | S14: 28.2 | T14: 28.7 | U14: 1/4 | V14: 2009
B15: 2/4 | C15: 40.7 | D15: 91.5 | E15: 36.2 | F15: 35.0 | G15: 58.6 | H15: 24.7 | I15: 27.6 | J15: 28.6 | L15: 61.4 | M15: 24.5 | N15: 25.9 | O15: 26.2 | P15: 25.6 | Q15: 17.7 | R15: 22.9 | S15: 28.9 | T15: 29.2 | U15: 2/4
B16: 3/4 | C16: 41.4 | D16: 95.4 | E16: 36.8 | F16: 35.2 | G16: 60.8 | H16: 25.9 | I16: 28.1 | J16: 30.4 | L16: 62.4 | M16: 24.9 | N16: 26.6 | O16: 27.0 | P16: 26.5 | Q16: 18.4 | R16: 22.9 | S16: 29.6 | T16: 30.5 | U16: 3/4
B17: 4/4 | C17: 42.4 | D17: 95.5 | E17: 37.5 | F17: 35.9 | G17: 60.9 | H17: 26.0 | I17: 29.1 | J17: 30.4 | L17: 62.6 | M17: 25.3 | N17: 26.8 | O17: 27.3 | P17: 26.5 | Q17: 18.6 | R17: 22.9 | S17: 30.0 | T17: 30.5 | U17: 4/4
A19: 2010 | B19: 1/4 | C19: 39.1 | D19: 88.2 | E19: 36.2 | F19: 33.1 | G19: 56.2 | H19: 24.0 | I19: 27.3 | J19: 28.1 | L19: 57.8 | M19: 23.2 | N19: 24.6 | O19: 25.5 | P19: 25.1 | Q19: 17.9 | R19: 20.6 | S19: 28.9 | T19: 28.2 | U19: 1/4 | V19: 2010
B20: 2/4 | C20: 39.2 | D20: 84.8 | E20: 37.2 | F20: 32.4 | G20: 55.0 | H20: 23.9 | I20: 27.6 | J20: 27.5 | L20: 55.9 | M20: 22.9 | N20: 24.4 | O20: 25.2 | P20: 26.0 | Q20: 17.7 | R20: 20.1 | S20: 29.3 | T20: 28.0 | U20: 2/4
B21: 3/4 | C21: 37.9 | D21: 82.4 | E21: 37.9 | F21: 31.2 | G21: 52.8 | H21: 23.7 | I21: 28.5 | J21: 26.7 | L21: 53.5 | M21: 22.5 | N21: 23.5 | O21: 23.6 | P21: 24.7 | Q21: 17.0 | R21: 18.9 | S21: 29.6 | T21: 27.6 | U21: 3/4
B22: 4/4 | C22: 39.8 | D22: 82.9 | E22: 41.8 | F22: 32.1 | G22: 53.1 | H22: 24.2 | I22: 31.5 | J22: 27.7 | L22: 53.8 | M22: 22.6 | N22: 24.3 | O22: 23.6 | P22: 26.0 | Q22: 17.5 | R22: 19.8 | S22: 31.8 | T22: 29.7 | U22: 4/4
A24: 2011 | B24: 1/4 | C24: 39.9 | D24: 79.9 | E24: 44.1 | F24: 32.8 | G24: 51.1 | H24: 25.1 | I24: 32.9 | J24: 28.5 | L24: 52.6 | M24: 22.5 | N24: 24.5 | O24: 24.2 | P24: 26.0 | Q24: 18.0 | R24: 19.4 | S24: 36.0 | T24: 29.4 | U24: 1/4 | V24: 2011
B25: 2/4 | C25: 42.2 | D25: 77.4 | E25: 45.4 | F25: 36.0 | G25: 50.3 | H25: 28.5 | I25: 35.7 | J25: 28.6 | L25: 54.8 | M25: 23.4 | N25: 25.6 | O25: 24.5 | P25: 26.1 | Q25: 19.6 | R25: 19.9 | S25: 38.9 | T25: 29.0 | U25: 2/4
B26: 3/4 | C26: 41.4 | D26: 75.2 | E26: 45.4 | F26: 37.7 | G26: 47.6 | H26: 28.5 | I26: 36.7 | J26: 28.9 | L26: 53.6 | M26: 24.3 | N26: 27.1 | O26: 24.7 | P26: 26.6 | Q26: 19.6 | R26: 20.1 | S26: 38.3 | T26: 31.4 | U26: 3/4
B27: 4/4 | C27: 43.0 | D27: 76.6 | E27: 47.4 | F27: 39.9 | G27: 47.7 | H27: 29.9 | I27: 37.8 | J27: 33.3 | L27: 54.6 | M27: 26.5 | N27: 28.3 | O27: 25.5 | P27: 28.3 | Q27: 21.7 | R27: 21.3 | S27: 39.0 | T27: 34.3 | U27: 4/4
A29: 2012 | B29: 1/4 | C29: 40.0 | D29: 70.7 | E29: 43.8 | F29: 38.3 | G29: 44.4 | H29: 29.0 | I29: 35.6 | J29: 32.0 | L29: 50.8 | M29: 24.7 | N29: 26.9 | O29: 23.7 | P29: 27.2 | Q29: 20.8 | R29: 21.2 | S29: 36.3 | T29: 34.5 | U29: 1/4 | V29: 2012
B30: 2/4 | C30: 41.6 | D30: 73.4 | E30: 45.5 | F30: 40.2 | G30: 45.3 | H30: 30.8 | I30: 37.0 | J30: 33.9 | L30: 52.6 | M30: 25.8 | N30: 28.3 | O30: 24.6 | P30: 27.9 | Q30: 22.5 | R30: 22.8 | S30: 37.7 | T30: 36.6 | U30: 2/4
B31: 3/4 | C31: 38.2 | D31: 67.8 | E31: 42.3 | F31: 37.7 | G31: 41.8 | H31: 28.8 | I31: 33.0 | J31: 31.6 | L31: 46.8 | M31: 23.7 | N31: 26.2 | O31: 22.9 | P31: 26.2 | Q31: 20.9 | R31: 21.3 | S31: 34.9 | T31: 34.7 | U31: 3/4
B32: 4/4 | C32: 38.2 | D32: 68.3 | E32: 42.6 | F32: 38.8 | G32: 41.7 | H32: 29.0 | I32: 33.2 | J32: 31.8 | L32: 47.1 | M32: 23.9 | N32: 27.0 | O32: 24.3 | P32: 26.2 | Q32: 21.0 | R32: 22.0 | S32: 34.4 | T32: 35.3 | U32: 4/4
A34: 2013 | B34: 1/4 | C34: 36.1 | D34: 62.8 | E34: 39.2 | F34: 37.8 | G34: 37.0 | H34: 27.7 | I34: 31.0 | J34: 29.1 | L34: 43.0 | M34: 24.2 | N34: 25.2 | O34: 23.2 | P34: 25.3 | Q34: 19.8 | R34: 21.0 | S34: 32.9 | T34: 31.7 | U34: 1/4 | V34: 2013
B35: 2/4 | C35: 35.3 | D35: 62.6 | E35: 39.1 | F35: 39.9 | G35: 36.8 | H35: 28.4 | I35: 30.9 | J35: 29.0 | L35: 42.9 | M35: 23.3 | N35: 24.5 | O35: 23.1 | P35: 23.8 | Q35: 19.4 | R35: 22.3 | S35: 32.1 | T35: 33.3 | U35: 2/4
B36: 3/4 | C36: 34.7 | D36: 59.9 | E36: 38.4 | F36: 40.2 | G36: 35.7 | H36: 27.4 | I36: 30.2 | J36: 30.3 | L36: 41.9 | M36: 22.9 | N36: 24.2 | O36: 22.0 | P36: 23.8 | Q36: 19.1 | R36: 21.9 | S36: 31.5 | T36: 32.3 | U36: 3/4
B37: 4/4 | C37: 35.4 | D37: 60.1 | E37: 39.2 | F37: 42.6 | G37: 36.5 | H37: 27.5 | I37: 31.4 | J37: 30.4 | L37: 43.3 | M37: 23.6 | N37: 25.7 | O37: 23.0 | P37: 23.9 | Q37: 19.1 | R37: 23.3 | S37: 31.6 | T37: 32.4 | U37: 4/4
A39: 2014 | B39: 1/4 | C39: 34.5 | D39: 58.0 | E39: 37.6 | F39: 43.5 | G39: 35.6 | H39: 27.0 | I39: 30.3 | J39: 31.2 | L39: 41.5 | M39: 22.6 | N39: 24.6 | O39: 22.3 | P39: 23.6 | Q39: 18.3 | R39: 22.6 | S39: 30.9 | T39: 32.6 | U39: 1/4 | V39: 2014
B40: 2/4 | C40: 35.8 | D40: 60.7 | E40: 39.6 | F40: 45.3 | G40: 37.5 | H40: 29.5 | I40: 31.4 | J40: 33.3 | L40: 43.6 | M40: 22.6 | N40: 25.5 | O40: 22.9 | P40: 24.0 | Q40: 18.3 | R40: 23.8 | S40: 32.7 | T40: 33.7 | U40: 2/4
B41: 3/4 | C41: 34.5 | D41: 59.5 | E41: 39.1 | F41: 44.6 | G41: 36.5 | H41: 28.0 | I41: 30.5 | J41: 32.6 | L41: 42.7 | M41: 22.2 | N41: 26.2 | O41: 21.5 | P41: 22.7 | Q41: 17.6 | R41: 22.6 | S41: 32.6 | T41: 33.5 | U41: 3/4
B42: 4/4 | C42: 36.0 | D42: 61.6 | E42: 40.6 | F42: 46.8 | G42: 37.8 | H42: 28.8 | I42: 30.7 | J42: 35.2 | L42: 44.4 | M42: 22.7 | N42: 26.9 | O42: 23.3 | P42: 23.3 | Q42: 18.1 | R42: 23.6 | S42: 34.1 | T42: 35.1 | U42: 4/4
A44: 2015 | B44: 1/4 | C44: 33.4 | D44: 56.2 | E44: 37.0 | F44: 43.2 | G44: 35.3 | H44: 26.9 | I44: 28.0 | J44: 31.5 | L44: 40.5 | M44: 20.8 | N44: 25.1 | O44: 21.0 | P44: 21.2 | Q44: 16.5 | R44: 21.7 | S44: 31.2 | T44: 34.2 | U44: 1/4 | V44: 2015
B45: 2/4 | C45: 36.2 | D45: 62.1 | E45: 40.2 | F45: 47.4 | G45: 39.7 | H45: 32.2 | I45: 29.2 | J45: 33.7 | L45: 44.5 | M45: 22.5 | N45: 27.5 | O45: 22.2 | P45: 22.7 | Q45: 17.9 | R45: 24.0 | S45: 33.8 | T45: 38.8 | U45: 2/4
B46: 3/4 | C46: 35.6 | D46: 61.5 | E46: 39.4 | F46: 47.2 | G46: 38.9 | H46: 31.0 | I46: 28.2 | J46: 33.6 | L46: 44.7 | M46: 21.7 | N46: 26.3 | O46: 20.8 | P46: 21.9 | Q46: 17.1 | R46: 23.4 | S46: 33.3 | T46: 39.0 | U46: 3/4
B47: 4/4 | C47: 37.2 | D47: 63.9 | E47: 41.3 | F47: 48.5 | G47: 41.4 | H47: 32.8 | I47: 28.6 | J47: 36.4 | L47: 46.5 | M47: 22.5 | N47: 26.2 | O47: 21.1 | P47: 22.0 | Q47: 17.5 | R47: 23.3 | S47: 33.7 | T47: 48.6 | U47: 4/4
A49: 2016 | B49: 1/4 | C49: 36.6 | D49: 64.6 | E49: 40.8 | F49: 47.1 | G49: 40.6 | H49: 32.7 | I49: 28.4 | J49: 34.7 | L49: 47.2 | M49: 22.6 | N49: 25.6 | O49: 20.6 | P49: 21.5 | Q49: 17.6 | R49: 22.7 | S49: 33.7 | T49: 51.2 | U49: 1/4 | V49: 2016
B50: 2/4 | C50: 35.7 | D50: 63.6 | E50: 40.5 | F50: 46.1 | G50: 40.2 | H50: 31.7 | I50: 27.7 | J50: 34.4 | L50: 46.1 | M50: 22.4 | N50: 25.0 | O50: 20.0 | P50: 21.0 | Q50: 17.2 | R50: 21.6 | S50: 32.6 | T50: 51.5 | U50: 2/4
B51: 3/4 | C51: 36.0 | D51: 66.8 | E51: 41.2 | F51: 45.7 | G51: 40.9 | H51: 31.6 | I51: 27.8 | J51: 34.5 | L51: 47.3 | M51: 23.0 | N51: 25.0 | O51: 20.0 | P51: 21.1 | Q51: 17.3 | R51: 21.0 | S51: 32.8 | T51: 54.5 | U51: 3/4
B52: 4/4 | C52: 37.5 | D52: 71.5 | E52: 44.5 | F52: 46.8 | G52: 43.4 | H52: 32.6 | I52: 29.0 | J52: 35.0 | L52: 50.0 | M52: 24.1 | N52: 25.1 | O52: 20.3 | P52: 21.9 | Q52: 18.0 | R52: 21.6 | S52: 34.0 | T52: 59.2 | U52: 4/4
A54: 2017 | B54: 1/4 | C54: 37.8 | D54: 72.3 | E54: 45.8 | F54: 47.2 | G54: 43.5 | H54: 32.4 | I54: 29.2 | J54: 36.1 | L54: 50.1 | M54: 24.6 | N54: 25.3 | O54: 20.1 | P54: 22.2 | Q54: 18.4 | R54: 21.2 | S54: 32.7 | T54: 62.8 | U54: 1/4 | V54: 2017
B55: 2/4 | C55: 38.2 | D55: 74.7 | E55: 46.7 | F55: 47.2 | G55: 43.6 | H55: 32.6 | I55: 29.3 | J55: 36.2 | L55: 50.9 | M55: 25.4 | N55: 25.0 | O55: 20.2 | P55: 22.6 | Q55: 18.6 | R55: 20.6 | S55: 32.8 | T55: 62.5 | U55: 2/4
B56: 3/4 | C56: 38.2 | D56: 78.4 | E56: 47.3 | F56: 47.1 | G56: 44.2 | H56: 32.5 | I56: 29.9 | J56: 35.5 | L56: 51.1 | M56: 25.4 | N56: 25.2 | O56: 20.1 | P56: 23.1 | Q56: 19.0 | R56: 20.3 | S56: 32.8 | T56: 62.5 | U56: 3/4
B57: 4/4 | C57: 38.2 | D57: 81.5 | E57: 48.3 | F57: 45.4 | G57: 46.2 | H57: 33.6 | I57: 30.9 | J57: 35.3 | L57: 51.6 | M57: 27.1 | N57: 24.3 | O57: 20.5 | P57: 23.3 | Q57: 19.7 | R57: 20.3 | S57: 31.7 | T57: 61.8 | U57: 4/4
A59: 2018 | B59: 1/4 | C59: 37.8 | D59: 83.9 | E59: 47.2 | F59: 44.2 | G59: 46.1 | H59: 33.4 | I59: 30.6 | J59: 33.3 | L59: 50.8 | M59: 27.4 | N59: 23.4 | O59: 20.1 | P59: 23.1 | Q59: 19.9 | R59: 19.2 | S59: 30.0 | T59: 62.7 | U59: 1/4 | V59: 2018
B60: 2/4 | C60: 36.8 | D60: 85.6 | E60: 45.9 | F60: 43.6 | G60: 45.2 | H60: 33.0 | I60: 30.1 | J60: 31.2 | L60: 50.2 | M60: 26.4 | N60: 22.2 | O60: 19.8 | P60: 22.6 | Q60: 19.8 | R60: 18.9 | S60: 29.0 | T60: 61.4 | U60: 2/4
B61: 3/4 | C61: 35.6 | D61: 90.9 | E61: 43.0 | F61: 42.7 | G61: 43.6 | H61: 32.2 | I61: 28.8 | J61: 28.6 | L61: 48.7 | M61: 25.6 | N61: 20.7 | O61: 19.0 | P61: 21.3 | Q61: 19.3 | R61: 17.2 | S61: 28.1 | T61: 59.4 | U61: 3/4
B62: 4/4 | C62: 34.2 | D62: 94.4 | E62: 41.1 | F62: 41.6 | G62: 42.5 | H62: 31.9 | I62: 28.5 | J62: 26.3 | L62: 47.4 | M62: 24.9 | N62: 20.0 | O62: 18.5 | P62: 20.8 | Q62: 18.7 | R62: 16.6 | S62: 26.3 | T62: 56.6 | U62: 4/4
A64: 2019 | B64: 1/4 | C64: 33.0 | D64: 90.9 | E64: 39.7 | F64: 39.9 | G64: 40.8 | H64: 31.3 | I64: 27.6 | J64: 25.1 | L64: 46.2 | M64: 23.4 | N64: 19.1 | O64: 17.2 | P64: 19.6 | Q64: 18.3 | R64: 15.6 | S64: 25.2 | T64: 51.0 | U64: 1/4 | V64: 2019
B65: 2/4 | C65: 31.5 | D65: 87.3 | E65: 37.0 | F65: 38.3 | G65: 39.1 | H65: 29.7 | I65: 26.2 | J65: 24.5 | L65: 44.1 | M65: 21.0 | N65: 17.8 | O65: 16.3 | P65: 18.6 | Q65: 17.4 | R65: 14.7 | S65: 23.5 | T65: 48.7 | U65: 2/4
B66: 3/4 | C66: 30.3 | D66: 88.3 | E66: 35.9 | F66: 36.6 | G66: 38.6 | H66: 28.6 | I66: 26.2 | J66: 23.7 | L66: 42.7 | M66: 20.1 | N66: 17.5 | O66: 15.6 | P66: 18.1 | Q66: 17.0 | R66: 13.9 | S66: 22.6 | T66: 45.7 | U66: 3/4
B67: 4/4 | C67: 29.7 | D67: 90.1 | E67: 35.2 | F67: 36.0 | G67: 37.8 | H67: 28.0 | I67: 26.7 | J67: 23.8 | L67: 41.9 | M67: 19.0 | N67: 17.1 | O67: 15.2 | P67: 17.7 | Q67: 16.9 | R67: 13.4 | S67: 21.7 | T67: 42.6 | U67: 4/4
B69: 1/4 | C69: 28.9 | D69: 93.1 | E69: 33.8 | F69: 34.9 | G69: 36.6 | H69: 27.4 | I69: 26.9 | J69: 22.9 | L69: 41.9 | M69: 18.6 | N69: 16.3 | O69: 14.8 | P69: 17.1 | Q69: 16.4 | R69: 12.7 | S69: 20.8 | T69: 41.6 | U69: 1/4
B70: 2/4 | C70: 29.8 | D70: 103.4 | E70: 34.8 | F70: 34.8 | G70: 37.5 | H70: 27.2 | I70: 28.9 | J70: 22.5 | L70: 45.4 | M70: 18.7 | N70: 17.1 | O70: 14.6 | P70: 16.6 | Q70: 16.2 | R70: 12.7 | S70: 20.8 | T70: 40.3 | U70: 2/4
A71: 2020 | B71: 3/4 | C71: 29.7 | D71: 104.8 | E71: 33.9 | F71: 34.5 | G71: 36.9 | H71: 27.0 | I71: 29.2 | J71: 22.1 | L71: 45.2 | M71: 18.7 | N71: 16.8 | O71: 14.6 | P71: 16.4 | Q71: 16.3 | R71: 12.7 | S71: 20.4 | T71: 40.1 | U71: 3/4 | V71: 2020
B72: 4/4 | C72: 31.0 | D72: 112.5 | E72: 36.8 | F72: 37.5 | G72: 37.7 | H72: 27.2 | I72: 30.9 | J72: 23.7 | K72: 102.6 | L72: 47.9 | M72: 19.1 | N72: 16.9 | O72: 15.0 | P72: 17.0 | Q72: 16.7 | R72: 13.0 | S72: 21.0 | T72: 41.6 | U72: 4/4
A74: 2021 | B74: 1/4 | C74: 33.5 | D74: 120.2 | E74: 39.2 | F74: 40.6 | G74: 39.7 | H74: 27.5 | I74: 32.2 | J74: 25.8 | K74: 105.6 | L74: 55.4 | M74: 19.3 | N74: 17.6 | O74: 15.7 | P74: 17.3 | Q74: 16.9 | R74: 13.1 | S74: 22.8 | T74: 43.2 | U74: 1/4 | V74: 2021
B75: 2/4 | C75: 35.1 | D75: 124.8 | E75: 40.3 | F75: 41.7 | G75: 44.3 | H75: 28.4 | I75: 33.7 | J75: 26.2 | K75: 107.0 | L75: 61.3 | M75: 19.8 | N75: 18.0 | O75: 15.9 | P75: 17.8 | Q75: 17.1 | R75: 13.8 | S75: 22.6 | T75: 42.2 | U75: 2/4
B76: 3/4 | C76: 37.7 | D76: 133.0 | E76: 41.0 | F76: 42.0 | G76: 51.1 | H76: 29.3 | I76: 38.2 | J76: 27.7 | K76: 106.5 | L76: 69.5 | M76: 21.3 | N76: 19.1 | O76: 16.8 | P76: 18.8 | Q76: 17.3 | R76: 14.3 | S76: 23.6 | T76: 43.5 | U76: 3/4
B77: 4/4 | C77: 43.2 | D77: 145.7 | E77: 44.9 | F77: 45.4 | G77: 58.8 | H77: 32.7 | I77: 43.4 | J77: 29.7 | K77: 111.2 | L77: 79.3 | M77: 24.4 | N77: 21.2 | O77: 19.2 | P77: 21.3 | Q77: 18.6 | R77: 16.2 | S77: 26.5 | T77: 47.3 | U77: 4/4
A79: 2022 | B79: 1/4 | C79: 44.0 | D79: 147.9 | E79: 45.8 | F79: 45.8 | G79: 60.3 | H79: 32.9 | I79: 43.8 | J79: 30.0 | K79: 103.9 | L79: 81.4 | M79: 25.2 | N79: 22.5 | O79: 19.4 | P79: 21.8 | Q79: 18.8 | R79: 16.5 | S79: 27.2 | T79: 47.5 | U79: 1/4 | V79: 2022
B80: 2/4 | C80: 44.0 | D80: 147.9 | E80: 45.7 | F80: 45.6 | G80: 60.7 | H80: 33.8 | I80: 43.6 | J80: 29.9 | K80: 99.5 | L80: 81.2 | M80: 26.2 | N80: 22.4 | O80: 19.8 | P80: 22.3 | Q80: 18.9 | R80: 16.7 | S80: 28.2 | T80: 51.1 | U80: 2/4
A81: 60 ~ 85㎡ 이하 | M81: Over 60 ~ 85㎡ or less
A82: 2008 | B82: 1/4 | C82: 80.6 | D82: 152.3 | E82: 59.0 | F82: 72.8 | G82: 92.9 | H82: 42.2 | I82: 58.3 | J82: 55.1 | L82: 113.3 | M82: 39.3 | N82: 47.5 | O82: 61.8 | P82: 41.3 | Q82: 30.1 | R82: 47.0 | S82: 55.4 | T82: 66.0 | U82: 1/4 | V82: 2008
B83: 2/4 | C83: 87.7 | D83: 167.6 | E83: 63.3 | F83: 74.2 | G83: 104.9 | H83: 43.2 | I83: 63.1 | J83: 59.3 | L83: 120.5 | M83: 42.5 | N83: 51.2 | O83: 65.8 | P83: 46.1 | Q83: 33.1 | R83: 49.6 | S83: 56.2 | T83: 68.2 | U83: 2/4
B84: 3/4 | C84: 87.9 | D84: 164.9 | E84: 62.5 | F84: 72.2 | G84: 106.3 | H84: 42.8 | I84: 62.4 | J84: 57.1 | L84: 117.9 | M84: 42.1 | N84: 50.1 | O84: 65.3 | P84: 45.3 | Q84: 34.4 | R84: 49.0 | S84: 55.6 | T84: 69.3 | U84: 3/4
B85: 4/4 | C85: 86.9 | D85: 162.3 | E85: 63.2 | F85: 70.4 | G85: 106.0 | H85: 42.8 | I85: 62.4 | J85: 56.2 | L85: 114.9 | M85: 42.1 | N85: 50.1 | O85: 65.6 | P85: 46.1 | Q85: 35.1 | R85: 47.7 | S85: 55.7 | T85: 69.8 | U85: 4/4
A87: 2009 | B87: 1/4 | C87: 75.9 | D87: 144.3 | E87: 56.9 | F87: 60.8 | G87: 93.8 | H87: 40.0 | I87: 55.8 | J87: 51.9 | L87: 100.9 | M87: 38.3 | N87: 45.8 | O87: 57.3 | P87: 42.3 | Q87: 31.7 | R87: 43.8 | S87: 51.1 | T87: 62.4 | U87: 1/4 | V87: 2009
B88: 2/4 | C88: 77.2 | D88: 146.7 | E88: 57.9 | F88: 61.4 | G88: 95.4 | H88: 40.9 | I88: 57.1 | J88: 53.1 | L88: 102.6 | M88: 39.3 | N88: 46.6 | O88: 59.0 | P88: 43.4 | Q88: 32.4 | R88: 44.6 | S88: 51.5 | T88: 63.5 | U88: 2/4
B89: 3/4 | C89: 79.1 | D89: 150.7 | E89: 58.9 | F89: 62.2 | G89: 98.3 | H89: 43.0 | I89: 58.4 | J89: 56.9 | L89: 103.5 | M89: 40.1 | N89: 47.7 | O89: 61.0 | P89: 45.3 | Q89: 33.9 | R89: 44.4 | S89: 52.5 | T89: 67.3 | U89: 3/4
B90: 4/4 | C90: 79.5 | D90: 150.8 | E90: 60.7 | F90: 62.3 | G90: 98.4 | H90: 44.1 | I90: 60.7 | J90: 57.3 | L90: 102.8 | M90: 41.4 | N90: 51.6 | O90: 62.0 | P90: 46.2 | Q90: 33.9 | R90: 44.6 | S90: 53.5 | T90: 68.6 | U90: 4/4
A92: 2010 | B92: 1/4 | C92: 74.4 | D92: 140.0 | E92: 58.4 | F92: 58.5 | G92: 91.8 | H92: 41.7 | I92: 57.1 | J92: 53.5 | L92: 95.8 | M92: 39.4 | N92: 49.0 | O92: 57.3 | P92: 43.9 | Q92: 32.3 | R92: 41.2 | S92: 50.8 | T92: 65.5 | U92: 1/4 | V92: 2010
B93: 2/4 | C93: 73.2 | D93: 136.2 | E93: 59.9 | F93: 57.5 | G93: 88.9 | H93: 41.6 | I93: 57.3 | J93: 52.2 | L93: 92.1 | M93: 40.1 | N93: 48.7 | O93: 57.0 | P93: 45.4 | Q93: 32.3 | R93: 40.3 | S93: 51.4 | T93: 64.1 | U93: 2/4
B94: 3/4 | C94: 70.9 | D94: 132.1 | E94: 60.7 | F94: 55.3 | G94: 84.4 | H94: 40.8 | I94: 58.1 | J94: 51.9 | L94: 89.1 | M94: 40.6 | N94: 46.6 | O94: 53.5 | P94: 44.0 | Q94: 32.8 | R94: 38.6 | S94: 52.2 | T94: 63.2 | U94: 3/4
B95: 4/4 | C95: 71.8 | D95: 131.7 | E95: 64.8 | F95: 56.0 | G95: 84.0 | H95: 42.9 | I95: 61.1 | J95: 53.4 | L95: 88.8 | M95: 42.4 | N95: 49.0 | O95: 55.0 | P95: 47.1 | Q95: 34.6 | R95: 39.7 | S95: 56.1 | T95: 64.6 | U95: 4/4
A97: 2011 | B97: 1/4 | C97: 71.9 | D97: 128.1 | E97: 68.7 | F97: 55.8 | G97: 81.0 | H97: 45.8 | I97: 62.4 | J97: 54.1 | L97: 85.6 | M97: 41.7 | N97: 50.7 | O97: 54.4 | P97: 47.6 | Q97: 34.2 | R97: 39.4 | S97: 61.0 | T97: 62.3 | U97: 1/4 | V97: 2011
B98: 2/4 | C98: 74.7 | D98: 124.4 | E98: 69.9 | F98: 59.5 | G98: 79.6 | H98: 49.5 | I98: 66.6 | J98: 52.9 | L98: 90.0 | M98: 45.4 | N98: 52.2 | O98: 54.4 | P98: 49.0 | Q98: 37.9 | R98: 40.2 | S98: 63.0 | T98: 71.5 | U98: 2/4
B99: 3/4 | C99: 72.7 | D99: 118.4 | E99: 70.1 | F99: 59.3 | G99: 75.8 | H99: 48.9 | I99: 68.3 | J99: 51.9 | L99: 86.7 | M99: 46.8 | N99: 53.3 | O99: 53.9 | P99: 48.9 | Q99: 36.8 | R99: 39.8 | S99: 62.2 | T99: 61.2 | U99: 3/4
B100: 4/4 | C100: 74.9 | D100: 120.7 | E100: 71.8 | F100: 62.2 | G100: 76.4 | H100: 53.4 | I100: 69.3 | J100: 56.2 | L100: 88.3 | M100: 49.6 | N100: 57.2 | O100: 55.7 | P100: 51.5 | Q100: 40.3 | R100: 42.2 | S100: 64.2 | T100: 66.3 | U100: 4/4
A102: 2012 | B102: 1/4 | C102: 69.7 | D102: 111.1 | E102: 67.3 | F102: 58.8 | G102: 70.4 | H102: 50.5 | I102: 64.5 | J102: 54.9 | L102: 81.4 | M102: 47.3 | N102: 53.7 | O102: 52.6 | P102: 48.8 | Q102: 37.9 | R102: 41.1 | S102: 59.0 | T102: 63.5 | U102: 1/4 | V102: 2012
B103: 2/4 | C103: 71.6 | D103: 115.4 | E103: 69.9 | F103: 62.8 | G103: 72.3 | H103: 52.5 | I103: 66.2 | J103: 59.1 | L103: 83.8 | M103: 49.5 | N103: 56.7 | O103: 56.2 | P103: 50.7 | Q103: 39.7 | R103: 44.0 | S103: 61.3 | T103: 66.0 | U103: 2/4
B104: 3/4 | C104: 65.8 | D104: 106.0 | E104: 65.0 | F104: 59.1 | G104: 66.5 | H104: 49.6 | I104: 59.6 | J104: 54.9 | L104: 74.7 | M104: 45.5 | N104: 52.3 | O104: 52.6 | P104: 47.3 | Q104: 36.9 | R104: 41.2 | S104: 56.7 | T104: 60.8 | U104: 3/4
B105: 4/4 | C105: 66.0 | D105: 105.6 | E105: 64.7 | F105: 61.0 | G105: 66.9 | H105: 50.7 | I105: 60.1 | J105: 56.0 | L105: 74.6 | M105: 46.4 | N105: 53.5 | O105: 53.7 | P105: 47.6 | Q105: 37.2 | R105: 42.5 | S105: 56.4 | T105: 61.2 | U105: 4/4
A107: 2013 | B107: 1/4 | C107: 59.9 | D107: 97.2 | E107: 58.8 | F107: 58.3 | G107: 56.8 | H107: 46.1 | I107: 55.3 | J107: 49.8 | L107: 66.5 | M107: 42.3 | N107: 49.6 | O107: 48.5 | P107: 44.7 | Q107: 34.1 | R107: 40.6 | S107: 52.4 | T107: 51.8 | U107: 1/4 | V107: 2013
B108: 2/4 | C108: 59.7 | D108: 96.9 | E108: 59.4 | F108: 61.2 | G108: 57.4 | H108: 49.0 | I108: 55.8 | J108: 50.8 | L108: 67.0 | M108: 42.9 | N108: 50.9 | O108: 49.7 | P108: 44.6 | Q108: 34.0 | R108: 41.9 | S108: 52.3 | T108: 54.3 | U108: 2/4
B109: 3/4 | C109: 57.6 | D109: 91.5 | E109: 58.3 | F109: 61.8 | G109: 55.6 | H109: 47.4 | I109: 54.6 | J109: 53.7 | L109: 65.4 | M109: 42.6 | N109: 49.2 | O109: 47.8 | P109: 43.9 | Q109: 32.9 | R109: 41.7 | S109: 51.4 | T109: 52.7 | U109: 3/4
B110: 4/4 | C110: 59.0 | D110: 92.9 | E110: 58.4 | F110: 65.1 | G110: 56.4 | H110: 47.5 | I110: 56.1 | J110: 54.5 | L110: 66.3 | M110: 42.7 | N110: 50.0 | O110: 49.9 | P110: 44.0 | Q110: 33.6 | R110: 44.6 | S110: 51.6 | T110: 52.8 | U110: 4/4
A112: 2014 | B112: 1/4 | C112: 57.2 | D112: 90.0 | E112: 56.6 | F112: 64.6 | G112: 54.7 | H112: 46.9 | I112: 53.7 | J112: 55.2 | L112: 64.1 | M112: 40.8 | N112: 47.9 | O112: 47.8 | P112: 42.1 | Q112: 32.2 | R112: 43.3 | S112: 50.0 | T112: 50.5 | U112: 1/4 | V112: 2014
B113: 2/4 | C113: 59.8 | D113: 93.2 | E113: 60.0 | F113: 70.7 | G113: 58.7 | H113: 49.3 | I113: 55.6 | J113: 57.8 | L113: 67.0 | M113: 42.2 | N113: 51.0 | O113: 50.8 | P113: 44.4 | Q113: 32.7 | R113: 46.2 | S113: 52.5 | T113: 51.4 | U113: 2/4
B114: 3/4 | C114: 57.9 | D114: 90.7 | E114: 59.4 | F114: 70.3 | G114: 57.0 | H114: 47.0 | I114: 52.3 | J114: 55.7 | L114: 65.3 | M114: 41.3 | N114: 49.6 | O114: 49.2 | P114: 42.6 | Q114: 30.8 | R114: 44.7 | S114: 52.2 | T114: 50.6 | U114: 3/4
B115: 4/4 | C115: 60.0 | D115: 94.1 | E115: 61.7 | F115: 75.2 | G115: 58.5 | H115: 48.6 | I115: 53.7 | J115: 57.1 | L115: 67.0 | M115: 42.6 | N115: 53.0 | O115: 51.1 | P115: 43.7 | Q115: 32.2 | R115: 46.0 | S115: 54.9 | T115: 55.9 | U115: 4/4
A117: 2015 | B117: 1/4 | C117: 55.2 | D117: 86.3 | E117: 56.2 | F117: 69.6 | G117: 54.5 | H117: 45.9 | I117: 48.9 | J117: 53.7 | L117: 62.2 | M117: 40.0 | N117: 49.6 | O117: 47.1 | P117: 40.5 | Q117: 29.4 | R117: 42.9 | S117: 51.2 | T117: 50.9 | U117: 1/4 | V117: 2015
B118: 2/4 | C118: 60.2 | D118: 94.3 | E118: 61.3 | F118: 78.6 | G118: 60.2 | H118: 53.1 | I118: 52.2 | J118: 57.3 | L118: 67.6 | M118: 43.4 | N118: 54.3 | O118: 49.8 | P118: 43.2 | Q118: 32.0 | R118: 46.4 | S118: 54.7 | T118: 64.3 | U118: 2/4
B119: 3/4 | C119: 59.3 | D119: 93.6 | E119: 61.8 | F119: 78.7 | G119: 60.0 | H119: 53.3 | I119: 50.4 | J119: 57.0 | L119: 66.4 | M119: 42.0 | N119: 51.7 | O119: 47.9 | P119: 41.7 | Q119: 31.2 | R119: 46.0 | S119: 53.4 | T119: 66.7 | U119: 3/4
B120: 4/4 | C120: 61.2 | D120: 96.9 | E120: 64.6 | F120: 81.1 | G120: 62.7 | H120: 55.5 | I120: 51.6 | J120: 61.2 | L120: 68.5 | M120: 42.5 | N120: 52.7 | O120: 48.3 | P120: 43.0 | Q120: 33.1 | R120: 46.2 | S120: 54.7 | T120: 78.9 | U120: 4/4
A122: 2016 | B122: 1/4 | C122: 61.3 | D122: 97.4 | E122: 65.9 | F122: 80.0 | G122: 62.1 | H122: 56.6 | I122: 52.6 | J122: 59.9 | L122: 68.9 | M122: 44.3 | N122: 52.5 | O122: 47.6 | P122: 43.0 | Q122: 35.0 | R122: 47.2 | S122: 56.2 | T122: 84.3 | U122: 1/4 | V122: 2016
B123: 2/4 | C123: 59.9 | D123: 96.1 | E123: 65.6 | F123: 77.7 | G123: 61.3 | H123: 55.3 | I123: 51.3 | J123: 59.0 | L123: 67.9 | M123: 44.0 | N123: 51.3 | O123: 46.5 | P123: 42.1 | Q123: 33.9 | R123: 45.5 | S123: 54.9 | T123: 82.3 | U123: 2/4
B124: 3/4 | C124: 60.6 | D124: 98.4 | E124: 67.7 | F124: 76.9 | G124: 62.0 | H124: 55.4 | I124: 51.4 | J124: 61.3 | L124: 68.6 | M124: 44.7 | N124: 50.7 | O124: 46.6 | P124: 42.2 | Q124: 34.3 | R124: 45.0 | S124: 54.9 | T124: 82.5 | U124: 3/4
B125: 4/4 | C125: 63.0 | D125: 104.6 | E125: 74.4 | F125: 78.5 | G125: 66.4 | H125: 56.4 | I125: 53.6 | J125: 63.2 | L125: 72.0 | M125: 47.4 | N125: 51.6 | O125: 47.4 | P125: 43.9 | Q125: 35.9 | R125: 45.1 | S125: 57.3 | T125: 90.3 | U125: 4/4
A127: 2017 | B127: 1/4 | C127: 63.5 | D127: 105.8 | E127: 76.2 | F127: 80.1 | G127: 66.5 | H127: 56.3 | I127: 54.1 | J127: 65.1 | L127: 72.7 | M127: 47.9 | N127: 51.1 | O127: 47.0 | P127: 45.0 | Q127: 37.1 | R127: 44.8 | S127: 56.6 | T127: 95.0 | U127: 1/4 | V127: 2017
B128: 2/4 | C128: 64.3 | D128: 108.3 | E128: 77.8 | F128: 80.3 | G128: 66.7 | H128: 57.2 | I128: 54.3 | J128: 64.8 | L128: 73.6 | M128: 48.8 | N128: 51.2 | O128: 46.7 | P128: 45.4 | Q128: 37.9 | R128: 44.4 | S128: 56.8 | T128: 96.1 | U128: 2/4
B129: 3/4 | C129: 64.3 | D129: 112.5 | E129: 78.4 | F129: 81.0 | G129: 67.9 | H129: 57.4 | I129: 54.9 | J129: 62.4 | L129: 74.1 | M129: 49.4 | N129: 50.5 | O129: 46.2 | P129: 45.9 | Q129: 38.4 | R129: 43.7 | S129: 55.4 | T129: 96.0 | U129: 3/4
B130: 4/4 | C130: 65.5 | D130: 117.8 | E130: 79.6 | F130: 80.6 | G130: 69.7 | H130: 59.0 | I130: 56.2 | J130: 62.8 | L130: 74.6 | M130: 51.4 | N130: 49.2 | O130: 47.2 | P130: 46.5 | Q130: 41.4 | R130: 44.5 | S130: 54.1 | T130: 95.7 | U130: 4/4
A132: 2018 | B132: 1/4 | C132: 64.3 | D132: 122.0 | E132: 78.2 | F132: 79.8 | G132: 69.0 | H132: 59.1 | I132: 56.2 | J132: 61.4 | L132: 73.8 | M132: 50.6 | N132: 49.4 | O132: 46.6 | P132: 45.7 | Q132: 41.7 | R132: 43.4 | S132: 52.3 | T132: 94.8 | U132: 1/4 | V132: 2018
B133: 2/4 | C133: 63.5 | D133: 125.9 | E133: 77.5 | F133: 79.5 | G133: 67.5 | H133: 58.4 | I133: 55.8 | J133: 58.5 | L133: 72.6 | M133: 49.7 | N133: 47.5 | O133: 45.5 | P133: 45.3 | Q133: 41.8 | R133: 42.5 | S133: 50.4 | T133: 101.1 | U133: 2/4
B134: 3/4 | C134: 61.1 | D134: 134.5 | E134: 73.4 | F134: 76.5 | G134: 66.8 | H134: 58.8 | I134: 54.6 | J134: 56.0 | L134: 70.6 | M134: 49.2 | N134: 45.7 | O134: 44.4 | P134: 43.8 | Q134: 41.0 | R134: 39.8 | S134: 48.4 | T134: 118.1 | U134: 3/4 | V134: 2018
B135: 4/4 | C135: 60.0 | D135: 138.5 | E135: 69.8 | F135: 75.3 | G135: 66.0 | H135: 59.5 | I135: 54.4 | J135: 55.0 | L135: 70.0 | M135: 47.8 | N135: 43.4 | O135: 43.8 | P135: 42.8 | Q135: 40.9 | R135: 39.2 | S135: 47.3 | T135: 117.4 | U135: 4/4
A137: 2019 | B137: 1/4 | C137: 58.2 | D137: 134.9 | E137: 67.3 | F137: 72.1 | G137: 63.8 | H137: 57.9 | I137: 53.6 | J137: 52.6 | L137: 68.2 | M137: 45.6 | N137: 41.4 | O137: 41.7 | P137: 41.1 | Q137: 40.0 | R137: 37.3 | S137: 44.3 | T137: 112.3 | U137: 1/4 | V137: 2019
B138: 2/4 | C138: 55.6 | D138: 128.5 | E138: 62.9 | F138: 69.2 | G138: 61.4 | H138: 55.2 | I138: 52.0 | J138: 50.0 | L138: 65.5 | M138: 44.3 | N138: 40.5 | O138: 40.0 | P138: 38.6 | Q138: 37.5 | R138: 36.4 | S138: 42.5 | T138: 104.4 | U138: 2/4
B139: 3/4 | C139: 54.6 | D139: 129.2 | E139: 62.1 | F139: 66.9 | G139: 60.7 | H139: 53.7 | I139: 52.4 | J139: 49.4 | L139: 65.1 | M139: 41.8 | N139: 40.0 | O139: 39.8 | P139: 38.3 | Q139: 36.7 | R139: 35.9 | S139: 41.6 | T139: 101.0 | U139: 3/4
B140: 4/4 | C140: 54.5 | D140: 130.2 | E140: 60.8 | F140: 66.1 | G140: 59.6 | H140: 52.4 | I140: 56.4 | J140: 49.9 | L140: 64.3 | M140: 40.9 | N140: 39.2 | O140: 39.0 | P140: 37.2 | Q140: 36.5 | R140: 35.4 | S140: 40.7 | T140: 98.9 | U140: 4/4
B142: 1/4 | C142: 53.0 | D142: 135.7 | E142: 58.6 | F142: 64.2 | G142: 57.8 | H142: 50.8 | I142: 57.8 | J142: 48.2 | L142: 63.8 | M142: 39.1 | N142: 38.4 | O142: 37.7 | P142: 35.5 | Q142: 35.1 | R142: 33.4 | S142: 39.4 | T142: 93.3 | U142: 1/4
B143: 2/4 | C143: 56.2 | D143: 146.2 | E143: 59.7 | F143: 65.3 | G143: 62.4 | H143: 52.3 | I143: 62.6 | J143: 50.2 | L143: 71.6 | M143: 40.7 | N143: 43.3 | O143: 38.5 | P143: 35.8 | Q143: 35.1 | R143: 34.5 | S143: 40.7 | T143: 91.7 | U143: 2/4
A144: 2020 | B144: 3/4 | C144: 56.5 | D144: 147.1 | E144: 58.4 | F144: 64.6 | G144: 61.9 | H144: 51.6 | I144: 63.3 | J144: 49.3 | L144: 72.1 | M144: 41.0 | N144: 43.3 | O144: 38.7 | P144: 35.5 | Q144: 35.0 | R144: 34.2 | S144: 39.8 | T144: 91.4 | U144: 3/4 | V144: 2020
B145: 4/4 | C145: 62.2 | D145: 157.6 | E145: 65.9 | F145: 69.5 | G145: 65.4 | H145: 53.4 | I145: 68.6 | J145: 55.7 | K145: 132.4 | L145: 81.0 | M145: 41.8 | N145: 44.8 | O145: 40.4 | P145: 36.2 | Q145: 35.6 | R145: 35.6 | S145: 42.1 | T145: 89.6 | U145: 4/4
A147: 2021 | B147: 1/4 | C147: 70.2 | D147: 172.3 | E147: 75.4 | F147: 76.8 | G147: 71.2 | H147: 56.7 | I147: 72.3 | J147: 62.4 | K147: 140.4 | L147: 92.1 | M147: 42.8 | N147: 47.3 | O147: 42.3 | P147: 37.6 | Q147: 37.5 | R147: 37.3 | S147: 44.5 | T147: 94.7 | U147: 1/4 | V147: 2021
B148: 2/4 | C148: 74.9 | D148: 179.0 | E148: 78.5 | F148: 80.1 | G148: 80.4 | H148: 59.1 | I148: 76.3 | J148: 63.7 | K148: 143.3 | L148: 99.0 | M148: 43.9 | N148: 49.5 | O148: 44.3 | P148: 38.3 | Q148: 38.2 | R148: 37.9 | S148: 45.1 | T148: 85.7 | U148: 2/4
B149: 3/4 | C149: 80.1 | D149: 188.2 | E149: 81.6 | F149: 80.6 | G149: 88.8 | H149: 60.9 | I149: 82.4 | J149: 66.1 | K149: 143.2 | L149: 106.9 | M149: 45.9 | N149: 52.6 | O149: 47.0 | P149: 42.1 | Q149: 39.8 | R149: 39.6 | S149: 46.7 | T149: 94.6 | U149: 3/4
B150: 4/4 | C150: 90.0 | D150: 205.7 | E150: 90.9 | F150: 85.5 | G150: 101.7 | H150: 73.4 | I150: 91.1 | J150: 72.2 | K150: 151.0 | L150: 119.7 | M150: 53.4 | N150: 59.8 | O150: 52.5 | P150: 47.7 | Q150: 44.0 | R150: 44.9 | S150: 51.9 | T150: 110.9 | U150: 4/4
A152: 2022 | B152: 1/4 | C152: 91.2 | D152: 209.2 | E152: 92.7 | F152: 85.7 | G152: 103.1 | H152: 76.9 | I152: 91.8 | J152: 72.8 | K152: 145.0 | L152: 120.6 | M152: 55.0 | N152: 62.5 | O152: 55.0 | P152: 49.8 | Q152: 44.2 | R152: 46.3 | S152: 53.4 | T152: 111.8 | U152: 1/4 | V152: 2022
B153: 2/4 | C153: 91.5 | D153: 210.5 | E153: 93.0 | F153: 83.1 | G153: 103.9 | H153: 79.0 | I153: 91.6 | J153: 72.1 | K153: 139.5 | L153: 120.3 | M153: 57.7 | N153: 62.3 | O153: 54.8 | P153: 50.2 | Q153: 43.2 | R153: 46.7 | S153: 53.8 | T153: 116.5 | U153: 2/4
A154: 85 ~ 135㎡ 이하 | M154: Over 85 ~ 135㎡ or less
A155: 2008 | B155: 1/4 | C155: 161.3 | D155: 265.5 | E155: 108.9 | F155: 116.7 | G155: 140.8 | H155: 67.4 | I155: 102.1 | J155: 102.0 | L155: 208.6 | M155: 68.9 | N155: 85.3 | O155: 93.7 | P155: 72.7 | Q155: 50.2 | R155: 74.7 | S155: 86.7 | T155: 115.8 | U155: 1/4 | V155: 2008
B156: 2/4 | C156: 173.3 | D156: 283.3 | E156: 118.0 | F156: 118.1 | G156: 151.7 | H156: 69.0 | I156: 109.3 | J156: 106.1 | L156: 213.9 | M156: 73.3 | N156: 90.7 | O156: 98.2 | P156: 78.0 | Q156: 55.9 | R156: 78.3 | S156: 89.1 | T156: 119.6 | U156: 2/4
B157: 3/4 | C157: 169.6 | D157: 276.4 | E157: 116.7 | F157: 114.4 | G157: 149.6 | H157: 68.6 | I157: 106.3 | J157: 103.9 | L157: 205.3 | M157: 72.0 | N157: 87.9 | O157: 98.3 | P157: 76.4 | Q157: 56.7 | R157: 76.6 | S157: 87.2 | T157: 117.1 | U157: 3/4
B158: 4/4 | C158: 165.7 | D158: 261.2 | E158: 116.8 | F158: 112.2 | G158: 148.6 | H158: 69.1 | I158: 103.4 | J158: 102.1 | L158: 195.3 | M158: 71.8 | N158: 88.0 | O158: 96.2 | P158: 77.4 | Q158: 56.7 | R158: 75.3 | S158: 86.2 | T158: 117.2 | U158: 4/4
A160: 2009 | B160: 1/4 | C160: 140.8 | D160: 233.5 | E160: 105.4 | F160: 97.1 | G160: 129.9 | H160: 62.4 | I160: 92.4 | J160: 95.6 | L160: 167.3 | M160: 65.8 | N160: 78.7 | O160: 86.0 | P160: 73.0 | Q160: 52.5 | R160: 67.7 | S160: 79.8 | T160: 104.7 | U160: 1/4 | V160: 2009
B161: 2/4 | C161: 145.0 | D161: 240.7 | E161: 107.2 | F161: 97.7 | G161: 133.7 | H161: 62.8 | I161: 94.0 | J161: 98.7 | L161: 170.1 | M161: 67.0 | N161: 82.8 | O161: 87.8 | P161: 74.2 | Q161: 53.4 | R161: 68.9 | S161: 81.7 | T161: 106.5 | U161: 2/4
B162: 3/4 | C162: 146.8 | D162: 249.4 | E162: 108.8 | F162: 97.6 | G162: 135.8 | H162: 66.7 | I162: 97.4 | J162: 105.5 | L162: 172.1 | M162: 67.5 | N162: 84.7 | O162: 89.4 | P162: 76.2 | Q162: 52.7 | R162: 68.9 | S162: 83.0 | T162: 109.9 | U162: 3/4
B163: 4/4 | C163: 147.0 | D163: 251.3 | E163: 110.4 | F163: 99.9 | G163: 135.9 | H163: 69.3 | I163: 98.2 | J163: 105.6 | L163: 170.4 | M163: 67.6 | N163: 89.8 | O163: 91.5 | P163: 79.6 | Q163: 54.6 | R163: 68.9 | S163: 85.0 | T163: 113.5 | U163: 4/4
A165: 2010 | B165: 1/4 | C165: 135.7 | D165: 232.0 | E165: 106.9 | F165: 94.4 | G165: 130.2 | H165: 65.4 | I165: 91.5 | J165: 97.5 | L165: 158.2 | M165: 66.3 | N165: 82.9 | O165: 86.4 | P165: 75.6 | Q165: 54.4 | R165: 68.5 | S165: 80.3 | T165: 105.5 | U165: 1/4 | V165: 2010
B166: 2/4 | C166: 131.1 | D166: 225.5 | E166: 106.6 | F166: 93.1 | G166: 127.4 | H166: 64.5 | I166: 89.7 | J166: 95.4 | L166: 151.8 | M166: 64.9 | N166: 79.2 | O166: 84.6 | P166: 77.1 | Q166: 55.3 | R166: 66.9 | S166: 80.6 | T166: 104.3 | U166: 2/4
B167: 3/4 | C167: 125.3 | D167: 216.3 | E167: 105.8 | F167: 88.2 | G167: 123.1 | H167: 64.9 | I167: 89.8 | J167: 95.1 | L167: 144.2 | M167: 63.6 | N167: 74.9 | O167: 79.5 | P167: 74.9 | Q167: 54.9 | R167: 63.4 | S167: 81.0 | T167: 102.8 | U167: 3/4
B168: 4/4 | C168: 126.0 | D168: 216.1 | E168: 108.7 | F168: 88.7 | G168: 122.9 | H168: 66.0 | I168: 91.2 | J168: 96.4 | L168: 143.4 | M168: 68.9 | N168: 77.2 | O168: 80.8 | P168: 79.2 | Q168: 56.1 | R168: 67.3 | S168: 83.9 | T168: 103.8 | U168: 4/4
A170: 2011 | B170: 1/4 | C170: 121.4 | D170: 209.0 | E170: 111.3 | F170: 87.3 | G170: 118.5 | H170: 67.4 | I170: 91.9 | J170: 98.6 | L170: 139.0 | M170: 68.0 | N170: 76.1 | O170: 80.2 | P170: 79.0 | Q170: 56.4 | R170: 66.2 | S170: 89.1 | T170: 100.0 | U170: 1/4 | V170: 2011
B171: 2/4 | C171: 124.2 | D171: 201.8 | E171: 108.8 | F171: 91.4 | G171: 115.6 | H171: 69.8 | I171: 98.2 | J171: 93.0 | L171: 144.0 | M171: 69.3 | N171: 78.7 | O171: 79.5 | P171: 80.5 | Q171: 59.2 | R171: 66.2 | S171: 92.8 | T171: 98.9 | U171: 2/4
B172: 3/4 | C172: 120.4 | D172: 193.0 | E172: 108.9 | F172: 89.8 | G172: 109.7 | H172: 71.4 | I172: 99.3 | J172: 90.9 | L172: 138.6 | M172: 71.1 | N172: 78.6 | O172: 77.4 | P172: 80.9 | Q172: 58.9 | R172: 65.3 | S172: 91.8 | T172: 97.5 | U172: 3/4
B173: 4/4 | C173: 121.1 | D173: 193.9 | E173: 112.7 | F173: 93.3 | G173: 111.8 | H173: 74.7 | I173: 100.4 | J173: 94.1 | L173: 139.7 | M173: 73.3 | N173: 85.1 | O173: 79.6 | P173: 83.3 | Q173: 62.0 | R173: 70.6 | S173: 94.3 | T173: 101.3 | U173: 4/4
A175: 2012 | B175: 1/4 | C175: 112.7 | D175: 179.3 | E175: 104.9 | F175: 88.5 | G175: 103.3 | H175: 72.1 | I175: 92.8 | J175: 91.5 | L175: 128.5 | M175: 69.1 | N175: 80.2 | O175: 75.2 | P175: 79.1 | Q175: 58.1 | R175: 69.5 | S175: 88.1 | T175: 96.1 | U175: 1/4 | V175: 2012
B176: 2/4 | C176: 117.1 | D176: 183.6 | E176: 109.8 | F176: 92.0 | G176: 108.1 | H176: 75.7 | I176: 97.5 | J176: 97.8 | L176: 132.0 | M176: 71.8 | N176: 83.3 | O176: 79.8 | P176: 82.2 | Q176: 60.4 | R176: 72.2 | S176: 90.4 | T176: 99.9 | U176: 2/4
B177: 3/4 | C177: 105.4 | D177: 166.4 | E177: 100.5 | F177: 85.2 | G177: 99.0 | H177: 70.3 | I177: 87.7 | J177: 87.7 | L177: 115.9 | M177: 66.0 | N177: 76.9 | O177: 73.9 | P177: 76.4 | Q177: 56.1 | R177: 67.0 | S177: 84.4 | T177: 92.0 | U177: 3/4
B178: 4/4 | C178: 105.5 | D178: 166.4 | E178: 101.2 | F178: 87.4 | G178: 96.8 | H178: 70.9 | I178: 87.6 | J178: 88.4 | L178: 115.4 | M178: 66.4 | N178: 77.5 | O178: 75.4 | P178: 77.3 | Q178: 56.1 | R178: 67.5 | S178: 84.3 | T178: 111.9 | U178: 4/4
A180: 2013 | B180: 1/4 | C180: 92.5 | D180: 147.0 | E180: 90.8 | F180: 77.2 | G180: 81.0 | H180: 66.1 | I180: 78.9 | J180: 81.3 | L180: 100.7 | M180: 61.2 | N180: 69.5 | O180: 63.5 | P180: 71.5 | Q180: 50.9 | R180: 55.3 | S180: 78.3 | T180: 88.5 | U180: 1/4 | V180: 2013
B181: 2/4 | C181: 92.3 | D181: 144.2 | E181: 91.3 | F181: 81.6 | G181: 82.2 | H181: 65.9 | I181: 78.7 | J181: 84.7 | L181: 100.4 | M181: 61.7 | N181: 70.8 | O181: 64.7 | P181: 71.3 | Q181: 52.7 | R181: 61.4 | S181: 78.1 | T181: 106.5 | U181: 2/4
B182: 3/4 | C182: 89.0 | D182: 137.9 | E182: 89.5 | F182: 82.7 | G182: 79.6 | H182: 63.7 | I182: 76.9 | J182: 88.4 | L182: 95.6 | M182: 61.0 | N182: 68.4 | O182: 62.2 | P182: 71.4 | Q182: 51.3 | R182: 60.2 | S182: 75.4 | T182: 103.4 | U182: 3/4
B183: 4/4 | C183: 89.2 | D183: 136.0 | E183: 89.8 | F183: 86.8 | G183: 79.1 | H183: 66.8 | I183: 77.2 | J183: 88.7 | L183: 95.8 | M183: 61.9 | N183: 70.7 | O183: 64.3 | P183: 71.6 | Q183: 51.4 | R183: 64.5 | S183: 75.6 | T183: 103.7 | U183: 4/4
A185: 2014 | B185: 1/4 | C185: 86.7 | D185: 130.2 | E185: 87.3 | F185: 87.6 | G185: 77.7 | H185: 64.7 | I185: 74.5 | J185: 85.5 | L185: 93.0 | M185: 58.7 | N185: 68.4 | O185: 61.6 | P185: 68.9 | Q185: 49.2 | R185: 63.0 | S185: 74.3 | T185: 97.7 | U185: 1/4 | V185: 2014
B186: 2/4 | C186: 91.1 | D186: 134.8 | E186: 91.8 | F186: 94.5 | G186: 86.0 | H186: 69.2 | I186: 77.1 | J186: 90.4 | L186: 96.3 | M186: 60.8 | N186: 72.2 | O186: 64.4 | P186: 72.5 | Q186: 55.9 | R186: 69.4 | S186: 78.4 | T186: 102.8 | U186: 2/4
B187: 3/4 | C187: 87.5 | D187: 130.0 | E187: 91.5 | F187: 95.9 | G187: 83.5 | H187: 66.6 | I187: 74.8 | J187: 87.6 | L187: 94.2 | M187: 58.6 | N187: 70.3 | O187: 61.5 | P187: 69.6 | Q187: 51.6 | R187: 67.2 | S187: 75.7 | T187: 99.7 | U187: 3/4
B188: 4/4 | C188: 91.0 | D188: 135.6 | E188: 93.9 | F188: 100.6 | G188: 85.7 | H188: 68.3 | I188: 76.7 | J188: 90.5 | L188: 97.9 | M188: 61.7 | N188: 75.0 | O188: 63.1 | P188: 71.4 | Q188: 54.2 | R188: 69.6 | S188: 79.0 | T188: 102.2 | U188: 4/4
A190: 2015 | B190: 1/4 | C190: 84.0 | D190: 123.5 | E190: 86.2 | F190: 95.8 | G190: 79.9 | H190: 64.2 | I190: 69.9 | J190: 83.0 | L190: 90.3 | M190: 57.0 | N190: 68.9 | O190: 57.5 | P190: 65.7 | Q190: 49.9 | R190: 65.2 | S190: 72.6 | T190: 93.1 | U190: 1/4 | V190: 2015
B191: 2/4 | C191: 91.5 | D191: 133.0 | E191: 92.7 | F191: 109.0 | G191: 88.6 | H191: 74.1 | I191: 74.6 | J191: 89.2 | L191: 97.7 | M191: 60.4 | N191: 75.0 | O191: 61.4 | P191: 68.8 | Q191: 53.9 | R191: 72.2 | S191: 78.1 | T191: 118.1 | U191: 2/4
B192: 3/4 | C192: 90.1 | D192: 130.4 | E192: 92.0 | F192: 111.5 | G192: 85.5 | H192: 74.9 | I192: 72.0 | J192: 87.7 | L192: 95.4 | M192: 58.2 | N192: 73.0 | O192: 59.2 | P192: 66.9 | Q192: 51.1 | R192: 71.5 | S192: 76.6 | T192: 119.9 | U192: 3/4
B193: 4/4 | C193: 92.5 | D193: 133.1 | E193: 95.9 | F193: 115.9 | G193: 89.2 | H193: 77.9 | I193: 73.5 | J193: 93.5 | L193: 97.9 | M193: 59.0 | N193: 72.6 | O193: 60.0 | P193: 68.0 | Q193: 55.2 | R193: 72.5 | S193: 78.9 | T193: 157.9 | U193: 4/4
A195: 2016 | B195: 1/4 | C195: 92.6 | D195: 135.5 | E195: 97.5 | F195: 114.3 | G195: 90.0 | H195: 80.3 | I195: 73.7 | J195: 91.7 | L195: 98.6 | M195: 61.8 | N195: 70.2 | O195: 59.9 | P195: 68.4 | Q195: 58.0 | R195: 72.1 | S195: 77.4 | T195: 162.5 | U195: 1/4 | V195: 2016
B196: 2/4 | C196: 90.5 | D196: 134.4 | E196: 97.1 | F196: 111.0 | G196: 87.9 | H196: 78.3 | I196: 72.0 | J196: 90.2 | L196: 96.3 | M196: 60.6 | N196: 69.8 | O196: 58.5 | P196: 66.8 | Q196: 57.8 | R196: 69.8 | S196: 75.6 | T196: 161.7 | U196: 2/4
B197: 3/4 | C197: 91.7 | D197: 137.7 | E197: 99.2 | F197: 110.4 | G197: 90.5 | H197: 78.4 | I197: 72.1 | J197: 91.4 | L197: 97.0 | M197: 61.2 | N197: 69.9 | O197: 59.2 | P197: 66.9 | Q197: 57.9 | R197: 68.4 | S197: 76.3 | T197: 162.0 | U197: 3/4
B198: 4/4 | C198: 96.3 | D198: 145.1 | E198: 108.2 | F198: 113.1 | G198: 93.3 | H198: 80.1 | I198: 73.7 | J198: 94.8 | L198: 101.2 | M198: 65.0 | N198: 72.1 | O198: 60.4 | P198: 68.9 | Q198: 59.7 | R198: 68.9 | S198: 79.9 | T198: 179.1 | U198: 4/4
A200: 2017 | B200: 1/4 | C200: 97.1 | D200: 146.8 | E200: 113.2 | F200: 115.2 | G200: 93.4 | H200: 81.5 | I200: 73.6 | J200: 97.7 | L200: 101.5 | M200: 65.9 | N200: 71.3 | O200: 59.9 | P200: 69.9 | Q200: 60.6 | R200: 68.3 | S200: 79.2 | T200: 183.9 | U200: 1/4 | V200: 2017
B201: 2/4 | C201: 98.6 | D201: 151.1 | E201: 115.7 | F201: 115.0 | G201: 95.6 | H201: 81.7 | I201: 74.5 | J201: 98.0 | L201: 103.0 | M201: 66.8 | N201: 71.6 | O201: 60.1 | P201: 70.2 | Q201: 60.8 | R201: 67.5 | S201: 79.5 | T201: 187.6 | U201: 2/4
B202: 3/4 | C202: 99.1 | D202: 155.8 | E202: 116.9 | F202: 114.8 | G202: 97.4 | H202: 82.3 | I202: 74.4 | J202: 97.3 | L202: 102.9 | M202: 66.7 | N202: 72.2 | O202: 59.8 | P202: 70.5 | Q202: 60.7 | R202: 66.8 | S202: 78.1 | T202: 188.9 | U202: 3/4
B203: 4/4 | C203: 101.4 | D203: 169.5 | E203: 118.4 | F203: 115.2 | G203: 100.3 | H203: 85.4 | I203: 75.9 | J203: 99.3 | L203: 103.9 | M203: 67.6 | N203: 70.3 | O203: 61.6 | P203: 68.7 | Q203: 69.6 | R203: 68.6 | S203: 79.9 | T203: 193.0 | U203: 4/4
A205: 2018 | B205: 1/4 | C205: 99.7 | D205: 163.5 | E205: 117.2 | F205: 114.0 | G205: 101.8 | H205: 84.5 | I205: 76.4 | J205: 97.1 | L205: 103.5 | M205: 67.6 | N205: 70.2 | O205: 61.0 | P205: 68.3 | Q205: 68.9 | R205: 67.3 | S205: 79.1 | T205: 188.7 | U205: 1/4 | V205: 2018
B206: 2/4 | C206: 99.1 | D206: 172.2 | E206: 115.8 | F206: 113.3 | G206: 100.6 | H206: 85.5 | I206: 75.5 | J206: 93.6 | L206: 102.8 | M206: 66.8 | N206: 70.0 | O206: 60.2 | P206: 67.4 | Q206: 68.7 | R206: 66.6 | S206: 75.6 | T206: 187.9 | U206: 2/4
B207: 3/4 | C207: 96.5 | D207: 178.7 | E207: 109.4 | F207: 109.7 | G207: 98.2 | H207: 83.1 | I207: 73.4 | J207: 89.2 | L207: 100.7 | M207: 63.9 | N207: 68.1 | O207: 58.2 | P207: 64.6 | Q207: 67.6 | R207: 63.0 | S207: 72.4 | T207: 176.8 | U207: 3/4
B208: 4/4 | C208: 96.5 | D208: 184.6 | E208: 106.1 | F208: 107.8 | G208: 96.4 | H208: 86.1 | I208: 74.5 | J208: 87.0 | L208: 101.7 | M208: 62.3 | N208: 66.0 | O208: 56.9 | P208: 63.6 | Q208: 67.4 | R208: 61.0 | S208: 70.6 | T208: 169.7 | U208: 4/4
A210: 2019 | B210: 1/4 | C210: 94.5 | D210: 178.9 | E210: 102.2 | F210: 104.3 | G210: 94.6 | H210: 83.9 | I210: 73.7 | J210: 83.1 | L210: 99.0 | M210: 60.7 | N210: 61.0 | O210: 55.2 | P210: 61.4 | Q210: 65.1 | R210: 58.8 | S210: 67.3 | T210: 168.8 | U210: 1/4 | V210: 2019
B211: 2/4 | C211: 91.0 | D211: 171.6 | E211: 96.9 | F211: 100.2 | G211: 90.7 | H211: 81.1 | I211: 71.2 | J211: 79.0 | L211: 95.0 | M211: 57.1 | N211: 58.5 | O211: 52.8 | P211: 58.9 | Q211: 60.8 | R211: 55.3 | S211: 63.8 | T211: 162.0 | U211: 2/4
B212: 3/4 | C212: 89.0 | D212: 170.1 | E212: 94.8 | F212: 96.5 | G212: 88.2 | H212: 78.4 | I212: 72.3 | J212: 77.5 | L212: 92.8 | M212: 54.8 | N212: 56.6 | O212: 51.6 | P212: 58.1 | Q212: 60.7 | R212: 53.8 | S212: 62.6 | T212: 152.4 | U212: 3/4
B213: 4/4 | C213: 88.1 | D213: 176.7 | E213: 94.0 | F213: 95.1 | G213: 87.5 | H213: 76.8 | I213: 77.0 | J213: 77.3 | L213: 92.7 | M213: 53.6 | N213: 55.8 | O213: 50.3 | P213: 56.9 | Q213: 59.6 | R213: 52.7 | S213: 61.3 | T213: 146.8 | U213: 4/4
B215: 1/4 | C215: 89.4 | D215: 188.7 | E215: 91.4 | F215: 92.4 | G215: 85.1 | H215: 77.7 | I215: 79.9 | J215: 75.4 | L215: 93.8 | M215: 50.7 | N215: 52.3 | O215: 48.2 | P215: 54.4 | Q215: 57.8 | R215: 50.3 | S215: 58.6 | T215: 139.3 | U215: 1/4
B216: 2/4 | C216: 94.8 | D216: 200.9 | E216: 91.4 | F216: 93.1 | G216: 96.4 | H216: 77.5 | I216: 89.1 | J216: 77.3 | L216: 104.8 | M216: 50.9 | N216: 55.4 | O216: 48.8 | P216: 53.1 | Q216: 61.7 | R216: 50.5 | S216: 59.6 | T216: 136.1 | U216: 2/4
A217: 2020 | B217: 3/4 | C217: 95.5 | D217: 202.0 | E217: 89.7 | F217: 93.1 | G217: 95.3 | H217: 76.8 | I217: 90.1 | J217: 76.0 | L217: 104.1 | M217: 50.8 | N217: 54.8 | O217: 48.6 | P217: 52.6 | Q217: 63.7 | R217: 49.6 | S217: 58.7 | T217: 135.2 | U217: 3/4 | V217: 2020
B218: 4/4 | C218: 106.5 | D218: 214.7 | E218: 102.2 | F218: 105.9 | G218: 98.6 | H218: 78.5 | I218: 97.6 | J218: 86.3 | K218: 166.0 | L218: 113.2 | M218: 51.8 | N218: 57.3 | O218: 51.5 | P218: 53.4 | Q218: 64.3 | R218: 51.2 | S218: 60.2 | T218: 137.5 | U218: 4/4
A220: 2021 | B220: 1/4 | C220: 117.0 | D220: 230.0 | E220: 117.7 | F220: 114.1 | G220: 107.3 | H220: 82.0 | I220: 105.5 | J220: 93.8 | K220: 181.0 | L220: 124.7 | M220: 52.8 | N220: 60.4 | O220: 54.6 | P220: 56.5 | Q220: 67.9 | R220: 54.0 | S220: 62.8 | T220: 140.2 | U220: 1/4 | V220: 2021
B221: 2/4 | C221: 126.2 | D221: 243.6 | E221: 127.7 | F221: 120.1 | G221: 122.7 | H221: 85.3 | I221: 112.9 | J221: 97.5 | K221: 186.3 | L221: 133.0 | M221: 55.7 | N221: 66.4 | O221: 58.7 | P221: 59.9 | Q221: 69.4 | R221: 57.2 | S221: 65.2 | T221: 131.9 | U221: 2/4
B222: 3/4 | C222: 134.5 | D222: 252.0 | E222: 132.0 | F222: 121.5 | G222: 134.2 | H222: 88.7 | I222: 117.5 | J222: 106.9 | K222: 188.7 | L222: 143.8 | M222: 57.2 | N222: 69.1 | O222: 63.3 | P222: 63.7 | Q222: 73.4 | R222: 59.4 | S222: 68.9 | T222: 141.1 | U222: 3/4
B223: 4/4 | C223: 149.8 | D223: 279.5 | E223: 146.7 | F223: 128.6 | G223: 148.0 | H223: 102.0 | I223: 130.2 | J223: 115.8 | K223: 197.9 | L223: 159.6 | M223: 64.8 | N223: 80.4 | O223: 70.7 | P223: 77.7 | Q223: 81.1 | R223: 67.3 | S223: 77.3 | T223: 168.5 | U223: 4/4
A225: 2022 | B225: 1/4 | C225: 151.7 | D225: 284.6 | E225: 149.6 | F225: 129.1 | G225: 149.2 | H225: 105.2 | I225: 131.3 | J225: 117.7 | K225: 191.3 | L225: 162.9 | M225: 67.6 | N225: 80.0 | O225: 73.3 | P225: 78.3 | Q225: 83.4 | R225: 68.9 | S225: 79.0 | T225: 173.0 | U225: 1/4 | V225: 2022
B226: 2/4 | C226: 151.6 | D226: 285.6 | E226: 148.6 | F226: 128.1 | G226: 149.9 | H226: 108.4 | I226: 130.4 | J226: 118.4 | K226: 187.7 | L226: 161.8 | M226: 70.3 | N226: 80.3 | O226: 73.1 | P226: 78.1 | Q226: 84.3 | R226: 69.0 | S226: 79.9 | T226: 177.5 | U226: 2/4
A227: 135㎡ 초과 | M227: Over 135㎡
A229: 2008 | B229: 1/4 | C229: 284.8 | D229: 543.1 | E229: 145.2 | F229: 203.0 | G229: 166.0 | H229: 108.2 | I229: 126.4 | J229: 144.2 | L229: 300.9 | M229: 122.2 | N229: 121.4 | O229: 121.4 | P229: 118.1 | Q229: 63.8 | R229: 100.7 | S229: 123.3 | T229: 179.9 | U229: 1/4 | V229: 2008
B230: 2/4 | C230: 298.6 | D230: 570.3 | E230: 155.3 | F230: 207.3 | G230: 181.8 | H230: 110.9 | I230: 134.5 | J230: 149.2 | L230: 310.5 | M230: 131.6 | N230: 126.8 | O230: 129.5 | P230: 126.8 | Q230: 70.3 | R230: 106.0 | S230: 123.0 | T230: 197.3 | U230: 2/4
B231: 3/4 | C231: 292.2 | D231: 561.8 | E231: 155.6 | F231: 200.5 | G231: 179.1 | H231: 108.5 | I231: 131.7 | J231: 144.1 | L231: 300.9 | M231: 130.0 | N231: 118.4 | O231: 127.8 | P231: 125.3 | Q231: 74.9 | R231: 103.7 | S231: 122.4 | T231: 194.3 | U231: 3/4
B232: 4/4 | C232: 280.2 | D232: 529.6 | E232: 156.9 | F232: 196.0 | G232: 178.1 | H232: 106.4 | I232: 131.8 | J232: 140.5 | L232: 280.8 | M232: 127.8 | N232: 116.2 | O232: 131.2 | P232: 125.4 | Q232: 75.4 | R232: 102.5 | S232: 122.5 | T232: 194.5 | U232: 4/4
A234: 2009 | B234: 1/4 | C234: 237.7 | D234: 468.5 | E234: 144.4 | F234: 175.2 | G234: 159.2 | H234: 98.1 | I234: 117.8 | J234: 139.0 | L234: 247.3 | M234: 115.2 | N234: 107.9 | O234: 118.8 | P234: 113.1 | Q234: 69.7 | R234: 95.6 | S234: 107.7 | T234: 169.4 | U234: 1/4 | V234: 2009
B235: 2/4 | C235: 238.0 | D235: 478.1 | E235: 148.0 | F235: 178.1 | G235: 164.9 | H235: 98.7 | I235: 119.8 | J235: 144.7 | L235: 242.3 | M235: 119.6 | N235: 113.9 | O235: 120.8 | P235: 114.0 | Q235: 71.8 | R235: 93.2 | S235: 111.4 | T235: 172.2 | U235: 2/4
B236: 3/4 | C236: 239.1 | D236: 497.1 | E236: 150.0 | F236: 173.8 | G236: 167.2 | H236: 104.9 | I236: 119.5 | J236: 152.0 | L236: 244.3 | M236: 120.2 | N236: 116.9 | O236: 123.0 | P236: 111.6 | Q236: 73.4 | R236: 93.2 | S236: 116.5 | T236: 177.2 | U236: 3/4
B237: 4/4 | C237: 237.4 | D237: 502.7 | E237: 150.1 | F237: 178.2 | G237: 168.4 | H237: 107.1 | I237: 121.4 | J237: 152.2 | L237: 240.8 | M237: 122.5 | N237: 117.2 | O237: 124.1 | P237: 111.7 | Q237: 101.5 | R237: 93.3 | S237: 118.5 | T237: 177.4 | U237: 4/4
A239: 2010 | B239: 1/4 | C239: 219.2 | D239: 465.6 | E239: 146.5 | F239: 179.4 | G239: 162.9 | H239: 110.7 | I239: 114.1 | J239: 140.5 | L239: 220.6 | M239: 112.7 | N239: 108.2 | O239: 114.6 | P239: 110.3 | Q239: 95.8 | R239: 96.0 | S239: 113.1 | T239: 163.8 | U239: 1/4 | V239: 2010
B240: 2/4 | C240: 206.8 | D240: 446.6 | E240: 143.4 | F240: 172.7 | G240: 158.5 | H240: 106.3 | I240: 111.7 | J240: 140.7 | L240: 209.2 | M240: 110.3 | N240: 103.9 | O240: 112.1 | P240: 107.9 | Q240: 95.8 | R240: 94.0 | S240: 110.5 | T240: 162.4 | U240: 2/4
B241: 3/4 | C241: 197.8 | D241: 429.7 | E241: 140.3 | F241: 165.3 | G241: 163.5 | H241: 108.4 | I241: 111.8 | J241: 133.6 | L241: 196.1 | M241: 108.2 | N241: 98.3 | O241: 104.3 | P241: 103.4 | Q241: 92.3 | R241: 88.0 | S241: 108.9 | T241: 162.1 | U241: 3/4
B242: 4/4 | C242: 197.3 | D242: 430.8 | E242: 141.7 | F242: 166.3 | G242: 164.5 | H242: 109.0 | I242: 117.2 | J242: 137.5 | L242: 195.6 | M242: 107.3 | N242: 99.9 | O242: 105.7 | P242: 108.4 | Q242: 92.8 | R242: 96.6 | S242: 112.1 | T242: 173.7 | U242: 4/4
A244: 2011 | B244: 1/4 | C244: 188.5 | D244: 416.5 | E244: 144.2 | F244: 161.1 | G244: 158.5 | H244: 106.9 | I244: 116.9 | J244: 137.1 | L244: 190.1 | M244: 103.4 | N244: 96.2 | O244: 102.7 | P244: 103.5 | Q244: 100.1 | R244: 93.9 | S244: 112.5 | T244: 168.4 | U244: 1/4 | V244: 2011
B245: 2/4 | C245: 191.6 | D245: 403.6 | E245: 144.0 | F245: 166.9 | G245: 155.8 | H245: 110.7 | I245: 118.5 | J245: 128.8 | L245: 196.4 | M245: 102.6 | N245: 99.2 | O245: 101.4 | P245: 102.4 | Q245: 99.5 | R245: 93.5 | S245: 120.2 | T245: 165.8 | U245: 2/4
B246: 3/4 | C246: 182.9 | D246: 384.3 | E246: 140.3 | F246: 161.6 | G246: 147.6 | H246: 110.0 | I246: 115.7 | J246: 124.0 | L246: 185.9 | M246: 102.3 | N246: 108.2 | O246: 100.0 | P246: 101.1 | Q246: 95.8 | R246: 89.2 | S246: 116.5 | T246: 162.5 | U246: 3/4
B247: 4/4 | C247: 183.4 | D247: 386.5 | E247: 144.6 | F247: 164.7 | G247: 149.6 | H247: 112.1 | I247: 117.9 | J247: 127.8 | L247: 187.8 | M247: 104.2 | N247: 110.3 | O247: 99.5 | P247: 103.9 | Q247: 96.5 | R247: 93.4 | S247: 118.7 | T247: 168.6 | U247: 4/4
A249: 2012 | B249: 1/4 | C249: 169.8 | D249: 356.0 | E249: 134.6 | F249: 153.3 | G249: 134.6 | H249: 108.5 | I249: 109.7 | J249: 118.9 | L249: 173.4 | M249: 97.0 | N249: 102.6 | O249: 93.4 | P249: 99.1 | Q249: 91.6 | R249: 88.4 | S249: 110.5 | T249: 157.8 | U249: 1/4 | V249: 2012
B250: 2/4 | C250: 172.5 | D250: 364.6 | E250: 138.2 | F250: 159.3 | G250: 138.3 | H250: 112.7 | I250: 112.5 | J250: 124.2 | L250: 177.0 | M250: 101.6 | N250: 106.6 | O250: 101.6 | P250: 103.0 | Q250: 94.4 | R250: 91.9 | S250: 114.8 | T250: 164.0 | U250: 2/4
B251: 3/4 | C251: 155.7 | D251: 326.7 | E251: 126.9 | F251: 147.4 | G251: 128.3 | H251: 104.7 | I251: 102.4 | J251: 117.4 | L251: 155.0 | M251: 92.6 | N251: 98.5 | O251: 93.7 | P251: 98.1 | Q251: 83.6 | R251: 85.2 | S251: 106.2 | T251: 151.1 | U251: 3/4
... 51 more rows

Sheet 3. 지역별 주택구입물량지수
A1: 3. 지역별 주택구입물량지수1) 2) 3) | J1: K-HOI(Korea-Housing Opportunity Index) by Region
A4: 연도말 | B4: 전국 | C4: 서울 | D4: 부산 | E4: 대구 | F4: 인천 | G4: 광주 | H4: 대전 | I4: 울산 | J4: 세종 | K4: 경기 | L4: 강원 | M4: 충북 | N4: 충남 | O4: 전북 | P4: 전남 | Q4: 경북 | R4: 경남 | S4: 제주 | T4: 연도말
A6: End of Year | B6: Total | C6: Seoul | D6: Busan | E6: Daegu | F6: Incheon | G6: Gwangju | H6: Daejeon | I6: Ulsan | J6: Sejong | K6: Gyeonggi | L6: Gangwon | M6: Chungbuk | N6: Chungnam | O6: Jeonbuk | P6: Jeonnam | Q6: Gyeongbuk | R6: Gyeongnam | S6: Jeju | T6: End of Year
A8: 2012 | B8: 64.8 | C8: 32.5 | D8: 63.4 | E8: 73.8 | F8: 72.0 | G8: 86.5 | H8: 74.5 | I8: 87.4 | K8: 62.3 | L8: 89.5 | M8: 86.8 | N8: 86.4 | O8: 86.5 | P8: 95.4 | Q8: 93.2 | R8: 81.8 | S8: 67.5 | T8: 2012
A9: 2013 | B9: 63.3 | C9: 27.4 | D9: 62.1 | E9: 61.5 | F9: 72.7 | G9: 87.0 | H9: 71.0 | I9: 84.4 | K9: 58.2 | L9: 89.2 | M9: 83.8 | N9: 87.5 | O9: 86.2 | P9: 95.8 | Q9: 90.1 | R9: 81.1 | S9: 68.4 | T9: 2013
A10: 2014 | B10: 62.5 | C10: 26.4 | D10: 59.0 | E10: 53.2 | F10: 69.4 | G10: 86.0 | H10: 77.2 | I10: 81.5 | K10: 56.4 | L10: 91.5 | M10: 82.5 | N10: 87.9 | O10: 87.1 | P10: 96.5 | Q10: 88.0 | R10: 78.7 | S10: 69.4 | T10: 2014
A11: 2015 | B11: 61.7 | C11: 23.8 | D11: 56.8 | E11: 49.6 | F11: 62.3 | G11: 80.3 | H11: 81.4 | I11: 76.4 | K11: 54.4 | L11: 93.8 | M11: 85.8 | N11: 91.8 | O11: 86.3 | P11: 95.5 | Q11: 86.9 | R11: 79.5 | S11: 51.2 | T11: 2015
A12: 2016 | B12: 60.4 | C12: 20.2 | D12: 48.3 | E12: 55.3 | F12: 57.8 | G12: 80.8 | H12: 79.7 | I12: 75.9 | K12: 51.8 | L12: 87.6 | M12: 85.7 | N12: 91.7 | O12: 84.7 | P12: 93.4 | Q12: 92.1 | R12: 79.5 | S12: 43.7 | T12: 2016
A13: 2017 | B13: 58.7 | C13: 16.5 | D13: 48.7 | E13: 53.8 | F13: 52.9 | G13: 79.2 | H13: 73.1 | I13: 74.8 | K13: 51.3 | L13: 85.5 | M13: 85.9 | N13: 92.3 | O13: 84.8 | P13: 88.2 | Q13: 92.3 | R13: 82.8 | S13: 43.7 | T13: 2017
A14: 2018 | B14: 62.4 | C14: 12.8 | D14: 56.6 | E14: 56.9 | F14: 59.8 | G14: 77.8 | H14: 76.6 | I14: 84.5 | K14: 56.0 | L14: 93.1 | M14: 90.1 | N14: 92.7 | O14: 87.8 | P14: 89.7 | Q14: 94.8 | R14: 87.3 | S14: 46.7 | T14: 2018
A15: 2019 | B15: 65.6 | C15: 13.6 | D15: 66.1 | E15: 63.6 | F15: 65.2 | G15: 82.2 | H15: 69.3 | I15: 86.6 | K15: 60.1 | L15: 97.2 | M15: 92.0 | N15: 92.6 | O15: 90.4 | P15: 93.1 | Q15: 96.4 | R15: 91.2 | S15: 55.3 | T15: 2019
A16: 2020 | B16: 56.9 | C16: 6.2 | D16: 57.3 | E16: 57.9 | F16: 60.4 | G16: 78.6 | H16: 53.9 | I16: 73.5 | J16: 15.4 | K16: 46.2 | L16: 94.5 | M16: 85.7 | N16: 89.0 | O16: 88.9 | P16: 90.2 | Q16: 94.6 | R16: 85.8 | S16: 57.6 | T16: 2020
A17: 2021 | B17: 44.6 | C17: 2.7 | D17: 46.0 | E17: 49.7 | F17: 32.5 | G17: 66.1 | H17: 42.0 | I17: 63.1 | J17: 17.5 | K17: 26.2 | L17: 82.8 | M17: 73.3 | N17: 78.0 | O17: 78.5 | P17: 84.3 | Q17: 84.2 | R17: 74.0 | S17: 53.4 | T17: 2021
A19: 1) 주택구입물량지수(K-HOI) = 중위소득 가구가 구입가능한 주택물량 / 전체 주택물량 *100
A20: - K-HOI는 중위가구가 구입 가능한 주택수의 비율(0~100)로 주택구입능력을 측정하는 지수로서, 수치가 높을(낮을)수록
A21: 중위소득 가구 구입 가능한 주택물량이 많다(적다)는 의미로, 100은 중위소득 가구가 주택을 100% 구입 가능함을 의미
A22: 2) 이용자의 편의 증대를 위해 주택구입기회지수에서 주택구입가능물량지수로 명칭 변경(2014.3월)
A23: 소득기준은 『경상소득 - 비소비지출』을 『경상소득 + 비경상소득』으로 소득산출기준 변경(2014.3월)
A24: 통계청 가계금융복지조사의 순자산 중위값에 순자산 평균값대비 거주주택자산평균금액 비율(전국평균)을 자기자본으로 반영 추가(2014.3월)
A25: 3) 통계청 가계금융복지조사(매년11월 공표) 및 한국은행의 신규취급 예금은행 주택담보대출금리(기준시점에서부터 2개월 후 공표)의 공표시점으로 인해
A26: 주택구입가능물량지수는 매년 3월 공표
A27: 고용노동부 지역별 사업체 노동력조사의 자료 변경에 따라 2020년 이후 '세종'지역 신규 추가('21.3월)
A29: ※ 자료: K-HOI를 작성하는데 필요한 주택담보대출금리는 한국은행의 신규취급 예금은행 주택담보대출금리를, 중간주택가격은 '12년 12월까지는
A30: 국민은행의 'KB아파트 시세'를, '13년 1월 이후부터는 한국부동산원 아파트시세를, 중간가구소득은 통계청 '가계조사'의 2인 이상
A31: 도시근로자 가계소득의 5·6분위 소득에 노동부 '매월 노동통계조사'의 5인 이상 사업체 상용근로자 월급여 총액의 전국 대비 지역별 환산비율을 적용하였음

Sheet 4. 보금자리론판매실적
A1: 4. 보금자리론 판매실적2,3) Bogeumjari(Mortgage) Loan Origination
A3: 단위 : 억원 | F3: Hundred million won
A4: 연월말 | C4: 판매금액1) | D4: 잔액5) | E4: 적용금리6) | F4: 금리적용기준일
A6: End of | C6: Origination | D6: Outstanding | E6: Interest on a loan | F6: As of
A8: 2004 | C8: =SUM(C28:C37) -> 33,343 | D8: 28,735 | E8: - | F8: -
A9: 2005 | C9: =SUM(C39:C50) -> 42,241 | D9: 64,081 | E9: - | F9: -
A10: 2006 | C10: =SUM(C52:C63) -> 13,903 | D10: 63,537 | E10: - | F10: -
A11: 2007 | C11: =SUM(C65:C76) -> 36,292 | D11: 81,822 | E11: - | F11: -
A12: 2008 | C12: =SUM(C78:C89) -> 42,739 | D12: 107,311 | E12: - | F12: -
A13: 2009 | C13: =SUM(C91:C102) -> 59,436 | D13: 130,511 | E13: - | F13: -
A14: 2010 | C14: =SUM(C104:C115) -> 58,480 | D14: 160,104 | E14: - | F14: -
A15: 2011 | C15: =SUM(C117:C128) -> 94,147 | D15: 194,515 | E15: - | F15: -
A16: 2012 | C16: =SUM(C130:C141) -> 112,045 | D16: 220,188 | E16: - | F16: -
A17: 2013 | C17: =SUM(C143:C154) -> 119,047 | D17: 273,698 | E17: - | F17: -
A18: 2014 | C18: =SUM(C156:C167) -> 24,796 | D18: 225,486 | E18: - | F18: -
A19: 2015 | C19: =SUM(C169:C180) -> 102,885 | D19: 179,468 | E19: - | F19: -
A20: 2016 | C20: =SUM(C182:C193) -> 144,348 | D20: 232,387 | E20: - | F20: -
A21: 2017 | C21: =SUM(C195:C206) -> 107,207 | D21: 315,467 | E21: - | F21: -
A22: 2018 | C22: =SUM(C208:C219) -> 75,597 | D22: 350,503 | E22: - | F22: -
A23: 2019 | C23: =SUM(C221:C232) -> 270,579 | D23: 405,754 | E23: - | F23: -
A24: 2020 | C24: =SUM(C234:C245) -> 363,735 | D24: 690,645 | E24: - | F24: -
A25: 2021 | C25: =SUM(C247:C258) -> 233,409 | D25: 833,572 | E25: - | F25: -
A26: 2022 | C26: =SUM(C260:C267) -> 74,709 | D26: =D267 -> 904,789 | E26: - | F26: -
A28: 2004 | B28: 3 | C28: 351 | D28: 0 | E28: 6.50% ~ 6.70% | F28: 3. 25
B29: 4 | C29: 3,634 | D29: 0 | E29: 6.50% ~ 6.70% | F29: -
B30: 5 | C30: 4,564 | D30: 0 | E30: 6.50% ~ 6.70% | F30: -
B31: 6 | C31: 3,938 | D31: 5,420 | E31: 6.50% ~ 6.70% | F31: -
B32: 7 | C32: 3,358 | D32: 9,400 | E32: 6.50% ~ 6.70% | F32: -
B33: 8 | C33: 3,318 | D33: 14,829 | E33: 6.25% ~ 6.45% | F33: 8. 17
B34: 9 | C34: 2,896 | D34: 18,640 | E34: 6.25% ~ 6.45% | F34: -
B35: 10 | C35: 3,436 | D35: 22,012 | E35: 6.00% ~ 6.20% | F35: 10. 14
B36: 11 | C36: 3,566 | D36: 24,944 | E36: 5.75% ~ 5.95% | F36: 11. 19
B37: 12 | C37: 4,282 | D37: 28,735 | E37: 5.75% ~ 5.95% | F37: -
A39: 2005 | B39: 1 | C39: 3,420 | D39: 32,703 | E39: 5.75% ~ 5.95% | F39: -
B40: 2 | C40: 4,808 | D40: 32,378 | E40: 5.75% ~ 5.95% | F40: -
B41: 3 | C41: 6,873 | D41: 37,738 | E41: 5.75% ~ 5.95% | F41: -
B42: 4 | C42: 5,636 | D42: 44,727 | E42: 6.05% ~ 6.25% | F42: 4. 6
B43: 5 | C43: 3,937 | D43: 50,434 | E43: 6.05% ~ 6.25% | F43: -
B44: 6 | C44: 3,757 | D44: 49,650 | E44: 6.05% ~ 6.25% | F44: -
B45: 7 | C45: 3,144 | D45: 56,572 | E45: 6.05% ~ 6.25% | F45: -
B46: 8 | C46: 3,195 | D46: 58,993 | E46: 6.05% ~ 6.25% | F46: -
B47: 9 | C47: 2,656 | D47: 61,071 | E47: 6.30% ~ 6.50% | F47: 9. 21
B48: 10 | C48: 1,968 | D48: 60,343 | E48: 6.30% ~ 6.50% | F48: -
B49: 11 | C49: 1,418 | D49: 62,693 | E49: 6.30% ~ 6.50% | F49: -
B50: 12 | C50: 1,431 | D50: 64,081 | E50: 6.60% ~ 6.80% | F50: 12. 28
A52: 2006 | B52: 1 | C52: 704 | D52: 64,741 | E52: 6.60% ~ 6.80% | F52: -
B53: 2 | C53: 1,022 | D53: 63,765 | E53: 6.60% ~ 6.80% | F53: -
B54: 3 | C54: 1,015 | D54: 64,751 | E54: 6.60% ~ 6.80% | F54: -
B55: 4 | C55: 870 | D55: 63,532 | E55: 6.60% ~ 6.80% | F55: -
B56: 5 | C56: 732 | D56: 64,106 | E56: 6.60% ~ 6.85% | F56: -
B57: 6 | C57: 854 | D57: 62,873 | E57: 6.30% ~ 6.55% | F57: 6. 12
B58: 7 | C58: 1,278 | D58: 63,102 | E58: 6.30% ~ 6.55%(6.00 ~ 6.25%) | F58: -
B59: 8 | C59: 1,388 | D59: 63,569 | E59: 6.30% ~ 6.55%(6.00 ~ 6.25%) | F59: -
B60: 9 | C60: 1,872 | D60: 64,187 | E60: 6.30% ~ 6.55%(6.00 ~ 6.25%) | F60: -
B61: 10 | C61: 1,246 | D61: 64,602 | E61: 6.30% ~ 6.55%(6.00 ~ 6.25%) | F61: -
B62: 11 | C62: 1,231 | D62: 62,849 | E62: 6.15% ~ 6.40% | F62: 11. 17
B63: 12 | C63: 1,690 | D63: 63,537 | E63: 6.15% ~ 6.40%(5.85 ~ 6.10%) | F63: (12. 28)
A65: 2007 | B65: 1 | C65: 2,414 | D65: 62,407 | E65: 6.15% ~ 6.40%(5.85 ~ 6.10%) | F65: -
B66: 2 | C66: 2,782 | D66: 64,841 | E66: 6.15% ~ 6.40%(5.85 ~ 6.10%) | F66: -
B67: 3 | C67: 2,544 | D67: 65,733 | E67: 6.15% ~ 6.40%(5.95 ~ 6.20%) | F67: (3. 2)
B68: 4 | C68: 2,453 | D68: 67,415 | E68: 6.15% ~ 6.40%(5.95 ~ 6.20%) | F68: -
B69: 5 | C69: 2,511 | D69: 69,085 | E69: 6.15% ~ 6.40%(5.95 ~ 6.20%) | F69: -
B70: 6 | C70: 2,763 | D70: 70,839 | E70: 6.15% ~ 6.40%(5.95 ~ 6.20%) | F70: -
B71: 7 | C71: 3,603 | D71: 72,660 | E71: 6.50% ~ 6.75%(6.30 ~ 6.55%) | F71: 7.30 (7.30)
B72: 8 | C72: 3,344 | D72: 74,632 | E72: 6.50% ~ 6.75%(6.30 ~ 6.55%) | F72: -
B73: 9 | C73: 2,505 | D73: 76,446 | E73: 6.50% ~ 6.75%(6.30 ~ 6.55%)
B74: 10 | C74: 3,485 | D74: 78,840 | E74: 6.50% ~ 6.75%(6.30 ~ 6.55%)
B75: 11 | C75: 3,345 | D75: 80,675 | E75: 6.50% ~ 6.75%(6.30 ~ 6.55%) | F75: -
B76: 12 | C76: 4,543 | D76: 81,822 | E76: 6.50% ~ 6.75%(6.30 ~ 6.55%) | F76: -
A78: 2008 | B78: 1 | C78: 5,937 | D78: 80,946 | E78: 6.75% ~ 7.00%(6.55 ~ 6.80%) | F78: 1. 8 (1. 8)
B79: 2 | C79: 5,072 | D79: 84,008 | E79: 6.75% ~ 7.00%(6.55 ~ 6.80%) | F79: -
B80: 3 | C80: 3,955 | D80: 90,279 | E80: 6.75% ~ 7.00%(6.55 ~ 6.80%) | F80: -
B81: 4 | C81: 5,161 | D81: 88,893 | E81: 6.75% ~ 7.00%(6.55 ~ 6.80%) | F81: -
B82: 5 | C82: 4,127 | D82: 98,013 | E82: 7.00% ~ 7.25%(6.80 ~ 7.05%) | F82: 5. 1 (5. 1)
B83: 6 | C83: 3,849 | D83: 97,135 | E83: 7.00% ~ 7.25%(6.80 ~ 7.05%) | F83: -
B84: 7 | C84: 4,250 | D84: 99,625 | E84: 7.00% ~ 7.25%(6.80 ~ 7.05%) | F84: -
B85: 8 | C85: 4,346 | D85: 98,475 | E85: 7.25% ~ 7.50%(7.05 ~ 7.30%) | F85: 8.14 (8.14)
B86: 9 | C86: 2,835 | D86: 97,438 | E86: 7.25% ~ 7.50%(7.15 ~ 7.40%) | F86: (9. 11)
B87: 10 | C87: 1,880 | D87: 98,489 | E87: 7.60% ~ 7.85%(7.50 ~ 7.75%) | F87: 10.10 (10.10)
B88: 11 | C88: 870 | D88: 104,706 | E88: 7.60% ~ 7.85%(7.50 ~ 7.75%) | F88: -
B89: 12 | C89: 457 | D89: 107,311 | E89: 7.60% ~ 7.85%(7.50 ~ 7.75%) | F89: -
A91: 2009 | B91: 1 | C91: 348 | D91: 110,054 | E91: 7.10% ~ 7.35%(7.00 ~ 7.25%) | F91: 1. 7 (1. 7)
B92: 2 | C92: 948 | D92: 108,555 | E92: 6.60% ~ 6.85%(6.40 ~ 6.65%) | F92: 2. 2 (2. 2)
B93: 3 | C93: 3,021 | D93: 115,239 | E93: 6.60% ~ 6.85%(6.40 ~ 6.65%) | F93: -
B94: 4 | C94: 4,627 | D94: 111,255 | E94: 6.60% ~ 6.85%(6.40 ~ 6.65%) | F94: -
B95: 5 | C95: 4,396 | D95: 113,921 | E95: 6.10% ~ 6.35%(5.90 ~ 6.15%) | F95: 5.15 (5.15)
B96: 6 | C96: 4,871 | D96: 111,467 | E96: 6.10% ~ 6.35%(5.90 ~ 6.15%) | F96: -
B97: 7 | C97: 4,570 | D97: 112,659 | E97: 6.10% ~ 6.35%(5.90 ~ 6.15%) | F97: -
B98: 8 | C98: 4,876 | D98: 114,731 | E98: 6.10% ~ 6.35%(5.90 ~ 6.15%) | F98: -
B99: 9 | C99: 6,570 | D99: 117,535 | E99: 6.10% ~ 6.35%(5.90 ~ 6.15%) | F99: -
B100: 10 | C100: 9,459 | D100: 121,629 | E100: 6.10% ~ 6.35%(5.90 ~ 6.15%) | F100: -
B101: 11 | C101: 8,902 | D101: 126,468 | E101: 6.10% ~ 6.35%(5.90 ~ 6.15%) | F101: -
B102: 12 | C102: 6,848 | D102: 130,511 | E102: 6.10% ~ 6.35%(5.90 ~ 6.15%) | F102: -
A104: 2010 | B104: 1 | C104: 3,776 | D104: 128,779 | E104: 6.10% ~ 6.35%(5.90 ~ 6.15%) | F104: -
B105: 2 | C105: 3,992 | D105: 133,157 | E105: 6.10% ~ 6.35%(5.90 ~ 6.15%) | F105: -
B106: 3 | C106: 3,366 | D106: 135,440 | E106: 6.10% ~ 6.35%(5.90 ~ 6.15%) | F106: -
B107: 4 | C107: 2,679 | D107: 134,657 | E107: 6.10% ~ 6.35%(5.90 ~ 6.15%) | F107: -
B108: 5 | C108: 2,374 | D108: 137,922 | E108: 6.10% ~ 6.35%(5.90 ~ 6.15%) | F108: -
B109: 6 | C109: 3,702 | D109: 136,836 | E109: 5.70% ~ 5.95%(5.50 ~ 5.75%) | F109: 6. 1 (6. 1)
B110: 7 | C110: 9,838 | D110: 134,200 | E110: 5.70% ~ 5.95%(5.50 ~ 5.75%) | F110: -
B111: 8 | C111: 8,934 | D111: 140,966 | E111: 5.90% ~ 6.15%(5.70 ~ 5.95%) | F111: 8. 1 (8. 1)
B112: 9 | C112: 5,078 | D112: 148,053 | E112: 5.90% ~ 6.15%(5.70 ~ 5.95%) | F112: -
B113: 10 | C113: 4,389 | D113: 150,066 | E113: 5.90% ~ 6.15%(5.70 ~ 5.95%) | F113: -
B114: 11 | C114: 4,765 | D114: 151,792 | E114: 5.60% ~ 5.85%(5.40 ~ 5.65%) | F114: 11. 1 (11. 1)
B115: 12 | C115: 5,587 | D115: 160,104 | E115: 5.60% ~ 5.85%(5.40 ~ 5.65%) | F115: -
A117: 2011 | B117: 1 | C117: 4,491 | D117: 159,273 | E117: 5.60% ~ 5.85%(5.40 ~ 5.65%) | F117: -
B118: 2 | C118: 5,992 | D118: 159,770 | E118: 5.60% ~ 5.85%(5.40 ~ 5.65%) | F118: -
B119: 3 | C119: 7,815 | D119: 159,573 | E119: 5.60% ~ 5.85%(5.40 ~ 5.65%) | F119: -
B120: 4 | C120: 7,966 | D120: 161,435 | E120: 5.60% ~ 5.85%(5.40 ~ 5.65%) | F120: -
B121: 5 | C121: 6,577 | D121: 170,474 | E121: 5.60% ~ 5.85%(5.40% ~ 5.65%) | F121: -
B122: 6 | C122: 6,089 | D122: 170,885 | E122: 5.60% ~ 5.85%(5.40% ~ 5.65%) | F122: -
B123: 7 | C123: 6,267 | D123: 174,544 | E123: 5.20% ~ 5.45% | F123: -
B124: 8 | C124: 6,115 | D124: 177,498 | E124: 5.20% ~ 5.45% | F124: -
B125: 9 | C125: 9,669 | D125: 178,369 | E125: 5.00% ~ 5.25% | F125: 9. 1
B126: 10 | C126: 11,372 | D126: 181,912 | E126: 5.00% ~ 5.25% | F126: -
B127: 11 | C127: 10,249 | D127: 186,945 | E127: 5.00% ~ 5.25% | F127: -
B128: 12 | C128: 11,542 | D128: 194,515 | E128: 5.00% ~ 5.25% | F128: -
A130: 2012 | B130: 1 | C130: 2,703 | D130: 196,394 | E130: 5.00% ~ 5.25% | F130: -
B131: 2 | C131: 7,465 | D131: 200,105 | E131: 4.80% ~ 5.05% | F131: 2. 1
B132: 3 | C132: 9,679 | D132: 199,456 | E132: 4.80% ~ 5.05% | F132: -
B133: 4 | C133: 7,874 | D133: 204,642 | E133: 4.80% ~ 5.05% | F133: -
B134: 5 | C134: 9,587 | D134: 206,281 | E134: 4.60% ~ 4.85% | F134: 5. 1
B135: 6 | C135: 9,214 | D135: 210,001 | E135: 4.60% ~ 4.85% | F135: -
B136: 7 | C136: 8,806 | D136: 217,767 | E136: 4.60% ~ 4.85% | F136: -
B137: 8 | C137: 7,953 | D137: 221,931 | E137: 4.50% ~ 4.75% | F137: 8. 1
B138: 9 | C138: 6,615 | D138: 224,351 | E138: 4.30% ~ 4.55% | F138: 9. 1
B139: 10 | C139: 9,523 | D139: 226,326 | E139: 4.20% ~ 4.45% | F139: 10. 1
B140: 11 | C140: 13,657 | D140: 225,150 | E140: 4.10% ~ 4.35% | F140: 11. 1
B141: 12 | C141: 18,969 | D141: 220,188 | E141: 4.10% ~ 4.35% | F141: -
A143: 2013 | B143: 1 | C143: 6,953 | D143: 234,958 | E143: 4.10% ~ 4.35% | F143: -
B144: 2 | C144: 11,225 | D144: 234,307 | E144: 4.00% ~ 4.25% | F144: 2. 1
B145: 3 | C145: 10,945 | D145: 227,298 | E145: 4.00% ~ 4.25% | F145: -
B146: 4 | C146: 16,818 | D146: 243,647 | E146: 3.80% ~ 4.05% | F146: 4. 1
B147: 5 | C147: 16,660 | D147: 244,607 | E147: 3.80% ~ 4.05% | F147: -
B148: 6 | C148: 22,629 | D148: 247,257 | E148: 3.80% ~ 4.05% | F148: -
B149: 7 | C149: 10,356 | D149: 256,340 | E149: 4.00% ~ 4.25% | F149: 7.1
B150: 8 | C150: 6,478 | D150: 263,407 | E150: 4.15% ~ 4.40% | F150: 8.1
B151: 9 | C151: 4,196 | D151: 268,043 | E151: 4.30% ~ 4.55% | F151: 9.1
B152: 10 | C152: 4,834 | D152: 276,925 | E152: 4.15% ~ 4.40% | F152: 10.1
B153: 11 | C153: 4,086 | D153: 277,770 | E153: 4.15% ~ 4.40% | F153: -
B154: 12 | C154: 3,867 | D154: 273,698 | E154: 4.30% ~ 4.55% | F154: 12.1
A156: 2014 | B156: 1 | C156: 1,625 | D156: 278,295 | E156: 4.30% ~ 4.55% | F156: -
B157: 2 | C157: 1,197 | D157: 276,006 | E157: 4.30% ~ 4.55% | F157: -
B158: 3 | C158: 1,003 | D158: 272,605 | E158: 4.30% ~ 4.55% | F158: -
B159: 4 | C159: 1,137 | D159: 268,983 | E159: 4.30% ~ 4.55% | F159: -
B160: 5 | C160: 892 | D160: 266,309 | E160: 4.30% ~ 4.55% | F160: -
B161: 6 | C161: 1,103 | D161: 262,843 | E161: 4.05% ~ 4.30% | F161: 6.2
B162: 7 | C162: 1,567 | D162: 261,031 | E162: 3.80% ~ 4.05% | F162: 7.1
B163: 8 | C163: 1,748 | D163: 254,960 | E163: 3.55% ~ 3.80% | F163: 8.1
B164: 9 | C164: 1,814 | D164: 248,329 | E164: 3.55% ~ 3.80% | F164: -
B165: 10 | C165: 2,297 | D165: 240,029 | E165: 3.45% ~ 3.70% | F165: 10.1
B166: 11 | C166: 4,510 | D166: 231,356 | E166: 3.20% ~ 3.45% | F166: 11.3
B167: 12 | C167: 5,904 | D167: 225,486 | E167: 3.20% ~ 3.45% | F167: -
A169: 2015 | B169: 1 | C169: 4,816 | D169: 220,433 | E169: 3.20% ~ 3.45% | F169: -
B170: 2 | C170: 8,502 | D170: 215,489 | E170: 3.00% ~ 3.25% | F170: 2.2
B171: 3 | C171: 9,075 | D171: 210,715 | E171: 3.00% ~ 3.25% | F171: -
B172: 4 | C172: 17,192 | D172: 196,857 | E172: 2.85% ~ 3.10% | F172: 4.1
B173: 5 | C173: 16,284 | D173: 184,387 | E173: 3.05% ~ 3.30% | F173: 5.2
B174: 6 | C174: 15,984 | D174: 172,491 | E174: 3.15% ~ 3.40% | F174: 6.1
B175: 7 | C175: 8,917 | D175: 170,367 | E175: 3.15% ~ 3.40% | F175: -
B176: 8 | C176: 5,512 | D176: 167,746 | E176: 3.15% ~ 3.40% | F176: -
B177: 9 | C177: 3,609 | D177: 172,676 | E177: 3.15% ~ 3.40% | F177: -
B178: 10 | C178: 2,715 | D178: 175,913 | E178: 3.00% ~ 3.25% | F178: 11.2
B179: 11 | C179: 3,682 | D179: 179,139 | E179: 3.00% ~ 3.25% | F179: -
B180: 12 | C180: 6,597 | D180: 179,468 | E180: 3.00% ~ 3.25% | F180: -
A182: 2016 | B182: 1 | C182: 5,530 | D182: 190,402 | E182: 3.00% ~ 3.25% | F182: -
B183: 2 | C183: 4,781 | D183: 202,077 | E183: 2.90% ~ 3.15% | F183: 2.1
B184: 3 | C184: 6,921 | D184: 210,051 | E184: 2.70% ~ 2.95% | F184: 3.2
B185: 4 | C185: 8,390 | D185: 210,999 | E185: 2.70% ~ 2.95% | F185: -
B186: 5 | C186: 7,301 | D186: 209,301 | E186: 2.70% ~ 2.95% | F186: -
B187: 6 | C187: 8,936 | D187: 203,684 | E187: 2.50% ~ 2.75% | F187: 6.16
B188: 7 | C188: 11,983 | D188: 200,393 | E188: 2.50% ~ 2.75% | F188: -
B189: 8 | C189: 14,062 | D189: 198,854 | E189: 2.50% ~ 2.75% | F189: -
B190: 9 | C190: 17,172 | D190: 195,941 | E190: 2.50% ~ 2.75% | F190: -
B191: 10 | C191: 23,282 | D191: 202,214 | E191: 2.50% ~ 2.75% | F191: -
B192: 11 | C192: 19,806 | D192: 210,778 | E192: 2.50% ~ 2.75% | F192: -
B193: 12 | C193: 16,184 | D193: 232,387 | E193: 2.50% ~ 2.75% | F193: -
A195: 2017 | B195: 1 | C195: 11,850 | D195: 250,034 | E195: 2.80% ~ 3.05% | F195: 1.1
B196: 2 | C196: 15,990 | D196: 263,470 | E196: 2.80% ~ 3.05% | F196: -
B197: 3 | C197: 12,288 | D197: 269,338 | E197: 2.90% ~ 3.15% | F197: 3.6
B198: 4 | C198: 6,944 | D198: 279,941 | E198: 2.90% ~ 3.15% | F198: -
B199: 5 | C199: 6,067 | D199: 286,056 | E199: 2.90% ~ 3.15% | F199: -
B200: 6 | C200: 7,543 | D200: 289,370 | E200: 2.90% ~ 3.15% | F200: -
B201: 7 | C201: 7,520 | D201: 297,594 | E201: 2.90% ~ 3.15% | F201: -
B202: 8 | C202: 7,709 | D202: 299,741 | E202: 2.90% ~ 3.15% | F202: -
B203: 9 | C203: 7,909 | D203: 298,538 | E203: 2.90% ~ 3.15% | F203: -
B204: 10 | C204: 6,020 | D204: 306,068 | E204: 3.00% ~ 3.25% | F204: 10.1
B205: 11 | C205: 8,363 | D205: 310,775 | E205: 3.00% ~ 3.25% | F205: -
B206: 12 | C206: 9,005 | D206: 315,467 | E206: 3.20% ~ 3.45% | F206: 12.1
A208: 2018 | B208: 1 | C208: 7,488 | D208: 316,650 | E208: 3.20% ~ 3.45% | F208: -
B209: 2 | C209: 7,457 | D209: 318,499 | E209: 3.30% ~ 3.55% | F209: 2.1
B210: 3 | C210: 6,855 | D210: 323,733 | E210: 3.40% ~ 3.65% | F210: 3.1
B211: 4 | C211: 5,304 | D211: 330,332 | E211: 3.40% ~ 3.65% | F211: -
B212: 5 | C212: 5,217 | D212: 334,978 | E212: 3.40% ~ 3.65% | F212: -
B213: 6 | C213: 6,039 | D213: 337,957 | E213: 3.5% ~ 3.75% | F213: 6.1
B214: 7 | C214: 4,826 | D214: 340,817 | E214: 3.5% ~ 3.75% | F214: -
B215: 8 | C215: 4,947 | D215: 340,885 | E215: 3.3% ~ 3.55% | F215: 8.1
B216: 9 | C216: 4,251 | D216: 341,937 | E216: 3.2% ~ 3.45% | F216: 9.1
B217: 10 | C217: 7,449 | D217: 345,243 | E217: 3.1% ~ 3.35% | F217: 10.1
B218: 11 | C218: 8,959 | D218: 346,973 | E218: 3.1% ~ 3.35% | F218: -
... 58 more rows

Sheet 5. 적격대출 판매실적
A1: 5. 적격대출 판매실적 Conforming Loan Origination
A3: 단위 : 억원 | E3: Hundred million won
A4: 연월말 | C4: 판매금액1) | D4: 잔액2) | E4: 평균 대출금리3)
A6: End of | C6: Origination | D6: Outstanding | E6: Average Interest Rate
A8: 2012 | C8: =SUM(C20:C29) -> 171,165 | D8: 150,479 | E8: 4.38%
A9: 2013 | C9: =SUM(C31:C42) -> 65,290 | D9: 198,613 | E9: 4.04%
A10: 2014 | C10: =SUM(C44:C55) -> 104,628 | D10: 202,366 | E10: 3.50%
A11: 2015 | C11: =SUM(C57:C68) -> 439,377 | D11: 531,181 | E11: 2.82%
A12: 2016 | C12: =SUM(C70:C81) -> 176,146 | D12: 584,291 | E12: 2.88%
A13: 2017 | C13: =SUM(C83:C94) -> 125,830 | D13: 599,750 | E13: 3.41%
A14: 2018 | C14: =SUM(C96:C107) -> 68,888 | D14: 584,842 | E14: 3.63%
A15: 2019 | C15: =SUM(C109:C120) -> 84,942 | D15: 561,286 | E15: 2.70%
A16: 2020 | C16: =SUM(C122:C133) -> 42,898 | D16: =D132 -> 493,893 | E16: 2.70%
A17: 2021 | C17: =SUM(C135:C146) -> 44,689 | D17: 464,547 | E17: 2.89%
A18: 2022 | C18: =SUM(C148:C155) -> 9,693 | D18: =D155 -> 434,652 | E18: 3.97%
A20: 2012 | B20: 3 | C20: 3,353 | D20: - | E20: 4.91%
B21: 4 | C21: 5,000 | D21: - | E21: 4.95%
B22: 5 | C22: 6,943 | D22: 56,836 | E22: 4.81%
B23: 6 | C23: 13,301 | D23: 64,114 | E23: 4.63%
B24: 7 | C24: 14,884 | D24: 68,313 | E24: 4.52%
B25: 8 | C25: 23,575 | D25: 78,718 | E25: 4.38%
B26: 9 | C26: 23,569 | D26: 94,271 | E26: 4.31%
B27: 10 | C27: 26,877 | D27: 110,084 | E27: 4.25%
B28: 11 | C28: 28,466 | D28: 148,912 | E28: 4.18%
B29: 12 | C29: 25,198 | D29: 150,479 | E29: 4.20%
A31: 2013 | B31: 1 | C31: 9,806 | D31: 156,142 | E31: 4.17%
B32: 2 | C32: 8,572 | D32: 176,278 | E32: 4.09%
B33: 3 | C33: 10,625 | D33: 191,395 | E33: 3.98%
B34: 4 | C34: 11,837 | D34: 199,678 | E34: 3.91%
B35: 5 | C35: 10,679 | D35: 200,555 | E35: 4.03%
B36: 6 | C36: 4,645 | D36: 195,694 | E36: 3.92%
B37: 7 | C37: 2,286 | D37: 203,890 | E37: 3.91%
B38: 8 | C38: 750 | D38: 206,685 | E38: 4.20%
B39: 9 | C39: 721 | D39: 209,935 | E39: 4.13%
B40: 10 | C40: 1,987 | D40: 205,971 | E40: 4.20%
B41: 11 | C41: 2,335 | D41: 202,742 | E41: 4.19%
B42: 12 | C42: 1,048 | D42: 198,613 | E42: 4.45%
A44: 2014 | B44: 1 | C44: 608 | D44: 199,250 | E44: 4.52%
B45: 2 | C45: 1,356 | D45: 195,012 | E45: 4.41%
B46: 3 | C46: 885 | D46: 194,090 | E46: 4.41%
B47: 4 | C47: 967 | D47: 189,896 | E47: 4.36%
B48: 5 | C48: 853 | D48: 186,797 | E48: 4.33%
B49: 6 | C49: 780 | D49: 183,823 | E49: 4.23%
B50: 7 | C50: 4,926 | D50: 180,964 | E50: 3.72%
B51: 8 | C51: 39,257 | D51: 177,656 | E51: 3.37%
B52: 9 | C52: 15,003 | D52: 174,755 | E52: 3.59%
B53: 10 | C53: 10,407 | D53: 182,774 | E53: 3.59%
B54: 11 | C54: 13,337 | D54: 191,302 | E54: 3.42%
B55: 12 | C55: 16,247 | D55: 202,366 | E55: 3.40%
A57: 2015 | B57: 1 | C57: 13,463 | D57: 208,460 | E57: 3.41%
B58: 2 | C58: 19,154 | D58: 211,641 | E58: 3.26%
B59: 3 | C59: 98,030 | D59: 215,130 | E59: 2.78%
B60: 4 | C60: 271,186 | D60: 220,485 | E60: 2.70%
B61: 5 | C61: 13,589 | D61: 288,491 | E61: 3.10%
B62: 6 | C62: 4,277 | D62: 485,631 | E62: 3.45%
B63: 7 | C63: 3,242 | D63: 544,025 | E63: 3.49%
B64: 8 | C64: 2,732 | D64: 543,242 | E64: 3.47%
B65: 9 | C65: 2,560 | D65: 539,067 | E65: 3.38%
B66: 10 | C66: 3,191 | D66: 535,091 | E66: 3.31%
B67: 11 | C67: 3,931 | D67: 537,980 | E67: 3.36%
B68: 12 | C68: 4,021 | D68: 531,181 | E68: 3.42%
A70: 2016 | B70: 1 | C70: 6,434 | D70: 529,711 | E70: 3.29%
B71: 2 | C71: 8,319 | D71: 527,003 | E71: 3.10%
B72: 3 | C72: 15,963 | D72: 523,344 | E72: 2.95%
B73: 4 | C73: 20,211 | D73: 524,668 | E73: 2.88%
B74: 5 | C74: 21,632 | D74: 526,125 | E74: 2.87%
B75: 6 | C75: 30,808 | D75: 534,517 | E75: 2.76%
B76: 7 | C76: 27,477 | D76: 546,987 | E76: 2.69%
B77: 8 | C77: 24,869 | D77: 559,867 | E77: 2.72%
B78: 9 | C78: 7,550 | D78: 572,167 | E78: 2.78%
B79: 10 | C79: 4,614 | D79: 583,330 | E79: 3.16%
B80: 11 | C80: 4,688 | D80: 587,328 | E80: 3.48%
B81: 12 | C81: 3,581 | D81: 584,291 | E81: 3.73%
A83: 2017 | B83: 1 | C83: 4,683 | D83: 582,501 | E83: 3.51%
B84: 2 | C84: 12,023 | D84: 577,971 | E84: 3.34%
B85: 3 | C85: 18,293 | D85: 577,430 | E85: 3.29%
B86: 4 | C86: 18,103 | D86: 581,702 | E86: 3.28%
B87: 5 | C87: 13,539 | D87: 587,030 | E87: 3.35%
B88: 6 | C88: 10,762 | D88: 592,545 | E88: 3.39%
B89: 7 | C89: 10,431 | D89: 597,150 | E89: 3.44%
B90: 8 | C90: 7,231 | D90: 599,359 | E90: 3.46%
B91: 9 | C91: 6,488 | D91: 602,331 | E91: 3.46%
B92: 10 | C92: 6,484 | D92: 601,943 | E92: 3.53%
B93: 11 | C93: 10,508 | D93: 600,168 | E93: 3.61%
B94: 12 | C94: 7,285 | D94: 599,750 | E94: 3.74%
A96: 2018 | B96: 1 | C96: 6,154 | D96: 599,631 | E96: 3.77%
B97: 2 | C97: 5,100 | D97: 598,712 | E97: 3.87%
B98: 3 | C98: 6,047 | D98: 601,464 | E98: 3.85%
B99: 4 | C99: 5,416 | D99: 598,285 | E99: 3.81%
B100: 5 | C100: 5,076 | D100: 595,489 | E100: 3.85%
B101: 6 | C101: 4,879 | D101: 592,638 | E101: 3.80%
B102: 7 | C102: 4,973 | D102: 590,441 | E102: 3.71%
B103: 8 | C103: 5,186 | D103: 587,141 | E103: 3.61%
B104: 9 | C104: 4,580 | D104: 586,972 | E104: 3.45%
B105: 10 | C105: 8,693 | D105: 588,126 | E105: 3.36%
B106: 11 | C106: 7,762 | D106: 585,064 | E106: 3.36%
B107: 12 | C107: 5,022 | D107: 584,842 | E107: 3.31%
A109: 2019 | B109: 1 | C109: 5,847 | D109: 585,133 | E109: 3.20%
B110: 2 | C110: 5,561 | D110: 583,195 | E110: 3.20%
B111: 3 | C111: 6,797 | D111: 580,398 | E111: 3.15%
B112: 4 | C112: 4,731 | D112: 579,605 | E112: 3.11%
B113: 5 | C113: 3,107 | D113: 577,478 | E113: 2.99%
B114: 6 | C114: 3,382 | D114: 575,120 | E114: 2.86%
B115: 7 | C115: 7,812 | D115: 568,792 | E115: 2.68%
B116: 8 | C116: 9,605 | D116: 563,338 | E116: 2.55%
B117: 9 | C117: 12,742 | D117: 559,187 | E117: 2.41%
B118: 10 | C118: 20,367 | D118: 554,736 | E118: 2.39%
B119: 11 | C119: 4,810 | D119: 553,830 | E119: 2.61%
B120: 12 | C120: 180 | D120: 561,286 | E120: 2.69%
B122: 1 | C122: 6,454 | D122: 557,945 | E122: 2.75%
B123: 2 | C123: 8,347 | D123: 551,805 | E123: 2.79%
B124: 3 | C124: 6,813 | D124: 543,362 | E124: 2.67%
B125: 4 | C125: 3,431 | D125: 535,925 | E125: 2.79%
B126: 5 | C126: 1,223 | D126: 531,471 | E126: 2.80%
B127: 6 | C127: 919 | D127: 522,476 | E127: 2.80%
B128: 7 | C128: 818 | D128: 518,893 | E128: 2.84%
B129: 8 | C129: 1,051 | D129: 512,847 | E129: 2.68%
A130: 2020 | B130: 9 | C130: 2,198 | D130: 507,235 | E130: 2.60%
B131: 10 | C131: 3,922 | D131: 500,085 | E131: 2.52%
B132: 11 | C132: 5,309 | D132: 493,893 | E132: 2.55%
B133: 12 | C133: 2,414 | D133: 486,929 | E133: 2.72%
A135: 2021 | B135: 1 | C135: 5,096 | D135: 481,464 | E135: 2.61%
B136: 2 | C136: 9,805 | D136: 477,315 | E136: 2.61%
B137: 3 | C137: 7,894 | D137: 473,903 | E137: 2.71%
B138: 4 | C138: 3,685 | D138: 473,326 | E138: 2.98%
B139: 5 | C139: 2,276 | D139: 476,301 | E139: 3.01%
B140: 6 | C140: 1,887 | D140: 476,076 | E140: 3.08%
B141: 7 | C141: 2,498 | D141: 472,502 | E141: 3.07%
B142: 8 | C142: 3,960 | D142: 472,502 | E142: 3.05%
B143: 9 | C143: 3,515 | D143: 464,547 | E143: 3.18%
B144: 10 | C144: 2,858 | D144: 461,249 | E144: 3.45%
B145: 11 | C145: 1,033 | D145: 457,689 | E145: 3.63%
B146: 12 | C146: 181 | D146: 453,782 | E146: 3.44%
A148: 2022 | B148: 1 | C148: 1,477 | D148: 451,705 | E148: 3.52%
B149: 2 | C149: 1,971 | D149: 450,599 | E149: 3.62%
B150: 3 | C150: 1,218 | D150: 446,808 | E150: 3.93%
B151: 4 | C151: 2,425 | D151: 443,565 | E151: 4.00%
B152: 5 | C152: 1,464 | D152: 439,991 | E152: 4.43%
B153: 6 | C153: 493 | D153: 437,679 | E153: 4.76%
B154: 7 | C154: 281 | D154: 437,371 | E154: 4.97%
B155: 8 | C155: 365 | D155: 434,652 | E155: 4.83%
A156: 힙계 Total4) | C156: =SUM(C20:C146,C148:C155) -> 1,333,544
A158: 1) 판매금액 : 적격대출 판매기관에서 판매한 실적을 집계한 수치(안심전환 적격대출 포함)
A159: 2) 잔액 : MBS 및 MBB 발행 기초자산과 매입보유 자산의 잔액 합계(공사가 금융기관으로부터 양수한 자산 기준)
A160: 3) 적격대출의 금액 가중평균 대출금리
A161: 4) 판매금액 합계 : 연도별 판매금액 합계(‘12년 ~ 금년)
A163: ※ 적격대출 판매기관(전분기말 기준 18개 기관)
A164: - 경남은행, 광주은행, 국민은행, 기업은행, 농협은행, 대구은행, 부산은행, 수협은행, 신한은행, KEB 하나은행,
A165: 우리은행, 전북은행, 제주은행, 한국씨티은행, 한국스탠다드차타드은행
A166: - 삼성생명, 교보생명, 흥국생명
A168: * 판매기관 전신 통지 시기에 따라 판매금액이 변동될 수 있음

Sheet 6. MBS 발행실적
A1: 6. MBS 발행실적 Issuance of MBS(Mortgage-Backed Securities)
A3: 단위 : 억원 | F3: Hundred million won
A4: MBS1) | B4: 발행일 | C4: 트랜치 | D4: 발행금액 | E4: 연·월말 MBS 잔액 | F4: 가중평균 발행금리(%)
B6: Issue date | C6: Tranche | D6: Issue amount | E6: Outstanding | F6: Coupon rate
A8: MBS 2000-1 | B8: 2000-04-07 | C8: 11 | D8: 3,976 | E8: 0 | F8: 9.66
A9: MBS 2000-2 | B9: 2000-09-01 | C9: 13 | D9: 5,000 | E9: 0 | F9: 8.68
A10: MBS 2000-3 | B10: 2000-12-08 | C10: 13 | D10: 3,813 | E10: 0 | F10: 8.33
A11: MBS 2001-1 | B11: 2001-05-18 | C11: 13 | D11: 2,377 | E11: 0 | F11: 7.78
A12: MBS 2001-2 | B12: 2001-09-20 | C12: 8 | D12: 5,050 | E12: 0 | F12: 6.62
A13: MBS 2002-1 | B13: 2002-01-23 | C13: 4 | D13: 180 | E13: 0 | F13: 7.10
A14: MBS 2002-2 | B14: 2002-02-21 | C14: 9 | D14: 5,102 | E14: 0 | F14: 7.36
A15: MBS 2003-1 | B15: 2003-04-02 | C15: 9 | D15: 3,100 | E15: 0 | F15: 5.51
A16: MBS 2003-2 | B16: 2003-08-04 | C16: 7 | D16: 166 | E16: 0 | F16: 5.66
A17: KoMoCo | B17: 2000~2003 | C17: - | D17: =SUM(D8:D16) -> 28,764 | E17: =SUM(E8:E16) -> 0 | F17: -
A18: MBS 2004-1 | B18: 2004-06-15 | C18: 10 | D18: 5,520 | E18: 0 | F18: 5.00
A19: MBS 2004-2 | B19: 2004-07-28 | C19: 7 | D19: 4,070 | E19: 0 | F19: 5.00
A20: MBS 2004-3 | B20: 2004-08-18 | C20: 7 | D20: 5,700 | E20: 0 | F20: 4.50
A21: MBS 2004-4 | B21: 2004-09-23 | C21: 7 | D21: 4,020 | E21: 0 | F21: 4.26
A22: MBS 2004-5 | B22: 2004-10-28 | C22: 7 | D22: 3,600 | E22: 0 | F22: 4.20
A23: MBS 2004-6 | B23: 2004-11-30 | C23: 7 | D23: 3,150 | E23: 0 | F23: 4.09
A24: MBS 2004-7 | B24: 2004-12-28 | C24: 7 | D24: 4,100 | E24: 0 | F24: 4.06
A25: MBS 2004-1~7 | B25: 2004 | C25: - | D25: =SUM(D18:D24) -> 30,161 | E25: =SUM(E18:E24) -> 0 | F25: -
A26: MBS 2005-1 | B26: 2005-02-24 | C26: 7 | D26: 4,080 | E26: 0 | F26: 5.18
A27: MBS 2005-2 | B27: 2005-03-23 | C27: 7 | D27: 4,050 | E27: 0 | F27: 4.84
A28: MBS 2005-3 | B28: 2005-04-28 | C28: 7 | D28: 4,670 | E28: 0 | F28: 4.71
A29: MBS 2005-4 | B29: 2005-05-25 | C29: 9 | D29: 4,530 | E29: 0 | F29: 4.41
A30: MBS 2005-5 | B30: 2005-06-27 | C30: 9 | D30: 4,590 | E30: 0 | F30: 4.72
A31: MBS 2005-6 | B31: 2005-07-27 | C31: 9 | D31: 4,540 | E31: 0 | F31: 4.89
A32: MBS 2005-7 | B32: 2005-08-30 | C32: 9 | D32: 4,840 | E32: 0 | F32: 5.16
A33: MBS 2005-8 | B33: 2005-09-29 | C33: 9 | D33: 4,000 | E33: 0 | F33: 5.56
A34: MBS 2005-9 | B34: 2005-11-10 | C34: 9 | D34: 3,310 | E34: 0 | F34: 5.87
A35: MBS 2005-1~9 | B35: 2005 | C35: - | D35: =SUM(D26:D34) -> 38,611 | E35: =SUM(E26:E34) -> 1 | F35: -
A36: MBS 2006-1 | B36: 2006-01-26 | C36: 8 | D36: 3,800 | E36: 0 | F36: 5.72
A37: MBS 2006-2 | B37: 2006-03-30 | C37: 9 | D37: 3,415 | E37: 0 | F37: 5.62
A38: MBS 2006-3 | B38: 2006-07-14 | C38: 9 | D38: 3,125 | E38: 0 | F38: 5.40
A39: MBS 2006-4 | B39: 2006-09-26 | C39: 9 | D39: 3,296 | E39: 4 | F39: 5.02
A40: MBS 2006-5 | B40: 2006-12-15 | C40: 9 | D40: 3,895 | E40: 3 | F40: 5.09
A41: MBS 2006-1~5 | B41: 2006 | C41: - | D41: =SUM(D36:D40) -> 17,531 | E41: =SUM(E36:E40) -> 7 | F41: -
A42: MBS 2007-1 | B42: 2007-02-21 | C42: 9 | D42: 3,489 | E42: 3 | F42: 5.17
A43: MBS 2007-2 | B43: 2007-04-24 | C43: 9 | D43: 3,602 | E43: 4 | F43: 5.27
A44: MBS 2007-3 | B44: 2007-07-11 | C44: 9 | D44: 3,578 | E44: 4 | F44: 5.70
A45: MBS 2007-4 | B45: 2007-08-23 | C45: 9 | D45: 3,921 | E45: 4 | F45: 5.52
A46: MBS 2007-5 | B46: 2007-09-20 | C46: 9 | D46: 3,374 | E46: 4 | F46: 5.73
A47: MBS 2007-6 | B47: 2007-10-25 | C47: 9 | D47: 3,920 | E47: 4 | F47: 5.86
A48: MBS 2007-1~6 | B48: 2007 | C48: - | D48: =SUM(D42:D47) -> 21,884 | E48: =SUM(E42:E47) -> 23 | F48: -
A49: MBS 2008-1 | B49: 2008-02-26 | C49: 9 | D49: 4,273 | E49: 5 | F49: 5.66
A50: MBS 2008-2 | B50: 2008-03-07 | C50: 9 | D50: 3,471 | E50: 0 | F50: 5.46
A51: MBS 2008-3 | B51: 2008-03-27 | C51: 9 | D51: 3,925 | E51: 4 | F51: 5.88
A52: MBS 2008-4 | B52: 2008-04-15 | C52: 9 | D52: 3,689 | E52: 4 | F52: 5.81
A53: MBS 2008-5 | B53: 2008-05-06 | C53: 9 | D53: 4,233 | E53: 0 | F53: 5.75
A54: MBS 2008-6 | B54: 2008-05-27 | C54: 9 | D54: 3,864 | E54: 0 | F54: 6.26
A55: MBS 2008-7 | B55: 2008-06-13 | C55: 9 | D55: 3,025 | E55: 0 | F55: 6.64
A56: MBS 2008-1~7 | B56: 2008 | C56: - | D56: =SUM(D49:D55) -> 26,480 | E56: =SUM(E49:E55) -> 13 | F56: -
A57: MBS 2009-1 | B57: 2009-03-20 | C57: 9 | D57: 4,936 | E57: 0 | F57: 5.71
A58: MBS 2009-22) | B58: 2009-03-30 | C58: 1 | D58: 3,671 | E58: 0 | F58: -
A59: MBS 2009-32) | B59: 2009-04-22 | C59: 1 | D59: 19,681 | E59: 0 | F59: -
A60: MBS 2009-4 | B60: 2009-04-29 | C60: 9 | D60: 3,133 | E60: 0 | F60: 5.22
A61: MBS 2009-52) | B61: 2009-06-30 | C61: 1 | D61: 3,292 | E61: 0 | F61: -
A62: MBS 2009-6 | B62: 2009-07-07 | C62: 9 | D62: 3,617 | E62: 0 | F62: 5.51
A63: MBS 2009-72) | B63: 2009-09-18 | C63: 1 | D63: 18,088 | E63: 0 | F63: -
A64: MBS 2009-8 | B64: 2009-09-15 | C64: 9 | D64: 5,543 | E64: 0 | F64: 5.69
A65: MBS 2009-9 | B65: 2009-09-29 | C65: 4 | D65: 2,103 | E65: 0 | F65: -
A66: MBS 2009-10 | B66: 2009-10-16 | C66: 9 | D66: 4,961 | E66: 3 | F66: 5.59
A67: MBS 2009-11 | B67: 2009-11-10 | C67: 9 | D67: 5,459 | E67: 45 | F67: 5.64
A68: MBS 2009-12 | B68: 2009-11-20 | C68: 9 | D68: 3,146 | E68: 3 | F68: 5.53
A69: MBS 2009-132) | B69: 2009-12-23 | C69: 1 | D69: 4,633 | E69: 165 | F69: -
A70: MBS 2009-14 | B70: 2009-12-18 | C70: 9 | D70: 3,604 | E70: 0 | F70: 5.32
A71: MBS 2009-1~14 | B71: 2009 | C71: - | D71: =SUM(D57:D70) -> 85,867 | E71: =SUM(E57:E70) -> 216 | F71: -
A72: MBS 2010-1 | B72: 2010-01-28 | C72: 9 | D72: 4,307 | E72: 0 | F72: 5.39
A73: MBS 2010-2 | B73: 2010-02-25 | C73: 9 | D73: 4,289 | E73: 4 | F73: 5.29
A74: MBS 2010-3 | B74: 2010-03-30 | C74: 9 | D74: 4,506 | E74: 0 | F74: 4.94
A75: MBS 2010-4 | B75: 2010-04-23 | C75: 9 | D75: 4,137 | E75: 0 | F75: 4.97
A76: MBS 2010-5 | B76: 2010-06-17 | C76: 9 | D76: 3,273 | E76: 0 | F76: 5.01
A77: MBS 2010-62) | B77: 2010-06-24 | C77: 1 | D77: 6,422 | E77: 224 | F77: -
A78: MBS 2010-7 | B78: 2010-07-08 | C78: 9 | D78: 3,964 | E78: 0 | F78: 4.98
A79: MBS 2010-82) | B79: 2010-08-26 | C79: 1 | D79: 10,019 | E79: 0 | F79: -
A80: MBS 2010-9 | B80: 2010-07-30 | C80: 9 | D80: 3,672 | E80: 0 | F80: 4.95
A81: MBS 2010-10 | B81: 2010-08-26 | C81: 9 | D81: 3,790 | E81: 0 | F81: 4.62
A82: MBS 2010-11 | B82: 2010-09-07 | C82: 3 | D82: 1,930 | E82: 0 | F82: -
A83: MBS 2010-12 | B83: 2010-09-29 | C83: 9 | D83: 4,147 | E83: 0 | F83: 4.36
A84: MBS 2010-13 | B84: 2010-10-28 | C84: 9 | D84: 3,230 | E84: 58 | F84: 4.29
A85: MBS 2010-14 | B85: 2010-11-19 | C85: 4 | D85: 2,193 | E85: 0 | F85: -
A86: MBS 2010-15 | B86: 2010-11-29 | C86: 9 | D86: 4,980 | E86: 34 | F86: 4.45
A87: MBS 2010-16 | B87: 2010-12-23 | C87: 9 | D87: 3,084 | E87: 0 | F87: 4.49
A88: MBS 2010-17 | B88: 2010-12-07 | C88: 9 | D88: 5,630 | E88: 17 | F88: 4.36
A89: MBS 2010-182) | B89: 2010-12-23 | C89: 1 | D89: 4,400 | E89: 180 | F89: -
A90: MBS 2010-1~18 | B90: 2010 | C90: - | D90: =SUM(D72:D89) -> 77,973 | E90: =SUM(E72:E89) -> 518 | F90: -
A91: MBS 2011-1 | B91: 2011-01-28 | C91: 9 | D91: 4,774 | E91: 0 | F91: 4.76
A92: MBS 2011-2 | B92: 2011-02-17 | C92: 9 | D92: 3,821 | E92: 0 | F92: 4.78
A93: MBS 2011-3 | B93: 2011-03-29 | C93: 9 | D93: 2,985 | E93: 0 | F93: 4.48
A94: MBS 2011-4 | B94: 2011-04-13 | C94: 9 | D94: 5,285 | E94: 0 | F94: 4.50
A95: MBS 2011-5 | B95: 2011-04-26 | C95: 4 | D95: 2,203 | E95: 0 | F95: -
A96: MBS 2011-62) | B96: 2011-04-28 | C96: 1 | D96: 4,321 | E96: 149 | F96: -
A97: MBS 2011-7 | B97: 2011-05-06 | C97: 9 | D97: 5,843 | E97: 0 | F97: 4.47
A98: MBS 2011-8 | B98: 2011-05-30 | C98: 9 | D98: 3,844 | E98: 0 | F98: 4.26
A99: MBS 2011-9 | B99: 2011-06-24 | C99: 9 | D99: 5,102 | E99: 52 | F99: 4.28
A100: MBS 2011-10 | B100: 2011-07-19 | C100: 9 | D100: 5,298 | E100: 59 | F100: 4.25
A101: MBS 2011-11 | B101: 2011-07-28 | C101: 9 | D101: 2,173 | E101: 0 | F101: 4.32
A102: MBS 2011-12 | B102: 2011-08-30 | C102: 9 | D102: 3,847 | E102: 60 | F102: 4.08
A103: MBS 2011-13 | B103: 2011-09-08 | C103: 4 | D103: 4,013 | E103: 0 | F103: 3.90
A104: MBS 2011-14 | B104: 2011-09-29 | C104: 9 | D104: 3,111 | E104: 46 | F104: 4.08
A105: MBS 2011-152) | B105: 2011-10-28 | C105: 1 | D105: 4,534 | E105: 214 | F105: -
A106: MBS 2011-16 | B106: 2011-10-25 | C106: 9 | D106: 3,861 | E106: 51 | F106: 4.14
A107: MBS 2011-17 | B107: 2011-11-14 | C107: 2 | D107: 1,096 | E107: 0 | F107: CD91일+0.09%
A108: MBS 2011-18 | B108: 2011-11-24 | C108: 9 | D108: 5,859 | E108: 111 | F108: 4.03
A109: MBS 2011-19 | B109: 2011-11-24 | C109: 9 | D109: 2,203 | E109: 48 | F109: 4.05
A110: MBS 2011-202) | B110: 2011-12-29 | C110: 1 | D110: 3,713 | E110: 179 | F110: -
A111: MBS 2011-21 | B111: 2011-12-23 | C111: 9 | D111: 7,338 | E111: 134 | F111: 4.05
A112: MBS 2011-1~21 | B112: 2011 | C112: - | D112: =SUM(D91:D111) -> 85,224 | E112: =SUM(E91:E111) -> 1,103 | F112: -
A113: MBS 2012-1 | B113: 2012-02-02 | C113: 9 | D113: 5,738 | E113: 89 | F113: 3.96
A114: MBS 2012-2 | B114: 2012-02-23 | C114: 9 | D114: 5,943 | E114: 127 | F114: 3.99
A115: MBS 2012-3 | B115: 2012-03-13 | C115: 9 | D115: 3,451 | E115: 65 | F115: 3.98
A116: MBS 2012-42) | B116: 2012-03-27 | C116: 1 | D116: 3,536 | E116: 177 | F116: -
A117: MBS 2012-5 | B117: 2012-04-13 | C117: 9 | D117: 3,245 | E117: 88 | F117: 3.97
A118: MBS 2012-6 | B118: 2012-04-23 | C118: 9 | D118: 6,777 | E118: 173 | F118: 3.90
A119: MBS 2012-7 | B119: 2012-05-15 | C119: 9 | D119: 4,743 | E119: 80 | F119: 3.79
A120: MBS 2012-8 | B120: 2012-05-22 | C120: 9 | D120: 2,284 | E120: 47 | F120: 3.78
A121: MBS 2012-93) | B121: 2012-05-29 | C121: 9 | D121: 3,684 | E121: 51 | F121: 3.78
A122: MBS 2012-10 | B122: 2012-06-12 | C122: 9 | D122: 4,280 | E122: 92 | F122: 3.68
A123: MBS 2012-112) | B123: 2012-06-22 | C123: 1 | D123: 3,563 | E123: 219 | F123: -
A124: MBS 2012-122) | B124: 2012-06-22 | C124: 1 | D124: 1,521 | E124: 47 | F124: -
A125: MBS 2012-133) | B125: 2012-06-28 | C125: 9 | D125: 3,671 | E125: 58 | F125: 3.78
A126: MBS 2012-14 | B126: 2012-06-21 | C126: 9 | D126: 3,850 | E126: 84 | F126: 3.75
A127: MBS 2012-15 | B127: 2012-07-05 | C127: 9 | D127: 3,041 | E127: 95 | F127: 3.83
A128: MBS 2012-163) | B128: 2012-07-19 | C128: 9 | D128: 5,744 | E128: 51 | F128: 3.50
A129: MBS 2012-17 | B129: 2012-07-12 | C129: 9 | D129: 5,238 | E129: 171 | F129: 3.76
A130: MBS 2012-18 | B130: 2012-07-26 | C130: 9 | D130: 3,127 | E130: 109 | F130: 3.28
A131: MBS 2012-193) | B131: 2012-08-02 | C131: 9 | D131: 5,554 | E131: 88 | F131: 3.27
A132: MBS 2012-20 | B132: 2012-08-09 | C132: 9 | D132: 8,050 | E132: 310 | F132: 3.17
A133: MBS 2012-213) | B133: 2012-08-17 | C133: 9 | D133: 6,802 | E133: 114 | F133: 3.23
A134: MBS 2012-223) | B134: 2012-09-06 | C134: 9 | D134: 6,423 | E134: 117 | F134: 3.12
A135: MBS 2012-23 | B135: 2012-08-30 | C135: 9 | D135: 2,862 | E135: 120 | F135: 3.18
A136: MBS 2012-243) | B136: 2012-09-20 | C136: 9 | D136: 8,843 | E136: 179 | F136: 3.22
A137: MBS 2012-25 | B137: 2012-09-13 | C137: 9 | D137: 3,338 | E137: 133 | F137: 3.14
A138: MBS 2012-262) | B138: 2012-09-25 | C138: 1 | D138: 1,758 | E138: 77 | F138: -
A139: MBS 2012-272) | B139: 2012-09-25 | C139: 1 | D139: 480 | E139: 21 | F139: -
A140: MBS 2012-28 | B140: 2012-09-27 | C140: 9 | D140: 3,951 | E140: 180 | F140: 3.16
A141: MBS 2012-293) | B141: 2012-10-11 | C141: 9 | D141: 10,188 | E141: 225 | F141: 3.11
A142: MBS 2012-303) | B142: 2012-10-18 | C142: 9 | D142: 8,220 | E142: 144 | F142: 3.11
A143: MBS 2012-31 | B143: 2012-10-25 | C143: 9 | D143: 7,848 | E143: 296 | F143: 3.16
A144: MBS 2012-323) | B144: 2012-11-01 | C144: 9 | D144: 7,020 | E144: 160 | F144: 3.12
A145: MBS 2012-333) | B145: 2012-11-08 | C145: 9 | D145: 8,337 | E145: 194 | F145: 3.11
A146: MBS 2012-34 | B146: 2012-11-15 | C146: 9 | D146: 5,906 | E146: 204 | F146: 3.08
A147: MBS 2012-353) | B147: 2012-11-22 | C147: 9 | D147: 9,446 | E147: 231 | F147: 3.11
A148: MBS 2012-362) | B148: 2012-11-26 | C148: 1 | D148: 2,323 | E148: 110 | F148: -
A149: MBS 2012-372) | B149: 2012-11-28 | C149: 1 | D149: 4,020 | E149: 227 | F149: -
A150: MBS 2012-382) | B150: 2012-11-28 | C150: 1 | D150: 1,104 | E150: 49 | F150: -
A151: MBS 2012-393) | B151: 2012-11-29 | C151: 9 | D151: 5,728 | E151: 129 | F151: 3.20
A152: MBS 2012-403) | B152: 2012-11-27 | C152: 9 | D152: 4,218 | E152: 88 | F152: 3.16
A153: MBS 2012-413) | B153: 2012-12-13 | C153: 9 | D153: 4,458 | E153: 106 | F153: 3.24
A154: MBS 2012-1~41 | B154: 2012 | C154: - | D154: =SUM(D113:D153) -> 200,313 | E154: =SUM(E113:E153) -> 5,325 | F154: -
A155: MBS 2013-01 | B155: 2013-01-10 | C155: 9 | D155: 7,606 | E155: 320 | F155: 3.15
A156: MBS 2013-02 | B156: 2013-01-17 | C156: 9 | D156: 7,658 | E156: 344 | F156: 3.08
A157: MBS 2013-033) | B157: 2013-01-24 | C157: 9 | D157: 7,995 | E157: 201 | F157: 3.09
A158: MBS 2013-04 | B158: 2013-01-31 | C158: 9 | D158: 9,593 | E158: 451 | F158: 3.08
A159: MBS 2013-053) | B159: 2013-02-07 | C159: 9 | D159: 10,338 | E159: 266 | F159: 3.16
A160: MBS 2013-06 | B160: 2013-02-15 | C160: 9 | D160: 6,248 | E160: 186 | F160: 3.12
A161: MBS 2013-073) | B161: 2013-02-21 | C161: 9 | D161: 6,934 | E161: 161 | F161: 3.12
A162: MBS 2013-083) | B162: 2013-02-28 | C162: 9 | D162: 6,030 | E162: 259 | F162: 3.07
A163: MBS 2013-093) | B163: 2013-03-14 | C163: 9 | D163: 6,472 | E163: 198 | F163: 3.03
A164: MBS 2013-102) | B164: 2013-03-20 | C164: 1 | D164: 4,068 | E164: 267 | F164: -
A165: MBS 2013-112) | B165: 2013-03-20 | C165: 1 | D165: 399 | E165: 28 | F165: -
A166: MBS 2013-122) | B166: 2013-03-22 | C166: 1 | D166: 490 | E166: 28 | F166: -
A167: MBS 2013-132) | B167: 2013-04-05 | C167: 1 | D167: 1,624 | E167: 100 | F167: -
A168: MBS 2013-14 | B168: 2013-04-04 | C168: 9 | D168: 8,359 | E168: 387 | F168: 2.88
A169: MBS 2013-153) | B169: 2013-04-11 | C169: 9 | D169: 10,757 | E169: 403 | F169: 2.89
A170: MBS 2013-16 | B170: 2013-04-18 | C170: 9 | D170: 8,750 | E170: 404 | F170: 3.01
A171: MBS 2013-17 | B171: 2013-04-25 | C171: 9 | D171: 6,222 | E171: 330 | F171: 2.97
A172: MBS 2013-18 | B172: 2013-05-09 | C172: 9 | D172: 4,430 | E172: 242 | F172: 2.92
A173: MBS 2013-193) | B173: 2013-05-16 | C173: 9 | D173: 5,107 | E173: 206 | F173: 2.97
A174: MBS 2013-20 | B174: 2013-05-30 | C174: 9 | D174: 4,279 | E174: 251 | F174: 3.00
A175: MBS 2013-21 | B175: 2013-06-13 | C175: 9 | D175: 7,281 | E175: 470 | F175: 3.21
A176: MBS 2013-22 | B176: 2013-06-20 | C176: 9 | D176: 4,250 | E176: 210 | F176: 3.24
A177: MBS 2013-233) | B177: 2013-07-23 | C177: 9 | D177: 6,311 | E177: 284 | F177: 3.51
A178: MBS 2013-242) | B178: 2013-07-04 | C178: 1 | D178: 699 | E178: 67 | F178: -
A179: MBS 2013-25 | B179: 2013-07-11 | C179: 9 | D179: 5,181 | E179: 329 | F179: 3.59
A180: MBS 2013-263) | B180: 2013-07-18 | C180: 9 | D180: 4,841 | E180: 245 | F180: 3.48
A181: MBS 2013-27 | B181: 2013-07-29 | C181: 9 | D181: 11,238 | E181: 644 | F181: 3.52
A182: MBS 2013-28 | B182: 2013-08-08 | C182: 9 | D182: 7,503 | E182: 520 | F182: 3.51
A183: MBS 2013-293) | B183: 2013-08-16 | C183: 9 | D183: 6,044 | E183: 293 | F183: 3.52
A184: MBS 2013-30 | B184: 2013-08-22 | C184: 9 | D184: 5,390 | E184: 282 | F184: 3.59
A185: MBS 2013-31 | B185: 2013-09-12 | C185: 9 | D185: 9,253 | E185: 536 | F185: 3.57
A186: MBS 2013-323) | B186: 2013-09-27 | C186: 9 | D186: 5,909 | E186: 266 | F186: 3.41
A187: MBS 2013-332) | B187: 2013-09-25 | C187: 1 | D187: 499 | E187: 23 | F187: -
A188: MBS 2013-34 | B188: 2013-10-10 | C188: 9 | D188: 3,482 | E188: 250 | F188: 3.42
A189: MBS 2013-35 | B189: 2013-10-17 | C189: 9 | D189: 8,614 | E189: 498 | F189: 3.52
A190: MBS 2013-36 | B190: 2013-11-14 | C190: 9 | D190: 6,263 | E190: 317 | F190: 3.55
A191: MBS 2013-382) | B191: 2013-11-26 | C191: 1 | D191: 808 | E191: 97 | F191: -
A192: MBS 2013-40 | B192: 2013-11-28 | C192: 9 | D192: 3,054 | E192: 136 | F192: 3.62
A193: MBS 2013-1~40 | B193: 2013 | C193: - | D193: =SUM(D155:D192) -> 219,979 | E193: =SUM(E155:E192) -> 10,498 | F193: -
A194: MBS 2014-1 | B194: 2014-01-09 | C194: 9 | D194: 4,239 | E194: 287 | F194: 3.60
A195: MBS 2014-23) | B195: 2014-01-16 | C195: 9 | D195: 2,706 | E195: 164 | F195: 3.63
A196: MBS 2014-3 | B196: 2014-01-23 | C196: 9 | D196: 4,773 | E196: 315 | F196: 3.55
A197: MBS 2014-42) | B197: 2014-01-24 | C197: 1 | D197: 1,350 | E197: 72 | F197: -
A198: MBS 2014-5 | B198: 2014-02-13 | C198: 9 | D198: 3,244 | E198: 187 | F198: 3.46
A199: MBS 2014-6 | B199: 2014-03-06 | C199: 9 | D199: 2,907 | E199: 162 | F199: 3.45
A200: MBS 2014-72) | B200: 2014-03-21 | C200: 1 | D200: 1,485 | E200: 146 | F200: -
A201: MBS 2014-83) | B201: 2014-03-20 | C201: 9 | D201: 2,106 | E201: 137 | F201: 3.48
A202: MBS 2014-94) | B202: 2014-04-24 | C202: 9 | D202: 3,088 | E202: 187 | F202: 3.45
A203: MBS 2014-104) | B203: 2014-05-22 | C203: 9 | D203: 5,191 | E203: 318 | F203: 3.29
... 263 more rows

Sheet 7. MBS 기초자산 상환 및 연체현황
A1: 7. MBS 기초자산 상환 및 연체현황 Prepayment and Delinquency of Mortgage Pool(MBS)
A3: 단위 : 백만원 | G3: Million won
A4: 상품명 | B4: 조기상환율 Prepayment | E4: 연체율 Delinquency
B5: 전월대출잔액 | C5: 조기상환액 | D5: 조기상환율(%) | E5: 기준월 대출잔액 | F5: 1개월 연체
A6: MBS | F6: 연체금액 | G6: 연체율2(%)1)
B7: OPB of previous month | C7: Prepayment amount of current month | D7: Prepayment Ratio | E7: OPB | F7: Principal of delinquency | G7: Delinquency ratio2
A8: 2022-06-30
A9: KoMoCo | B9: 0 | C9: 0 | D9: =IF(B9=0,0,C9/B9)*100 -> 0.00 | E9: 0 | F9: 0 | G9: =IF(E9=0,0,F9/E9)*100 -> 0.00
A10: MBS 2004-1~7 | B10: 0 | C10: 0 | D10: 0.00 | E10: =SUM(E11:E17) -> 0 | F10: =SUM(F11:F17) -> 0 | G10: 0.00
A11: MBS 2004-1 | B11: 0 | C11: 0 | D11: 0.00 | E11: 0 | F11: 0 | G11: 0.00
A12: MBS 2004-2 | B12: 0 | C12: 0 | D12: 0.00 | E12: 0 | F12: 0 | G12: 0.00
A13: MBS 2004-3 | B13: 0 | C13: 0 | D13: 0.00 | E13: 0 | F13: 0 | G13: 0.00
A14: MBS 2004-4 | B14: 0 | C14: 0 | D14: 0.00 | E14: 0 | F14: 0 | G14: 0.00
A15: MBS 2004-5 | B15: 0 | C15: 0 | D15: 0.00 | E15: 0 | F15: 0 | G15: 0.00
A16: MBS 2004-6 | B16: 0 | C16: 0 | D16: 0.00 | E16: 0 | F16: 0 | G16: 0.00
A17: MBS 2004-7 | B17: 0 | C17: 0 | D17: 0.00 | E17: 0 | F17: 0 | G17: 0.00
A18: MBS 2005-1~9 | B18: =SUM($B$19:$B$27) -> 5,644 | C18: =SUM(C19:C27) -> 100 | D18: =IF(B18=0,0,C18/B18)*100 -> 1.77 | E18: =SUM(E19:E27) -> 5,447 | F18: =SUM(F19:F27) -> 535 | G18: 9.82
A19: MBS 2005-1 | B19: 0 | C19: 0 | D19: =IF(B19=0,0,C19/B19)*100 -> 0.00 | E19: 0 | F19: 0 | G19: 0.00
A20: MBS 2005-2 | B20: 955 | C20: 7 | D20: 0.74 | E20: 930 | F20: 118 | G20: 12.64
A21: MBS 2005-3 | B21: 1,057 | C21: 13 | D21: =IF(B21=0,0,C21/B21)*100 -> 1.25 | E21: 1,026 | F21: 6 | G21: =IF(E21=0,0,F21/E21)*100 -> 0.55
A22: MBS 2005-4 | B22: 919 | C22: 73 | D22: 7.95 | E22: 829 | F22: 21 | G22: 2.55
A23: MBS 2005-5 | B23: 928 | C23: 0 | D23: 0.00 | E23: 912 | F23: 103 | G23: 11.31
A24: MBS 2005-6 | B24: 0 | C24: 0 | D24: 0.00 | E24: 0 | F24: 0 | G24: 0.00
A25: MBS 2005-7 | B25: 1,094 | C25: 6 | D25: 0.59 | E25: 1,071 | F25: 116 | G25: 10.84
A26: MBS 2005-8 | B26: 692 | C26: 0 | D26: 0.00 | E26: 679 | F26: 171 | G26: 25.23
A27: MBS 2005-9 | B27: 0 | C27: 0 | D27: 0.00 | E27: 0 | F27: 0 | G27: 0.00
A28: MBS 2006-1~5 | B28: =SUM(B29:B33) -> 4,028 | C28: =SUM(C29:C33) -> 8 | D28: 0.19 | E28: =SUM(E29:E33) -> 3,969 | F28: =SUM(F29:F33) -> 133 | G28: 3.35
A29: MBS 2006-1 | B29: 935 | C29: 3 | D29: 0.31 | E29: 918 | F29: 52 | G29: 5.66
A30: MBS 2006-2 | B30: 971 | C30: 0 | D30: 0.00 | E30: 958 | F30: 58 | G30: 6.08
A31: MBS 2006-3 | B31: 605 | C31: 0 | D31: 0.00 | E31: 595 | F31: 0 | G31: 0.00
A32: MBS 2006-4 | B32: 630 | C32: 5 | D32: 0.76 | E32: 620 | F32: 7 | G32: 1.14
A33: MBS 2006-5 | B33: 886 | C33: 0 | D33: 0.00 | E33: 878 | F33: 16 | G33: 1.78
A34: MBS 2007-1~6 | B34: =SUM(B35:B40) -> 4,203 | C34: =SUM(C35:C40) -> 25 | D34: 0.61 | E34: =SUM(E35:E40) -> 4,148 | F34: =SUM(F35:F40) -> 107 | G34: 2.58
A35: MBS 2007-1 | B35: 869 | C35: 17 | D35: 1.95 | E35: 847 | F35: 0 | G35: 0.00
A36: MBS 2007-2 | B36: 763 | C36: 9 | D36: 1.11 | E36: 751 | F36: 0 | G36: 0.00
A37: MBS 2007-3 | B37: 880 | C37: 0 | D37: 0.00 | E37: 876 | F37: 58 | G37: 6.66
A38: MBS 2007-4 | B38: 469 | C38: 0 | D38: 0.01 | E38: 464 | F38: 10 | G38: 2.20
A39: MBS 2007-5 | B39: 642 | C39: 0 | D39: 0.00 | E39: 636 | F39: 37 | G39: 5.76
A40: MBS 2007-6 | B40: 580 | C40: 0 | D40: 0.00 | E40: 574 | F40: 2 | G40: 0.32
A41: MBS 2008-1~7 | B41: =SUM(B42:B48) -> 2,237 | C41: =SUM(C42:C48) -> 9 | D41: 0.39 | E41: =SUM(E42:E48) -> 2,205 | F41: =SUM(F42:F48) -> 43 | G41: 1.97
A42: MBS 2008-1 | B42: 526 | C42: 0 | D42: 0.00 | E42: 521 | F42: 15 | G42: 2.90
A43: MBS 2008-2 | B43: 0 | C43: 0 | D43: 0.00 | E43: 0 | F43: 0 | G43: 0.00
A44: MBS 2008-3 | B44: 427 | C44: 9 | D44: 2.06 | E44: 412 | F44: 9 | G44: 2.17
A45: MBS 2008-4 | B45: 555 | C45: 0 | D45: 0.00 | E45: 548 | F45: 0 | G45: 0.08
A46: MBS 2008-5 | B46: 0 | C46: 0 | D46: 0.00 | E46: 0 | F46: 0 | G46: 0.00
A47: MBS 2008-6 | B47: 593 | C47: 0 | D47: 0.00 | E47: 590 | F47: 19 | G47: 3.20
A48: MBS 2008-7 | B48: 135 | C48: 0 | D48: 0.00 | E48: 134 | F48: 0 | G48: 0.00
A49: MBS 2009-1~14 | B49: =SUM(B50:B63) -> 17,504 | C49: =SUM(C50:C63) -> 276 | D49: 1.58 | E49: =SUM(E50:E63) -> 17,157 | F49: =SUM(F50:F63) -> 167 | G49: 0.98
A50: MBS 2009-1 | B50: 0 | C50: 0 | D50: 0.00 | E50: 0 | F50: 0 | G50: 0.00
A51: MBS 2009-2 | B51: 0 | C51: 0 | D51: 0.00 | E51: 0 | F51: 0 | G51: 0.00
A52: MBS 2009-3 | B52: 0 | C52: 0 | D52: 0.00 | E52: 0 | F52: 0 | G52: 0.00
A53: MBS 2009-4 | B53: 0 | C53: 0 | D53: 0.00 | E53: 0 | F53: 0 | G53: 0.00
A54: MBS 2009-5 | B54: 0 | C54: 0 | D54: 0.00 | E54: 0 | F54: 0 | G54: 0.00
A55: MBS 2009-6 | B55: 0 | C55: 0 | D55: 0.00 | E55: 0 | F55: 0 | G55: 0.00
A56: MBS 2009-7 | B56: 0 | C56: 0 | D56: 0.00 | E56: 0 | F56: 0 | G56: 0.00
A57: MBS 2009-8 | B57: 0 | C57: 0 | D57: 0.00 | E57: 0 | F57: 0 | G57: 0.00
A58: MBS 2009-9 | B58: 0 | C58: 0 | D58: 0.00 | E58: 0 | F58: 0 | G58: 0.00
A59: MBS 2009-10 | B59: 1,991 | C59: 0 | D59: 0.00 | E59: 1,974 | F59: 66 | G59: 3.35
A60: MBS 2009-11 | B60: 1,147 | C60: 12 | D60: 1.02 | E60: 1,128 | F60: 41 | G60: 3.61
A61: MBS 2009-12 | B61: 223 | C61: 0 | D61: 0.00 | E61: 222 | F61: 0 | G61: 0.00
A62: MBS 2009-13 | B62: 14,142 | C62: 265 | D62: 1.87 | E62: 13,833 | F62: 61 | G62: 0.44
A63: MBS 2009-14 | B63: 0 | C63: 0 | D63: 0.00 | E63: 0 | F63: 0 | G63: 0.00
A64: MBS 2010-1~18 | B64: =SUM(B65:B82) -> 44,129 | C64: =SUM(C65:C82) -> 482 | D64: 1.09 | E64: =SUM(E65:E82) -> 43,488 | F64: =SUM(F65:F82) -> 225 | G64: 0.52
A65: MBS 2010-1 | B65: 0 | C65: 0 | D65: 0.00 | E65: 0 | F65: 0 | G65: 0.00
A66: MBS 2010-2 | B66: 755 | C66: 26 | D66: 3.40 | E66: 725 | F66: 23 | G66: 3.21
A67: MBS 2010-3 | B67: 0 | C67: 0 | D67: 0.00 | E67: 0 | F67: 0 | G67: 0.00
A68: MBS 2010-4 | B68: 0 | C68: 0 | D68: 0.00 | E68: 0 | F68: 0 | G68: 0.00
A69: MBS 2010-5 | B69: 0 | C69: 0 | D69: 0.00 | E69: 0 | F69: 0 | G69: 0.00
A70: MBS 2010-6 | B70: 19,861 | C70: 79 | D70: 0.40 | E70: 19,727 | F70: 96 | G70: 0.48
A71: MBS 2010-7 | B71: 0 | C71: 0 | D71: 0.00 | E71: 0 | F71: 0 | G71: 0.00
A72: MBS 2010-8 | B72: 0 | C72: 0 | D72: 0.00 | E72: 0 | F72: 0 | G72: 0.00
A73: MBS 2010-9 | B73: 0 | C73: 0 | D73: 0.00 | E73: 0 | F73: 0 | G73: =IF(E73=0,0,F73/E73)*100 -> 0.00
A74: MBS 2010-10 | B74: 0 | C74: 0 | D74: 0.00 | E74: 0 | F74: 0 | G74: 0.00
A75: MBS 2010-11 | B75: 0 | C75: 0 | D75: 0.00 | E75: 0 | F75: 0 | G75: 0.00
A76: MBS 2010-12 | B76: 0 | C76: 0 | D76: 0.00 | E76: 0 | F76: 0 | G76: 0.00
A77: MBS 2010-13 | B77: 1,627 | C77: 3 | D77: 0.19 | E77: 1,612 | F77: 10 | G77: 0.63
A78: MBS 2010-14 | B78: 0 | C78: 0 | D78: 0.00 | E78: 0 | F78: 0 | G78: 0.00
A79: MBS 2010-15 | B79: 1,453 | C79: 0 | D79: 0.00 | E79: 1,440 | F79: 29 | G79: 2.04
A80: MBS 2010-16 | B80: 0 | C80: 0 | D80: 0.00 | E80: 0 | F80: 0 | G80: 0.00
A81: MBS 2010-17 | B81: 3,906 | C81: 70 | D81: 1.80 | E81: 3,812 | F81: 24 | G81: 0.63
A82: MBS 2010-18 | B82: 16,527 | C82: 304 | D82: =IF(B82=0,0,C82/B82)*100 -> 1.84 | E82: 16,172 | F82: 42 | G82: 0.26
A83: MBS 2011-1~21 | B83: =SUM(B84:B104) -> 89,581 | C83: =SUM(C84:C104) -> 582 | D83: 0.65 | E83: =SUM(E84:E104) -> 88,619 | F83: =SUM(F84:F104) -> 2,530 | G83: 2.85
A84: MBS 2011-1 | B84: 0 | C84: 0 | D84: 0.00 | E84: 0 | F84: 0 | G84: 0.00
A85: MBS 2011-2 | B85: 0 | C85: 0 | D85: 0.00 | E85: 0 | F85: 0 | G85: 0.00
A86: MBS 2011-3 | B86: 0 | C86: 0 | D86: 0.00 | E86: 0 | F86: 0 | G86: 0.00
A87: MBS 2011-4 | B87: 0 | C87: 0 | D87: 0.00 | E87: 0 | F87: 0 | G87: 0.00
A88: MBS 2011-5 | B88: 0 | C88: 0 | D88: 0.00 | E88: 0 | F88: 0 | G88: 0.00
A89: MBS 2011-6 | B89: 13,385 | C89: 21 | D89: 0.16 | E89: 13,325 | F89: 137 | G89: 1.03
A90: MBS 2011-7 | B90: 0 | C90: 0 | D90: 0.00 | E90: 0 | F90: 0 | G90: 0.00
A91: MBS 2011-8 | B91: 0 | C91: 0 | D91: 0.00 | E91: 0 | F91: 0 | G91: 0.00
A92: MBS 2011-9 | B92: 4,241 | C92: 0 | D92: 0.00 | E92: 4,219 | F92: 347 | G92: 8.22
A93: MBS 2011-10 | B93: 4,715 | C93: 0 | D93: 0.00 | E93: 4,691 | F93: 127 | G93: 2.70
A94: MBS 2011-11 | B94: 0 | C94: 0 | D94: 0.00 | E94: 0 | F94: 0 | G94: 0.00
A95: MBS 2011-12 | B95: 3,774 | C95: 106 | D95: 2.81 | E95: 3,596 | F95: 509 | G95: 14.14
A96: MBS 2011-13 | B96: 0 | C96: 0 | D96: 0.00 | E96: 0 | F96: 0 | G96: 0.00
A97: MBS 2011-14 | B97: 2,737 | C97: 0 | D97: 0.00 | E97: 2,722 | F97: 0 | G97: 0.00
A98: MBS 2011-15 | B98: 19,910 | C98: 61 | D98: 0.30 | E98: 19,795 | F98: 30 | G98: 0.15
A99: MBS 2011-16 | B99: 3,457 | C99: 10 | D99: 0.29 | E99: 3,431 | F99: 50 | G99: 1.46
A100: MBS 2011-17 | B100: 0 | C100: 0 | D100: 0.00 | E100: 0 | F100: 0 | G100: 0.00
A101: MBS 2011-18 | B101: 7,769 | C101: 1 | D101: 0.01 | E101: 7,731 | F101: 456 | G101: 5.89
A102: MBS 2011-19 | B102: 3,319 | C102: 27 | D102: 0.80 | E102: 3,278 | F102: 317 | G102: 9.68
A103: MBS 2011-20 | B103: 16,586 | C103: 96 | D103: 0.58 | E103: 16,443 | F103: 94 | G103: 0.57
A104: MBS 2011-21 | B104: 9,690 | C104: 260 | D104: 2.69 | E104: 9,389 | F104: 463 | G104: 4.94
A105: MBS 2012-1~41 | B105: =SUM(B106:B146) -> 407,338 | C105: =SUM(C106:C146) -> 7,613 | D105: 1.87 | E105: =SUM(E106:E146) -> 392,656 | F105: =SUM(F106:F146) -> 9,279 | G105: 2.36
A106: MBS 2012-1 | B106: 6,332 | C106: 45 | D106: 0.70 | E106: 6,255 | F106: 132 | G106: 2.11
A107: MBS 2012-2 | B107: 9,061 | C107: 95 | D107: 1.05 | E107: 8,934 | F107: 442 | G107: 4.94
A108: MBS 2012-3 | B108: 4,253 | C108: 2 | D108: 0.04 | E108: 4,232 | F108: 24 | G108: 0.58
A109: MBS 2012-4 | B109: 16,581 | C109: 66 | D109: 0.40 | E109: 16,469 | F109: 0 | G109: 0.00
A110: MBS 2012-5 | B110: 6,316 | C110: 0 | D110: 0.00 | E110: 6,297 | F110: 90 | G110: 1.44
A111: MBS 2012-6 | B111: 12,615 | C111: 0 | D111: 0.00 | E111: 12,565 | F111: 529 | G111: 4.21
A112: MBS 2012-7 | B112: 6,323 | C112: 90 | D112: 1.42 | E112: 6,202 | F112: 272 | G112: 4.38
A113: MBS 2012-8 | B113: 3,138 | C113: 10 | D113: 0.32 | E113: 3,114 | F113: 142 | G113: 4.54
A114: MBS 2012-9 | B114: 3,038 | C114: 30 | D114: 0.99 | E114: 2,992 | F114: 215 | G114: 7.17
A115: MBS 2012-10 | B115: 6,428 | C115: 84 | D115: 1.31 | E115: 6,315 | F115: 821 | G115: 13.00
A116: MBS 2012-11 | B116: 20,689 | C116: 114 | D116: 0.55 | E116: 20,522 | F116: 146 | G116: 0.71
A117: MBS 2012-12 | B117: 4,221 | C117: 50 | D117: 1.18 | E117: 4,159 | F117: 0 | G117: 0.00
A118: MBS 2012-13 | B118: 4,408 | C118: 20 | D118: 0.45 | E118: 4,366 | F118: 61 | G118: 1.39
A119: MBS 2012-14 | B119: 6,522 | C119: 4 | D119: 0.06 | E119: 6,491 | F119: 602 | G119: 9.27
A120: MBS 2012-15 | B120: 5,105 | C120: 16 | D120: 0.32 | E120: 5,067 | F120: 316 | G120: 6.25
A121: MBS 2012-16 | B121: 3,978 | C121: 8 | D121: 0.20 | E121: 3,944 | F121: 135 | G121: 3.42
A122: MBS 2012-17 | B122: 8,675 | C122: 94 | D122: 1.08 | E122: 7,716 | F122: 812 | G122: 10.52
A123: MBS 2012-18 | B123: 6,901 | C123: 76 | D123: 1.11 | E123: 6,235 | F123: 364 | G123: 5.84
A124: MBS 2012-19 | B124: 3,979 | C124: 0 | D124: 0.00 | E124: 3,949 | F124: 93 | G124: 2.35
A125: MBS 2012-20 | B125: 22,819 | C125: 1,806 | D125: 7.92 | E125: 18,285 | F125: 418 | G125: 2.29
A126: MBS 2012-21 | B126: 5,829 | C126: 51 | D126: 0.87 | E126: 5,731 | F126: 0 | G126: 0.00
A127: MBS 2012-22 | B127: 8,005 | C127: 11 | D127: 0.13 | E127: 7,936 | F127: 104 | G127: 1.31
A128: MBS 2012-23 | B128: 7,056 | C128: 472 | D128: 6.69 | E128: 6,333 | F128: 235 | G128: 3.71
A129: MBS 2012-24 | B129: 12,593 | C129: 133 | D129: 1.06 | E129: 12,359 | F129: 277 | G129: 2.24
A130: MBS 2012-25 | B130: 11,057 | C130: 595 | D130: 5.38 | E130: 10,325 | F130: 16 | G130: 0.15
A131: MBS 2012-26 | B131: 7,157 | C131: 5 | D131: 0.06 | E131: 7,131 | F131: 50 | G131: 0.70
A132: MBS 2012-27 | B132: 1,965 | C132: 1 | D132: 0.05 | E132: 1,958 | F132: 20 | G132: 1.03
A133: MBS 2012-28 | B133: 14,632 | C133: 1,071 | D133: 7.32 | E133: 13,485 | F133: 195 | G133: 1.45
A134: MBS 2012-29 | B134: 16,732 | C134: 94 | D134: 0.56 | E134: 16,497 | F134: 15 | G134: 0.09
A135: MBS 2012-30 | B135: 10,016 | C135: 166 | D135: 1.66 | E135: 9,762 | F135: 36 | G135: 0.37
A136: MBS 2012-31 | B136: 24,926 | C136: 1,077 | D136: 4.32 | E136: 23,364 | F136: 1,373 | G136: 5.88
A137: MBS 2012-32 | B137: 11,674 | C137: 199 | D137: 1.71 | E137: 11,369 | F137: 115 | G137: =IF(E137=0,0,F137/E137)*100 -> 1.01
A138: MBS 2012-33 | B138: 15,916 | C138: 90 | D138: 0.56 | E138: 15,713 | F138: 56 | G138: 0.36
A139: MBS 2012-34 | B139: 18,207 | C139: 387 | D139: 2.12 | E139: 17,568 | F139: 546 | G139: 3.11
A140: MBS 2012-35 | B140: 17,648 | C140: 101 | D140: 0.57 | E140: 17,363 | F140: 280 | G140: 1.61
A141: MBS 2012-36 | B141: 10,520 | C141: 37 | D141: 0.35 | E141: 10,455 | F141: 66 | G141: 0.63
A142: MBS 2012-37 | B142: 21,567 | C142: 412 | D142: 1.91 | E142: 21,089 | F142: 36 | G142: 0.17
A143: MBS 2012-38 | B143: 4,542 | C143: 7 | D143: 0.16 | E143: 4,520 | F143: 0 | G143: 0.00
A144: MBS 2012-39 | B144: 10,288 | C144: 14 | D144: 0.14 | E144: 10,190 | F144: 202 | G144: 1.98
A145: MBS 2012-40 | B145: 6,724 | C145: 47 | D145: 0.71 | E145: 6,604 | F145: 45 | G145: 0.68
A146: MBS 2012-41 | B146: 8,905 | C146: 31 | D146: =IF(B146=0,0,C146/B146)*100 -> 0.35 | E146: 8,796 | F146: 0 | G146: 0.00
A147: MBS 2013-1~40 | B147: =SUM(B148:B185) -> 1,012,066 | C147: =SUM(C148:C185) -> 10,502 | D147: 1.04 | E147: =SUM(E148:E185) -> 995,278 | F147: =SUM(F148:F185) -> 14,573 | G147: 1.46
A148: MBS 2013-1 | B148: 29,822 | C148: 266 | D148: 0.89 | E148: 29,403 | F148: 1,118 | G148: 3.80
A149: MBS 2013-2 | B149: 31,475 | C149: 164 | D149: 0.52 | E149: 31,167 | F149: 1,411 | G149: 4.53
A150: MBS 2013-3 | B150: 15,776 | C150: 61 | D150: 0.39 | E150: 15,588 | F150: 260 | G150: 1.67
A151: MBS 2013-4 | B151: 36,392 | C151: 200 | D151: 0.55 | E151: 35,993 | F151: 696 | G151: 1.93
A152: MBS 2013-5 | B152: 21,752 | C152: 447 | D152: 2.06 | E152: 21,100 | F152: 108 | G152: 0.51
A153: MBS 2013-6 | B153: 21,808 | C153: 230 | D153: 1.05 | E153: 21,451 | F153: 744 | G153: 3.47
A154: MBS 2013-7 | B154: 12,885 | C154: 209 | D154: 1.62 | E154: 12,569 | F154: 0 | G154: 0.00
A155: MBS 2013-8 | B155: 23,257 | C155: 127 | D155: 0.55 | E155: 22,965 | F155: 47 | G155: 0.20
A156: MBS 2013-9 | B156: 16,488 | C156: 272 | D156: 1.65 | E156: 16,091 | F156: 19 | G156: 0.12
A157: MBS 2013-10 | B157: 25,532 | C157: 179 | D157: 0.70 | E157: 25,277 | F157: 0 | G157: 0.00
A158: MBS 2013-11 | B158: 2,566 | C158: 0 | D158: 0.00 | E158: 2,558 | F158: 0 | G158: 0.00
A159: MBS 2013-12 | B159: 3,033 | C159: 120 | D159: 3.96 | E159: 2,906 | F159: 0 | G159: 0.00
A160: MBS 2013-13 | B160: 9,579 | C160: 114 | D160: 1.19 | E160: 9,425 | F160: 0 | G160: 0.00
A161: MBS 2013-14 | B161: 33,459 | C161: 176 | D161: 0.53 | E161: 33,106 | F161: 1,565 | G161: 4.73
A162: MBS 2013-15 | B162: 35,565 | C162: 335 | D162: 0.94 | E162: 35,013 | F162: 306 | G162: 0.87
A163: MBS 2013-16 | B163: 36,902 | C163: 788 | D163: 2.14 | E163: 35,919 | F163: 83 | G163: 0.23
A164: MBS 2013-17 | B164: 29,972 | C164: 480 | D164: 1.60 | E164: 29,349 | F164: 371 | G164: 1.26
A165: MBS 2013-18 | B165: 22,680 | C165: 584 | D165: 2.58 | E165: 21,971 | F165: 529 | G165: 2.41
A166: MBS 2013-19 | B166: 19,318 | C166: 34 | D166: 0.18 | E166: 19,162 | F166: 58 | G166: 0.30
A167: MBS 2013-20 | B167: 22,272 | C167: 69 | D167: 0.31 | E167: 22,092 | F167: 246 | G167: 1.11
A168: MBS 2013-21 | B168: 47,236 | C168: 480 | D168: 1.02 | E168: 46,519 | F168: 85 | G168: 0.18
A169: MBS 2013-22 | B169: 21,303 | C169: 51 | D169: 0.24 | E169: 21,143 | F169: 552 | G169: 2.61
A170: MBS 2013-23 | B170: 29,223 | C170: 356 | D170: 1.22 | E170: 28,697 | F170: 113 | G170: 0.39
A171: MBS 2013-24 | B171: 6,544 | C171: 133 | D171: 2.03 | E171: 6,384 | F171: 0 | G171: 0.00
A172: MBS 2013-25 | B172: 33,246 | C172: 168 | D172: 0.50 | E172: 32,913 | F172: 453 | G172: 1.38
A173: MBS 2013-26 | B173: 23,683 | C173: 166 | D173: 0.70 | E173: 23,338 | F173: 582 | G173: 2.49
A174: MBS 2013-27 | B174: 70,770 | C174: 542 | D174: 0.77 | E174: 69,678 | F174: 1,171 | G174: 1.68
A175: MBS 2013-28 | B175: 53,367 | C175: 1,224 | D175: 2.29 | E175: 51,862 | F175: 169 | G175: 0.33
A176: MBS 2013-29 | B176: 27,160 | C176: 260 | D176: 0.96 | E176: 26,707 | F176: 0 | G176: 0.00
A177: MBS 2013-30 | B177: 30,842 | C177: 299 | D177: 0.97 | E177: 30,365 | F177: 921 | G177: 3.03
A178: MBS 2013-31 | B178: 57,438 | C178: 283 | D178: 0.49 | E178: 56,615 | F178: 988 | G178: 1.74
A179: MBS 2013-32 | B179: 26,306 | C179: 289 | D179: 1.10 | E179: 25,848 | F179: 212 | G179: 0.82
A180: MBS 2013-33 | B180: 2,041 | C180: 0 | D180: 0.00 | E180: 2,035 | F180: 0 | G180: 0.00
A181: MBS 2013-34 | B181: 24,738 | C181: 402 | D181: 1.63 | E181: 24,158 | F181: 22 | G181: 0.09
A182: MBS 2013-35 | B182: 51,539 | C182: 467 | D182: 0.91 | E182: 50,748 | F182: 870 | G182: 1.71
A183: MBS 2013-36 | B183: 33,083 | C183: 488 | D183: 1.47 | E183: 32,384 | F183: 597 | G183: 1.84
A184: MBS 2013-38 | B184: 9,375 | C184: 33 | D184: 0.36 | E184: 9,310 | F184: 0 | G184: 0.00
A185: MBS 2013-40 | B185: 13,638 | C185: 5 | D185: 0.04 | E185: 13,471 | F185: 277 | G185: 2.06
A186: MBS 2014-1~22 | B186: =SUM(B187:B208) -> 972,279 | C186: =SUM(C187:C208) -> 7,863 | D186: 0.81 | E186: =SUM(E187:E208) -> 958,600 | F186: =SUM(F187:F208) -> 6,832 | G186: 0.71
A187: MBS 2014-1 | B187: 28,071 | C187: 224 | D187: 0.80 | E187: 27,699 | F187: 577 | G187: 2.08
A188: MBS 2014-2 | B188: 15,637 | C188: 64 | D188: 0.41 | E188: 15,477 | F188: 125 | G188: 0.81
A189: MBS 2014-3 | B189: 31,113 | C189: 293 | D189: 0.94 | E189: 30,658 | F189: 285 | G189: 0.93
A190: MBS 2014-4 | B190: 6,783 | C190: 41 | D190: 0.60 | E190: 6,720 | F190: 0 | G190: 0.00
A191: MBS 2014-5 | B191: 18,476 | C191: 213 | D191: 1.15 | E191: 18,150 | F191: 0 | G191: 0.00
A192: MBS 2014-6 | B192: 17,410 | C192: 196 | D192: 1.13 | E192: 17,113 | F192: 573 | G192: 3.35
A193: MBS 2014-7 | B193: 14,125 | C193: 147 | D193: 1.04 | E193: 13,920 | F193: 299 | G193: 2.15
A194: MBS 2014-8 | B194: 12,811 | C194: 19 | D194: 0.15 | E194: 12,721 | F194: 168 | G194: 1.32
A195: MBS 2014-9 | B195: 18,761 | C195: 305 | D195: 1.63 | E195: 18,362 | F195: 143 | G195: 0.78
A196: MBS 2014-10 | B196: 29,247 | C196: 665 | D196: 2.27 | E196: 28,405 | F196: 273 | G196: 0.96
A197: MBS 2014-11 | B197: 25,607 | C197: 125 | D197: 0.49 | E197: 25,338 | F197: 159 | G197: 0.63
A198: MBS 2014-12 | B198: 59,147 | C198: 362 | D198: 0.61 | E198: 58,452 | F198: 746 | G198: 1.28
A199: MBS 2014-13 | B199: 102,879 | C199: 911 | D199: 0.89 | E199: 101,313 | F199: 567 | G199: 0.56
A200: MBS 2014-14 | B200: 19,258 | C200: 123 | D200: 0.64 | E200: 19,071 | F200: 38 | G200: 0.20
A201: MBS 2014-15 | B201: 45,813 | C201: 68 | D201: 0.15 | E201: 45,478 | F201: 157 | G201: =IF(E201=0,0,F201/E201)*100 -> 0.35
... 244 more rows

Sheet 8. MBB 발행실적
A1: 8. MBB 발행실적 Issuance of MBB(Mortgage-Backed Bond)
A3: 단위 : 억원 | C3: Hundred million won
A4: MBB1) | B4: 발행일 | C4: 발행금액 | D4: 연·월말 MBB 잔액 | E4: 가중평균 발행금리(%) | F4: 발행통화
B6: Issue date | C6: Issue amount | D6: Outstanding | E6: Coupon rate | F6: Denominated currency
A8: MBB 2010-1 | B8: 2010. 07. 15 | C8: 6,075 | D8: 0 | E8: - | F8: 외화
A11: MBB 2011-1 | B11: 2011. 04. 28 | C11: 2,172 | D11: 0 | E11: - | F11: 외화
A14: MBB 2011-2 | B14: 2011. 06. 17 | C14: 2,500 | D14: 0 | E14: 4.05 | F14: 원화
A17: MBB 2011-3 | B17: 2011. 07. 25 | C17: 5,307 | D17: 0 | E17: - | F17: 외화
A20: MBB 2011-4 | B20: 2011. 12. 08 | C20: 2,900 | D20: 0 | E20: 3.78 | F20: 원화
A23: MBB 2011-5 | B23: 2011. 12. 29 | C23: 2,500 | D23: 0 | E23: 3.87 | F23: 원화
A26: MBB 2012-1 | B26: 2012. 03. 30 | C26: 2,500 | D26: 0 | E26: 3.91 | F26: 원화
A29: MBB 2013-1 | B29: 2013. 03. 07 | C29: 5,450 | D29: 0 | E29: 1.63 | F29: 외화
A32: MBB 2013-1 | B32: 2013. 03. 07 | C32: 1,500 | D32: 0 | E32: 2.94 | F32: 원화
A35: MBB 2015-1 | B35: 2015. 11. 19 | C35: 5,765 | D35: 0 | E35: 2.50 | F35: 외화
A38: MBB 2016-01 | B38: 2016. 10. 11 | C38: 5,522 | D38: 0 | E38: 2.00 | F38: 외화
A41: MBB 2017-01 | B41: 2017. 10. 31 | C41: 5,651 | D41: 5,651 | E41: 3.00 | F41: 외화
A44: MBB 2018-01 | B44: 2018. 10. 30 | C44: 6,488 | D44: 6,488 | E44: 0.75 | F44: 외화
A47: MBB 2019-01 | B47: 2019. 06. 18 | C47: 6,680 | D47: 6,680 | E47: 0.10 | F47: 외화
A50: MBB 2020-01 | B50: 2020. 02. 05 | C50: 12,970 | D50: 12,970 | E50: 0.01 | F50: 외화
A53: MBB 2020-02 | B53: 2020. 07. 07 | C53: 6,750 | D53: 6,750 | E53: 0.01 | F53: 외화
A56: MBB 2021-01 | B56: 2021.06.29 | C56: 13,570 | D56: 13,570 | E56: 0.01 | F56: 외화
A59: MBB 2021-02 | B59: 2021.10.27 | C59: 7,519 | D59: 7,519 | E59: 0.26 | F59: 외화
A62: MBB 2022-01 | B62: 2022.03.22 | C62: 8,142 | D62: 8,142 | E62: 0.72 | F62: 외화
A63: 합계2) | C63: =SUM(C8:C62) -> 109,959 | D63: =SUM(D8:D62) -> 67,770
A65: 1) MBB(Mortgage-Backed Bond) : 주택법 제2조 제1호 규정에 의한 주택에 설정된 저당권에 의하여 담보된 대출채권을 주택저당채권이라 하며, MBB는 공사가 금융기관으로부터 양수한 주택저당채권을 기초로 발행하는 채권을 말함
A66: 2) 합계: '10년 이후 발행한 MBB의 총 발행금액의 합계

Sheet 9. MBB 기초자산 상환 및 연체현황
A1: 9. MBB 기초자산 상환 및 연체현황 Prepayment and Delinquency of Mortgage Pool(MBB)
A3: 단위 : 백만원 | G3: Million won
A4: 상품명 | B4: 조기상환율 Prepayment | E4: 연체율 Delinquency
B5: 전월대출잔액 | C5: 조기상환액 | D5: 조기상환율(%) | E5: 기준월 대출잔액 | F5: 1개월 연체
A6: MBB | F6: 연체금액 | G6: 연체율2(%)1)
B7: OPB of previous month | C7: Prepayment amount of current month | D7: Prepayment Ratio | E7: OPB | F7: Principal of delinquency | G7: Delinquency ratio2
A8: 2022-06-30
A9: MBB 2010-1 | B9: 0 | C9: 0 | D9: =IF(B9=0,0,C9/B9)*100 -> 0 | E9: 0 | F9: 0 | G9: =IF(E9=0,0,F9/E9)*100 -> 0
A12: MBB 2011-1 | B12: 0 | C12: 0 | D12: 0 | E12: 0 | F12: 0 | G12: 0
A15: MBB 2011-2 | B15: 0 | C15: 0 | D15: 0 | E15: 0 | F15: 0 | G15: 0
A18: MBB 2011-3 | B18: 0 | C18: 0 | D18: 0 | E18: 0 | F18: 0 | G18: 0
A21: MBB 2011-4 | B21: 0 | C21: 0 | D21: 0 | E21: 0 | F21: 0 | G21: 0
A24: MBB 2011-5 | B24: 0 | C24: 0 | D24: 0 | E24: 0 | F24: 0 | G24: 0
A27: MBB 2012-1 | B27: 0 | C27: 0 | D27: 0 | E27: 0 | F27: 0 | G27: 0
A30: MBB 2013-1 | B30: 0 | C30: 0 | D30: 0 | E30: 0 | F30: 0 | G30: 0
A33: MBB 2015-1 | B33: 0 | C33: 0 | D33: 0 | E33: 0 | F33: 0 | G33: 0
A36: MBB 2016-1 | B36: 0 | C36: 0 | D36: =IF(B36=0,0,C36/B36)*100 -> 0.00 | E36: 0 | F36: 0 | G36: =IF(E36=0,0,F36/E36)*100 -> 0.00
A39: MBB 2017-1 | B39: 615,943 | C39: 3,059 | D39: =IF(B39=0,0,C39/B39)*100 -> 0.50 | E39: 610,293 | F39: 1,063 | G39: =IF(E39=0,0,F39/E39)*100 -> 0.17
A42: MBB 2018-1 | B42: 715,019 | C42: 3,503 | D42: =IF(B42=0,0,C42/B42)*100 -> 0.49 | E42: 708,686 | F42: 1,289 | G42: =IF(E42=0,0,F42/E42)*100 -> 0.18
A45: MBB 2019-1 | B45: 765,528 | C45: 5,543 | D45: =IF(B45=0,0,C45/B45)*100 -> 0.72 | E45: 757,288 | F45: 1,903 | G45: =IF(E45=0,0,F45/E45)*100 -> 0.25
A48: MBB 2020-1 | B48: 1,528,603 | C48: 8,004 | D48: =IF(B48=0,0,C48/B48)*100 -> 0.52 | E48: 1,515,298 | F48: 520 | G48: =IF(E48=0,0,F48/E48)*100 -> 0.03
A51: MBB 2020-2 | B51: 764,178 | C51: 4,597 | D51: =IF(B51=0,0,C51/B51)*100 -> 0.60 | E51: 756,887 | F51: 1,517 | G51: =IF(E51=0,0,F51/E51)*100 -> 0.20
A54: MBB 2021-1 | B54: 1,508,561 | C54: 2,193 | D54: =IF(B54=0,0,C54/B54)*100 -> 0.15 | E54: 1,503,174 | F54: 175 | G54: =IF(E54=0,0,F54/E54)*100 -> 0.01
A57: MBB 2021-2 | B57: 830,039 | C57: 5,839 | D57: =IF(B57=0,0,C57/B57)*100 -> 0.70 | E57: 821,070 | F57: 886 | G57: =IF(E57=0,0,F57/E57)*100 -> 0.11
A60: MBB 2022-1 | B60: 1,183,698 | C60: 2,572 | D60: =IF(B60=0,0,C60/B60)*100 -> 0.22 | E60: 1,178,852 | F60: 541 | G60: =IF(E60=0,0,F60/E60)*100 -> 0.05
A61: 합계2) | B61: =SUM(B9:B60) -> 7,911,568 | C61: =SUM(C9:C60) -> 35,311 | D61: =IF(B61=0,0,C61/B61)*100 -> 0.45 | E61: =SUM(E9:E60) -> 7,851,548 | F61: =SUM(F9:F60) -> 7,895 | G61: =IF(E61=0,0,F61/E61)*100 -> 0.10
A63: 1) 1개월 이상 연체율 = 연체1개월 이상 대출채권잔액 / 당월말 총대출잔액
A64: 2) 합계: '10년 이후 발행한 MBB의 기초자산 기준

Sheet 10. 지역별 판매실적(보금)
A1: 10. 지역별 판매실적(보금자리론)2,3) | M1: Bogeumjari(Mortgage) Loan Origination by Region
A3: 단위 : 억원, 건 | W3: Hundred million won, #
A4: 연월중 | C4: 전국 | D4: 서울 | E4: 부산 | F4: 대구 | G4: 인천 | H4: 광주 | I4: 대전 | J4: 울산 | K4: 세종 | L4: 경기 | M4: 강원 | N4: 충북 | O4: 충남 | P4: 전북 | Q4: 전남 | R4: 경북 | S4: 경남 | T4: 제주 | U4: 기타 | V4: 연월중
A6: During | C6: Total | D6: Seoul | E6: Busan | F6: Daegu | G6: Incheon | H6: Gwangju | I6: Daejeon | J6: Ulsan | K6: Sejong | L6: Gyeonggi | M6: Gangwon | N6: Chungbuk | O6: Chungnam | P6: Jeonbuk | Q6: Jeonnam | R6: Gyeongbuk | S6: Gyeongnam | T6: Jeju | U6: Others | V6: During
A8: 대출금액1) | M8: Loan Amount
A9: 2004 | C9: =SUM(D9:U9) -> 33,343 | D9: =SUM(D29:D38) -> 7,060 | E9: =SUM(E29:E38) -> 2,771 | F9: 1,199 | G9: 2,320 | H9: 919 | I9: 1,137 | J9: 732 | K9: 0 | L9: 11,357 | M9: 375 | N9: 634 | O9: 667 | P9: 608 | Q9: 312 | R9: 535 | S9: 1,484 | T9: 81 | U9: 1,153 | V9: 2004
A10: 2005 | C10: =SUM(D10:U10) -> 42,240 | D10: =SUM(D40:D51) -> 8,676 | E10: 3,480 | F10: 1,627 | G10: 3,315 | H10: 1,156 | I10: 1,577 | J10: 914 | K10: 0 | L10: 14,697 | M10: 412 | N10: 948 | O10: 1,096 | P10: 732 | Q10: 337 | R10: 697 | S10: 2,106 | T10: 85 | U10: 385 | V10: 2005
A11: 2006 | C11: 13,903 | D11: =SUM(D53:D64) -> 2,746 | E11: 942 | F11: 519 | G11: 1,023 | H11: 390 | I11: 375 | J11: 423 | K11: 0 | L11: 5,019 | M11: 184 | N11: 365 | O11: 481 | P11: 271 | Q11: 121 | R11: 313 | S11: 708 | T11: 20 | U11: =SUM(U53:U64) -> 2 | V11: 2006
A12: 2007 | C12: 36,292 | D12: =SUM(D66:D77) -> 8,773 | E12: 1,899 | F12: 1,111 | G12: 3,572 | H12: 521 | I12: 749 | J12: 918 | K12: 0 | L12: 14,328 | M12: 237 | N12: 478 | O12: 1,114 | P12: 469 | Q12: 179 | R12: 397 | S12: 1,149 | T12: 49 | U12: 348 | V12: 2007
A13: 2008 | C13: 42,739 | D13: =SUM(D79:D90) -> 9,760 | E13: 2,058 | F13: 1,293 | G13: 6,048 | H13: 499 | I13: 609 | J13: 1,119 | K13: 0 | L13: 17,256 | M13: 268 | N13: 339 | O13: 815 | P13: 549 | Q13: 106 | R13: 382 | S13: 1,308 | T13: 36 | U13: 292 | V13: 2008
A14: 2009 | C14: 59,436 | D14: =SUM(D92:D103) -> 12,503 | E14: 3,412 | F14: 1,250 | G14: 4,953 | H14: 1,253 | I14: 1,311 | J14: 1,492 | K14: 0 | L14: 25,863 | M14: 344 | N14: 1,054 | O14: 2,154 | P14: 780 | Q14: 259 | R14: 567 | S14: 2,190 | T14: 35 | U14: 14 | V14: 2009
A15: 2010 | C15: 58,480 | D15: =SUM(D105:D116) -> 11,197 | E15: 4,251 | F15: 1,569 | G15: 5,481 | H15: 1,794 | I15: 2,004 | J15: 1,529 | K15: 0 | L15: 22,253 | M15: 560 | N15: 913 | O15: 2,147 | P15: 889 | Q15: 336 | R15: 719 | S15: 2,739 | T15: 101 | U15: 0 | V15: 2010
A16: 2011 | C16: 94,147 | D16: =SUM(D118:D129) -> 14,942 | E16: 6,358 | F16: 3,142 | G16: 7,560 | H16: 3,550 | I16: 3,396 | J16: 1,699 | K16: 0 | L16: 38,162 | M16: 1,168 | N16: 2,070 | O16: 3,653 | P16: 1,786 | Q16: 700 | R16: 1,216 | S16: 4,398 | T16: 346 | U16: 0 | V16: 2011
A17: 2012 | C17: 112,045 | D17: =SUM(D131:D142) -> 15,258 | E17: 6,711 | F17: 5,875 | G17: 10,285 | H17: 4,628 | I17: 3,321 | J17: 2,528 | K17: 146 | L17: 42,855 | M17: 1,420 | N17: 2,685 | O17: 4,796 | P17: 2,224 | Q17: 1,206 | R17: 2,361 | S17: 5,232 | T17: 516 | U17: 0 | V17: 2012
A18: 2013 | C18: 119,047 | D18: =SUM(D144:D155) -> 15,459 | E18: 8,189 | F18: 6,711 | G18: 11,398 | H18: 4,126 | I18: 3,761 | J18: 2,410 | K18: 214 | L18: 43,634 | M18: 1,659 | N18: 3,100 | O18: 4,578 | P18: 1,869 | Q18: 1,090 | R18: 2,776 | S18: 7,457 | T18: 619 | U18: 0 | V18: 2013
A19: 2014 | C19: 24,796 | D19: =SUM(D157:D168) -> 3,556 | E19: 2,076 | F19: 1,475 | G19: 1,640 | H19: 1,015 | I19: 814 | J19: 628 | K19: 89 | L19: 7,216 | M19: 409 | N19: 812 | O19: 1,209 | P19: 586 | Q19: 319 | R19: 706 | S19: 2,085 | T19: 161 | U19: 0 | V19: 2014
A20: 2015 | C20: 102,885 | D20: =SUM(D170:D181) -> 16,882 | E20: 7,712 | F20: 5,707 | G20: 7,933 | H20: 3,907 | I20: 3,560 | J20: 2,693 | K20: 946 | L20: 31,955 | M20: 1,479 | N20: 2,869 | O20: 4,298 | P20: 2,016 | Q20: 1,569 | R20: 2,706 | S20: 6,078 | T20: 574 | U20: 0 | V20: 2015
A21: 2016 | C21: 144,348 | D21: =SUM(D183:D194) -> 25,766 | E21: 10,425 | F21: 7,453 | G21: 10,649 | H21: 5,903 | I21: 3,695 | J21: 3,281 | K21: 1,582 | L21: 44,828 | M21: 2,041 | N21: 3,709 | O21: 5,848 | P21: 2,959 | Q21: 2,567 | R21: 3,880 | S21: 8,954 | T21: 808 | U21: 0 | V21: 2016
A22: 2017 | C22: 107,207 | D22: =SUM(D196:D207) -> 14,214 | E22: 7,465 | F22: 5,802 | G22: 7,308 | H22: 4,850 | I22: 2,367 | J22: 2,914 | K22: 2,225 | L22: 36,488 | M22: 1,093 | N22: 1,984 | O22: 4,304 | P22: 2,153 | Q22: 1,416 | R22: 4,062 | S22: 7,930 | T22: 631 | U22: 0 | V22: 2017
A23: 2018 | C23: 75,597 | D23: =SUM(D209:D220) -> 14,477 | E23: 3,196 | F23: 4,224 | G23: 4,685 | H23: 3,877 | I23: 1,610 | J23: 1,445 | K23: 1,362 | L23: 23,129 | M23: 1,049 | N23: 2,664 | O23: 3,705 | P23: 2,350 | Q23: 1,564 | R23: 2,088 | S23: 3,783 | T23: 387 | U23: 0 | V23: 2018
A24: 2019 | C24: =SUM(D24:U24) -> 270,579 | D24: =SUM(D222:D233) -> 29,035 | E24: 18,022 | F24: 15,709 | G24: 21,637 | H24: 12,758 | I24: 7,651 | J24: 8,648 | K24: 3,472 | L24: 82,463 | M24: 5,597 | N24: 8,636 | O24: 10,417 | P24: 7,795 | Q24: 6,490 | R24: 9,935 | S24: 20,694 | T24: 1,620 | U24: 0 | V24: 2019
A25: 2020 | C25: =SUM(D25:U25) -> 363,735 | D25: =SUM(D235:D246) -> 47,488 | E25: 23,460 | F25: 19,858 | G25: 28,102 | H25: 13,022 | I25: 10,583 | J25: 8,861 | K25: 5,446 | L25: 124,409 | M25: 7,403 | N25: 9,505 | O25: 12,035 | P25: 8,506 | Q25: 8,644 | R25: 13,212 | S25: 21,481 | T25: 1,719 | U25: 0 | V25: 2020
A26: 2021 | C26: =SUM(D26:U26) -> 233,409 | D26: =SUM(D248:D259) -> 22,051 | E26: =SUM(E248:E259) -> 14,594 | F26: 12,565 | G26: 23,340 | H26: 11,174 | I26: 8,222 | J26: 4,866 | K26: 1,288 | L26: 87,547 | M26: 4,021 | N26: 5,668 | O26: 7,235 | P26: 4,127 | Q26: 5,614 | R26: 7,970 | S26: 11,323 | T26: 1,473 | U26: 331 | V26: 2021
A27: 2022 | C27: =SUM(D27:U27) -> 74,709 | D27: =SUM(D261:D268) -> 4,206 | E27: 5,547 | F27: 5,833 | G27: 6,279 | H27: 6,074 | I27: 3,741 | J27: 2,182 | K27: 606 | L27: 20,802 | M27: 2,310 | N27: 2,337 | O27: 3,246 | P27: 2,021 | Q27: 2,396 | R27: 1,713 | S27: 4,413 | T27: 724 | U27: 280 | V27: 2022
A29: 2004 | B29: 3 | C29: =SUM(D29:U29) -> 351 | D29: 114 | E29: 39 | F29: 15 | G29: 23 | H29: 6 | I29: 14 | J29: 4 | K29: 0 | L29: 102 | M29: 1 | N29: 3 | O29: 2 | P29: 7 | Q29: 1 | R29: 2 | S29: 12 | T29: 1 | U29: 6 | V29: M | W29: 2004
B30: 4 | C30: =SUM(D30:U30) -> 3,634 | D30: 768 | E30: 307 | F30: 113 | G30: 226 | H30: 86 | I30: 112 | J30: 70 | K30: 0 | L30: 1,158 | M30: 31 | N30: 49 | O30: 45 | P30: 66 | Q30: 37 | R30: 36 | S30: 131 | T30: 6 | U30: 393 | V30: A
B31: 5 | C31: =SUM(D31:U31) -> 4,564 | D31: 1,026 | E31: 330 | F31: 124 | G31: 297 | H31: 104 | I31: 152 | J31: 71 | K31: 0 | L31: 1,576 | M31: 37 | N31: 69 | O31: 71 | P31: 75 | Q31: 33 | R31: 53 | S31: 135 | T31: 5 | U31: 406 | V31: M
B32: 6 | C32: 3,938 | D32: 902 | E32: 313 | F32: 142 | G32: 280 | H32: 93 | I32: 152 | J32: 82 | K32: 0 | L32: 1,414 | M32: 48 | N32: 58 | O32: 81 | P32: 54 | Q32: 30 | R32: 61 | S32: 174 | T32: 18 | U32: 35 | V32: J
B33: 7 | C33: 3,358 | D33: 744 | E33: 276 | F33: 109 | G33: 221 | H33: 93 | I33: 139 | J33: 70 | K33: 0 | L33: 1,207 | M33: 40 | N33: 54 | O33: 69 | P33: 61 | Q33: 36 | R33: 61 | S33: 139 | T33: 8 | U33: 33 | V33: J
B34: 8 | C34: 3,318 | D34: 751 | E34: 266 | F34: 128 | G34: 238 | H34: 81 | I34: 130 | J34: 63 | K34: 0 | L34: 1,103 | M34: 44 | N34: 63 | O34: 62 | P34: 55 | Q34: 39 | R34: 47 | S34: 160 | T34: 6 | U34: 82 | V34: A
B35: 9 | C35: 2,896 | D35: 560 | E35: 241 | F35: 106 | G35: 203 | H35: 97 | I35: 104 | J35: 64 | K35: 0 | L35: 988 | M35: 42 | N35: 72 | O35: 65 | P35: 67 | Q35: 30 | R35: 68 | S35: 139 | T35: 9 | U35: 40 | V35: S
B36: 10 | C36: 3,436 | D36: 641 | E36: 289 | F36: 140 | G36: 251 | H36: 110 | I36: 109 | J36: 89 | K36: 0 | L36: 1,201 | M36: 40 | N36: 109 | O36: 80 | P36: 72 | Q36: 37 | R36: 58 | S36: 168 | T36: 8 | U36: 32 | V36: O
B37: 11 | C37: 3,566 | D37: 641 | E37: 332 | F37: 155 | G37: 265 | H37: 118 | I37: 113 | J37: 107 | K37: 0 | L37: 1,184 | M37: 45 | N37: 67 | O37: 83 | P37: 92 | Q37: 33 | R37: 75 | S37: 193 | T37: 11 | U37: 53 | V37: N
B38: 12 | C38: 4,282 | D38: 913 | E38: 378 | F38: 167 | G38: 317 | H38: 131 | I38: 111 | J38: 111 | K38: 0 | L38: 1,424 | M38: 46 | N38: 90 | O38: 109 | P38: 60 | Q38: 36 | R38: 75 | S38: 233 | T38: 8 | U38: 73 | V38: D
A40: 2005 | B40: 1 | C40: 3,420 | D40: 665 | E40: 353 | F40: 165 | G40: 253 | H40: 125 | I40: 135 | J40: 91 | K40: 0 | L40: 1,000 | M40: 41 | N40: 111 | O40: 84 | P40: 57 | Q40: 34 | R40: 73 | S40: 201 | T40: 12 | U40: 20 | V40: J | W40: 2005
B41: 2 | C41: 4,808 | D41: 1,033 | E41: 408 | F41: 182 | G41: 339 | H41: 120 | I41: 176 | J41: 101 | K41: 0 | L41: 1,723 | M41: 40 | N41: 95 | O41: 132 | P41: 75 | Q41: 30 | R41: 68 | S41: 239 | T41: 25 | U41: 24 | V41: F
B42: 3 | C42: 6,873 | D42: 1,504 | E42: 518 | F42: 227 | G42: 540 | H42: 173 | I42: 297 | J42: 133 | K42: 0 | L42: 2,540 | M42: 55 | N42: 134 | O42: 173 | P42: 103 | Q42: 46 | R42: 98 | S42: 309 | T42: 7 | U42: 16 | V42: M
B43: 4 | C43: 5,636 | D43: 1,280 | E43: 416 | F43: 201 | G43: 463 | H43: 116 | I43: 220 | J43: 111 | K43: 0 | L43: 2,042 | M43: 40 | N43: 107 | O43: 138 | P43: 72 | Q43: 35 | R43: 73 | S43: 283 | T43: 5 | U43: 34 | V43: A
B44: 5 | C44: 3,937 | D44: 803 | E44: 351 | F44: 156 | G44: 326 | H44: 107 | I44: 154 | J44: 77 | K44: 0 | L44: 1,380 | M44: 32 | N44: 69 | O44: 101 | P44: 57 | Q44: 31 | R44: 69 | S44: 193 | T44: 2 | U44: 29 | V44: M
B45: 6 | C45: 3,757 | D45: 788 | E45: 326 | F45: 167 | G45: 276 | H45: 121 | I45: 137 | J45: 76 | K45: 0 | L45: 1,235 | M45: 41 | N45: 72 | O45: 106 | P45: 76 | Q45: 26 | R45: 62 | S45: 204 | T45: 7 | U45: 37 | V45: J
B46: 7 | C46: 3,144 | D46: 574 | E46: 210 | F46: 113 | G46: 281 | H46: 94 | I46: 102 | J46: 54 | K46: 0 | L46: 1,196 | M46: 32 | N46: 65 | O46: 80 | P46: 69 | Q46: 26 | R46: 41 | S46: 159 | T46: 6 | U46: 42 | V46: J
B47: 8 | C47: 3,195 | D47: 684 | E47: 253 | F47: 108 | G47: 246 | H47: 88 | I47: 100 | J47: 66 | K47: 0 | L47: 1,164 | M47: 33 | N47: 68 | O47: 78 | P47: 66 | Q47: 29 | R47: 46 | S47: 133 | T47: 5 | U47: 27 | V47: A
B48: 9 | C48: 2,656 | D48: 537 | E48: 222 | F48: 89 | G48: 236 | H48: 69 | I48: 84 | J48: 70 | K48: 0 | L48: 954 | M48: 30 | N48: 57 | O48: 47 | P48: 49 | Q48: 27 | R48: 42 | S48: 121 | T48: 1 | U48: 20 | V48: S
B49: 10 | C49: 1,968 | D49: 377 | E49: 158 | F49: 89 | G49: 147 | H49: 66 | I49: 75 | J49: 53 | K49: 0 | L49: 596 | M49: 25 | N49: 65 | O49: 64 | P49: 32 | Q49: 20 | R49: 42 | S49: 89 | T49: 5 | U49: 66 | V49: O
B50: 11 | C50: 1,418 | D50: 227 | E50: 138 | F50: 54 | G50: 102 | H50: 34 | I50: 38 | J50: 44 | K50: 0 | L50: 433 | M50: 18 | N50: 54 | O50: 43 | P50: 40 | Q50: 16 | R50: 34 | S50: 88 | T50: 5 | U50: 48 | V50: N
B51: 12 | C51: 1,431 | D51: 204 | E51: 127 | F51: 78 | G51: 106 | H51: 43 | I51: 58 | J51: 39 | K51: 0 | L51: 435 | M51: 24 | N51: 53 | O51: 49 | P51: 36 | Q51: 18 | R51: 49 | S51: 87 | T51: 5 | U51: 22 | V51: D
A53: 2006 | B53: 1 | C53: 704 | D53: 136 | E53: 75 | F53: 21 | G53: 62 | H53: 24 | I53: 25 | J53: 18 | K53: 0 | L53: 187 | M53: 6 | N53: 23 | O53: 32 | P53: 11 | Q53: 6 | R53: 24 | S53: 52 | T53: 2 | U53: 0 | V53: J | W53: 2006
B54: 2 | C54: 1,022 | D54: 178 | E54: 90 | F54: 45 | G54: 84 | H54: 34 | I54: 37 | J54: 43 | K54: 0 | L54: 299 | M54: 24 | N54: 44 | O54: 34 | P54: 23 | Q54: 12 | R54: 24 | S54: 52 | T54: 1 | U54: 0 | V54: F
B55: 3 | C55: 1,015 | D55: 165 | E55: 78 | F55: 37 | G55: 71 | H55: 31 | I55: 35 | J55: 27 | K55: 0 | L55: 349 | M55: 13 | N55: 43 | O55: 38 | P55: 23 | Q55: 14 | R55: 28 | S55: 63 | T55: 1 | U55: 0 | V55: M
B56: 4 | C56: 870 | D56: 132 | E56: 75 | F56: 45 | G56: 75 | H56: 20 | I56: 29 | J56: 22 | K56: 0 | L56: 289 | M56: 6 | N56: 25 | O56: 33 | P56: 15 | Q56: 11 | R56: 36 | S56: 53 | T56: 2 | U56: 2 | V56: A
B57: 5 | C57: 732 | D57: 123 | E57: 50 | F57: 23 | G57: 55 | H57: 26 | I57: 19 | J57: 37 | K57: 0 | L57: 255 | M57: 9 | N57: 23 | O57: 24 | P57: 12 | Q57: 10 | R57: 22 | S57: 44 | T57: 1 | U57: 0 | V57: M
B58: 6 | C58: 854 | D58: 124 | E58: 54 | F58: 31 | G58: 56 | H58: 27 | I58: 22 | J58: 39 | K58: 0 | L58: 309 | M58: 24 | N58: 26 | O58: 32 | P58: 16 | Q58: 10 | R58: 26 | S58: 57 | T58: 2 | U58: 0 | V58: J
B59: 7 | C59: 1,278 | D59: 253 | E59: 73 | F59: 39 | G59: 64 | H59: 34 | I59: 32 | J59: 45 | K59: 0 | L59: 498 | M59: 18 | N59: 40 | O59: 52 | P59: 28 | Q59: 9 | R59: 25 | S59: 67 | T59: 1 | U59: 0 | V59: J
B60: 8 | C60: 1,388 | D60: 328 | E60: 64 | F60: 54 | G60: 74 | H60: 32 | I60: 37 | J60: 39 | K60: 0 | L60: 532 | M60: 22 | N60: 26 | O60: 45 | P60: 24 | Q60: 9 | R60: 34 | S60: 66 | T60: 2 | U60: 0 | V60: A
B61: 9 | C61: 1,872 | D61: 378 | E61: 132 | F61: 89 | G61: 106 | H61: 56 | I61: 40 | J61: 50 | K61: 0 | L61: 709 | M61: 16 | N61: 50 | O61: 71 | P61: 43 | Q61: 12 | R61: 27 | S61: 90 | T61: 1 | U61: 0 | V61: S
B62: 10 | C62: 1,246 | D62: 276 | E62: 79 | F62: 40 | G62: 129 | H62: 28 | I62: 31 | J62: 29 | K62: 0 | L62: 451 | M62: 9 | N62: 23 | O62: 38 | P62: 29 | Q62: 12 | R62: 20 | S62: 49 | T62: 1 | U62: 0 | V62: O
B63: 11 | C63: 1,231 | D63: 244 | E63: 67 | F63: 38 | G63: 98 | H63: 36 | I63: 27 | J63: 36 | K63: 0 | L63: 503 | M63: 13 | N63: 17 | O63: 37 | P63: 22 | Q63: 6 | R63: 24 | S63: 60 | T63: 3 | U63: 0 | V63: N
B64: 12 | C64: 1,690 | D64: 408 | E64: 106 | F64: 58 | G64: 149 | H64: 44 | I64: 41 | J64: 37 | K64: 0 | L64: 639 | M64: 25 | N64: 25 | O64: 44 | P64: 26 | Q64: 10 | R64: 23 | S64: 54 | T64: 2 | U64: 0 | V64: D
A66: 2007 | B66: 1 | C66: 2,414 | D66: 617 | E66: 152 | F66: 99 | G66: 176 | H66: 43 | I66: 57 | J66: 55 | K66: 0 | L66: 905 | M66: 17 | N66: 35 | O66: 69 | P66: 39 | Q66: 11 | R66: 43 | S66: 84 | T66: 9 | U66: 1 | V66: J | W66: 2007
B67: 2 | C67: 2,782 | D67: 712 | E67: 136 | F67: 107 | G67: 193 | H67: 55 | I67: 88 | J67: 62 | K67: 0 | L67: 1,087 | M67: 22 | N67: 42 | O67: 83 | P67: 42 | Q67: 17 | R67: 39 | S67: 92 | T67: 4 | U67: 1 | V67: F
B68: 3 | C68: 2,544 | D68: 667 | E68: 133 | F68: 77 | G68: 180 | H68: 58 | I68: 82 | J68: 75 | K68: 0 | L68: 921 | M68: 15 | N68: 34 | O68: 88 | P68: 43 | Q68: 14 | R68: 36 | S68: 93 | T68: 5 | U68: 23 | V68: M
B69: 4 | C69: 2,453 | D69: 599 | E69: 127 | F69: 79 | G69: 213 | H69: 41 | I69: 56 | J69: 60 | K69: 0 | L69: 939 | M69: 13 | N69: 38 | O69: 111 | P69: 29 | Q69: 15 | R69: 33 | S69: 88 | T69: 7 | U69: 5 | V69: A
B70: 5 | C70: 2,511 | D70: 643 | E70: 118 | F70: 69 | G70: 237 | H70: 41 | I70: 53 | J70: 65 | K70: 0 | L70: 962 | M70: 17 | N70: 42 | O70: 94 | P70: 29 | Q70: 12 | R70: 29 | S70: 89 | T70: 2 | U70: 10 | V70: M
B71: 6 | C71: 2,763 | D71: 660 | E71: 159 | F71: 73 | G71: 291 | H71: 32 | I71: 52 | J71: 88 | K71: 0 | L71: 1,068 | M71: 14 | N71: 37 | O71: 104 | P71: 21 | Q71: 12 | R71: 30 | S71: 90 | T71: 1 | U71: 29 | V71: J
B72: 7 | C72: 3,603 | D72: 890 | E72: 182 | F72: 113 | G72: 305 | H72: 52 | I72: 76 | J72: 87 | K72: 0 | L72: 1,502 | M72: 19 | N72: 50 | O72: 113 | P72: 41 | Q72: 17 | R72: 41 | S72: 112 | T72: 3 | U72: 1 | V72: J
B73: 8 | C73: 3,344 | D73: 811 | E73: 156 | F73: 81 | G73: 352 | H73: 32 | I73: 58 | J73: 78 | K73: 0 | L73: 1,379 | M73: 15 | N73: 44 | O73: 72 | P73: 25 | Q73: 28 | R73: 23 | S73: 73 | T73: 1 | U73: 115 | V73: A
B74: 9 | C74: 2,505 | D74: 601 | E74: 90 | F74: 63 | G74: 270 | H74: 25 | I74: 50 | J74: 77 | K74: 0 | L74: 1,069 | M74: 21 | N74: 33 | O74: 70 | P74: 25 | Q74: 5 | R74: 24 | S74: 73 | T74: 4 | U74: 5 | V74: S
B75: 10 | C75: 3,485 | D75: 828 | E75: 146 | F75: 78 | G75: 399 | H75: 46 | I75: 47 | J75: 74 | K75: 0 | L75: 1,467 | M75: 26 | N75: 28 | O75: 114 | P75: 38 | Q75: 18 | R75: 28 | S75: 103 | T75: 1 | U75: 45 | V75: O
B76: 11 | C76: 3,345 | D76: 724 | E76: 210 | F76: 100 | G76: 423 | H76: 45 | I76: 43 | J76: 86 | K76: 0 | L76: 1,294 | M76: 29 | N76: 35 | O76: 94 | P76: 41 | Q76: 15 | R76: 28 | S76: 95 | T76: 4 | U76: 80 | V76: N
B77: 12 | C77: 4,543 | D77: 1,021 | E77: 290 | F77: 170 | G77: 533 | H77: 52 | I77: 87 | J77: 111 | K77: 0 | L77: 1,734 | M77: 29 | N77: 60 | O77: 101 | P77: 98 | Q77: 16 | R77: 44 | S77: 156 | T77: 8 | U77: 31 | V77: D
A79: 2008 | B79: 1 | C79: 5,937 | D79: 1,278 | E79: 356 | F79: 305 | G79: 617 | H79: 80 | I79: 141 | J79: 171 | K79: 0 | L79: 2,188 | M79: 75 | N79: 56 | O79: 159 | P79: 146 | Q79: 22 | R79: 60 | S79: 199 | T79: 10 | U79: 74 | V79: J | W79: 2008
B80: 2 | C80: 5,072 | D80: 1,206 | E80: 245 | F80: 171 | G80: 563 | H80: 51 | I80: 129 | J80: 155 | K80: 0 | L80: 2,023 | M80: 29 | N80: 51 | O80: 110 | P80: 66 | Q80: 17 | R80: 32 | S80: 144 | T80: 8 | U80: 73 | V80: F
B81: 3 | C81: 3,955 | D81: 966 | E81: 205 | F81: 126 | G81: 523 | H81: 52 | I81: 45 | J81: 122 | K81: 0 | L81: 1,545 | M81: 26 | N81: 36 | O81: 75 | P81: 47 | Q81: 10 | R81: 41 | S81: 109 | T81: 0 | U81: 27 | V81: M
B82: 4 | C82: 5,161 | D82: 1,215 | E82: 381 | F82: 122 | G82: 747 | H82: 58 | I82: 71 | J82: 144 | K82: 0 | L82: 1,999 | M82: 30 | N82: 27 | O82: 88 | P82: 37 | Q82: 8 | R82: 30 | S82: 191 | T82: 1 | U82: 11 | V82: A
B83: 5 | C83: 4,127 | D83: 1,124 | E83: 167 | F83: 76 | G83: 621 | H83: 33 | I83: 24 | J83: 78 | K83: 0 | L83: 1,701 | M83: 19 | N83: 25 | O83: 56 | P83: 36 | Q83: 6 | R83: 24 | S83: 127 | T83: 2 | U83: 7 | V83: M
B84: 6 | C84: 3,849 | D84: 988 | E84: 125 | F84: 67 | G84: 645 | H84: 19 | I84: 22 | J84: 93 | K84: 0 | L84: 1,597 | M84: 11 | N84: 15 | O84: 35 | P84: 29 | Q84: 13 | R84: 19 | S84: 84 | T84: 3 | U84: 83 | V84: J
B85: 7 | C85: 4,250 | D85: 1,023 | E85: 120 | F85: 76 | G85: 717 | H85: 28 | I85: 23 | J85: 82 | K85: 0 | L85: 1,926 | M85: 12 | N85: 17 | O85: 38 | P85: 47 | Q85: 8 | R85: 19 | S85: 106 | T85: 2 | U85: 7 | V85: J
B86: 8 | C86: 4,346 | D86: 917 | E86: 155 | F86: 107 | G86: 765 | H86: 29 | I86: 41 | J86: 78 | K86: 0 | L86: 1,951 | M86: 14 | N86: 33 | O86: 55 | P86: 38 | Q86: 4 | R86: 52 | S86: 104 | T86: 1 | U86: 2 | V86: A
B87: 9 | C87: 2,835 | D87: 575 | E87: 97 | F87: 91 | G87: 455 | H87: 41 | I87: 44 | J87: 73 | K87: 0 | L87: 1,188 | M87: 13 | N87: 25 | O87: 75 | P87: 40 | Q87: 4 | R87: 30 | S87: 79 | T87: 2 | U87: 4 | V87: S
B88: 10 | C88: 1,880 | D88: 317 | E88: 90 | F88: 71 | G88: 254 | H88: 68 | I88: 43 | J88: 54 | K88: 0 | L88: 725 | M88: 22 | N88: 31 | O88: 57 | P88: 27 | Q88: 7 | R88: 34 | S88: 75 | T88: 4 | U88: 0 | V88: O
B89: 11 | C89: 870 | D89: 98 | E89: 64 | F89: 63 | G89: 102 | H89: 22 | I89: 13 | J89: 36 | K89: 0 | L89: 299 | M89: 12 | N89: 18 | O89: 38 | P89: 22 | Q89: 4 | R89: 26 | S89: 52 | T89: 1 | U89: 0 | V89: N
B90: 12 | C90: 457 | D90: 53 | E90: 51 | F90: 19 | G90: 39 | H90: 19 | I90: 13 | J90: 32 | K90: 0 | L90: 115 | M90: 5 | N90: 6 | O90: 29 | P90: 14 | Q90: 3 | R90: 15 | S90: 38 | T90: 1 | U90: 6 | V90: D
A92: 2009 | B92: 1 | C92: =SUM(D92:U92) -> 348 | D92: 36 | E92: 29 | F92: 14 | G92: 42 | H92: 10 | I92: 7 | J92: 26 | K92: 0 | L92: 119 | M92: 0 | N92: 2 | O92: 9 | P92: 13 | Q92: 3 | R92: 8 | S92: 24 | T92: 1 | U92: 3 | V92: J | W92: 2009
B93: 2 | C93: 948 | D93: 158 | E93: 62 | F93: 36 | G93: 63 | H93: 29 | I93: 26 | J93: 84 | K93: 0 | L93: 336 | M93: 2 | N93: 19 | O93: 36 | P93: 25 | Q93: 4 | R93: 14 | S93: 52 | T93: 1 | U93: 1 | V93: F
B94: 3 | C94: =SUM(D94:U94) -> 3,021 | D94: 487 | E94: 88 | F94: 79 | G94: 209 | H94: 47 | I94: 59 | J94: 125 | K94: 0 | L94: 1,517 | M94: 7 | N94: 144 | O94: 53 | P94: 30 | Q94: 6 | R94: 32 | S94: 132 | T94: 1 | U94: 4 | V94: M
B95: 4 | C95: 4,627 | D95: 743 | E95: 238 | F95: 56 | G95: 425 | H95: 51 | I95: 58 | J95: 168 | K95: 0 | L95: 2,397 | M95: 28 | N95: 86 | O95: 131 | P95: 36 | Q95: 4 | R95: 20 | S95: 185 | T95: 0 | U95: 0 | V95: A
B96: 5 | C96: 4,396 | D96: 813 | E96: 322 | F96: 49 | G96: 310 | H96: 57 | I96: 55 | J96: 190 | K96: 0 | L96: 2,112 | M96: 21 | N96: 103 | O96: 136 | P96: 29 | Q96: 6 | R96: 24 | S96: 167 | T96: 2 | U96: 0 | V96: M
B97: 6 | C97: 4,871 | D97: 1,061 | E97: 287 | F97: 91 | G97: 363 | H97: 92 | I97: 64 | J97: 168 | K97: 0 | L97: 2,163 | M97: 11 | N97: 100 | O97: 144 | P97: 66 | Q97: 12 | R97: 42 | S97: 208 | T97: 1 | U97: 0 | V97: J
B98: 7 | C98: 4,569 | D98: 1,046 | E98: 294 | F98: 121 | G98: 338 | H98: 150 | I98: 113 | J98: 140 | K98: 0 | L98: 1,742 | M98: 39 | N98: 77 | O98: 172 | P98: 83 | Q98: 11 | R98: 40 | S98: 195 | T98: 2 | U98: 5 | V98: J
B99: 8 | C99: 4,876 | D99: 1,197 | E99: 265 | F99: 105 | G99: 366 | H99: 133 | I99: 154 | J99: 160 | K99: 0 | L99: 1,917 | M99: 29 | N99: 57 | O99: 177 | P99: 64 | Q99: 12 | R99: 78 | S99: 157 | T99: 4 | U99: 0 | V99: A
B100: 9 | C100: 6,570 | D100: 1,501 | E100: 400 | F100: 160 | G100: 549 | H100: 150 | I100: 199 | J100: 125 | K100: 0 | L100: 2,721 | M100: 44 | N100: 89 | O100: 221 | P100: 94 | Q100: 26 | R100: 78 | S100: 208 | T100: 3 | U100: 0 | V100: S
B101: 10 | C101: 9,459 | D101: 2,204 | E101: 519 | F101: 201 | G101: 903 | H101: 191 | I101: 204 | J101: 106 | K101: 0 | L101: 4,046 | M101: 75 | N101: 91 | O101: 393 | P101: 136 | Q101: 83 | R101: 70 | S101: 235 | T101: 3 | U101: 0 | V101: O
B102: 11 | C102: 8,902 | D102: 2,064 | E102: 455 | F102: 179 | G102: 881 | H102: 171 | I102: 185 | J102: 97 | K102: 0 | L102: 3,847 | M102: 47 | N102: 148 | O102: 321 | P102: 100 | Q102: 62 | R102: 84 | S102: 253 | T102: 7 | U102: 0 | V102: N
B103: 12 | C103: 6,848 | D103: 1,195 | E103: 454 | F103: 159 | G103: 504 | H103: 171 | I103: 184 | J103: 104 | K103: 0 | L103: 2,945 | M103: 40 | N103: 140 | O103: 360 | P103: 103 | Q103: 29 | R103: 77 | S103: 374 | T103: 10 | U103: 0 | V103: D
A105: 2010 | B105: 1 | C105: 3,776 | D105: 617 | E105: 308 | F105: 119 | G105: 272 | H105: 150 | I105: 163 | J105: 82 | K105: 0 | L105: 1,452 | M105: 29 | N105: 46 | O105: 160 | P105: 72 | Q105: 22 | R105: 40 | S105: 237 | T105: 9 | U105: 0 | V105: J | W105: 2010
B106: 2 | C106: 3,992 | D106: 679 | E106: 320 | F106: 140 | G106: 310 | H106: 180 | I106: 213 | J106: 72 | K106: 0 | L106: 1,419 | M106: 28 | N106: 65 | O106: 176 | P106: 83 | Q106: 15 | R106: 69 | S106: 214 | T106: 9 | U106: 0 | V106: F
B107: 3 | C107: 3,366 | D107: 587 | E107: 246 | F107: 123 | G107: 238 | H107: 141 | I107: 171 | J107: 91 | K107: 0 | L107: 1,222 | M107: 36 | N107: 43 | O107: 154 | P107: 61 | Q107: 12 | R107: 47 | S107: 184 | T107: 9 | U107: 0 | V107: M
B108: 4 | C108: 2,679 | D108: 481 | E108: 235 | F108: 80 | G108: 212 | H108: 114 | I108: 106 | J108: 100 | K108: 0 | L108: 923 | M108: 22 | N108: 47 | O108: 123 | P108: 36 | Q108: 9 | R108: 41 | S108: 147 | T108: 2 | U108: 0 | V108: A
B109: 5 | C109: 2,374 | D109: 381 | E109: 220 | F109: 64 | G109: 228 | H109: 76 | I109: 76 | J109: 88 | K109: 0 | L109: 838 | M109: 30 | N109: 44 | O109: 162 | P109: 38 | Q109: 5 | R109: 26 | S109: 99 | T109: 1 | U109: 0 | V109: M
B110: 6 | C110: 3,702 | D110: 751 | E110: 338 | F110: 77 | G110: 423 | H110: 119 | I110: 102 | J110: 129 | K110: 0 | L110: 1,270 | M110: 42 | N110: 59 | O110: 152 | P110: 45 | Q110: 7 | R110: 45 | S110: 140 | T110: 3 | U110: 0 | V110: J
B111: 7 | C111: 9,838 | D111: 2,320 | E111: 630 | F111: 182 | G111: 929 | H111: 246 | I111: 257 | J111: 209 | K111: 0 | L111: 4,011 | M111: 72 | N111: 89 | O111: 275 | P111: 119 | Q111: 57 | R111: 87 | S111: 339 | T111: 16 | U111: 0 | V111: J
B112: 8 | C112: 8,934 | D112: 1,932 | E112: 515 | F112: 163 | G112: 857 | H112: 215 | I112: 273 | J112: 164 | K112: 0 | L112: 3,848 | M112: 82 | N112: 103 | O112: 207 | P112: 102 | Q112: 45 | R112: 64 | S112: 351 | T112: 13 | U112: 0 | V112: A
B113: 9 | C113: 5,078 | D113: 1,044 | E113: 309 | F113: 126 | G113: 578 | H113: 152 | I113: 149 | J113: 88 | K113: 0 | L113: 1,988 | M113: 53 | N113: 78 | O113: 163 | P113: 65 | Q113: 51 | R113: 61 | S113: 165 | T113: 7 | U113: 0 | V113: S
B114: 10 | C114: 4,389 | D114: 753 | E114: 298 | F114: 117 | G114: 506 | H114: 120 | I114: 144 | J114: 67 | K114: 0 | L114: 1,627 | M114: 54 | N114: 93 | O114: 199 | P114: 60 | Q114: 37 | R114: 56 | S114: 248 | T114: 10 | U114: 0 | V114: O
B115: 11 | C115: 4,765 | D115: 770 | E115: 367 | F115: 171 | G115: 421 | H115: 144 | I115: 168 | J115: 122 | K115: 0 | L115: 1,758 | M115: 61 | N115: 119 | O115: 166 | P115: 94 | Q115: 29 | R115: 89 | S115: 278 | T115: 11 | U115: 0 | V115: N
B116: 12 | C116: 5,587 | D116: 882 | E116: 465 | F116: 208 | G116: 507 | H116: 139 | I116: 183 | J116: 317 | K116: 0 | L116: 1,897 | M116: 52 | N116: 127 | O116: 210 | P116: 115 | Q116: 45 | R116: 93 | S116: 337 | T116: 10 | U116: 0 | V116: D
A118: 2011 | B118: 1 | C118: 4,491 | D118: 752 | E118: 391 | F118: 161 | G118: 382 | H118: 133 | I118: 164 | J118: 158 | K118: 0 | L118: 1,464 | M118: 43 | N118: 117 | O118: 192 | P118: 66 | Q118: 25 | R118: 74 | S118: 309 | T118: 58 | U118: 0 | V118: J | W118: 2011
B119: 2 | C119: 5,992 | D119: 1,050 | E119: 533 | F119: 216 | G119: 466 | H119: 164 | I119: 280 | J119: 113 | K119: 0 | L119: 2,071 | M119: 56 | N119: 155 | O119: 259 | P119: 95 | Q119: 37 | R119: 113 | S119: 357 | T119: 26 | U119: 0 | V119: F
B120: 3 | C120: 7,815 | D120: 1,464 | E120: 517 | F120: 259 | G120: 633 | H120: 198 | I120: 252 | J120: 153 | K120: 0 | L120: 3,014 | M120: 78 | N120: 179 | O120: 294 | P120: 180 | Q120: 80 | R120: 106 | S120: 387 | T120: 22 | U120: 0 | V120: M
B121: 4 | C121: 7,966 | D121: 1,340 | E121: 645 | F121: 268 | G121: 575 | H121: 261 | I121: 191 | J121: 140 | K121: 0 | L121: 3,164 | M121: 89 | N121: 193 | O121: 310 | P121: 177 | Q121: 43 | R121: 106 | S121: 452 | T121: 13 | U121: 0 | V121: A
B122: 5 | C122: 6,577 | D122: 1,038 | E122: 504 | F122: 209 | G122: 537 | H122: 162 | I122: 164 | J122: 120 | K122: 0 | L122: 2,677 | M122: 73 | N122: 137 | O122: 246 | P122: 110 | Q122: 43 | R122: 76 | S122: 471 | T122: 11 | U122: 0 | V122: M
B123: 6 | C123: 6,089 | D123: 955 | E123: 480 | F123: 196 | G123: 542 | H123: 229 | I123: 192 | J123: 122 | K123: 0 | L123: 2,445 | M123: 83 | N123: 144 | O123: 181 | P123: 92 | Q123: 35 | R123: 84 | S123: 295 | T123: 14 | U123: 0 | V123: J
B124: 7 | C124: 6,267 | D124: 991 | E124: 425 | F124: 230 | G124: 445 | H124: 272 | I124: 263 | J124: 105 | K124: 0 | L124: 2,547 | M124: 83 | N124: 116 | O124: 262 | P124: 107 | Q124: 67 | R124: 78 | S124: 265 | T124: 10 | U124: 0 | V124: J
B125: 8 | C125: 6,115 | D125: 1,035 | E125: 375 | F125: 182 | G125: 460 | H125: 282 | I125: 317 | J125: 123 | K125: 0 | L125: 2,387 | M125: 77 | N125: 142 | O125: 264 | P125: 88 | Q125: 58 | R125: 59 | S125: 252 | T125: 15 | U125: 0 | V125: A
B126: 9 | C126: 9,669 | D126: 1,509 | E126: 588 | F126: 308 | G126: 871 | H126: 357 | I126: 386 | J126: 171 | K126: 0 | L126: 3,949 | M126: 139 | N126: 204 | O126: 409 | P126: 184 | Q126: 98 | R126: 100 | S126: 368 | T126: 27 | U126: 0 | V126: S
B127: 10 | C127: 11,372 | D127: 1,734 | E127: 652 | F127: 308 | G127: 1,056 | H127: 348 | I127: 376 | J127: 157 | K127: 0 | L127: 5,002 | M127: 210 | N127: 210 | O127: 458 | P127: 208 | Q127: 64 | R127: 102 | S127: 470 | T127: 18 | U127: 0 | V127: O
B128: 11 | C128: 10,249 | D128: 1,587 | E128: 536 | F128: 358 | G128: 823 | H128: 364 | I128: 391 | J128: 142 | K128: 0 | L128: 4,614 | M128: 129 | N128: 202 | O128: 355 | P128: 199 | Q128: 66 | R128: 128 | S128: 343 | T128: 13 | U128: 0 | V128: N
B129: 12 | C129: 11,542 | D129: 1,490 | E129: 712 | F129: 448 | G129: 771 | H129: 779 | I129: 421 | J129: 195 | K129: 0 | L129: 4,828 | M129: 110 | N129: 271 | O129: 420 | P129: 281 | Q129: 85 | R129: 188 | S129: 427 | T129: 118 | U129: 0 | V129: D
A131: 2012 | B131: 1 | C131: 2,703 | D131: 408 | E131: 180 | F131: 110 | G131: 170 | H131: 95 | I131: 247 | J131: 71 | K131: 0 | L131: 948 | M131: 42 | N131: 61 | O131: 123 | P131: 58 | Q131: 18 | R131: 42 | S131: 99 | T131: 29 | U131: 0 | V131: J | W131: 2012
B132: 2 | C132: 7,465 | D132: 1,076 | E132: 418 | F132: 351 | G132: 642 | H132: 322 | I132: 314 | J132: 166 | K132: 0 | L132: 2,804 | M132: 117 | N132: 193 | O132: 335 | P132: 157 | Q132: 74 | R132: 149 | S132: 309 | T132: 41 | U132: 0 | V132: F
B133: 3 | C133: 9,679 | D133: 1,316 | E133: 488 | F133: 424 | G133: 861 | H133: 339 | I133: 301 | J133: 261 | K133: 0 | L133: 4,031 | M133: 148 | N133: 218 | O133: 406 | P133: 158 | Q133: 112 | R133: 194 | S133: 386 | T133: 37 | U133: 0 | V133: M
B134: 4 | C134: 7,874 | D134: 1,038 | E134: 477 | F134: 357 | G134: 833 | H134: 268 | I134: 191 | J134: 210 | K134: 0 | L134: 3,068 | M134: 122 | N134: 175 | O134: 358 | P134: 143 | Q134: 55 | R134: 142 | S134: 404 | T134: 31 | U134: 0 | V134: A
B135: 5 | C135: 9,587 | D135: 1,400 | E135: 581 | F135: 453 | G135: 904 | H135: 359 | I135: 282 | J135: 244 | K135: 0 | L135: 3,730 | M135: 117 | N135: 222 | O135: 380 | P135: 186 | Q135: 78 | R135: 195 | S135: 432 | T135: 25 | U135: 0 | V135: M
B136: 6 | C136: 9,214 | D136: 1,402 | E136: 538 | F136: 383 | G136: 803 | H136: 352 | I136: 242 | J136: 223 | K136: 0 | L136: 3,691 | M136: 91 | N136: 225 | O136: 336 | P136: 138 | Q136: 189 | R136: 168 | S136: 404 | T136: 30 | U136: 0 | V136: J
B137: 7 | C137: 8,806 | D137: 1,103 | E137: 553 | F137: 404 | G137: 813 | H137: 273 | I137: 256 | J137: 209 | K137: 0 | L137: 3,515 | M137: 117 | N137: 272 | O137: 438 | P137: 196 | Q137: 92 | R137: 177 | S137: 368 | T137: 18 | U137: 0 | V137: J
B138: 8 | C138: 7,953 | D138: 1,079 | E138: 504 | F138: 418 | G138: 755 | H138: 398 | I138: 203 | J138: 277 | K138: 34 | L138: 2,949 | M138: 98 | N138: 184 | O138: 354 | P138: 139 | Q138: 61 | R138: 149 | S138: 329 | T138: 21 | U138: 0 | V138: A
B139: 9 | C139: 6,615 | D139: 940 | E139: 383 | F139: 342 | G139: 616 | H139: 296 | I139: 202 | J139: 138 | K139: 20 | L139: 2,537 | M139: 77 | N139: 169 | O139: 270 | P139: 132 | Q139: 60 | R139: 132 | S139: 282 | T139: 22 | U139: 0 | V139: S
B140: 10 | C140: 9,523 | D140: 1,295 | E140: 535 | F140: 656 | G140: 904 | H140: 416 | I140: 262 | J140: 180 | K140: 35 | L140: 3,597 | M140: 121 | N140: 232 | O140: 357 | P140: 153 | Q140: 101 | R140: 233 | S140: 400 | T140: 46 | U140: 0 | V140: O
B141: 11 | C141: 13,657 | D141: 1,930 | E141: 775 | F141: 852 | G141: 1,356 | H141: 533 | I141: 330 | J141: 232 | K141: 34 | L141: 5,150 | M141: 146 | N141: 331 | O141: 625 | P141: 204 | Q141: 172 | R141: 260 | S141: 659 | T141: 69 | U141: 0 | V141: N
B142: 12 | C142: 18,969 | D142: 2,270 | E142: 1,280 | F142: 1,125 | G142: 1,628 | H142: 978 | I142: 492 | J142: 316 | K142: 24 | L142: 6,834 | M142: 224 | N142: 403 | O142: 814 | P142: 560 | Q142: 194 | R142: 519 | S142: 1,161 | T142: 147 | U142: 0 | V142: D
A144: 2013 | B144: 1 | C144: 6,953 | D144: 972 | E144: 393 | F144: 336 | G144: 637 | H144: 214 | I144: 223 | J144: 160 | K144: 14 | L144: 2,488 | M144: 86 | N144: 134 | O144: 285 | P144: 116 | Q144: 63 | R144: 208 | S144: 559 | T144: 68 | U144: 0 | V144: J | W144: 2013
B145: 2 | C145: 11,225 | D145: 1,522 | E145: 677 | F145: 625 | G145: 954 | H145: 434 | I145: 343 | J145: 209 | K145: 48 | L145: 4,157 | M145: 144 | N145: 373 | O145: 450 | P145: 226 | Q145: 129 | R145: 267 | S145: 589 | T145: 78 | U145: 0 | V145: F
B146: 3 | C146: 10,945 | D146: 1,386 | E146: 631 | F146: 516 | G146: 1,091 | H146: 352 | I146: 326 | J146: 206 | K146: 13 | L146: 4,292 | M146: 138 | N146: 375 | O146: 448 | P146: 194 | Q146: 102 | R146: 232 | S146: 593 | T146: 49 | U146: 0 | V146: M
B147: 4 | C147: 16,818 | D147: 2,121 | E147: 1,153 | F147: 922 | G147: 1,617 | H147: 531 | I147: 460 | J147: 333 | K147: 24 | L147: 6,652 | M147: 185 | N147: 417 | O147: 638 | P147: 261 | Q147: 155 | R147: 353 | S147: 942 | T147: 55 | U147: 0 | V147: A
B148: 5 | C148: 16,660 | D148: 2,164 | E148: 1,239 | F148: 1,026 | G148: 1,789 | H148: 510 | I148: 483 | J148: 321 | K148: 22 | L148: 6,471 | M148: 186 | N148: 355 | O148: 569 | P148: 220 | Q148: 149 | R148: 324 | S148: 764 | T148: 68 | U148: 0 | V148: M
B149: 6 | C149: 22,629 | D149: 2,672 | E149: 1,684 | F149: 1,334 | G149: 2,262 | H149: 854 | I149: 675 | J149: 401 | K149: 25 | L149: 7,989 | M149: 424 | N149: 603 | O149: 861 | P149: 305 | Q149: 162 | R149: 514 | S149: 1,763 | T149: 101 | U149: 0 | V149: J
B150: 7 | C150: 10,356 | D150: 1,778 | E150: 758 | F150: 526 | G150: 879 | H150: 333 | I150: 345 | J150: 223 | K150: 25 | L150: 3,632 | M150: 140 | N150: 239 | O150: 414 | P150: 151 | Q150: 96 | R150: 241 | S150: 530 | T150: 47 | U150: 0 | V150: J
B151: 8 | C151: 6,478 | D151: 944 | E151: 398 | F151: 412 | G151: 548 | H151: 237 | I151: 262 | J151: 140 | K151: 19 | L151: 2,274 | M151: 97 | N151: 162 | O151: 278 | P151: 102 | Q151: 54 | R151: 177 | S151: 338 | T151: 35 | U151: 0 | V151: A
B152: 9 | C152: 4,196 | D152: 455 | E152: 342 | F152: 253 | G152: 361 | H152: 156 | I152: 164 | J152: 91 | K152: 2 | L152: 1,421 | M152: 59 | N152: 126 | O152: 167 | P152: 58 | Q152: 34 | R152: 130 | S152: 361 | T152: 16 | U152: 0 | V152: S
B153: 10 | C153: 4,834 | D153: 575 | E153: 369 | F153: 324 | G153: 452 | H153: 185 | I153: 182 | J153: 106 | K153: 6 | L153: 1,627 | M153: 73 | N153: 129 | O153: 163 | P153: 76 | Q153: 51 | R153: 125 | S153: 356 | T153: 37 | U153: 0 | V153: O
B154: 11 | C154: 4,086 | D154: 444 | E154: 254 | F154: 215 | G154: 481 | H154: 165 | I154: 155 | J154: 115 | K154: 2 | L154: 1,336 | M154: 59 | N154: 107 | O154: 156 | P154: 86 | Q154: 46 | R154: 102 | S154: 345 | T154: 19 | U154: 0 | V154: N
B155: 12 | C155: 3,867 | D155: 425 | E155: 290 | F155: 221 | G155: 328 | H155: 155 | I155: 143 | J155: 107 | K155: 13 | L155: 1,296 | M155: 68 | N155: 80 | O155: 149 | P155: 75 | Q155: 50 | R155: 104 | S155: 319 | T155: 45 | U155: 0 | V155: D
A157: 2014 | B157: 1 | C157: =SUM(D157:U157) -> 1,625 | D157: 164 | E157: 109 | F157: 134 | G157: 104 | H157: 103 | I157: 57 | J157: 36 | K157: 1 | L157: 526 | M157: 15 | N157: 42 | O157: 74 | P157: 35 | Q157: 23 | R157: 45 | S157: 136 | T157: 22 | U157: 0 | V157: J | W157: 2014
B158: 2 | C158: =SUM(D158:U158) -> 1,197 | D158: 155 | E158: 67 | F158: 72 | G158: 81 | H158: 60 | I158: 42 | J158: 31 | K158: 1 | L158: 423 | M158: 20 | N158: 39 | O158: 47 | P158: 20 | Q158: 10 | R158: 41 | S158: 76 | T158: 12 | U158: 0 | V158: F
B159: 3 | C159: 1,003 | D159: 172 | E159: 52 | F159: 61 | G159: 91 | H159: 37 | I159: 22 | J159: 19 | K159: 1 | L159: 320 | M159: 25 | N159: 36 | O159: 48 | P159: 20 | Q159: 14 | R159: 31 | S159: 49 | T159: 6 | U159: 0 | V159: M
B160: 4 | C160: 1,137 | D160: 153 | E160: 81 | F160: 67 | G160: 83 | H160: 41 | I160: 25 | J160: 36 | K160: 0 | L160: 383 | M160: 19 | N160: 33 | O160: 61 | P160: 24 | Q160: 10 | R160: 33 | S160: 84 | T160: 3 | U160: 0 | V160: A
B161: 5 | C161: 892 | D161: 118 | E161: 74 | F161: 48 | G161: 75 | H161: 32 | I161: 19 | J161: 29 | K161: 3 | L161: 272 | M161: 11 | N161: 29 | O161: 46 | P161: 19 | Q161: 9 | R161: 22 | S161: 82 | T161: 3 | U161: 0 | V161: M
B162: 6 | C162: 1,103 | D162: 158 | E162: 87 | F162: 49 | G162: 69 | H162: 46 | I162: 33 | J162: 33 | K162: 2 | L162: 373 | M162: 10 | N162: 40 | O162: 42 | P162: 28 | Q162: 16 | R162: 27 | S162: 85 | T162: 4 | U162: 0 | V162: J
B163: 7 | C163: 1,567 | D163: 238 | E163: 108 | F163: 68 | G163: 115 | H163: 75 | I163: 49 | J163: 52 | K163: 2 | L163: 475 | M163: 24 | N163: 57 | O163: 88 | P163: 29 | Q163: 18 | R163: 42 | S163: 117 | T163: 11 | U163: 0 | V163: J
B164: 8 | C164: 1,748 | D164: 257 | E164: 145 | F164: 87 | G164: 84 | H164: 91 | I164: 68 | J164: 52 | K164: 6 | L164: 431 | M164: 38 | N164: 73 | O164: 103 | P164: 44 | Q164: 48 | R164: 52 | S164: 160 | T164: 12 | U164: 0 | V164: A
B165: 9 | C165: 1,814 | D165: 329 | E165: 138 | F165: 100 | G165: 99 | H165: 100 | I165: 69 | J165: 49 | K165: 7 | L165: 434 | M165: 43 | N165: 59 | O165: 86 | P165: 50 | Q165: 37 | R165: 52 | S165: 152 | T165: 11 | U165: 0 | V165: S
B166: 10 | C166: 2,297 | D166: 317 | E166: 181 | F166: 149 | G166: 164 | H166: 92 | I166: 82 | J166: 50 | K166: 7 | L166: 650 | M166: 53 | N166: 67 | O166: 144 | P166: 55 | Q166: 31 | R166: 56 | S166: 176 | T166: 22 | U166: 0 | V166: O
B167: 11 | C167: 4,510 | D167: 705 | E167: 346 | F167: 298 | G167: 326 | H167: 152 | I167: 133 | J167: 121 | K167: 29 | L167: 1,236 | M167: 80 | N167: 158 | O167: 188 | P167: 127 | Q167: 51 | R167: 127 | S167: 408 | T167: 26 | U167: 0 | V167: N
B168: 12 | C168: 5,904 | D168: 788 | E168: 689 | F168: 342 | G168: 349 | H168: 187 | I168: 215 | J168: 121 | K168: 31 | L168: 1,693 | M168: 70 | N168: 179 | O168: 284 | P168: 135 | Q168: 54 | R168: 180 | S168: 560 | T168: 29 | U168: 0 | V168: D
A170: 2015 | B170: 1 | C170: 4,816 | D170: 645 | E170: 506 | F170: 298 | G170: 277 | H170: 279 | I170: 266 | J170: 94 | K170: 27 | L170: 1,308 | M170: 63 | N170: 142 | O170: 268 | P170: 90 | Q170: 52 | R170: 130 | S170: 339 | T170: 31 | U170: 0 | V170: J | W170: 2015
B171: 2 | C171: 8,502 | D171: 1,183 | E171: 577 | F171: 488 | G171: 505 | H171: 342 | I171: 376 | J171: 158 | K171: 121 | L171: 2,830 | M171: 90 | N171: 169 | O171: 342 | P171: 192 | Q171: 142 | R171: 241 | S171: 686 | T171: 61 | U171: 0 | V171: F
B172: 3 | C172: 9,075 | D172: 1,331 | E172: 523 | F172: 446 | G172: 586 | H172: 410 | I172: 308 | J172: 319 | K172: 90 | L172: 2,927 | M172: 100 | N172: 318 | O172: 554 | P172: 170 | Q172: 127 | R172: 249 | S172: 572 | T172: 47 | U172: 0 | V172: M
B173: 4 | C173: 17,192 | D173: 2,538 | E173: 989 | F173: 945 | G173: 1,617 | H173: 704 | I173: 558 | J173: 589 | K173: 147 | L173: 5,149 | M173: 224 | N173: 489 | O173: 847 | P173: 396 | Q173: 297 | R173: 403 | S173: 1,196 | T173: 102 | U173: 0 | V173: A
B174: 5 | C174: 16,284 | D174: 2,813 | E174: 1,183 | F174: 870 | G174: 1,427 | H174: 620 | I174: 525 | J174: 469 | K174: 133 | L174: 5,120 | M174: 305 | N174: 408 | O174: 626 | P174: 285 | Q174: 208 | R174: 359 | S174: 853 | T174: 80 | U174: 0 | V174: M
B175: 6 | C175: 15,984 | D175: 2,667 | E175: 1,267 | F175: 977 | G175: 1,436 | H175: 445 | I175: 506 | J175: 385 | K175: 139 | L175: 5,040 | M175: 227 | N175: 581 | O175: 579 | P175: 245 | Q175: 237 | R175: 474 | S175: 715 | T175: 63 | U175: 0 | V175: J
B176: 7 | C176: 8,917 | D176: 1,697 | E176: 807 | F176: 499 | G176: 660 | H176: 235 | I176: 296 | J176: 190 | K176: 93 | L176: 2,784 | M176: 102 | N176: 268 | O176: 273 | P176: 158 | Q176: 169 | R176: 210 | S176: 434 | T176: 43 | U176: 0 | V176: J
B177: 8 | C177: 5,512 | D177: 1,020 | E177: 438 | F177: 280 | G177: 411 | H177: 203 | I177: 167 | J177: 113 | K177: 60 | L177: 1,851 | M177: 58 | N177: 117 | O177: 192 | P177: 121 | Q177: 71 | R177: 177 | S177: 205 | T177: 26 | U177: 0 | V177: A
B178: 9 | C178: 3,609 | D178: 674 | E178: 213 | F178: 186 | G178: 270 | H178: 154 | I178: 120 | J178: 62 | K178: 17 | L178: 1,220 | M178: 56 | N178: 74 | O178: 124 | P178: 64 | Q178: 64 | R178: 91 | S178: 193 | T178: 28 | U178: 0 | V178: S
B179: 10 | C179: 2,715 | D179: 550 | E179: 208 | F179: 147 | G179: 160 | H179: 87 | I179: 98 | J179: 60 | K179: 28 | L179: 848 | M179: 39 | N179: 45 | O179: 100 | P179: 57 | Q179: 45 | R179: 72 | S179: 150 | T179: 20 | U179: 0 | V179: O
B180: 11 | C180: 3,682 | D180: 631 | E180: 354 | F180: 212 | G180: 199 | H180: 155 | I180: 133 | J180: 70 | K180: 21 | L180: 1,029 | M180: 82 | N180: 85 | O180: 113 | P180: 94 | Q180: 60 | R180: 114 | S180: 300 | T180: 31 | U180: 0 | V180: N
B181: 12 | C181: 6,597 | D181: 1,133 | E181: 646 | F181: 358 | G181: 385 | H181: 274 | I181: 207 | J181: 183 | K181: 70 | L181: 1,850 | M181: 134 | N181: 175 | O181: 280 | P181: 142 | Q181: 95 | R181: 187 | S181: 434 | T181: 43 | U181: 0 | V181: D
A183: 2016 | B183: 1 | C183: 5,530 | D183: 838 | E183: 523 | F183: 249 | G183: 298 | H183: 256 | I183: 220 | J183: 168 | K183: 43 | L183: 1,522 | M183: 83 | N183: 142 | O183: 426 | P183: 113 | Q183: 87 | R183: 193 | S183: 330 | T183: 38 | U183: 0 | V183: J | W183: 2016
B184: 2 | C184: 4,781 | D184: 878 | E184: 318 | F184: 235 | G184: 235 | H184: 167 | I184: 201 | J184: 106 | K184: 49 | L184: 1,323 | M184: 98 | N184: 149 | O184: 351 | P184: 88 | Q184: 91 | R184: 154 | S184: 306 | T184: 32 | U184: 0 | V184: F
B185: 3 | C185: 6,921 | D185: 1,219 | E185: 453 | F185: 355 | G185: 448 | H185: 316 | I185: 200 | J185: 164 | K185: 45 | L185: 1,758 | M185: 104 | N185: 244 | O185: 319 | P185: 184 | Q185: 163 | R185: 346 | S185: 529 | T185: 73 | U185: 0 | V185: M
B186: 4 | C186: 8,390 | D186: 1,346 | E186: 483 | F186: 396 | G186: 631 | H186: 829 | I186: 207 | J186: 311 | K186: 38 | L186: 2,306 | M186: 114 | N186: 234 | O186: 409 | P186: 177 | Q186: 138 | R186: 200 | S186: 513 | T186: 58 | U186: 0 | V186: A
B187: 5 | C187: 7,301 | D187: 1,275 | E187: 523 | F187: 301 | G187: 640 | H187: 428 | I187: 202 | J187: 288 | K187: 42 | L187: 1,987 | M187: 94 | N187: 193 | O187: 286 | P187: 125 | Q187: 114 | R187: 284 | S187: 476 | T187: 44 | U187: 0 | V187: M
B188: 6 | C188: 8,936 | D188: 1,482 | E188: 770 | F188: 591 | G188: 827 | H188: 353 | I188: 338 | J188: 165 | K188: 44 | L188: 2,756 | M188: 78 | N188: 237 | O188: 201 | P188: 272 | Q188: 121 | R188: 265 | S188: 379 | T188: 57 | U188: 0 | V188: J
B189: 7 | C189: 11,983 | D189: 1,737 | E189: 822 | F189: 1,000 | G189: 1,204 | H189: 402 | I189: 445 | J189: 174 | K189: 56 | L189: 3,968 | M189: 95 | N189: 297 | O189: 309 | P189: 249 | Q189: 251 | R189: 257 | S189: 621 | T189: 96 | U189: 0 | V189: J
B190: 8 | C190: 14,062 | D190: 2,223 | E190: 829 | F190: 836 | G190: 1,031 | H190: 516 | I190: 396 | J190: 393 | K190: 284 | L190: 4,367 | M190: 140 | N190: 252 | O190: 563 | P190: 278 | Q190: 296 | R190: 435 | S190: 1,162 | T190: 63 | U190: 0 | V190: A
B191: 9 | C191: 17,172 | D191: 2,967 | E191: 1,303 | F191: 749 | G191: 1,404 | H191: 814 | I191: 407 | J191: 529 | K191: 260 | L191: 5,058 | M191: 282 | N191: 334 | O191: 633 | P191: 273 | Q191: 302 | R191: 390 | S191: 1,382 | T191: 86 | U191: 0 | V191: S
B192: 10 | C192: 23,282 | D192: 4,326 | E192: 2,131 | F192: 911 | G192: 1,734 | H192: 916 | I192: 503 | J192: 499 | K192: 280 | L192: 7,346 | M192: 301 | N192: 634 | O192: 865 | P192: 434 | Q192: 470 | R192: 443 | S192: 1,368 | T192: 122 | U192: 0 | V192: O
B193: 11 | C193: 19,806 | D193: 4,026 | E193: 1,322 | F193: 1,142 | G193: 1,183 | H193: 521 | I193: 389 | J193: 364 | K193: 156 | L193: 6,720 | M193: 447 | N193: 459 | O193: 885 | P193: 420 | Q193: 395 | R193: 373 | S193: 926 | T193: 80 | U193: 0 | V193: N
B194: 12 | C194: 16,184 | D194: 3,448 | E194: 948 | F194: 687 | G194: 1,015 | H194: 387 | I194: 188 | J194: 120 | K194: 284 | L194: 5,716 | M194: 205 | N194: 536 | O194: 601 | P194: 347 | Q194: 139 | R194: 541 | S194: 963 | T194: 58 | U194: 0 | V194: D
A196: 2017 | B196: 1 | C196: 11,850 | D196: 2,631 | E196: 1,096 | F196: 435 | G196: 513 | H196: 500 | I196: 153 | J196: 241 | K196: 176 | L196: 4,123 | M196: 102 | N196: 210 | O196: 366 | P196: 163 | Q196: 70 | R196: 327 | S196: 669 | T196: 75 | U196: 0 | V196: J | W196: 2017
B197: 2 | C197: 15,990 | D197: 2,207 | E197: 1,280 | F197: 689 | G197: 1,234 | H197: 736 | I197: 221 | J197: 322 | K197: 329 | L197: 5,489 | M197: 113 | N197: 328 | O197: 883 | P197: 281 | Q197: 123 | R197: 363 | S197: 1,305 | T197: 87 | U197: 0 | V197: F
B198: 3 | C198: 12,288 | D198: 1,388 | E198: 707 | F198: 668 | G198: 677 | H198: 561 | I198: 217 | J198: 289 | K198: 619 | L198: 4,587 | M198: 107 | N198: 196 | O198: 701 | P198: 177 | Q198: 122 | R198: 413 | S198: 792 | T198: 69 | U198: 0 | V198: M
B199: 4 | C199: 6,944 | D199: 771 | E199: 511 | F199: 318 | G199: 428 | H199: 321 | I199: 176 | J199: 250 | K199: 301 | L199: 2,080 | M199: 89 | N199: 151 | O199: 278 | P199: 144 | Q199: 107 | R199: 239 | S199: 720 | T199: 60 | U199: 0 | V199: A
B200: 5 | C200: 6,067 | D200: 715 | E200: 528 | F200: 224 | G200: 435 | H200: 242 | I200: 229 | J200: 176 | K200: 185 | L200: 1,877 | M200: 90 | N200: 104 | O200: 178 | P200: 137 | Q200: 92 | R200: 90 | S200: 725 | T200: 42 | U200: 0 | V200: M
B201: 6 | C201: 7,543 | D201: 996 | E201: 616 | F201: 338 | G201: 420 | H201: 320 | I201: 195 | J201: 206 | K201: 159 | L201: 2,307 | M201: 110 | N201: 120 | O201: 244 | P201: 208 | Q201: 133 | R201: 193 | S201: 920 | T201: 58 | U201: 0 | V201: J
B202: 7 | C202: 7,520 | D202: 898 | E202: 617 | F202: 358 | G202: 582 | H202: 316 | I202: 168 | J202: 162 | K202: 67 | L202: 2,238 | M202: 83 | N202: 142 | O202: 287 | P202: 196 | Q202: 182 | R202: 635 | S202: 558 | T202: 31 | U202: 0 | V202: J
B203: 8 | C203: 7,709 | D203: 1,084 | E203: 474 | F203: 589 | G203: 486 | H203: 410 | I203: 140 | J203: 127 | K203: 52 | L203: 2,440 | M203: 56 | N203: 154 | O203: 341 | P203: 168 | Q203: 131 | R203: 509 | S203: 525 | T203: 23 | U203: 0 | V203: A
B204: 9 | C204: 7,909 | D204: 849 | E204: 443 | F204: 586 | G204: 492 | H204: 393 | I204: 173 | J204: 414 | K204: 36 | L204: 2,766 | M204: 66 | N204: 121 | O204: 287 | P204: 128 | Q204: 119 | R204: 518 | S204: 477 | T204: 39 | U204: 0 | V204: S
B205: 10 | C205: 6,020 | D205: 719 | E205: 340 | F205: 475 | G205: 484 | H205: 335 | I205: 116 | J205: 216 | K205: 93 | L205: 2,099 | M205: 69 | N205: 85 | O205: 273 | P205: 101 | Q205: 88 | R205: 226 | S205: 280 | T205: 20 | U205: 0 | V205: O
B206: 11 | C206: 8,363 | D206: 880 | E206: 411 | F206: 587 | G206: 683 | H206: 324 | I206: 240 | J206: 237 | K206: 107 | L206: 3,139 | M206: 94 | N206: 161 | O206: 240 | P206: 237 | Q206: 138 | R206: 328 | S206: 488 | T206: 69 | U206: 0 | V206: N
B207: 12 | C207: 9,005 | D207: 1,076 | E207: 444 | F207: 536 | G207: 875 | H207: 391 | I207: 337 | J207: 274 | K207: 102 | L207: 3,343 | M207: 114 | N207: 213 | O207: 225 | P207: 212 | Q207: 111 | R207: 221 | S207: 471 | T207: 59 | U207: 0 | V207: D
A209: 2018 | B209: 1 | C209: 7,488 | D209: 948 | E209: 398 | F209: 335 | G209: 870 | H209: 385 | I209: 177 | J209: 157 | K209: 97 | L209: 2,367 | M209: 61 | N209: 149 | O209: 324 | P209: 396 | Q209: 107 | R209: 178 | S209: 502 | T209: 38 | U209: 0 | V209: J | W209: 2018
B210: 2 | C210: 7,457 | D210: 1,196 | E210: 437 | F210: 334 | G210: 575 | H210: 306 | I210: 123 | J210: 164 | K210: 162 | L210: 2,332 | M210: 57 | N210: 224 | O210: 376 | P210: 485 | Q210: 112 | R210: 183 | S210: 352 | T210: 40 | U210: 0 | V210: F
B211: 3 | C211: 6,855 | D211: 1,591 | E211: 412 | F211: 315 | G211: 396 | H211: 310 | I211: 97 | J211: 76 | K211: 152 | L211: 1,978 | M211: 28 | N211: 313 | O211: 325 | P211: 262 | Q211: 88 | R211: 195 | S211: 288 | T211: 29 | U211: 0 | V211: M
B212: 4 | C212: 5,304 | D212: 947 | E212: 238 | F212: 351 | G212: 362 | H212: 281 | I212: 107 | J212: 107 | K212: 163 | L212: 1,509 | M212: 69 | N212: 176 | O212: 322 | P212: 135 | Q212: 88 | R212: 170 | S212: 256 | T212: 22 | U212: 0 | V212: A
B213: 5 | C213: 5,217 | D213: 1,101 | E213: 181 | F213: 323 | G213: 319 | H213: 283 | I213: 113 | J213: 102 | K213: 100 | L213: 1,520 | M213: 92 | N213: 139 | O213: 331 | P213: 94 | Q213: 102 | R213: 110 | S213: 267 | T213: 39 | U213: 0 | V213: M
B214: 6 | C214: 6,039 | D214: 1,050 | E214: 262 | F214: 329 | G214: 291 | H214: 227 | I214: 130 | J214: 81 | K214: 215 | L214: 1,981 | M214: 85 | N214: 105 | O214: 373 | P214: 115 | Q214: 157 | R214: 198 | S214: 407 | T214: 34 | U214: 0 | V214: J
B215: 7 | C215: 4,826 | D215: 1,010 | E215: 193 | F215: 272 | G215: 237 | H215: 261 | I215: 127 | J215: 128 | K215: 96 | L215: 1,552 | M215: 79 | N215: 53 | O215: 189 | P215: 120 | Q215: 142 | R215: 121 | S215: 230 | T215: 16 | U215: 0 | V215: J
B216: 8 | C216: 4,947 | D216: 1,124 | E216: 172 | F216: 263 | G216: 174 | H216: 268 | I216: 111 | J216: 79 | K216: 78 | L216: 1,501 | M216: 73 | N216: 165 | O216: 251 | P216: 136 | Q216: 114 | R216: 171 | S216: 235 | T216: 33 | U216: 0 | V216: A
B217: 9 | C217: 4,251 | D217: 980 | E217: 130 | F217: 310 | G217: 169 | H217: 234 | I217: 82 | J217: 64 | K217: 86 | L217: 1,244 | M217: 67 | N217: 270 | O217: 106 | P217: 106 | Q217: 75 | R217: 133 | S217: 170 | T217: 24 | U217: 0 | V217: S
B218: 10 | C218: 7,449 | D218: 1,663 | E218: 297 | F218: 374 | G218: 378 | H218: 454 | I218: 146 | J218: 82 | K218: 76 | L218: 2,301 | M218: 79 | N218: 424 | O218: 321 | P218: 157 | Q218: 187 | R218: 199 | S218: 264 | T218: 47 | U218: 0 | V218: O
... 293 more rows

Sheet 11. 금융기관별 판매실적(보금)
A1: 11. 금융기관별 판매실적(보금자리론)3,4) | N1: Bogeumjari(Mortgage) Loan Origination by Lenders
A3: 단위 : 억원, 건 | Z3: Hundred million won, #
A4: 연월중 | C4: 합계 | D4: 하나은행 | E4: 외환은행1) | F4: 국민은행 | G4: 우리은행 | H4: 한국스탠다드 차타드은행 | I4: 삼성생명 | J4: 기업은행 | K4: 한화생명 | L4: 농협은행 | M4: 삼성화재 | N4: 신한은행 | O4: 대구은행 | P4: 수협은행 | Q4: 한국 씨티은행 | R4: 경남은행 | S4: 광주은행 | T4: 부산은행 | U4: 제주은행 | V4: 흥국생명 | W4: 전북은행 | X4: 기타5) | Y4: 연월중
A6: During | C6: Total | D6: Hana Bank | E6: Korea Exchange Bank | F6: Kookmin Bank | G6: Woori Bank | H6: Standard Chartered Bank | I6: Samsung Life Insurance Co. | J6: Industrial Bank of Korea | K6: Hanwha Life Insurance Co. | L6: Nong Hyup Bank | M6: Samsung Fire&Marine Insurance Co. | N6: Shinhan Bank | O6: Daegu Bank | P6: Suhyup Bank | Q6: Citi Bank Korea | R6: Kyongnam Bank | S6: KwangJu Bank | T6: Busan Bank | U6: Jeju Bank | V6: Heungkuk Life Insurance | W6: Jeonbuk Bank | X6: Others | Y6: During
A8: 대출금액2) | N8: Loan Amount
A9: 2004 | C9: =SUM(D9:X9) -> 33,343 | D9: =SUM(D29:D38) -> 12,536 | E9: =SUM(E29:E38) -> 5,424 | F9: 2,853 | G9: 2,130 | H9: 3,197 | I9: 1,937 | J9: 1,220 | K9: 979 | L9: 1,102 | M9: 468 | N9: 513 | O9: 139 | P9: 86 | Q9: 166 | R9: 155 | S9: 29 | T9: 26 | U9: 2 | V9: 0 | W9: 4 | X9: 376 | Y9: 2004
A10: 2005 | C10: =SUM(D10:X10) -> 42,240 | D10: =SUM(D40:D51) -> 13,285 | E10: =SUM(E40:E51) -> 7,526 | F10: 3,335 | G10: 3,683 | H10: 3,329 | I10: 3,372 | J10: 943 | K10: 643 | L10: 845 | M10: 445 | N10: 1,864 | O10: 220 | P10: 80 | Q10: 1,078 | R10: 473 | S10: 80 | T10: 65 | U10: 2 | V10: 0 | W10: 10 | X10: 963 | Y10: 2005
A11: 2006 | C11: 13,903 | D11: =SUM(D53:D64) -> 2,847 | E11: =SUM(E53:E64) -> 1,134 | F11: 1,373 | G11: 1,374 | H11: 1,016 | I11: 1,006 | J11: 325 | K11: 305 | L11: 539 | M11: 117 | N11: 284 | O11: 89 | P11: 26 | Q11: 164 | R11: 279 | S11: 111 | T11: 5 | U11: 2 | V11: 0 | W11: 1 | X11: 2907 | Y11: 2006
A12: 2007 | C12: 36,292 | D12: =SUM(D66:D77) -> 16,662 | E12: =SUM(E66:E77) -> 1,242 | F12: 5,387 | G12: 3,160 | H12: 1,675 | I12: 2,578 | J12: 805 | K12: 575 | L12: 1,853 | M12: 129 | N12: 413 | O12: 96 | P12: 28 | Q12: 545 | R12: 757 | S12: 187 | T12: 73 | U12: 9 | V12: 27 | W12: 0 | X12: 92 | Y12: 2007
A13: 2008 | C13: 42,739 | D13: =SUM(D79:D90) -> 11,990 | E13: =SUM(E79:E90) -> 1,672 | F13: 8,703 | G13: 4,797 | H13: 4,407 | I13: 1,405 | J13: 1,705 | K13: 176 | L13: 2,528 | M13: 146 | N13: 1,249 | O13: 431 | P13: 20 | Q13: 1,523 | R13: 1,033 | S13: 233 | T13: 485 | U13: 5 | V13: 170 | W13: 0 | X13: 62 | Y13: 2008
A14: 2009 | C14: 59,436 | D14: =SUM(D92:D103) -> 9,367 | E14: =SUM(E92:E103) -> 5,275 | F14: 4,674 | G14: 11,261 | H14: 8,213 | I14: 1,254 | J14: 2,054 | K14: 0 | L14: 2,606 | M14: 119 | N14: 11,214 | O14: 336 | P14: 10 | Q14: 1,124 | R14: 1,257 | S14: 386 | T14: 233 | U14: 3 | V14: 49 | W14: 0 | X14: 0 | Y14: 2009
A15: 2010 | C15: 58,480 | D15: =SUM(D105:D116) -> 6,837 | E15: =SUM(E105:E116) -> 2,186 | F15: 3,919 | G15: 4,051 | H15: 1,777 | I15: 2,647 | J15: 27,806 | K15: 0 | L15: 2,038 | M15: 196 | N15: 3,693 | O15: 166 | P15: 5 | Q15: 2,214 | R15: 393 | S15: 271 | T15: 162 | U15: 4 | V15: 115 | W15: 0 | X15: 0 | Y15: 2010
A16: 2011 | C16: 94,147 | D16: =SUM(D118:D129) -> 10,029 | E16: =SUM(E118:E129) -> 686 | F16: 8,724 | G16: 5,830 | H16: 1,852 | I16: 7,068 | J16: 46,023 | K16: 0 | L16: 651 | M16: 512 | N16: 8,775 | O16: 225 | P16: 1 | Q16: 1,157 | R16: 380 | S16: 466 | T16: 452 | U16: 3 | V16: 679 | W16: 0 | X16: 634 | Y16: 2011
A17: 2012 | C17: 112,045 | D17: =SUM(D131:D142) -> 12,786 | E17: =SUM(E131:E142) -> 3,055 | F17: 22,783 | G17: 12,551 | H17: 2,077 | I17: 4,870 | J17: 24,843 | K17: 0 | L17: 2,132 | M17: 892 | N17: 15,561 | O17: 1,346 | P17: 80 | Q17: 1,046 | R17: 1,588 | S17: 842 | T17: 1,256 | U17: 1 | V17: 815 | W17: 73 | X17: 3446 | Y17: 2012
A18: 2013 | C18: 119,047 | D18: =SUM(D144:D155) -> 12,444 | E18: =SUM(E144:E155) -> 6,221 | F18: 23,159 | G18: 16,262 | H18: 3,795 | I18: 4,856 | J18: 17,710 | K18: 0 | L18: 7,729 | M18: 185 | N18: 16,834 | O18: 1,683 | P18: 259 | Q18: 1,162 | R18: 1,432 | S18: 281 | T18: 2,070 | U18: 3 | V18: 539 | W18: 98 | X18: 2324 | Y18: 2013
A19: 2014 | C19: 24,796 | D19: =SUM(D157:D168) -> 9,548 | E19: =SUM(E157:E168) -> 773 | F19: 2,897 | G19: 2,198 | H19: 216 | I19: 261 | J19: 3,003 | K19: 0 | L19: 1,633 | M19: 3 | N19: 2,156 | O19: 191 | P19: 35 | Q19: 220 | R19: 365 | S19: 66 | T19: 765 | U19: 3 | V19: 74 | W19: 33 | X19: 357 | Y19: 2014
A20: 2015 | C20: 102,885 | D20: =SUM(D170:D181) -> 69,490 | E20: =SUM(E170:E181) -> 3,275 | F20: 6,976 | G20: 4,589 | H20: 182 | I20: 228 | J20: 6,154 | K20: 0 | L20: 4,396 | M20: 0 | N20: 4,663 | O20: 336 | P20: 95 | Q20: 94 | R20: 1,124 | S20: 100 | T20: 897 | U20: 18 | V20: 14 | W20: 29 | X20: 226 | Y20: 2015
A21: 2016 | C21: 144,348 | D21: =SUM(D183:D194) -> 76,227 | E21: =SUM(E183:E194) -> 1,264 | F21: 6,948 | G21: 11,006 | H21: 1,396 | I21: 5 | J21: 5,936 | K21: 0 | L21: 9,104 | M21: 0 | N21: 29,546 | O21: 308 | P21: 58 | Q21: 12 | R21: 1,752 | S21: 58 | T21: 656 | U21: 27 | V21: 0 | W21: 23 | X21: 24 | Y21: 2016
A22: 2017 | C22: 107,207 | D22: =SUM(D196:D207) -> 34,684 | E22: =SUM(E196:E207) -> 0 | F22: 8,592 | G22: 24,244 | H22: 734 | I22: 77 | J22: 5,680 | K22: 0 | L22: 12,655 | M22: 0 | N22: 17,715 | O22: 151 | P22: 76 | Q22: 0 | R22: 1,686 | S22: 33 | T22: 788 | U22: 83 | V22: 0 | W22: 7 | X22: 2 | Y22: 2017
A23: 2018 | C23: 75,597 | D23: =SUM(D209:D220) -> 18,204 | E23: =SUM(E209:E220) -> 0 | F23: 14,093 | G23: 18,232 | H23: 741 | I23: 276 | J23: 2,188 | K23: 0 | L23: 5,374 | M23: 0 | N23: 14,964 | O23: 263 | P23: 21 | Q23: 0 | R23: 732 | S23: 20 | T23: 475 | U23: 5 | V23: 0 | W23: 7 | X23: 0 | Y23: 2018
A24: 2019 | C24: 270,579 | D24: =SUM(D222:D233) -> 52,969 | E24: =SUM(E222:E233) -> 0 | F24: 65,364 | G24: 58,696 | H24: 6,048 | I24: 1,104 | J24: 6,285 | K24: 0 | L24: 20,726 | M24: 0 | N24: 49,084 | O24: 1,655 | P24: 315 | Q24: 0 | R24: 2,229 | S24: 372 | T24: 4,458 | U24: 164 | V24: 0 | W24: 247 | X24: 864 | Y24: 2019
A25: 2020 | C25: =SUM(D25:X25) -> 363,735 | D25: =SUM(D235:D246) -> 70,146 | E25: =SUM(E235:E246) -> 0 | F25: 99,795 | G25: 72,510 | H25: 10,714 | I25: 1,207 | J25: 5,447 | K25: 0 | L25: 16,920 | M25: 0 | N25: 77,470 | O25: 1,866 | P25: 107 | Q25: 0 | R25: 1,477 | S25: 93 | T25: 5,261 | U25: 31 | V25: 0 | W25: 43 | X25: 648 | Y25: 2020
A26: 2021 | C26: =SUM(D26:X26) -> 233,409 | D26: =SUM(D248:D259) -> 51,588 | E26: =SUM(E248:E259) -> 0 | F26: =SUM(F248:F259) -> 55,221 | G26: =SUM(G248:G259) -> 44,631 | H26: 7,798 | I26: 904 | J26: 4,691 | K26: 0 | L26: 21,110 | M26: 0 | N26: 42,093 | O26: 2,030 | P26: 73 | Q26: 0 | R26: 766 | S26: 11 | T26: 2,280 | U26: 26 | V26: 0 | W26: 7 | X26: =SUM(X248:X259) -> 180 | Y26: 2021
A27: 2022 | C27: =SUM(D27:X27) -> 74,709 | D27: =SUM(D261:D268) -> 22,481 | E27: 0 | F27: 13,913 | G27: 10,828 | H27: 3,399 | I27: 0 | J27: 522 | K27: 0 | L27: 10,197 | M27: 0 | N27: 12,370 | O27: 83 | P27: 5 | Q27: 0 | R27: 17 | S27: 14 | T27: 868 | U27: 7 | V27: 0 | W27: 6 | X27: 0 | Y27: 2022
A29: 2004 | B29: 3 | C29: =SUM(D29:X29) -> 351 | D29: 259 | E29: 11 | F29: 14 | G29: 37 | H29: 16 | I29: 0 | J29: 6 | K29: 1 | L29: 7 | M29: 0 | N29: 0 | O29: 0 | P29: 0 | Q29: 0 | R29: 0 | S29: 0 | T29: 0 | U29: 0 | V29: 0 | W29: 0 | X29: 0 | Y29: M | Z29: 2004
B30: 4 | C30: =SUM(D30:X30) -> 3,634 | D30: 1,644 | E30: 259 | F30: 452 | G30: 354 | H30: 388 | I30: 213 | J30: 91 | K30: 129 | L30: 103 | M30: 0 | N30: 0 | O30: 0 | P30: 0 | Q30: 0 | R30: 0 | S30: 0 | T30: 0 | U30: 0 | V30: 0 | W30: 0 | X30: 0 | Y30: A
B31: 5 | C31: 4,564 | D31: 1,979 | E31: 363 | F31: 433 | G31: 404 | H31: 393 | I31: 294 | J31: 321 | K31: 205 | L31: 173 | M31: 0 | N31: 0 | O31: 0 | P31: 0 | Q31: 0 | R31: 0 | S31: 0 | T31: 0 | U31: 0 | V31: 0 | W31: 0 | X31: 0 | Y31: M
B32: 6 | C32: 3,938 | D32: 1,614 | E32: 473 | F32: 350 | G32: 299 | H32: 450 | I32: 230 | J32: 196 | K32: 157 | L32: 167 | M32: 0 | N32: 0 | O32: 0 | P32: 0 | Q32: 0 | R32: 0 | S32: 0 | T32: 0 | U32: 0 | V32: 0 | W32: 0 | X32: 0 | Y32: J
B33: 7 | C33: 3,358 | D33: 1,278 | E33: 686 | F33: 274 | G33: 168 | H33: 351 | I33: 194 | J33: 173 | K33: 116 | L33: 118 | M33: 0 | N33: 0 | O33: 0 | P33: 0 | Q33: 0 | R33: 0 | S33: 0 | T33: 0 | U33: 0 | V33: 0 | W33: 0 | X33: 0 | Y33: J
B34: 8 | C34: 3,318 | D34: 1,166 | E34: 805 | F34: 211 | G34: 196 | H34: 281 | I34: 167 | J34: 129 | K34: 77 | L34: 98 | M34: 40 | N34: 61 | O34: 16 | P34: 4 | Q34: 8 | R34: 3 | S34: 2 | T34: 4 | U34: 0 | V34: 0 | W34: 0 | X34: 49 | Y34: A
B35: 9 | C35: 2,896 | D35: 920 | E35: 553 | F35: 185 | G35: 169 | H35: 255 | I35: 146 | J35: 84 | K35: 89 | L35: 87 | M35: 120 | N35: 68 | O35: 41 | P35: 40 | Q35: 22 | R35: 24 | S35: 7 | T35: 4 | U35: 0 | V35: 0 | W35: 2 | X35: 79 | Y35: S
B36: 10 | C36: 3,436 | D36: 1,196 | E36: 599 | F36: 264 | G36: 147 | H36: 351 | I36: 191 | J36: 87 | K36: 58 | L36: 118 | M36: 118 | N36: 116 | O36: 26 | P36: 18 | Q36: 35 | R36: 30 | S36: 1 | T36: 5 | U36: 1 | V36: 0 | W36: 1 | X36: 71 | Y36: O
B37: 11 | C37: 3,566 | D37: 1,157 | E37: 679 | F37: 311 | G37: 152 | H37: 325 | I37: 227 | J37: 64 | K37: 59 | L37: 125 | M37: 97 | N37: 124 | O37: 35 | P37: 12 | Q37: 44 | R37: 54 | S37: 6 | T37: 5 | U37: 1 | V37: 0 | W37: 0 | X37: 89 | Y37: N
B38: 12 | C38: 4,282 | D38: 1,323 | E38: 995 | F38: 359 | G38: 204 | H38: 387 | I38: 273 | J38: 69 | K38: 89 | L38: 104 | M38: 92 | N38: 144 | O38: 22 | P38: 12 | Q38: 56 | R38: 44 | S38: 12 | T38: 8 | U38: 0 | V38: 0 | W38: 0 | X38: 88 | Y38: D
A40: 2005 | B40: 1 | C40: 3,420 | D40: 1,061 | E40: 786 | F40: 275 | G40: 187 | H40: 282 | I40: 260 | J40: 53 | K40: 57 | L40: 99 | M40: 34 | N40: 132 | O40: 19 | P40: 11 | Q40: 43 | R40: 39 | S40: 8 | T40: 7 | U40: 2 | V40: 0 | W40: 0 | X40: 65 | Y40: J | Z40: 2005
B41: 2 | C41: 4,808 | D41: 1,668 | E41: 807 | F41: 384 | G41: 344 | H41: 407 | I41: 349 | J41: 100 | K41: 86 | L41: 103 | M41: 47 | N41: 213 | O41: 20 | P41: 7 | Q41: 101 | R41: 56 | S41: 4 | T41: 15 | U41: 0 | V41: 0 | W41: 2 | X41: 94 | Y41: F
B42: 3 | C42: 6,873 | D42: 2,398 | E42: 1,112 | F42: 491 | G42: 437 | H42: 635 | I42: 577 | J42: 110 | K42: 142 | L42: 130 | M42: 54 | N42: 337 | O42: 26 | P42: 12 | Q42: 193 | R42: 62 | S42: 9 | T42: 15 | U42: 0 | V42: 0 | W42: 1 | X42: 131 | Y42: M
B43: 4 | C43: 5,636 | D43: 1,884 | E43: 925 | F43: 354 | G43: 492 | H43: 566 | I43: 446 | J43: 114 | K43: 66 | L43: 95 | M43: 44 | N43: 306 | O43: 4 | P43: 11 | Q43: 144 | R43: 62 | S43: 5 | T43: 6 | U43: 0 | V43: 0 | W43: 0 | X43: 111 | Y43: A
B44: 5 | C44: 3,937 | D44: 1,171 | E44: 856 | F44: 265 | G44: 352 | H44: 356 | I44: 283 | J44: 85 | K44: 33 | L44: 63 | M44: 46 | N44: 162 | O44: 45 | P44: 12 | Q44: 118 | R44: 34 | S44: 6 | T44: 6 | U44: 0 | V44: 0 | W44: 3 | X44: 42 | Y44: M
B45: 6 | C45: 3,757 | D45: 1,100 | E45: 857 | F45: 313 | G45: 330 | H45: 296 | I45: 274 | J45: 78 | K45: 35 | L45: 66 | M45: 33 | N45: 133 | O45: 22 | P45: 2 | Q45: 109 | R45: 38 | S45: 9 | T45: 3 | U45: 0 | V45: 0 | W45: 0 | X45: 59 | Y45: J
B46: 7 | C46: 3,144 | D46: 950 | E46: 521 | F46: 237 | G46: 338 | H46: 202 | I46: 276 | J46: 110 | K46: 33 | L46: 49 | M46: 37 | N46: 129 | O46: 21 | P46: 7 | Q46: 102 | R46: 30 | S46: 6 | T46: 1 | U46: 0 | V46: 0 | W46: 0 | X46: 92 | Y46: J
B47: 8 | C47: 3,195 | D47: 1,013 | E47: 524 | F47: 259 | G47: 399 | H47: 151 | I47: 254 | J47: 82 | K47: 45 | L47: 45 | M47: 30 | N47: 148 | O47: 12 | P47: 5 | Q47: 96 | R47: 33 | S47: 1 | T47: 4 | U47: 0 | V47: 0 | W47: 0 | X47: 92 | Y47: A
B48: 9 | C48: 2,656 | D48: 867 | E48: 405 | F48: 273 | G48: 293 | H48: 135 | I48: 182 | J48: 58 | K48: 39 | L48: 40 | M48: 44 | N48: 106 | O48: 17 | P48: 6 | Q48: 92 | R48: 36 | S48: 1 | T48: 3 | U48: 0 | V48: 0 | W48: 0 | X48: 59 | Y48: S
B49: 10 | C49: 1,968 | D49: 578 | E49: 296 | F49: 201 | G49: 202 | H49: 106 | I49: 156 | J49: 64 | K49: 32 | L49: 49 | M49: 29 | N49: 78 | O49: 14 | P49: 4 | Q49: 68 | R49: 24 | S49: 13 | T49: 2 | U49: 0 | V49: 0 | W49: 0 | X49: 50 | Y49: O
B50: 11 | C50: 1,418 | D50: 292 | E50: 224 | F50: 136 | G50: 142 | H50: 98 | I50: 179 | J50: 46 | K50: 40 | L50: 49 | M50: 35 | N50: 58 | O50: 4 | P50: 2 | Q50: 13 | R50: 30 | S50: 8 | T50: 3 | U50: 0 | V50: 0 | W50: 1 | X50: 59 | Y50: N
B51: 12 | C51: 1,431 | D51: 303 | E51: 211 | F51: 145 | G51: 167 | H51: 94 | I51: 135 | J51: 43 | K51: 35 | L51: 58 | M51: 15 | N51: 61 | O51: 14 | P51: 1 | Q51: 0 | R51: 29 | S51: 10 | T51: 0 | U51: 0 | V51: 0 | W51: 2 | X51: 109 | Y51: D
A53: 2006 | B53: 1 | C53: 704 | D53: 122 | E53: 140 | F53: 52 | G53: 56 | H53: 39 | I53: 59 | J53: 21 | K53: 19 | L53: 21 | M53: 11 | N53: 16 | O53: 1 | P53: 5 | Q53: 0 | R53: 16 | S53: 4 | T53: 0 | U53: 0 | V53: 0 | W53: 0 | X53: 121 | Y53: J | Z53: 2006
B54: 2 | C54: 1,022 | D54: 229 | E54: 118 | F54: 98 | G54: 91 | H54: 90 | I54: 94 | J54: 30 | K54: 17 | L54: 37 | M54: 12 | N54: 35 | O54: 11 | P54: 1 | Q54: 0 | R54: 36 | S54: 7 | T54: 0 | U54: 0 | V54: 0 | W54: 0 | X54: 115 | Y54: F
B55: 3 | C55: 1,015 | D55: 207 | E55: 136 | F55: 85 | G55: 85 | H55: 145 | I55: 100 | J55: 13 | K55: 28 | L55: 45 | M55: 12 | N55: 26 | O55: 8 | P55: 3 | Q55: 2 | R55: 15 | S55: 6 | T55: 0 | U55: 0 | V55: 0 | W55: 0 | X55: 99 | Y55: M
B56: 4 | C56: 870 | D56: 171 | E56: 112 | F56: 74 | G56: 69 | H56: 116 | I56: 86 | J56: 2 | K56: 17 | L56: 30 | M56: 4 | N56: 16 | O56: 9 | P56: 1 | Q56: 7 | R56: 12 | S56: 3 | T56: 0 | U56: 0 | V56: 0 | W56: 0 | X56: 141 | Y56: A
B57: 5 | C57: 732 | D57: 152 | E57: 76 | F57: 58 | G57: 62 | H57: 57 | I57: 70 | J57: 7 | K57: 22 | L57: 20 | M57: 8 | N57: 29 | O57: 2 | P57: 2 | Q57: 8 | R57: 21 | S57: 4 | T57: 0 | U57: 0 | V57: 0 | W57: 0 | X57: 132 | Y57: M
B58: 6 | C58: 854 | D58: 179 | E58: 79 | F58: 78 | G58: 89 | H58: 64 | I58: 58 | J58: 68 | K58: 32 | L58: 14 | M58: 6 | N58: 18 | O58: 7 | P58: 1 | Q58: 11 | R58: 23 | S58: 8 | T58: 0 | U58: 0 | V58: 0 | W58: 0 | X58: 118 | Y58: J
B59: 7 | C59: 1,278 | D59: 233 | E59: 70 | F59: 102 | G59: 112 | H59: 60 | I59: 67 | J59: 19 | K59: 21 | L59: 23 | M59: 10 | N59: 19 | O59: 10 | P59: 1 | Q59: 17 | R59: 26 | S59: 8 | T59: 0 | U59: 0 | V59: 0 | W59: 0 | X59: 482 | Y59: J
B60: 8 | C60: 1,388 | D60: 185 | E60: 46 | F60: 93 | G60: 127 | H60: 54 | I60: 87 | J60: 15 | K60: 29 | L60: 34 | M60: 13 | N60: 15 | O60: 6 | P60: 2 | Q60: 28 | R60: 28 | S60: 7 | T60: 1 | U60: 1 | V60: 0 | W60: 0 | X60: 616 | Y60: A
B61: 9 | C61: 1,872 | D61: 304 | E61: 81 | F61: 130 | G61: 156 | H61: 101 | I61: 104 | J61: 40 | K61: 30 | L61: 62 | M61: 7 | N61: 24 | O61: 11 | P61: 0 | Q61: 28 | R61: 32 | S61: 19 | T61: 0 | U61: 0 | V61: 0 | W61: 0 | X61: 744 | Y61: S
B62: 10 | C62: 1,246 | D62: 235 | E62: 64 | F62: 154 | G62: 132 | H62: 62 | I62: 86 | J62: 30 | K62: 22 | L62: 66 | M62: 10 | N62: 20 | O62: 5 | P62: 1 | Q62: 19 | R62: 17 | S62: 13 | T62: 0 | U62: 0 | V62: 0 | W62: 0 | X62: 309 | Y62: O
B63: 11 | C63: 1,231 | D63: 356 | E63: 88 | F63: 191 | G63: 138 | H63: 88 | I63: 108 | J63: 31 | K63: 31 | L63: 71 | M63: 12 | N63: 33 | O63: 9 | P63: 4 | Q63: 17 | R63: 26 | S63: 13 | T63: 1 | U63: 0 | V63: 0 | W63: 0 | X63: 13 | Y63: N
B64: 12 | C64: 1,690 | D64: 474 | E64: 123 | F64: 257 | G64: 257 | H64: 139 | I64: 86 | J64: 48 | K64: 37 | L64: 117 | M64: 11 | N64: 32 | O64: 12 | P64: 5 | Q64: 28 | R64: 27 | S64: 20 | T64: 2 | U64: 1 | V64: 0 | W64: 0 | X64: 16 | Y64: D
A66: 2007 | B66: 1 | C66: 2,414 | D66: 1,319 | E66: 100 | F66: 195 | G66: 244 | H66: 76 | I66: 226 | J66: 27 | K66: 23 | L66: 112 | M66: 8 | N66: 14 | O66: 8 | P66: 1 | Q66: 9 | R66: 29 | S66: 9 | T66: 4 | U66: 1 | V66: 0 | W66: 0 | X66: 9 | Y66: J | Z66: 2007
B67: 2 | C67: 2,782 | D67: 1,655 | E67: 68 | F67: 198 | G67: 268 | H67: 72 | I67: 191 | J67: 28 | K67: 24 | L67: 137 | M67: 10 | N67: 22 | O67: 6 | P67: 2 | Q67: 20 | R67: 45 | S67: 21 | T67: 5 | U67: 0 | V67: 0 | W67: 0 | X67: 10 | Y67: F
B68: 3 | C68: 2,544 | D68: 1,347 | E68: 76 | F68: 244 | G68: 266 | H68: 77 | I68: 164 | J68: 35 | K68: 54 | L68: 133 | M68: 9 | N68: 27 | O68: 7 | P68: 2 | Q68: 15 | R68: 54 | S68: 14 | T68: 4 | U68: 1 | V68: 0 | W68: 0 | X68: 14 | Y68: M
B69: 4 | C69: 2,453 | D69: 1,187 | E69: 75 | F69: 299 | G69: 268 | H69: 115 | I69: 126 | J69: 54 | K69: 36 | L69: 143 | M69: 3 | N69: 43 | O69: 11 | P69: 2 | Q69: 15 | R69: 56 | S69: 12 | T69: 3 | U69: 1 | V69: 0 | W69: 0 | X69: 3 | Y69: A
B70: 5 | C70: 2,511 | D70: 1,223 | E70: 89 | F70: 339 | G70: 217 | H70: 137 | I70: 136 | J70: 45 | K70: 38 | L70: 115 | M70: 5 | N70: 40 | O70: 7 | P70: 4 | Q70: 35 | R70: 55 | S70: 13 | T70: 8 | U70: 0 | V70: 0 | W70: 0 | X70: 6 | Y70: M
B71: 6 | C71: 2,763 | D71: 1,219 | E71: 93 | F71: 394 | G71: 224 | H71: 130 | I71: 314 | J71: 49 | K71: 61 | L71: 113 | M71: 3 | N71: 47 | O71: 7 | P71: 3 | Q71: 30 | R71: 51 | S71: 12 | T71: 4 | U71: 0 | V71: 0 | W71: 0 | X71: 9 | Y71: J
B72: 7 | C72: 3,603 | D72: 1,639 | E72: 87 | F72: 500 | G72: 239 | H72: 171 | I72: 446 | J72: 89 | K72: 76 | L72: 142 | M72: 5 | N72: 61 | O72: 10 | P72: 3 | Q72: 41 | R72: 72 | S72: 10 | T72: 12 | U72: 0 | V72: 0 | W72: 0 | X72: 3 | Y72: J
B73: 8 | C73: 3,344 | D73: 1,514 | E73: 184 | F73: 565 | G73: 258 | H73: 151 | I73: 240 | J73: 60 | K73: 54 | L73: 114 | M73: 3 | N73: 46 | O73: 4 | P73: 1 | Q73: 56 | R73: 69 | S73: 13 | T73: 6 | U73: 0 | V73: 0 | W73: 0 | X73: 5 | Y73: A
B74: 9 | C74: 2,505 | D74: 1,096 | E74: 66 | F74: 470 | G74: 162 | H74: 140 | I74: 157 | J74: 63 | K74: 41 | L74: 122 | M74: 12 | N74: 53 | O74: 6 | P74: 0 | Q74: 34 | R74: 56 | S74: 11 | T74: 2 | U74: 2 | V74: 0 | W74: 0 | X74: 12 | Y74: S
B75: 10 | C75: 3,485 | D75: 1,396 | E75: 121 | F75: 657 | G75: 305 | H75: 175 | I75: 201 | J75: 107 | K75: 58 | L75: 202 | M75: 13 | N75: 22 | O75: 8 | P75: 5 | Q75: 98 | R75: 78 | S75: 18 | T75: 7 | U75: 0 | V75: 6 | W75: 0 | X75: 9 | Y75: O
B76: 11 | C76: 3,345 | D76: 1,282 | E76: 122 | F76: 675 | G76: 303 | H76: 154 | I76: 204 | J76: 96 | K76: 47 | L76: 210 | M76: 20 | N76: 12 | O76: 6 | P76: 1 | Q76: 83 | R76: 75 | S76: 27 | T76: 9 | U76: 1 | V76: 8 | W76: 0 | X76: 8 | Y76: N
B77: 12 | C77: 4,543 | D77: 1,785 | E77: 160 | F77: 852 | G77: 406 | H77: 278 | I77: 174 | J77: 152 | K77: 62 | L77: 309 | M77: 38 | N77: 25 | O77: 19 | P77: 4 | Q77: 109 | R77: 116 | S77: 26 | T77: 9 | U77: 3 | V77: 13 | W77: 0 | X77: 5 | Y77: D
A79: 2008 | B79: 1 | C79: 5,937 | D79: 2,316 | E79: 132 | F79: 1,199 | G79: 477 | H79: 362 | I79: 256 | J79: 152 | K79: 83 | L79: 367 | M79: 24 | N79: 185 | O79: 12 | P79: 2 | Q79: 98 | R79: 156 | S79: 32 | T79: 15 | U79: 1 | V79: 61 | W79: 0 | X79: 8 | Y79: J | Z79: 2008
B80: 2 | C80: 5,072 | D80: 1,926 | E80: 171 | F80: 968 | G80: 409 | H80: 469 | I80: 243 | J80: 120 | K80: 54 | L80: 212 | M80: 19 | N80: 103 | O80: 29 | P80: 3 | Q80: 128 | R80: 119 | S80: 23 | T80: 53 | U80: 0 | V80: 20 | W80: 0 | X80: 4 | Y80: F
B81: 3 | C81: 3,955 | D81: 1,257 | E81: 202 | F81: 680 | G81: 259 | H81: 566 | I81: 140 | J81: 118 | K81: 30 | L81: 180 | M81: 11 | N81: 78 | O81: 50 | P81: 1 | Q81: 143 | R81: 79 | S81: 28 | T81: 102 | U81: 2 | V81: 17 | W81: 0 | X81: 12 | Y81: M
B82: 4 | C82: 5,161 | D82: 1,418 | E82: 282 | F82: 887 | G82: 366 | H82: 855 | I82: 137 | J82: 159 | K82: 8 | L82: 253 | M82: 7 | N82: 65 | O82: 44 | P82: 7 | Q82: 260 | R82: 156 | S82: 31 | T82: 201 | U82: 0 | V82: 18 | W82: 0 | X82: 10 | Y82: A
B83: 5 | C83: 4,127 | D83: 1,124 | E83: 196 | F83: 808 | G83: 460 | H83: 641 | I83: 100 | J83: 156 | K83: 0 | L83: 211 | M83: 9 | N83: 51 | O83: 26 | P83: 0 | Q83: 197 | R83: 98 | S83: 13 | T83: 18 | U83: 2 | V83: 12 | W83: 0 | X83: 3 | Y83: M
B84: 6 | C84: 3,849 | D84: 915 | E84: 129 | F84: 934 | G84: 461 | H84: 487 | I84: 86 | J84: 211 | K84: 0 | L84: 196 | M84: 13 | N84: 45 | O84: 22 | P84: 3 | Q84: 195 | R84: 99 | S84: 6 | T84: 26 | U84: 0 | V84: 9 | W84: 0 | X84: 12 | Y84: J
B85: 7 | C85: 4,250 | D85: 1,049 | E85: 147 | F85: 1,083 | G85: 630 | H85: 357 | I85: 120 | J85: 228 | K85: 0 | L85: 216 | M85: 22 | N85: 64 | O85: 36 | P85: 1 | Q85: 164 | R85: 78 | S85: 17 | T85: 26 | U85: 0 | V85: 9 | W85: 0 | X85: 4 | Y85: J
B86: 8 | C86: 4,346 | D86: 978 | E86: 179 | F86: 1,014 | G86: 722 | H86: 328 | I86: 134 | J86: 205 | K86: 0 | L86: 314 | M86: 9 | N86: 118 | O86: 69 | P86: 2 | Q86: 153 | R86: 67 | S86: 17 | T86: 19 | U86: 0 | V86: 14 | W86: 0 | X86: 4 | Y86: A
B87: 9 | C87: 2,835 | D87: 608 | E87: 85 | F87: 590 | G87: 456 | H87: 209 | I87: 61 | J87: 157 | K87: 0 | L87: 217 | M87: 22 | N87: 168 | O87: 58 | P87: 0 | Q87: 95 | R87: 62 | S87: 18 | T87: 13 | U87: 0 | V87: 10 | W87: 0 | X87: 5 | Y87: S
B88: 10 | C88: 1,880 | D88: 303 | E88: 82 | F88: 377 | G88: 318 | H88: 83 | I88: 53 | J88: 102 | K88: 0 | L88: 175 | M88: 10 | N88: 211 | O88: 29 | P88: 0 | Q88: 53 | R88: 53 | S88: 26 | T88: 6 | U88: 0 | V88: 0 | W88: 0 | X88: 0 | Y88: O
B89: 11 | C89: 870 | D89: 34 | E89: 50 | F89: 128 | G89: 164 | H89: 22 | I89: 46 | J89: 65 | K89: 0 | L89: 122 | M89: 0 | N89: 124 | O89: 45 | P89: 1 | Q89: 25 | R89: 32 | S89: 8 | T89: 3 | U89: 0 | V89: 0 | W89: 0 | X89: 0 | Y89: N
B90: 12 | C90: 457 | D90: 62 | E90: 17 | F90: 35 | G90: 75 | H90: 29 | I90: 28 | J90: 32 | K90: 0 | L90: 67 | M90: 0 | N90: 38 | O90: 11 | P90: 0 | Q90: 12 | R90: 35 | S90: 13 | T90: 4 | U90: 0 | V90: 0 | W90: 0 | X90: 0 | Y90: D
A92: 2009 | B92: 1 | C92: 348 | D92: 81 | E92: 20 | F92: 27 | G92: 33 | H92: 52 | I92: 33 | J92: 19 | K92: 0 | L92: 16 | M92: 1 | N92: 18 | O92: 5 | P92: 0 | Q92: 6 | R92: 32 | S92: 2 | T92: 1 | U92: 1 | V92: 0 | W92: 0 | X92: 0 | Y92: J | Z92: 2009
B93: 2 | C93: 948 | D93: 165 | E93: 81 | F93: 37 | G93: 106 | H93: 236 | I93: 82 | J93: 40 | K93: 0 | L93: 40 | M93: 2 | N93: 40 | O93: 5 | P93: 0 | Q93: 16 | R93: 73 | S93: 19 | T93: 6 | U93: 0 | V93: 0 | W93: 0 | X93: 0 | Y93: F
B94: 3 | C94: =SUM(D94:X94) -> 3,021 | D94: 244 | E94: 467 | F94: 24 | G94: 327 | H94: 1,391 | I94: 85 | J94: 43 | K94: 0 | L94: 57 | M94: 6 | N94: 175 | O94: 19 | P94: 1 | Q94: 24 | R94: 138 | S94: 19 | T94: 2 | U94: 0 | V94: 0 | W94: 0 | X94: 0 | Y94: M
B95: 4 | C95: 4,627 | D95: 220 | E95: 676 | F95: 33 | G95: 891 | H95: 1,647 | I95: 69 | J95: 85 | K95: 0 | L95: 49 | M95: 8 | N95: 739 | O95: 9 | P95: 2 | Q95: 17 | R95: 163 | S95: 16 | T95: 4 | U95: 0 | V95: 0 | W95: 0 | X95: 0 | Y95: A
B96: 5 | C96: 4,396 | D96: 191 | E96: 635 | F96: 18 | G96: 1,076 | H96: 994 | I96: 158 | J96: 159 | K96: 0 | L96: 73 | M96: 5 | N96: 866 | O96: 11 | P96: 0 | Q96: 20 | R96: 180 | S96: 9 | T96: 1 | U96: 0 | V96: 0 | W96: 0 | X96: 0 | Y96: M
B97: 6 | C97: 4,871 | D97: 378 | E97: 524 | F97: 58 | G97: 1,253 | H97: 726 | I97: 201 | J97: 173 | K97: 0 | L97: 155 | M97: 4 | N97: 1,150 | O97: 21 | P97: 3 | Q97: 28 | R97: 160 | S97: 22 | T97: 11 | U97: 0 | V97: 3 | W97: 0 | X97: 0 | Y97: J
B98: 7 | C98: 4,569 | D98: 683 | E98: 455 | F98: 123 | G98: 1,081 | H98: 480 | I98: 152 | J98: 191 | K98: 0 | L98: 254 | M98: 3 | N98: 860 | O98: 28 | P98: 1 | Q98: 75 | R98: 132 | S98: 37 | T98: 11 | U98: 0 | V98: 3 | W98: 0 | X98: 0 | Y98: J
B99: 8 | C99: 4,876 | D99: 955 | E99: 422 | F99: 156 | G99: 1,048 | H99: 454 | I99: 106 | J99: 156 | K99: 0 | L99: 262 | M99: 5 | N99: 967 | O99: 31 | P99: 1 | Q99: 98 | R99: 131 | S99: 47 | T99: 30 | U99: 0 | V99: 5 | W99: 0 | X99: 0 | Y99: A
B100: 9 | C100: 6,570 | D100: 1,270 | E100: 446 | F100: 514 | G100: 1,308 | H100: 631 | I100: 98 | J100: 246 | K100: 0 | L100: 332 | M100: 11 | N100: 1,340 | O100: 44 | P100: 0 | Q100: 142 | R100: 99 | S100: 46 | T100: 35 | U100: 0 | V100: 8 | W100: 0 | X100: 0 | Y100: S
B101: 10 | C101: 9,459 | D101: 1,885 | E101: 532 | F101: 1,340 | G101: 1,719 | H101: 645 | I101: 107 | J101: 367 | K101: 0 | L101: 429 | M101: 12 | N101: 1,924 | O101: 56 | P101: 0 | Q101: 266 | R101: 53 | S101: 61 | T101: 49 | U101: 0 | V101: 13 | W101: 0 | X101: 0 | Y101: O
B102: 11 | C102: 8,902 | D102: 1,868 | E102: 482 | F102: 1,504 | G102: 1,433 | H102: 520 | I102: 92 | J102: 286 | K102: 0 | L102: 454 | M102: 30 | N102: 1,734 | O102: 61 | P102: 2 | Q102: 280 | R102: 48 | S102: 59 | T102: 39 | U102: 1 | V102: 7 | W102: 0 | X102: 0 | Y102: N
B103: 12 | C103: 6,848 | D103: 1,426 | E103: 535 | F103: 841 | G103: 985 | H103: 438 | I103: 71 | J103: 289 | K103: 0 | L103: 483 | M103: 32 | N103: 1,400 | O103: 46 | P103: 1 | Q103: 152 | R103: 48 | S103: 47 | T103: 44 | U103: 1 | V103: 9 | W103: 0 | X103: 0 | Y103: D
A105: 2010 | B105: 1 | C105: 3,776 | D105: 843 | E105: 251 | F105: 383 | G105: 618 | H105: 207 | I105: 34 | J105: 176 | K105: 0 | L105: 303 | M105: 5 | N105: 691 | O105: 31 | P105: 1 | Q105: 126 | R105: 36 | S105: 48 | T105: 23 | U105: 0 | V105: 2 | W105: 0 | X105: 0 | Y105: J | Z105: 2010
B106: 2 | C106: 3,992 | D106: 989 | E106: 240 | F106: 347 | G106: 651 | H106: 209 | I106: 59 | J106: 219 | K106: 0 | L106: 315 | M106: 12 | N106: 649 | O106: 45 | P106: 2 | Q106: 149 | R106: 19 | S106: 56 | T106: 25 | U106: 0 | V106: 3 | W106: 0 | X106: 0 | Y106: F
B107: 3 | C107: 3,366 | D107: 804 | E107: 217 | F107: 260 | G107: 510 | H107: 138 | I107: 43 | J107: 230 | K107: 0 | L107: 291 | M107: 6 | N107: 587 | O107: 33 | P107: 1 | Q107: 150 | R107: 26 | S107: 42 | T107: 19 | U107: 2 | V107: 6 | W107: 0 | X107: 0 | Y107: M
B108: 4 | C108: 2,679 | D108: 600 | E108: 231 | F108: 244 | G108: 419 | H108: 91 | I108: 55 | J108: 178 | K108: 0 | L108: 206 | M108: 12 | N108: 393 | O108: 19 | P108: 0 | Q108: 137 | R108: 31 | S108: 34 | T108: 19 | U108: 0 | V108: 10 | W108: 0 | X108: 0 | Y108: A
B109: 5 | C109: 2,374 | D109: 560 | E109: 218 | F109: 295 | G109: 372 | H109: 51 | I109: 48 | J109: 130 | K109: 0 | L109: 171 | M109: 4 | N109: 352 | O109: 6 | P109: 0 | Q109: 103 | R109: 39 | S109: 11 | T109: 11 | U109: 0 | V109: 3 | W109: 0 | X109: 0 | Y109: M
B110: 6 | C110: 3,702 | D110: 652 | E110: 314 | F110: 428 | G110: 422 | H110: 90 | I110: 96 | J110: 842 | K110: 0 | L110: 200 | M110: 8 | N110: 318 | O110: 13 | P110: 0 | Q110: 224 | R110: 56 | S110: 10 | T110: 17 | U110: 1 | V110: 10 | W110: 0 | X110: 0 | Y110: J
B111: 7 | C111: 9,838 | D111: 601 | E111: 276 | F111: 668 | G111: 347 | H111: 154 | I111: 315 | J111: 6,320 | K111: 0 | L111: 184 | M111: 25 | N111: 290 | O111: 8 | P111: 0 | Q111: 546 | R111: 73 | S111: 11 | T111: 15 | U111: 0 | V111: 5 | W111: 0 | X111: 0 | Y111: J
B112: 8 | C112: 8,934 | D112: 444 | E112: 132 | F112: 495 | G112: 224 | H112: 193 | I112: 424 | J112: 6,344 | K112: 0 | L112: 131 | M112: 13 | N112: 164 | O112: 3 | P112: 0 | Q112: 302 | R112: 46 | S112: 9 | T112: 2 | U112: 1 | V112: 7 | W112: 0 | X112: 0 | Y112: A
B113: 9 | C113: 5,078 | D113: 313 | E113: 62 | F113: 228 | G113: 113 | H113: 133 | I113: 295 | J113: 3,616 | K113: 0 | L113: 55 | M113: 18 | N113: 68 | O113: 1 | P113: 0 | Q113: 135 | R113: 20 | S113: 13 | T113: 5 | U113: 0 | V113: 6 | W113: 0 | X113: 0 | Y113: S
B114: 10 | C114: 4,389 | D114: 320 | E114: 72 | F114: 197 | G114: 127 | H114: 151 | I114: 258 | J114: 2,984 | K114: 0 | L114: 62 | M114: 23 | N114: 61 | O114: 1 | P114: 1 | Q114: 85 | R114: 14 | S114: 12 | T114: 4 | U114: 0 | V114: 17 | W114: 0 | X114: 0 | Y114: O
B115: 11 | C115: 4,765 | D115: 327 | E115: 60 | F115: 189 | G115: 98 | H115: 168 | I115: 456 | J115: 3,146 | K115: 0 | L115: 55 | M115: 36 | N115: 52 | O115: 3 | P115: 0 | Q115: 118 | R115: 17 | S115: 9 | T115: 7 | U115: 0 | V115: 24 | W115: 0 | X115: 0 | Y115: N
B116: 12 | C116: 5,587 | D116: 385 | E116: 113 | F116: 185 | G116: 150 | H116: 192 | I116: 562 | J116: 3,620 | K116: 0 | L116: 64 | M116: 34 | N116: 67 | O116: 4 | P116: 0 | Q116: 138 | R116: 17 | S116: 18 | T116: 14 | U116: 0 | V116: 24 | W116: 0 | X116: 0 | Y116: D
A118: 2011 | B118: 1 | C118: 4,491 | D118: 295 | E118: 70 | F118: 169 | G118: 117 | H118: 149 | I118: 529 | J118: 2,901 | K118: 0 | L118: 51 | M118: 36 | N118: 53 | O118: 4 | P118: 0 | Q118: 83 | R118: 5 | S118: 8 | T118: 10 | U118: 2 | V118: 10 | W118: 0 | X118: 0 | Y118: J | Z118: 2011
B119: 2 | C119: 5,992 | D119: 398 | E119: 105 | F119: 191 | G119: 144 | H119: 166 | I119: 762 | J119: 3,869 | K119: 0 | L119: 63 | M119: 38 | N119: 69 | O119: 4 | P119: 0 | Q119: 117 | R119: 12 | S119: 12 | T119: 12 | U119: 0 | V119: 29 | W119: 0 | X119: 0 | Y119: F
B120: 3 | C120: 7,815 | D120: 413 | E120: 136 | F120: 204 | G120: 163 | H120: 250 | I120: 1,074 | J120: 5,105 | K120: 0 | L120: 80 | M120: 51 | N120: 80 | O120: 5 | P120: 0 | Q120: 158 | R120: 11 | S120: 14 | T120: 11 | U120: 0 | V120: 61 | W120: 0 | X120: 0 | Y120: M
B121: 4 | C121: 7,966 | D121: 416 | E121: 41 | F121: 163 | G121: 161 | H121: 232 | I121: 1,143 | J121: 5,365 | K121: 0 | L121: 88 | M121: 31 | N121: 88 | O121: 1 | P121: 0 | Q121: 135 | R121: 16 | S121: 24 | T121: 10 | U121: 0 | V121: 55 | W121: 0 | X121: 0 | Y121: A
B122: 5 | C122: 6,577 | D122: 303 | E122: 42 | F122: 140 | G122: 118 | H122: 178 | I122: 811 | J122: 4,596 | K122: 0 | L122: 56 | M122: 43 | N122: 64 | O122: 4 | P122: 0 | Q122: 108 | R122: 13 | S122: 12 | T122: 4 | U122: 0 | V122: 88 | W122: 0 | X122: 0 | Y122: M
B123: 6 | C123: 6,089 | D123: 558 | E123: 44 | F123: 340 | G123: 218 | H123: 141 | I123: 585 | J123: 3,729 | K123: 0 | L123: 53 | M123: 43 | N123: 185 | O123: 8 | P123: 0 | Q123: 87 | R123: 6 | S123: 13 | T123: 10 | U123: 0 | V123: 70 | W123: 0 | X123: 0 | Y123: J
B124: 7 | C124: 6,267 | D124: 1,034 | E124: 39 | F124: 730 | G124: 468 | H124: 85 | I124: 383 | J124: 2,753 | K124: 0 | L124: 55 | M124: 20 | N124: 560 | O124: 0 | P124: 0 | Q124: 53 | R124: 9 | S124: 23 | T124: 16 | U124: 0 | V124: 40 | W124: 0 | X124: 0 | Y124: J
B125: 8 | C125: 6,115 | D125: 1,030 | E125: 58 | F125: 802 | G125: 491 | H125: 82 | I125: 283 | J125: 2,214 | K125: 0 | L125: 19 | M125: 30 | N125: 788 | O125: 23 | P125: 0 | Q125: 53 | R125: 36 | S125: 60 | T125: 42 | U125: 0 | V125: 61 | W125: 0 | X125: 43 | Y125: A
B126: 9 | C126: 9,669 | D126: 1,417 | E126: 53 | F126: 1,198 | G126: 863 | H126: 100 | I126: 308 | J126: 3,713 | K126: 0 | L126: 32 | M126: 36 | N126: 1,457 | O126: 39 | P126: 0 | Q126: 79 | R126: 58 | S126: 74 | T126: 100 | U126: 0 | V126: 39 | W126: 0 | X126: 102 | Y126: S
B127: 10 | C127: 11,372 | D127: 1,408 | E127: 30 | F127: 1,558 | G127: 1,017 | H127: 146 | I127: 425 | J127: 4,281 | K127: 0 | L127: 46 | M127: 56 | N127: 1,799 | O127: 36 | P127: 0 | Q127: 91 | R127: 77 | S127: 87 | T127: 93 | U127: 0 | V127: 70 | W127: 0 | X127: 152 | Y127: O
B128: 11 | C128: 10,249 | D128: 1,272 | E128: 33 | F128: 1,492 | G128: 922 | H128: 127 | I128: 354 | J128: 3,701 | K128: 0 | L128: 45 | M128: 57 | N128: 1,691 | O128: 44 | P128: 0 | Q128: 94 | R128: 63 | S128: 61 | T128: 57 | U128: 0 | V128: 78 | W128: 0 | X128: 157 | Y128: N
B129: 12 | C129: 11,542 | D129: 1,486 | E129: 35 | F129: 1,737 | G129: 1,148 | H129: 196 | I129: 413 | J129: 3,797 | K129: 0 | L129: 63 | M129: 70 | N129: 1,942 | O129: 58 | P129: 0 | Q129: 99 | R129: 74 | S129: 78 | T129: 87 | U129: 1 | V129: 76 | W129: 0 | X129: 180 | Y129: D
A131: 2012 | B131: 1 | C131: 2,703 | D131: 289 | E131: 12 | F131: 395 | G131: 265 | H131: 80 | I131: 114 | J131: 946 | K131: 0 | L131: 20 | M131: 50 | N131: 322 | O131: 14 | P131: 0 | Q131: 42 | R131: 21 | S131: 16 | T131: 18 | U131: 0 | V131: 31 | W131: 0 | X131: 67 | Y131: J | Z131: 2012
B132: 2 | C132: 7,465 | D132: 972 | E132: 24 | F132: 1,243 | G132: 725 | H132: 115 | I132: 293 | J132: 2,430 | K132: 0 | L132: 46 | M132: 83 | N132: 953 | O132: 38 | P132: 0 | Q132: 78 | R132: 80 | S132: 62 | T132: 51 | U132: 0 | V132: 95 | W132: 0 | X132: 179 | Y132: F
B133: 3 | C133: 9,679 | D133: 1,224 | E133: 27 | F133: 1,860 | G133: 885 | H133: 130 | I133: 341 | J133: 2,772 | K133: 0 | L133: 34 | M133: 66 | N133: 1,494 | O133: 56 | P133: 0 | Q133: 103 | R133: 145 | S133: 82 | T133: 74 | U133: 0 | V133: 129 | W133: 0 | X133: 257 | Y133: M
B134: 4 | C134: 7,874 | D134: 777 | E134: 28 | F134: 1,437 | G134: 888 | H134: 113 | I134: 403 | J134: 2,349 | K134: 0 | L134: 47 | M134: 123 | N134: 1,054 | O134: 47 | P134: 0 | Q134: 86 | R134: 115 | S134: 61 | T134: 67 | U134: 0 | V134: 82 | W134: 0 | X134: 198 | Y134: A
B135: 5 | C135: 9,587 | D135: 965 | E135: 44 | F135: 1,652 | G135: 1,055 | H135: 108 | I135: 414 | J135: 3,021 | K135: 0 | L135: 45 | M135: 104 | N135: 1,233 | O135: 55 | P135: 0 | Q135: 112 | R135: 165 | S135: 63 | T135: 132 | U135: 0 | V135: 96 | W135: 0 | X135: 323 | Y135: M
B136: 6 | C136: 9,214 | D136: 933 | E136: 33 | F136: 1,703 | G136: 969 | H136: 119 | I136: 376 | J136: 2,720 | K136: 0 | L136: 52 | M136: 88 | N136: 1,295 | O136: 87 | P136: 0 | Q136: 108 | R136: 147 | S136: 65 | T136: 116 | U136: 0 | V136: 72 | W136: 3 | X136: 327 | Y136: J
B137: 7 | C137: 8,806 | D137: 991 | E137: 235 | F137: 1,630 | G137: 898 | H137: 139 | I137: 395 | J137: 2,239 | K137: 0 | L137: 142 | M137: 75 | N137: 1,218 | O137: 91 | P137: 2 | Q137: 65 | R137: 147 | S137: 57 | T137: 92 | U137: 0 | V137: 57 | W137: 5 | X137: 328 | Y137: J
B138: 8 | C138: 7,953 | D138: 901 | E138: 231 | F138: 1,677 | G138: 793 | H138: 144 | I138: 315 | J138: 1,841 | K138: 0 | L138: 208 | M138: 44 | N138: 960 | O138: 96 | P138: 5 | Q138: 57 | R138: 176 | S138: 49 | T138: 89 | U138: 0 | V138: 37 | W138: 8 | X138: 323 | Y138: A
B139: 9 | C139: 6,615 | D139: 656 | E139: 207 | F139: 1,337 | G139: 697 | H139: 113 | I139: 296 | J139: 1,518 | K139: 0 | L139: 199 | M139: 53 | N139: 782 | O139: 74 | P139: 3 | Q139: 79 | R139: 77 | S139: 46 | T139: 70 | U139: 0 | V139: 39 | W139: 11 | X139: 359 | Y139: S
B140: 10 | C140: 9,523 | D140: 976 | E140: 337 | F140: 2,151 | G140: 1,161 | H140: 253 | I140: 433 | J140: 1,700 | K140: 0 | L140: 274 | M140: 69 | N140: 1,249 | O140: 205 | P140: 4 | Q140: 72 | R140: 124 | S140: 58 | T140: 100 | U140: 1 | V140: 52 | W140: 11 | X140: 296 | Y140: O
B141: 11 | C141: 13,657 | D141: 1,537 | E141: 544 | F141: 3,142 | G141: 1,644 | H141: 309 | I141: 637 | J141: 2,157 | K141: 0 | L141: 431 | M141: 82 | N141: 1,961 | O141: 199 | P141: 12 | Q141: 120 | R141: 115 | S141: 104 | T141: 139 | U141: 1 | V141: 60 | W141: 18 | X141: 446 | Y141: N
B142: 12 | C142: 18,969 | D142: 2,567 | E142: 1,333 | F142: 4,556 | G142: 2,572 | H142: 456 | I142: 852 | J142: 1,151 | K142: 0 | L142: 635 | M142: 56 | N142: 3,040 | O142: 386 | P142: 55 | Q142: 125 | R142: 275 | S142: 178 | T142: 308 | U142: 0 | V142: 64 | W142: 18 | X142: 343 | Y142: D
A144: 2013 | B144: 1 | C144: 6,953 | D144: 724 | E144: 431 | F144: 1,355 | G144: 852 | H144: 203 | I144: 338 | J144: 1,086 | K144: 0 | L144: 324 | M144: 31 | N144: 891 | O144: 115 | P144: 22 | Q144: 46 | R144: 78 | S144: 20 | T144: 72 | U144: 0 | V144: 69 | W144: 18 | X144: 279 | Y144: J | Z144: 2013
B145: 2 | C145: 11,225 | D145: 1,318 | E145: 497 | F145: 2,270 | G145: 1,436 | H145: 282 | I145: 579 | J145: 1,699 | K145: 0 | L145: 534 | M145: 35 | N145: 1,567 | O145: 187 | P145: 27 | Q145: 80 | R145: 124 | S145: 24 | T145: 132 | U145: 0 | V145: 92 | W145: 12 | X145: 330 | Y145: F
B146: 3 | C146: 10,945 | D146: 1,155 | E146: 561 | F146: 2,322 | G146: 1,450 | H146: 296 | I146: 453 | J146: 1,588 | K146: 0 | L146: 613 | M146: 33 | N146: 1,632 | O146: 128 | P146: 14 | Q146: 115 | R146: 126 | S146: 24 | T146: 123 | U146: 0 | V146: 72 | W146: 8 | X146: 234 | Y146: M
B147: 4 | C147: 16,818 | D147: 1,678 | E147: 815 | F147: 3,371 | G147: 2,139 | H147: 490 | I147: 711 | J147: 2,743 | K147: 0 | L147: 969 | M147: 28 | N147: 2,501 | O147: 218 | P147: 47 | Q147: 145 | R147: 179 | S147: 43 | T147: 253 | U147: 0 | V147: 101 | W147: 15 | X147: 374 | Y147: A
B148: 5 | C148: 16,660 | D148: 1,655 | E148: 859 | F148: 3,392 | G148: 2,247 | H148: 569 | I148: 663 | J148: 2,381 | K148: 0 | L148: 1,100 | M148: 18 | N148: 2,531 | O148: 273 | P148: 35 | Q148: 145 | R148: 131 | S148: 38 | T148: 258 | U148: 0 | V148: 75 | W148: 7 | X148: 283 | Y148: M
B149: 6 | C149: 22,629 | D149: 2,364 | E149: 1,490 | F149: 3,954 | G149: 3,329 | H149: 745 | I149: 897 | J149: 3,027 | K149: 0 | L149: 1,684 | M149: 19 | N149: 3,372 | O149: 348 | P149: 50 | Q149: 190 | R149: 248 | S149: 46 | T149: 510 | U149: 1 | V149: 41 | W149: 13 | X149: 301 | Y149: J
B150: 7 | C150: 10,356 | D150: 971 | E150: 460 | F150: 1,682 | G150: 1,582 | H150: 430 | I150: 320 | J150: 1,906 | K150: 0 | L150: 781 | M150: 8 | N150: 1,407 | O150: 145 | P150: 21 | Q150: 90 | R150: 89 | S150: 30 | T150: 206 | U150: 0 | V150: 31 | W150: 8 | X150: 188 | Y150: J
B151: 8 | C151: 6,478 | D151: 729 | E151: 217 | F151: 1,229 | G151: 971 | H151: 267 | I151: 226 | J151: 1,061 | K151: 0 | L151: 513 | M151: 3 | N151: 753 | O151: 89 | P151: 14 | Q151: 81 | R151: 66 | S151: 19 | T151: 100 | U151: 1 | V151: 20 | W151: 5 | X151: 116 | Y151: A
B152: 9 | C152: 4,196 | D152: 425 | E152: 232 | F152: 833 | G152: 599 | H152: 142 | I152: 175 | J152: 520 | K152: 0 | L152: 304 | M152: 2 | N152: 520 | O152: 55 | P152: 4 | Q152: 72 | R152: 144 | S152: 11 | T152: 91 | U152: 1 | V152: 11 | W152: 3 | X152: 52 | Y152: S
B153: 10 | C153: 4,834 | D153: 546 | E153: 214 | F153: 983 | G153: 654 | H153: 187 | I153: 211 | J153: 638 | K153: 0 | L153: 333 | M153: 4 | N153: 630 | O153: 45 | P153: 17 | Q153: 66 | R153: 104 | S153: 9 | T153: 105 | U153: 0 | V153: 17 | W153: 3 | X153: 69 | Y153: O
B154: 11 | C154: 4,086 | D154: 424 | E154: 203 | F154: 921 | G154: 540 | H154: 121 | I154: 155 | J154: 495 | K154: 0 | L154: 322 | M154: 3 | N154: 511 | O154: 41 | P154: 4 | Q154: 73 | R154: 91 | S154: 11 | T154: 107 | U154: 0 | V154: 7 | W154: 4 | X154: 53 | Y154: N
B155: 12 | C155: 3,867 | D155: 454 | E155: 243 | F155: 846 | G155: 463 | H155: 63 | I155: 127 | J155: 565 | K155: 0 | L155: 254 | M155: 1 | N155: 520 | O155: 40 | P155: 4 | Q155: 61 | R155: 52 | S155: 7 | T155: 114 | U155: 1 | V155: 3 | W155: 2 | X155: 46 | Y155: D
A157: 2014 | B157: 1 | C157: 1,625 | D157: 191 | E157: 65 | F157: 314 | G157: 239 | H157: 29 | I157: 81 | J157: 244 | K157: 0 | L157: 113 | M157: 2 | N157: 185 | O157: 18 | P157: 9 | Q157: 31 | R157: 20 | S157: 7 | T157: 43 | U157: 0 | V157: 1 | W157: 2 | X157: 31 | Y157: J | Z157: 2014
B158: 2 | C158: =SUM(D158:X158) -> 1,197 | D158: 99 | E158: 46 | F158: 215 | G158: 190 | H158: 14 | I158: 30 | J158: 201 | K158: 0 | L158: 107 | M158: 0 | N158: 173 | O158: 11 | P158: 1 | Q158: 42 | R158: 13 | S158: 4 | T158: 9 | U158: 1 | V158: 7 | W158: 6 | X158: 30 | Y158: F
B159: 3 | C159: 1,003 | D159: 90 | E159: 27 | F159: 193 | G159: 136 | H159: 24 | I159: 25 | J159: 191 | K159: 0 | L159: 65 | M159: 1 | N159: 136 | O159: 13 | P159: 3 | Q159: 33 | R159: 9 | S159: 3 | T159: 16 | U159: 0 | V159: 10 | W159: 3 | X159: 24 | Y159: M
B160: 4 | C160: 1,137 | D160: 187 | E160: 44 | F160: 195 | G160: 122 | H160: 32 | I160: 15 | J160: 174 | K160: 0 | L160: 96 | M160: 0 | N160: 148 | O160: 16 | P160: 3 | Q160: 34 | R160: 16 | S160: 4 | T160: 21 | U160: 0 | V160: 2 | W160: 1 | X160: 28 | Y160: A
B161: 5 | C161: 892 | D161: 177 | E161: 37 | F161: 140 | G161: 111 | H161: 21 | I161: 21 | J161: 137 | K161: 0 | L161: 60 | M161: 0 | N161: 94 | O161: 5 | P161: 1 | Q161: 19 | R161: 23 | S161: 3 | T161: 16 | U161: 0 | V161: 5 | W161: 1 | X161: 20 | Y161: M
B162: 6 | C162: 1,103 | D162: 257 | E162: 38 | F162: 196 | G162: 122 | H162: 17 | I162: 12 | J162: 164 | K162: 0 | L162: 67 | M162: 0 | N162: 129 | O162: 7 | P162: 2 | Q162: 16 | R162: 21 | S162: 3 | T162: 21 | U162: 0 | V162: 11 | W162: 1 | X162: 18 | Y162: J
B163: 7 | C163: 1,567 | D163: 438 | E163: 25 | F163: 254 | G163: 156 | H163: 44 | I163: 19 | J163: 199 | K163: 0 | L163: 107 | M163: 0 | N163: 142 | O163: 9 | P163: 5 | Q163: 27 | R163: 22 | S163: 7 | T163: 45 | U163: 0 | V163: 16 | W163: 0 | X163: 54 | Y163: J
B164: 8 | C164: 1,748 | D164: 640 | E164: 77 | F164: 209 | G164: 126 | H164: 6 | I164: 12 | J164: 262 | K164: 0 | L164: 102 | M164: 0 | N164: 159 | O164: 10 | P164: 0 | Q164: 7 | R164: 29 | S164: 4 | T164: 54 | U164: 0 | V164: 11 | W164: 2 | X164: 38 | Y164: A
B165: 9 | C165: 1,814 | D165: 840 | E165: 48 | F165: 178 | G165: 118 | H165: 5 | I165: 6 | J165: 256 | K165: 0 | L165: 123 | M165: 0 | N165: 136 | O165: 16 | P165: 0 | Q165: 1 | R165: 17 | S165: 8 | T165: 32 | U165: 0 | V165: 2 | W165: 3 | X165: 24 | Y165: S
B166: 10 | C166: 2,297 | D166: 1,083 | E166: 66 | F166: 237 | G166: 153 | H166: 5 | I166: 9 | J166: 274 | K166: 0 | L166: 192 | M166: 0 | N166: 168 | O166: 14 | P166: 3 | Q166: 7 | R166: 22 | S166: 3 | T166: 26 | U166: 0 | V166: 3 | W166: 4 | X166: 27 | Y166: O
B167: 11 | C167: 4,510 | D167: 2,396 | E167: 105 | F167: 354 | G167: 257 | H167: 6 | I167: 18 | J167: 462 | K167: 0 | L167: 313 | M167: 0 | N167: 311 | O167: 35 | P167: 6 | Q167: 3 | R167: 35 | S167: 15 | T167: 173 | U167: 1 | V167: 2 | W167: 6 | X167: 15 | Y167: N
B168: 12 | C168: 5,904 | D168: 3,151 | E168: 196 | F168: 412 | G168: 469 | H168: 12 | I168: 13 | J168: 439 | K168: 0 | L168: 287 | M168: 0 | N168: 374 | O168: 36 | P168: 2 | Q168: 1 | R168: 138 | S168: 7 | T168: 310 | U168: 1 | V168: 3 | W168: 6 | X168: 47 | Y168: D
A170: 2015 | B170: 1 | C170: 4,816 | D170: 2,797 | E170: 124 | F170: 391 | G170: 362 | H170: 5 | I170: 13 | J170: 358 | K170: 0 | L170: 203 | M170: 0 | N170: 291 | O170: 22 | P170: 2 | Q170: 2 | R170: 59 | S170: 6 | T170: 153 | U170: 1 | V170: 2 | W170: 4 | X170: 22 | Y170: J | Z170: 2015
B171: 2 | C171: 8,502 | D171: 5,297 | E171: 136 | F171: 565 | G171: 463 | H171: 9 | I171: 24 | J171: 585 | K171: 0 | L171: 574 | M171: 0 | N171: 433 | O171: 27 | P171: 2 | Q171: 16 | R171: 198 | S171: 9 | T171: 128 | U171: 2 | V171: 3 | W171: 3 | X171: 25 | Y171: F
B172: 3 | C172: 9,075 | D172: 5,569 | E172: 408 | F172: 694 | G172: 435 | H172: 9 | I172: 25 | J172: 609 | K172: 0 | L172: 536 | M172: 0 | N172: 441 | O172: 22 | P172: 5 | Q172: 11 | R172: 188 | S172: 17 | T172: 74 | U172: 1 | V172: 1 | W172: 1 | X172: 30 | Y172: M
B173: 4 | C173: 17,192 | D173: 11,683 | E173: 678 | F173: 942 | G173: 623 | H173: 8 | I173: 68 | J173: 1,066 | K173: 0 | L173: 925 | M173: 0 | N173: 711 | O173: 54 | P173: 7 | Q173: 11 | R173: 205 | S173: 17 | T173: 107 | U173: 3 | V173: 2 | W173: 8 | X173: 74 | Y173: A
B174: 5 | C174: 16,284 | D174: 11,007 | E174: 789 | F174: 1,142 | G174: 656 | H174: 24 | I174: 35 | J174: 965 | K174: 0 | L174: 612 | M174: 0 | N174: 727 | O174: 30 | P174: 1 | Q174: 13 | R174: 131 | S174: 16 | T174: 97 | U174: 2 | V174: 2 | W174: 1 | X174: 32 | Y174: M
B175: 6 | C175: 15,984 | D175: 10,608 | E175: 585 | F175: 1,289 | G175: 732 | H175: 33 | I175: 38 | J175: 929 | K175: 0 | L175: 585 | M175: 0 | N175: 758 | O175: 72 | P175: 33 | Q175: 10 | R175: 138 | S175: 10 | T175: 130 | U175: 4 | V175: 4 | W175: 4 | X175: 23 | Y175: J
B176: 7 | C176: 8,917 | D176: 6,347 | E176: 203 | F176: 604 | G176: 417 | H176: 11 | I176: 14 | J176: 478 | K176: 0 | L176: 298 | M176: 0 | N176: 333 | O176: 29 | P176: 13 | Q176: 11 | R176: 78 | S176: 5 | T176: 68 | U176: 0 | V176: 0 | W176: 2 | X176: 8 | Y176: J
B177: 8 | C177: 5,512 | D177: 4,069 | E177: 85 | F177: 286 | G177: 227 | H177: 9 | I177: 3 | J177: 273 | K177: 0 | L177: 172 | M177: 0 | N177: 289 | O177: 17 | P177: 11 | Q177: 2 | R177: 23 | S177: 6 | T177: 35 | U177: 3 | V177: 0 | W177: 1 | X177: 1 | Y177: A
B178: 9 | C178: 3,609 | D178: 2,709 | E178: 48 | F178: 176 | G178: 134 | H178: 0 | I178: 5 | J178: 181 | K178: 0 | L178: 105 | M178: 0 | N178: 168 | O178: 13 | P178: 10 | Q178: 5 | R178: 29 | S178: 5 | T178: 19 | U178: 0 | V178: 0 | W178: 1 | X178: 1 | Y178: S
B179: 10 | C179: 2,715 | D179: 1,902 | E179: 38 | F179: 175 | G179: 161 | H179: 5 | I179: 1 | J179: 150 | K179: 0 | L179: 91 | M179: 0 | N179: 138 | O179: 9 | P179: 1 | Q179: 2 | R179: 13 | S179: 5 | T179: 16 | U179: 1 | V179: 0 | W179: 1 | X179: 6 | Y179: O
B180: 11 | C180: 3,682 | D180: 2,675 | E180: 52 | F180: 218 | G180: 155 | H180: 9 | I180: 0 | J180: 225 | K180: 0 | L180: 129 | M180: 0 | N180: 148 | O180: 13 | P180: 3 | Q180: 3 | R180: 25 | S180: 0 | T180: 25 | U180: 2 | V180: 0 | W180: 0 | X180: 0 | Y180: N
B181: 12 | C181: 6,597 | D181: 4,828 | E181: 129 | F181: 495 | G181: 224 | H181: 60 | I181: 1 | J181: 334 | K181: 0 | L181: 166 | M181: 0 | N181: 226 | O181: 28 | P181: 6 | Q181: 9 | R181: 38 | S181: 4 | T181: 44 | U181: 0 | V181: 0 | W181: 2 | X181: 4 | Y181: D
A183: 2016 | B183: 1 | C183: 5,530 | D183: 4,068 | E183: 126 | F183: 357 | G183: 188 | H183: 34 | I183: 0 | J183: 268 | K183: 0 | L183: 173 | M183: 0 | N183: 212 | O183: 9 | P183: 7 | Q183: 4 | R183: 46 | S183: 4 | T183: 30 | U183: 0 | V183: 0 | W183: 2 | X183: 2 | Y183: J | Z183: 2016
B184: 2 | C184: 4,781 | D184: 3,425 | E184: 84 | F184: 329 | G184: 137 | H184: 11 | I184: 0 | J184: 270 | K184: 0 | L184: 174 | M184: 0 | N184: 219 | O184: 13 | P184: 1 | Q184: 0 | R184: 88 | S184: 0 | T184: 25 | U184: 0 | V184: 0 | W184: 0 | X184: 4 | Y184: F
B185: 3 | C185: 6,921 | D185: 4,819 | E185: 415 | F185: 324 | G185: 154 | H185: 30 | I185: 0 | J185: 470 | K185: 0 | L185: 245 | M185: 0 | N185: 245 | O185: 13 | P185: 3 | Q185: 2 | R185: 150 | S185: 6 | T185: 30 | U185: 4 | V185: 0 | W185: 5 | X185: 6 | Y185: M
B186: 4 | C186: 8,390 | D186: 6,190 | E186: 413 | F186: 356 | G186: 171 | H186: 7 | I186: 1 | J186: 371 | K186: 0 | L186: 466 | M186: 0 | N186: 233 | O186: 28 | P186: 5 | Q186: 5 | R186: 117 | S186: 4 | T186: 17 | U186: 0 | V186: 0 | W186: 1 | X186: 4 | Y186: A
B187: 5 | C187: 7,301 | D187: 5,146 | E187: 192 | F187: 365 | G187: 143 | H187: 8 | I187: 0 | J187: 283 | K187: 0 | L187: 329 | M187: 0 | N187: 667 | O187: 12 | P187: 0 | Q187: 0 | R187: 112 | S187: 3 | T187: 33 | U187: 0 | V187: 0 | W187: 1 | X187: 6 | Y187: M
B188: 6 | C188: 8,936 | D188: 5,633 | E188: 33 | F188: 265 | G188: 167 | H188: 13 | I188: 0 | J188: 257 | K188: 0 | L188: 334 | M188: 0 | N188: 2,149 | O188: 15 | P188: 2 | Q188: 0 | R188: 32 | S188: 8 | T188: 23 | U188: 3 | V188: 0 | W188: 0 | X188: 0 | Y188: J
B189: 7 | C189: 11,983 | D189: 7,073 | E189: 0 | F189: 322 | G189: 205 | H189: 7 | I189: 0 | J189: 472 | K189: 0 | L189: 426 | M189: 0 | N189: 3,330 | O189: 15 | P189: 1 | Q189: 0 | R189: 82 | S189: 7 | T189: 41 | U189: 2 | V189: 0 | W189: 0 | X189: 0 | Y189: J
B190: 8 | C190: 14,062 | D190: 7,923 | E190: 0 | F190: 385 | G190: 323 | H190: 5 | I190: 3 | J190: 566 | K190: 0 | L190: 571 | M190: 0 | N190: 4,142 | O190: 16 | P190: 0 | Q190: 0 | R190: 84 | S190: 6 | T190: 33 | U190: 0 | V190: 0 | W190: 3 | X190: 1 | Y190: A
B191: 9 | C191: 17,172 | D191: 7,627 | E191: 0 | F191: 527 | G191: 2,439 | H191: 106 | I191: 0 | J191: 487 | K191: 0 | L191: 911 | M191: 0 | N191: 4,785 | O191: 27 | P191: 0 | Q191: 0 | R191: 208 | S191: 1 | T191: 49 | U191: 5 | V191: 0 | W191: 2 | X191: 0 | Y191: S
B192: 10 | C192: 23,282 | D192: 9,264 | E192: 0 | F192: 1,160 | G192: 3,850 | H192: 657 | I192: 0 | J192: 751 | K192: 0 | L192: 1,102 | M192: 0 | N192: 6,139 | O192: 32 | P192: 10 | Q192: 0 | R192: 238 | S192: 5 | T192: 66 | U192: 6 | V192: 0 | W192: 2 | X192: 0 | Y192: O
B193: 11 | C193: 19,806 | D193: 8,426 | E193: 0 | F193: 1,370 | G193: 1,845 | H193: 410 | I193: 0 | J193: 850 | K193: 0 | L193: 1,658 | M193: 0 | N193: 4,915 | O193: 39 | P193: 15 | Q193: 0 | R193: 201 | S193: 8 | T193: 60 | U193: 5 | V193: 0 | W193: 5 | X193: 0 | Y193: N
B194: 12 | C194: 16,184 | D194: 6,632 | E194: 0 | F194: 1,188 | G194: 1,384 | H194: 107 | I194: 0 | J194: 888 | K194: 0 | L194: 2,715 | M194: 0 | N194: 2,510 | O194: 89 | P194: 14 | Q194: 0 | R194: 395 | S194: 7 | T194: 252 | U194: 2 | V194: 0 | W194: 2 | X194: 0 | Y194: D
A196: 2017 | B196: 1 | C196: 11,850 | D196: 4,827 | E196: 0 | F196: 835 | G196: 1,139 | H196: 4 | I196: 0 | J196: 731 | K196: 0 | L196: 2,733 | M196: 0 | N196: 1,074 | O196: 41 | P196: 7 | Q196: 0 | R196: 254 | S196: 4 | T196: 196 | U196: 4 | V196: 0 | W196: 1 | X196: 2 | Y196: J | Z196: 2017
B197: 2 | C197: 15,990 | D197: 6,219 | E197: 0 | F197: 1,056 | G197: 1,857 | H197: 0 | I197: 0 | J197: 1,296 | K197: 0 | L197: 3,530 | M197: 0 | N197: 1,363 | O197: 29 | P197: 18 | Q197: 0 | R197: 483 | S197: 9 | T197: 128 | U197: 1 | V197: 0 | W197: 1 | X197: 0 | Y197: F
B198: 3 | C198: 12,288 | D198: 4,188 | E198: 0 | F198: 835 | G198: 1,885 | H198: 0 | I198: 0 | J198: 1,233 | K198: 0 | L198: 2,273 | M198: 0 | N198: 1,596 | O198: 14 | P198: 6 | Q198: 0 | R198: 193 | S198: 4 | T198: 39 | U198: 20 | V198: 0 | W198: 0 | X198: 0 | Y198: M
B199: 4 | C199: 6,944 | D199: 2,249 | E199: 0 | F199: 625 | G199: 1,914 | H199: 23 | I199: 0 | J199: 238 | K199: 0 | L199: 504 | M199: 0 | N199: 1,271 | O199: 6 | P199: 7 | Q199: 0 | R199: 46 | S199: 0 | T199: 41 | U199: 20 | V199: 0 | W199: 0 | X199: 0 | Y199: A
B200: 5 | C200: 6,067 | D200: 1,877 | E200: 0 | F200: 536 | G200: 1,780 | H200: 73 | I200: 2 | J200: 220 | K200: 0 | L200: 311 | M200: 0 | N200: 1,134 | O200: 5 | P200: 0 | Q200: 0 | R200: 62 | S200: 0 | T200: 64 | U200: 4 | V200: 0 | W200: 0 | X200: 0 | Y200: M
B201: 6 | C201: 7,543 | D201: 2,200 | E201: 0 | F201: 501 | G201: 2,371 | H201: 92 | I201: 6 | J201: 267 | K201: 0 | L201: 438 | M201: 0 | N201: 1,450 | O201: 7 | P201: 4 | Q201: 0 | R201: 116 | S201: 3 | T201: 75 | U201: 12 | V201: 0 | W201: 0 | X201: 0 | Y201: J
B202: 7 | C202: 7,520 | D202: 2,362 | E202: 0 | F202: 574 | G202: 2,096 | H202: 122 | I202: 11 | J202: 243 | K202: 0 | L202: 389 | M202: 0 | N202: 1,559 | O202: 7 | P202: 4 | Q202: 0 | R202: 69 | S202: 2 | T202: 78 | U202: 5 | V202: 0 | W202: 0 | X202: 0 | Y202: J
B203: 8 | C203: 7,709 | D203: 2,339 | E203: 0 | F203: 601 | G203: 2,255 | H203: 57 | I203: 12 | J203: 242 | K203: 0 | L203: 474 | M203: 0 | N203: 1,619 | O203: 6 | P203: 2 | Q203: 0 | R203: 68 | S203: 1 | T203: 30 | U203: 4 | V203: 0 | W203: 0 | X203: 0 | Y203: A
B204: 9 | C204: 7,909 | D204: 2,207 | E204: 0 | F204: 755 | G204: 2,200 | H204: 24 | I204: 8 | J204: 281 | K204: 0 | L204: 452 | M204: 0 | N204: 1,754 | O204: 6 | P204: 1 | Q204: 0 | R204: 168 | S204: 6 | T204: 43 | U204: 1 | V204: 0 | W204: 0 | X204: 0 | Y204: S
B205: 10 | C205: 6,020 | D205: 1,642 | E205: 0 | F205: 603 | G205: 1,691 | H205: 50 | I205: 4 | J205: 200 | K205: 0 | L205: 380 | M205: 0 | N205: 1,335 | O205: 4 | P205: 1 | Q205: 0 | R205: 71 | S205: 1 | T205: 35 | U205: 0 | V205: 0 | W205: 1 | X205: 0 | Y205: O
B206: 11 | C206: 8,363 | D206: 2,228 | E206: 0 | F206: 761 | G206: 2,424 | H206: 154 | I206: 11 | J206: 347 | K206: 0 | L206: 544 | M206: 0 | N206: 1,756 | O206: 15 | P206: 13 | Q206: 0 | R206: 74 | S206: 2 | T206: 27 | U206: 7 | V206: 0 | W206: 0 | X206: 0 | Y206: N
B207: 12 | C207: 9,005 | D207: 2,344 | E207: 0 | F207: 909 | G207: 2,631 | H207: 136 | I207: 23 | J207: 384 | K207: 0 | L207: 627 | M207: 0 | N207: 1,804 | O207: 12 | P207: 13 | Q207: 0 | R207: 83 | S207: 1 | T207: 32 | U207: 4 | V207: 0 | W207: 3 | X207: 0 | Y207: D
A209: 2018 | B209: 1 | C209: 7,488 | D209: 2,013 | E209: 0 | F209: 737 | G209: 2,121 | H209: 104 | I209: 19 | J209: 293 | K209: 0 | L209: 542 | M209: 0 | N209: 1,463 | O209: 6 | P209: 9 | Q209: 0 | R209: 149 | S209: 3 | T209: 27 | U209: 1 | V209: 0 | W209: 0 | X209: 0 | Y209: J | Z209: 2018
B210: 2 | C210: 7,457 | D210: 2,088 | E210: 0 | F210: 1,037 | G210: 1,968 | H210: 102 | I210: 18 | J210: 301 | K210: 0 | L210: 537 | M210: 0 | N210: 1,283 | O210: 2 | P210: 0 | Q210: 0 | R210: 80 | S210: 3 | T210: 35 | U210: 0 | V210: 0 | W210: 3 | X210: 0 | Y210: F
B211: 3 | C211: 6,855 | D211: 1,624 | E211: 0 | F211: 1,259 | G211: 1,758 | H211: 32 | I211: 22 | J211: 313 | K211: 0 | L211: 451 | M211: 0 | N211: 1,342 | O211: 12 | P211: 0 | Q211: 0 | R211: 35 | S211: 1 | T211: 7 | U211: 0 | V211: 0 | W211: 0 | X211: 0 | Y211: M
B212: 4 | C212: 5,304 | D212: 1,213 | E212: 0 | F212: 1,090 | G212: 1,253 | H212: 45 | I212: 22 | J212: 244 | K212: 0 | L212: 400 | M212: 0 | N212: 939 | O212: 4 | P212: 1 | Q212: 0 | R212: 80 | S212: 2 | T212: 9 | U212: 0 | V212: 0 | W212: 1 | X212: 0 | Y212: A
B213: 5 | C213: 5,217 | D213: 1,213 | E213: 0 | F213: 1,129 | G213: 1,091 | H213: 52 | I213: 29 | J213: 184 | K213: 0 | L213: 410 | M213: 0 | N213: 1,003 | O213: 4 | P213: 2 | Q213: 0 | R213: 66 | S213: 1 | T213: 30 | U213: 1 | V213: 0 | W213: 0 | X213: 0 | Y213: M
B214: 6 | C214: 6,039 | D214: 1,442 | E214: 0 | F214: 1,237 | G214: 1,317 | H214: 39 | I214: 20 | J214: 169 | K214: 0 | L214: 424 | M214: 0 | N214: 1,268 | O214: 11 | P214: 4 | Q214: 0 | R214: 53 | S214: 0 | T214: 55 | U214: 0 | V214: 0 | W214: 0 | X214: 0 | Y214: J
B215: 7 | C215: 4,826 | D215: 1,102 | E215: 0 | F215: 985 | G215: 1,179 | H215: 36 | I215: 23 | J215: 140 | K215: 0 | L215: 250 | M215: 0 | N215: 1,010 | O215: 3 | P215: 1 | Q215: 0 | R215: 50 | S215: 1 | T215: 45 | U215: 1 | V215: 0 | W215: 0 | X215: 0 | Y215: J
B216: 8 | C216: 4,947 | D216: 1,099 | E216: 0 | F216: 989 | G216: 1,180 | H216: 47 | I216: 12 | J216: 104 | K216: 0 | L216: 317 | M216: 0 | N216: 1,107 | O216: 13 | P216: 3 | Q216: 0 | R216: 28 | S216: 3 | T216: 46 | U216: 0 | V216: 0 | W216: 0 | X216: 0 | Y216: A
B217: 9 | C217: 4,251 | D217: 908 | E217: 0 | F217: 989 | G217: 923 | H217: 36 | I217: 18 | J217: 68 | K217: 0 | L217: 280 | M217: 0 | N217: 922 | O217: 48 | P217: 0 | Q217: 0 | R217: 17 | S217: 0 | T217: 42 | U217: 0 | V217: 0 | W217: 1 | X217: 0 | Y217: S
B218: 10 | C218: 7,449 | D218: 1,749 | E218: 0 | F218: 1,605 | G218: 1,743 | H218: 81 | I218: 23 | J218: 126 | K218: 0 | L218: 503 | M218: 0 | N218: 1,509 | O218: 23 | P218: 0 | Q218: 0 | R218: 21 | S218: 3 | T218: 61 | U218: 0 | V218: 0 | W218: 1 | X218: 0 | Y218: O
... 311 more rows

Sheet 12. LTV 수준별 대출금액 및 잔액 현황
A1: 12. LTV 수준별 대출금액 및 잔액 현황 | K1: Bogeumjari(Mortgage) Loan Origination and Outstanding by LTV
A3: 단위 : 억원 | V3: Hundred million won
A4: 연월중1) | C4: 합계 Total | E4: LTV2) 35% 이하 | G4: 35%초과 ~ 40%이하 | I4: 40%초과 ~ 45%이하 | K4: 45%초과 ~ 50%이하 | M4: 50%초과 ~ 55%이하 | O4: 55%초과 ~ 60%이하 | Q4: 60%초과 ~ 65%이하 | S4: 65%초과 | U4: 연월중
E5: 35% or less | G5: Over 35% ~ 40% or less | I5: Over 40% ~ 45% or less | K5: Over 45% ~ 50% or less | M5: Over 50% ~ 55% or less | O5: Over 55% ~ 60% or less | Q5: Over 60% ~ 65% or less | S5: Over 65%
A6: During | C6: 대출금액 | D6: 대출잔액 | E6: 대출금액 | F6: 대출잔액 | G6: 대출금액 | H6: 대출잔액 | I6: 대출금액 | J6: 대출잔액 | K6: 대출금액 | L6: 대출잔액 | M6: 대출금액 | N6: 대출잔액 | O6: 대출금액 | P6: 대출잔액 | Q6: 대출금액 | R6: 대출잔액 | S6: 대출금액 | T6: 대출잔액 | U6: During
C7: Origination | D7: Outstanding | E7: Origination | F7: Outstanding | G7: Origination | H7: Outstanding | I7: Origination | J7: Outstanding | K7: Origination | L7: Outstanding | M7: Origination | N7: Outstanding | O7: Origination | P7: Outstanding | Q7: Origination | R7: Outstanding | S7: Origination | T7: Outstanding
A8: 2004 | C8: =E8+G8+I8+K8+M8+O8+Q8+S8 -> 33,315 | D8: =F8+H8+J8+L8+N8+P8+R8+T8 -> 54 | E8: =SUM(E28:E37) -> 917 | F8: 1 | G8: 481 | H8: 1 | I8: 630 | J8: 1 | K8: 1,183 | L8: 1 | M8: 1,807 | N8: 2 | O8: 12,402 | P8: 21 | Q8: 3,015 | R8: 7 | S8: 12,880 | T8: 21 | U8: 2004
A9: 2005 | C9: 42,304 | D9: 137 | E9: =SUM(E39:E50) -> 1,052 | F9: 3 | G9: 467 | H9: 1 | I9: 618 | J9: 2 | K9: 1,166 | L9: 3 | M9: 1,926 | N9: 3 | O9: 13,820 | P9: 77 | Q9: 3,870 | R9: 15 | S9: 19,385 | T9: 34 | U9: 2005
A10: 2006 | C10: 13,761 | D10: 35 | E10: =SUM(E52:E63) -> 393 | F10: 0 | G10: 216 | H10: 0 | I10: 312 | J10: 1 | K10: 393 | L10: 0 | M10: 527 | N10: 0 | O10: 2,320 | P10: 9 | Q10: 1,135 | R10: 2 | S10: 8,466 | T10: 22 | U10: 2006
A11: 2007 | C11: 35,684 | D11: 55 | E11: =SUM(E65:E76) -> 3,060 | F11: 4 | G11: 1,479 | H11: 0 | I11: 1,564 | J11: 2 | K11: 2,441 | L11: 4 | M11: 2,716 | N11: 2 | O11: 8,884 | P11: 10 | Q11: 2,282 | R11: 5 | S11: 13,258 | T11: 28 | U11: 2007
A12: 2008 | C12: 41,919 | D12: 68 | E12: =SUM(E78:E89) -> 3,770 | F12: 3 | G12: 1,971 | H12: 1 | I12: 2,237 | J12: 1 | K12: 3,643 | L12: 4 | M12: 3,448 | N12: 5 | O12: 11,823 | P12: 16 | Q12: 2,457 | R12: 7 | S12: 12,570 | T12: 32 | U12: 2008
A13: 2009 | C13: 59,100 | D13: 139 | E13: =SUM(E91:E102) -> 6,822 | F13: 8 | G13: 3,337 | H13: 4 | I13: 3,771 | J13: 6 | K13: 6,276 | L13: 13 | M13: 4,826 | N13: 9 | O13: 21,241 | P13: 39 | Q13: 1,833 | R13: 9 | S13: 10,994 | T13: 51 | U13: 2009
A14: 2010 | C14: 57,879 | D14: 495 | E14: =SUM(E104:E115) -> 5,546 | F14: 34 | G14: 2,802 | H14: 17 | I14: 3,069 | J14: 25 | K14: 4,597 | L14: 36 | M14: 4,572 | N14: 30 | O14: 20,548 | P14: 192 | Q14: 2,026 | R14: 15 | S14: 14,719 | T14: 147 | U14: 2010
A15: 2011 | C15: 93,504 | D15: 1,203 | E15: =SUM(E117:E128) -> 7,116 | F15: 47 | G15: 3,503 | H15: 25 | I15: 4,422 | J15: 49 | K15: 5,598 | L15: 55 | M15: 6,518 | N15: 88 | O15: 27,579 | P15: 399 | Q15: 4,149 | R15: 50 | S15: 34,619 | T15: 489 | U15: =A15 -> 2011
A16: 2012 | C16: 110,951 | D16: 3,315 | E16: =SUM(E130:E141) -> 6,179 | F16: 103 | G16: 3,322 | H16: 68 | I16: 3,836 | J16: 83 | K16: 5,025 | L16: 131 | M16: 5,528 | N16: 135 | O16: 23,023 | P16: 602 | Q16: 6,489 | R16: 196 | S16: 57,550 | T16: 1,998 | U16: =A16 -> 2012
A17: 2013 | C17: 117,376 | D17: 6,862 | E17: =SUM(E143:E154) -> 5,936 | F17: =SUM(F143:F154) -> 225 | G17: =SUM(G143:G154) -> 3,378 | H17: 184 | I17: 3,907 | J17: 193 | K17: 4,976 | L17: 272 | M17: 5,387 | N17: 294 | O17: 19,299 | P17: 1,016 | Q17: 7,790 | R17: 513 | S17: 66,703 | T17: 4,164 | U17: =A17 -> 2013
A18: 2014 | C18: 83,718 | D18: 14,249 | E18: =SUM(E156:E167) -> 3,781 | F18: =SUM(F156:F167) -> 387 | G18: 2,508 | H18: 277 | I18: 3,296 | J18: 435 | K18: 4,307 | L18: 607 | M18: 5,432 | N18: 878 | O18: 14,000 | P18: 2,457 | Q18: 6,882 | R18: 1,172 | S18: 43,512 | T18: 8,036 | U18: =A18 -> 2014
A19: 2015 | C19: 145,971 | D19: 36,699 | E19: =SUM(E169:E180) -> 12,512 | F19: =SUM(F169:F180) -> 2,148 | G19: 6,138 | H19: 1,174 | I19: 7,231 | J19: 1,523 | K19: 9,359 | L19: 2,063 | M19: 10,576 | N19: 2,450 | O19: 19,248 | P19: 4,969 | Q19: 15,412 | R19: 3,915 | S19: 65,494 | T19: 18,456 | U19: =A19 -> 2015
A20: 2016 | C20: 196,785 | D20: 76,764 | E20: =SUM(E182:E193) -> 18,167 | F20: =SUM(F182:F193) -> 5,177 | G20: 8,658 | H20: 2,885 | I20: 10,102 | J20: 3,497 | K20: 13,673 | L20: 4,944 | M20: 15,522 | N20: 5,916 | O20: 26,529 | P20: 10,586 | Q20: 22,957 | R20: 9,526 | S20: 81,176 | T20: 34,234 | U20: 2016
A21: 2017 | C21: 174,224 | D21: 73,953 | E21: =SUM(E195:E206) -> 12,629 | F21: =SUM(F195:F206) -> 4,162 | G21: 6,273 | H21: 2,259 | I21: 7,547 | J21: 2,759 | K21: 10,497 | L21: 4,125 | M21: 13,384 | N21: 5,516 | O21: 24,477 | P21: 10,326 | Q21: 20,574 | R21: 8,996 | S21: 78,845 | T21: 35,810 | U21: 2017
A22: 2018 | C22: 162,439 | D22: 83,455 | E22: =SUM(E208:E219) -> 6,752 | F22: =SUM(F208:F219) -> 2,359 | G22: 3,959 | H22: 1,475 | I22: 4,848 | J22: 1,905 | K22: 7,414 | L22: 3,161 | M22: 10,412 | N22: 4,695 | O22: 22,563 | P22: 10,650 | Q22: 14,399 | R22: 6,970 | S22: 92,091 | T22: 52,239 | U22: 2018
A23: 2019 | C23: =E23+G23+I23+K23+M23+O23+Q23+S23 -> 310,809 | D23: 229,625 | E23: =SUM(E221:E232) -> 21,583 | F23: =SUM(F221:F232) -> 14,548 | G23: 11,564 | H23: 8,172 | I23: 14,014 | J23: 10,061 | K23: 18,539 | L23: 13,459 | M23: 25,638 | N23: 18,821 | O23: 46,413 | P23: 34,054 | Q23: 32,819 | R23: 24,622 | S23: 140,239 | T23: 105,889 | U23: 2019
A24: 2020 | C24: =E24+G24+I24+K24+M24+O24+Q24+S24 -> 384,216 | D24: 327,436 | E24: =SUM(E234:E245) -> 24,833 | F24: =SUM(F234:F245) -> 19,451 | G24: 13,732 | H24: 11,141 | I24: 16,123 | J24: 13,228 | K24: 21,881 | L24: 18,138 | M24: 33,250 | N24: 28,262 | O24: 59,754 | P24: 51,704 | Q24: 41,779 | R24: 35,664 | S24: 172,864 | T24: 149,846 | U24: 2020
A25: 2021 | C25: =E25+G25+I25+K25+M25+O25+Q25+S25 -> 262,566 | D25: 250,190 | E25: =SUM(E247:E258) -> 10,263 | F25: =SUM(F247:F258) -> 9,317 | G25: 6,271 | H25: 5,796 | I25: 7,729 | J25: 7,172 | K25: 11,878 | L25: 11,125 | M25: 22,181 | N25: 20,980 | O25: 66,113 | P25: 62,992 | Q25: 23,839 | R25: 22,749 | S25: 114,290 | T25: 110,059 | U25: 2021
A26: 2022 | C26: =SUM(E26,G26,I26,K26,M26,O26,Q26,S26) -> 19,650 | D26: =SUM(F26,H26,J26,L26,N26,P26,R26,T26) -> 19,262 | E26: =SUM(E260:E264) -> 881 | F26: =SUM(F260:F264) -> 852 | G26: 564 | H26: 549 | I26: 684 | J26: 672 | K26: 1,032 | L26: 997 | M26: 1,294 | N26: 1,253 | O26: 4,969 | P26: 4,861 | Q26: 1,449 | R26: 1,422 | S26: 8,776 | T26: 8,656 | U26: 2022
A28: 2004 | B28: 3 | C28: =SUM(E28,G28,I28,K28,M28,O28,Q28,S28) -> 351 | D28: =SUM(F28,H28,J28,L28,N28,P28,R28,T28) -> 1 | E28: 13 | F28: 0 | G28: 5 | H28: 0 | I28: 14 | J28: 0 | K28: 13 | L28: 0 | M28: 26 | N28: 0 | O28: 102 | P28: 0 | Q28: 35 | R28: 0 | S28: 144 | T28: 0 | U28: M | V28: 2004
B29: 4 | C29: =SUM(E29,G29,I29,K29,M29,O29,Q29,S29) -> 3,611 | D29: =SUM(F29,H29,J29,L29,N29,P29,R29,T29) -> 4 | E29: 104 | F29: 0 | G29: 64 | H29: 0 | I29: 64 | J29: 0 | K29: 144 | L29: 0 | M29: 195 | N29: 0 | O29: 1,184 | P29: 2 | Q29: 310 | R29: 1 | S29: 1,546 | T29: 1 | U29: A
B30: 5 | C30: 4,558 | D30: 5 | E30: 148 | F30: 0 | G30: 84 | H30: 0 | I30: 111 | J30: 0 | K30: 158 | L30: 0 | M30: 254 | N30: 0 | O30: 1,558 | P30: 2 | Q30: 417 | R30: 1 | S30: 1,828 | T30: 1 | U30: M
B31: 6 | C31: 3,944 | D31: 4 | E31: 123 | F31: 0 | G31: 64 | H31: 0 | I31: 77 | J31: 0 | K31: 154 | L31: 0 | M31: 222 | N31: 0 | O31: 1,421 | P31: 1 | Q31: 344 | R31: 0 | S31: 1,539 | T31: 2 | U31: J
B32: 7 | C32: 3,380 | D32: 4 | E32: 109 | F32: 0 | G32: 55 | H32: 0 | I32: 68 | J32: 0 | K32: 136 | L32: 0 | M32: 187 | N32: 0 | O32: 1,277 | P32: 1 | Q32: 335 | R32: 1 | S32: 1,213 | T32: 1 | U32: J
B33: 8 | C33: 3,282 | D33: 5 | E33: 117 | F33: 0 | G33: 46 | H33: 0 | I33: 64 | J33: 0 | K33: 108 | L33: 0 | M33: 184 | N33: 0 | O33: 1,265 | P33: 2 | Q33: 306 | R33: 1 | S33: 1,192 | T33: 2 | U33: A
B34: 9 | C34: 2,891 | D34: 4 | E34: 69 | F34: 0 | G34: 36 | H34: 0 | I34: 48 | J34: 0 | K34: 97 | L34: 0 | M34: 152 | N34: 0 | O34: 1,166 | P34: 1 | Q34: 258 | R34: 0 | S34: 1,065 | T34: 2 | U34: S
B35: 10 | C35: 3,446 | D35: 5 | E35: 73 | F35: 0 | G35: 38 | H35: 0 | I35: 45 | J35: 0 | K35: 115 | L35: 0 | M35: 195 | N35: 0 | O35: 1,344 | P35: 2 | Q35: 342 | R35: 1 | S35: 1,295 | T35: 2 | U35: O
B36: 11 | C36: 3,566 | D36: 7 | E36: 66 | F36: 0 | G36: 42 | H36: 0 | I36: 62 | J36: 1 | K36: 122 | L36: 0 | M36: 189 | N36: 0 | O36: 1,394 | P36: 3 | Q36: 310 | R36: 1 | S36: 1,381 | T36: 2 | U36: N
B37: 12 | C37: 4,286 | D37: 16 | E37: 96 | F37: 0 | G37: 47 | H37: 0 | I37: 76 | J37: 0 | K37: 137 | L37: 1 | M37: 203 | N37: 0 | O37: 1,691 | P37: 7 | Q37: 360 | R37: 1 | S37: 1,677 | T37: 7 | U37: D
A39: 2005 | B39: 1 | C39: =SUM(E39,G39,I39,K39,M39,O39,Q39,S39) -> 3,443 | D39: =SUM(F39,H39,J39,L39,N39,P39,R39,T39) -> 17 | E39: 75 | F39: 0 | G39: 47 | H39: 0 | I39: 57 | J39: 0 | K39: 113 | L39: 0 | M39: 173 | N39: 0 | O39: 1,346 | P39: 11 | Q39: 293 | R39: 1 | S39: 1,339 | T39: 5 | U39: J | V39: 2005
B40: 2 | C40: =SUM(E40,G40,I40,K40,M40,O40,Q40,S40) -> 4,840 | D40: =SUM(F40,H40,J40,L40,N40,P40,R40,T40) -> 16 | E40: 140 | F40: 0 | G40: 60 | H40: 0 | I40: 108 | J40: 0 | K40: 170 | L40: 0 | M40: 280 | N40: 0 | O40: 1,744 | P40: 12 | Q40: 430 | R40: 1 | S40: 1,909 | T40: 2 | U40: F
B41: 3 | C41: 6,923 | D41: 18 | E41: 200 | F41: 1 | G41: 91 | H41: 0 | I41: 119 | J41: 0 | K41: 223 | L41: 1 | M41: 373 | N41: 0 | O41: 2,468 | P41: 8 | Q41: 643 | R41: 3 | S41: 2,806 | T41: 5 | U41: M
B42: 4 | C42: 5,707 | D42: 15 | E42: 132 | F42: 0 | G42: 66 | H42: 0 | I42: 91 | J42: 0 | K42: 178 | L42: 0 | M42: 305 | N42: 1 | O42: 1,941 | P42: 8 | Q42: 550 | R42: 2 | S42: 2,444 | T42: 4 | U42: A
B43: 5 | C43: 3,927 | D43: 12 | E43: 70 | F43: 0 | G43: 44 | H43: 0 | I43: 51 | J43: 0 | K43: 88 | L43: 0 | M43: 176 | N43: 0 | O43: 1,317 | P43: 7 | Q43: 369 | R43: 1 | S43: 1,812 | T43: 3 | U43: M
B44: 6 | C44: 3,713 | D44: 14 | E44: 63 | F44: 0 | G44: 32 | H44: 0 | I44: 45 | J44: 0 | K44: 90 | L44: 0 | M44: 154 | N44: 0 | O44: 1,286 | P44: 9 | Q44: 377 | R44: 2 | S44: 1,665 | T44: 3 | U44: J
B45: 7 | C45: 3,087 | D45: 17 | E45: 55 | F45: 0 | G45: 26 | H45: 0 | I45: 32 | J45: 0 | K45: 78 | L45: 0 | M45: 116 | N45: 1 | O45: 1,023 | P45: 14 | Q45: 265 | R45: 0 | S45: 1,492 | T45: 1 | U45: J
B46: 8 | C46: 3,165 | D46: 6 | E46: 126 | F46: 1 | G46: 22 | H46: 0 | I46: 33 | J46: 0 | K46: 67 | L46: 0 | M46: 108 | N46: 0 | O46: 953 | P46: 2 | Q46: 291 | R46: 1 | S46: 1,566 | T46: 2 | U46: A
B47: 9 | C47: 2,649 | D47: 6 | E47: 109 | F47: 0 | G47: 28 | H47: 0 | I47: 32 | J47: 0 | K47: 63 | L47: 0 | M47: 96 | N47: 0 | O47: 716 | P47: 1 | Q47: 248 | R47: 1 | S47: 1,356 | T47: 3 | U47: S
B48: 10 | C48: 1,928 | D48: 5 | E48: 49 | F48: 0 | G48: 20 | H48: 0 | I48: 22 | J48: 0 | K48: 39 | L48: 0 | M48: 72 | N48: 0 | O48: 478 | P48: 2 | Q48: 179 | R48: 1 | S48: 1,070 | T48: 2 | U48: O
B49: 11 | C49: 1,436 | D49: 5 | E49: 11 | F49: 0 | G49: 17 | H49: 0 | I49: 15 | J49: 0 | K49: 34 | L49: 0 | M49: 28 | N49: 0 | O49: 279 | P49: 2 | Q49: 122 | R49: 2 | S49: 930 | T49: 2 | U49: N
B50: 12 | C50: 1,485 | D50: 4 | E50: 23 | F50: 0 | G50: 13 | H50: 0 | I50: 13 | J50: 0 | K50: 23 | L50: 0 | M50: 43 | N50: 0 | O50: 270 | P50: 1 | Q50: 102 | R50: 1 | S50: 997 | T50: 2 | U50: D
A52: 2006 | B52: 1 | C52: 656 | D52: 4 | E52: 6 | F52: 0 | G52: 3 | H52: 0 | I52: 5 | J52: 0 | K52: 9 | L52: 0 | M52: 16 | N52: 0 | O52: 147 | P52: 3 | Q52: 48 | R52: 0 | S52: 424 | T52: 2 | U52: J | V52: 2006
B53: 2 | C53: =SUM(E53,G53,I53,K53,M53,O53,Q53,S53) -> 1,004 | D53: =SUM(F53,H53,J53,L53,N53,P53,R53,T53) -> 5 | E53: 17 | F53: 0 | G53: 7 | H53: 0 | I53: 11 | J53: 0 | K53: 12 | L53: 0 | M53: 20 | N53: 0 | O53: 180 | P53: 3 | Q53: 80 | R53: 1 | S53: 678 | T53: 1 | U53: F
B54: 3 | C54: 1,010 | D54: 3 | E54: 12 | F54: 0 | G54: 4 | H54: 0 | I54: 4 | J54: 0 | K54: 14 | L54: 0 | M54: 25 | N54: 0 | O54: 156 | P54: 1 | Q54: 73 | R54: 0 | S54: 722 | T54: 2 | U54: M
B55: 4 | C55: 881 | D55: 1 | E55: 8 | F55: 0 | G55: 4 | H55: 0 | I55: 13 | J55: 0 | K55: 7 | L55: 0 | M55: 20 | N55: 0 | O55: 125 | P55: 0 | Q55: 60 | R55: 0 | S55: 644 | T55: 1 | U55: A
B56: 5 | C56: 736 | D56: 1 | E56: 9 | F56: 0 | G56: 4 | H56: 0 | I56: 10 | J56: 0 | K56: 6 | L56: 0 | M56: 15 | N56: 0 | O56: 102 | P56: 0 | Q56: 61 | R56: 0 | S56: 529 | T56: 0 | U56: M
B57: 6 | C57: 811 | D57: 2 | E57: 15 | F57: 0 | G57: 10 | H57: 0 | I57: 12 | J57: 0 | K57: 19 | L57: 0 | M57: 29 | N57: 0 | O57: 129 | P57: 0 | Q57: 50 | R57: 0 | S57: 548 | T57: 2 | U57: J
B58: 7 | C58: 1,276 | D58: 0 | E58: 64 | F58: 0 | G58: 25 | H58: 0 | I58: 37 | J58: 0 | K58: 59 | L58: 0 | M58: 76 | N58: 0 | O58: 251 | P58: 0 | Q58: 106 | R58: 0 | S58: 658 | T58: 0 | U58: J
B59: 8 | C59: 1,379 | D59: 4 | E59: 58 | F59: 0 | G59: 31 | H59: 0 | I59: 63 | J59: 0 | K59: 41 | L59: 0 | M59: 68 | N59: 0 | O59: 285 | P59: 0 | Q59: 116 | R59: 0 | S59: 716 | T59: 3 | U59: A
B60: 9 | C60: 1,861 | D60: 4 | E60: 67 | F60: 0 | G60: 31 | H60: 0 | I60: 46 | J60: 1 | K60: 68 | L60: 0 | M60: 87 | N60: 0 | O60: 316 | P60: 0 | Q60: 151 | R60: 0 | S60: 1,094 | T60: 3 | U60: S
B61: 10 | C61: 1,245 | D61: 4 | E61: 31 | F61: 0 | G61: 20 | H61: 0 | I61: 33 | J61: 0 | K61: 46 | L61: 0 | M61: 45 | N61: 0 | O61: 164 | P61: 0 | Q61: 97 | R61: 0 | S61: 810 | T61: 3 | U61: O
B62: 11 | C62: 1,207 | D62: 5 | E62: 24 | F62: 0 | G62: 19 | H62: 0 | I62: 18 | J62: 0 | K62: 23 | L62: 0 | M62: 45 | N62: 0 | O62: 164 | P62: 1 | Q62: 137 | R62: 0 | S62: 778 | T62: 4 | U62: N
B63: 12 | C63: 1,694 | D63: 0 | E63: 82 | F63: 0 | G63: 57 | H63: 0 | I63: 60 | J63: 0 | K63: 90 | L63: 0 | M63: 82 | N63: 0 | O63: 301 | P63: 0 | Q63: 158 | R63: 0 | S63: 866 | T63: 0 | U63: D
A65: 2007 | B65: 1 | C65: =SUM(E65,G65,I65,K65,M65,O65,Q65,S65) -> 2,408 | D65: 6 | E65: 254 | F65: 1 | G65: 118 | H65: 0 | I65: 124 | J65: 0 | K65: 179 | L65: 0 | M65: 193 | N65: 0 | O65: 588 | P65: 1 | Q65: 159 | R65: 2 | S65: 793 | T65: 2 | U65: J | V65: 2007
B66: 2 | C66: =SUM(E66,G66,I66,K66,M66,O66,Q66,S66) -> 2,762 | D66: =SUM(F66,H66,J66,L66,N66,P66,R66,T66) -> 5 | E66: 248 | F66: 0 | G66: 130 | H66: 0 | I66: 134 | J66: 0 | K66: 214 | L66: 0 | M66: 202 | N66: 0 | O66: 626 | P66: 1 | Q66: 203 | R66: 0 | S66: 1,006 | T66: 4 | U66: F
B67: 3 | C67: 2,496 | D67: 4 | E67: 215 | F67: 0 | G67: 89 | H67: 0 | I67: 112 | J67: 0 | K67: 181 | L67: 0 | M67: 208 | N67: 0 | O67: 527 | P67: 0 | Q67: 207 | R67: 0 | S67: 957 | T67: 3 | U67: M
B68: 4 | C68: 2,415 | D68: 6 | E68: 181 | F68: 0 | G68: 82 | H68: 0 | I68: 102 | J68: 0 | K68: 153 | L68: 2 | M68: 166 | N68: 0 | O68: 516 | P68: 1 | Q68: 161 | R68: 0 | S68: 1,054 | T68: 3 | U68: A
B69: 5 | C69: 2,489 | D69: 4 | E69: 201 | F69: 0 | G69: 79 | H69: 0 | I69: 95 | J69: 0 | K69: 132 | L69: 0 | M69: 164 | N69: 0 | O69: 600 | P69: 1 | Q69: 174 | R69: 0 | S69: 1,045 | T69: 3 | U69: M
B70: 6 | C70: 2,711 | D70: 3 | E70: 235 | F70: 0 | G70: 113 | H70: 0 | I70: 127 | J70: 0 | K70: 159 | L70: 0 | M70: 202 | N70: 0 | O70: 617 | P70: 1 | Q70: 182 | R70: 2 | S70: 1,077 | T70: 0 | U70: J
B71: 7 | C71: 3,588 | D71: 8 | E71: 327 | F71: 0 | G71: 159 | H71: 0 | I71: 147 | J71: 1 | K71: 244 | L71: 0 | M71: 270 | N71: 2 | O71: 972 | P71: 1 | Q71: 217 | R71: 0 | S71: 1,251 | T71: 4 | U71: J
B72: 8 | C72: 3,198 | D72: 2 | E72: 301 | F72: 0 | G72: 142 | H72: 0 | I72: 119 | J72: 0 | K72: 217 | L72: 1 | M72: 252 | N72: 0 | O72: 784 | P72: 0 | Q72: 186 | R72: 0 | S72: 1,197 | T72: 0 | U72: A
B73: 9 | C73: 2,482 | D73: 4 | E73: 224 | F73: 0 | G73: 109 | H73: 0 | I73: 88 | J73: 0 | K73: 173 | L73: 0 | M73: 182 | N73: 0 | O73: 577 | P73: 1 | Q73: 175 | R73: 0 | S73: 954 | T73: 2 | U73: S
B74: 10 | C74: 3,407 | D74: 4 | E74: 235 | F74: 0 | G74: 139 | H74: 0 | I74: 144 | J74: 0 | K74: 249 | L74: 1 | M74: 247 | N74: 0 | O74: 891 | P74: 1 | Q74: 207 | R74: 0 | S74: 1,295 | T74: 1 | U74: O
B75: 11 | C75: 3,244 | D75: 5 | E75: 227 | F75: 1 | G75: 95 | H75: 0 | I75: 124 | J75: 0 | K75: 200 | L75: 0 | M75: 214 | N75: 0 | O75: 873 | P75: 1 | Q75: 194 | R75: 0 | S75: 1,319 | T75: 3 | U75: N
B76: 12 | C76: 4,483 | D76: 4 | E76: 413 | F76: 0 | G76: 224 | H76: 0 | I76: 248 | J76: 0 | K76: 340 | L76: 0 | M76: 416 | N76: 0 | O76: 1,313 | P76: 1 | Q76: 218 | R76: 0 | S76: 1,311 | T76: 3 | U76: D
A78: 2008 | B78: 1 | C78: 5,863 | D78: 6 | E78: 667 | F78: 1 | G78: 300 | H78: 0 | I78: 328 | J78: 0 | K78: 458 | L78: 0 | M78: 569 | N78: 0 | O78: 1,664 | P78: 0 | Q78: 328 | R78: 3 | S78: 1,550 | T78: 1 | U78: J | V78: 2008
B79: 2 | C79: =SUM(E79,G79,I79,K79,M79,O79,Q79,S79) -> 4,947 | D79: =SUM(F79,H79,J79,L79,N79,P79,R79,T79) -> 6 | E79: 489 | F79: 1 | G79: 225 | H79: 0 | I79: 257 | J79: 0 | K79: 350 | L79: 0 | M79: 401 | N79: 0 | O79: 1,416 | P79: 2 | Q79: 282 | R79: 0 | S79: 1,529 | T79: 4 | U79: F
B80: 3 | C80: 3,891 | D80: 9 | E80: 276 | F80: 0 | G80: 161 | H80: 0 | I80: 169 | J80: 0 | K80: 284 | L80: 0 | M80: 292 | N80: 0 | O80: 1,112 | P80: 3 | Q80: 262 | R80: 0 | S80: 1,336 | T80: 5 | U80: M
B81: 4 | C81: 5,071 | D81: 9 | E81: 388 | F81: 0 | G81: 223 | H81: 1 | I81: 223 | J81: 0 | K81: 381 | L81: 0 | M81: 405 | N81: 0 | O81: 1,428 | P81: 4 | Q81: 332 | R81: 0 | S81: 1,691 | T81: 3 | U81: A
B82: 5 | C82: 4,062 | D82: 12 | E82: 292 | F82: 0 | G82: 163 | H82: 0 | I82: 183 | J82: 0 | K82: 301 | L82: 0 | M82: 334 | N82: 2 | O82: 1,254 | P82: 3 | Q82: 251 | R82: 1 | S82: 1,284 | T82: 4 | U82: M
B83: 6 | C83: 3,726 | D83: 8 | E83: 276 | F83: 0 | G83: 143 | H83: 0 | I83: 199 | J83: 0 | K83: 316 | L83: 0 | M83: 289 | N83: 1 | O83: 1,085 | P83: 2 | Q83: 245 | R83: 2 | S83: 1,172 | T83: 3 | U83: J
B84: 7 | C84: 4,208 | D84: 3 | E84: 367 | F84: 0 | G84: 221 | H84: 0 | I84: 242 | J84: 0 | K84: 449 | L84: 1 | M84: 347 | N84: 0 | O84: 1,127 | P84: 1 | Q84: 252 | R84: 0 | S84: 1,204 | T84: 0 | U84: J
B85: 8 | C85: 4,297 | D85: 5 | E85: 472 | F85: 0 | G85: 249 | H85: 0 | I85: 282 | J85: 0 | K85: 491 | L85: 1 | M85: 376 | N85: 0 | O85: 1,167 | P85: 1 | Q85: 198 | R85: 0 | S85: 1,062 | T85: 3 | U85: A
B86: 9 | C86: 2,748 | D86: 5 | E86: 303 | F86: 0 | G86: 153 | H86: 0 | I86: 188 | J86: 0 | K86: 298 | L86: 0 | M86: 228 | N86: 0 | O86: 757 | P86: 0 | Q86: 127 | R86: 1 | S86: 693 | T86: 4 | U86: S
B87: 10 | C87: 1,836 | D87: 3 | E87: 162 | F87: 0 | G87: 91 | H87: 0 | I87: 99 | J87: 0 | K87: 206 | L87: 0 | M87: 133 | N87: 0 | O87: 501 | P87: 1 | Q87: 103 | R87: 0 | S87: 541 | T87: 2 | U87: O
B88: 11 | C88: 835 | D88: 2 | E88: 55 | F88: 0 | G88: 32 | H88: 0 | I88: 51 | J88: 0 | K88: 74 | L88: 0 | M88: 53 | N88: 0 | O88: 215 | P88: 0 | Q88: 61 | R88: 0 | S88: 295 | T88: 1 | U88: N
B89: 12 | C89: 435 | D89: 1 | E89: 23 | F89: 0 | G89: 9 | H89: 0 | I89: 17 | J89: 0 | K89: 35 | L89: 0 | M89: 21 | N89: 0 | O89: 100 | P89: 0 | Q89: 18 | R89: 1 | S89: 212 | T89: 0 | U89: D
A91: 2009 | B91: 1 | C91: 351 | D91: 1 | E91: 15 | F91: 0 | G91: 5 | H91: 0 | I91: 10 | J91: 0 | K91: 24 | L91: 0 | M91: 27 | N91: 0 | O91: 109 | P91: 1 | Q91: 13 | R91: 0 | S91: 147 | T91: 0 | U91: J | V91: 2009
B92: 2 | C92: =SUM(E92,G92,I92,K92,M92,O92,Q92,S92) -> 933 | D92: =SUM(F92,H92,J92,L92,N92,P92,R92,T92) -> 5 | E92: 40 | F92: 0 | G92: 34 | H92: 0 | I92: 34 | J92: 0 | K92: 70 | L92: 0 | M92: 49 | N92: 0 | O92: 328 | P92: 0 | Q92: 44 | R92: 3 | S92: 333 | T92: 2 | U92: F
B93: 3 | C93: 2,976 | D93: 7 | E93: 275 | F93: 0 | G93: 164 | H93: 0 | I93: 173 | J93: 0 | K93: 342 | L93: 1 | M93: 221 | N93: 1 | O93: 1,300 | P93: 2 | Q93: 53 | R93: 0 | S93: 450 | T93: 3 | U93: M
B94: 4 | C94: 4,551 | D94: 11 | E94: 433 | F94: 1 | G94: 232 | H94: 0 | I94: 324 | J94: 0 | K94: 553 | L94: 2 | M94: 394 | N94: 0 | O94: 2,144 | P94: 5 | Q94: 57 | R94: 0 | S94: 415 | T94: 3 | U94: A
B95: 5 | C95: 4,359 | D95: 14 | E95: 468 | F95: 1 | G95: 224 | H95: 1 | I95: 238 | J95: 1 | K95: 495 | L95: 1 | M95: 346 | N95: 4 | O95: 2,083 | P95: 4 | Q95: 40 | R95: 0 | S95: 465 | T95: 2 | U95: M
B96: 6 | C96: 4,845 | D96: 13 | E96: 521 | F96: 2 | G96: 264 | H96: 0 | I96: 297 | J96: 0 | K96: 506 | L96: 2 | M96: 394 | N96: 0 | O96: 2,016 | P96: 3 | Q96: 93 | R96: 0 | S96: 756 | T96: 5 | U96: J
B97: 7 | C97: 4,509 | D97: 8 | E97: 446 | F97: 0 | G97: 218 | H97: 0 | I97: 267 | J97: 3 | K97: 412 | L97: 1 | M97: 373 | N97: 0 | O97: 1,612 | P97: 1 | Q97: 140 | R97: 1 | S97: 1,041 | T97: 2 | U97: J
B98: 8 | C98: 4,848 | D98: 5 | E98: 468 | F98: 0 | G98: 271 | H98: 0 | I98: 265 | J98: 0 | K98: 462 | L98: 0 | M98: 410 | N98: 0 | O98: 1,649 | P98: 1 | Q98: 175 | R98: 0 | S98: 1,148 | T98: 2 | U98: A
B99: 9 | C99: 6,591 | D99: 20 | E99: 768 | F99: 1 | G99: 373 | H99: 0 | I99: 455 | J99: 0 | K99: 741 | L99: 2 | M99: 594 | N99: 0 | O99: 2,003 | P99: 3 | Q99: 279 | R99: 2 | S99: 1,378 | T99: 11 | U99: S
B100: 10 | C100: 9,478 | D100: 20 | E100: 1,268 | F100: 1 | G100: 615 | H100: 0 | I100: 687 | J100: 0 | K100: 1,033 | L100: 2 | M100: 812 | N100: 2 | O100: 2,963 | P100: 7 | Q100: 360 | R100: 1 | S100: 1,740 | T100: 6 | U100: O
B101: 11 | C101: 8,775 | D101: 20 | E101: 1,246 | F101: 1 | G101: 544 | H101: 1 | I101: 577 | J101: 1 | K101: 962 | L101: 1 | M101: 703 | N101: 1 | O101: 2,769 | P101: 5 | Q101: 314 | R101: 2 | S101: 1,659 | T101: 9 | U101: N
B102: 12 | C102: 6,883 | D102: 17 | E102: 873 | F102: 1 | G102: 393 | H102: 1 | I102: 444 | J102: 0 | K102: 676 | L102: 2 | M102: 503 | N102: 0 | O102: 2,265 | P102: 7 | Q102: 265 | R102: 1 | S102: 1,464 | T102: 5 | U102: D
A104: 2010 | B104: 1 | C104: 3,768 | D104: 10 | E104: 483 | F104: 1 | G104: 200 | H104: 2 | I104: 195 | J104: 1 | K104: 374 | L104: 1 | M104: 305 | N104: 0 | O104: 1,200 | P104: 2 | Q104: 152 | R104: 0 | S104: 859 | T104: 3 | U104: J | V104: 2010
B105: 2 | C105: =SUM(E105,G105,I105,K105,M105,O105,Q105,S105) -> 3,904 | D105: =SUM(F105,H105,J105,L105,N105,P105,R105,T105) -> 11 | E105: 452 | F105: 1 | G105: 225 | H105: 0 | I105: 246 | J105: 1 | K105: 361 | L105: 1 | M105: 307 | N105: 0 | O105: 1,118 | P105: 1 | Q105: 186 | R105: 1 | S105: 1,007 | T105: 6 | U105: F
B106: 3 | C106: 3,293 | D106: 17 | E106: 323 | F106: 1 | G106: 173 | H106: 0 | I106: 167 | J106: 1 | K106: 311 | L106: 1 | M106: 196 | N106: 0 | O106: 914 | P106: 3 | Q106: 169 | R106: 0 | S106: 1,040 | T106: 11 | U106: M
B107: 4 | C107: 2,631 | D107: 12 | E107: 244 | F107: 2 | G107: 115 | H107: 0 | I107: 148 | J107: 1 | K107: 216 | L107: 1 | M107: 198 | N107: 2 | O107: 872 | P107: 2 | Q107: 97 | R107: 1 | S107: 740 | T107: 2 | U107: A
B108: 5 | C108: 2,339 | D108: 20 | E108: 217 | F108: 2 | G108: 108 | H108: 1 | I108: 114 | J108: 0 | K108: 222 | L108: 3 | M108: 177 | N108: 1 | O108: 925 | P108: 10 | Q108: 80 | R108: 0 | S108: 495 | T108: 3 | U108: M
B109: 6 | C109: 3,671 | D109: 52 | E109: 340 | F109: 2 | G109: 174 | H109: 2 | I109: 218 | J109: 2 | K109: 356 | L109: 7 | M109: 313 | N109: 1 | O109: 1,628 | P109: 30 | Q109: 46 | R109: 0 | S109: 596 | T109: 9 | U109: J
B110: 7 | C110: 9,792 | D110: 103 | E110: 1,075 | F110: 9 | G110: 540 | H110: 3 | I110: 601 | J110: 8 | K110: 921 | L110: 10 | M110: 982 | N110: 8 | O110: 4,136 | P110: 55 | Q110: 259 | R110: 1 | S110: 1,278 | T110: 10 | U110: J
B111: 8 | C111: 8,864 | D111: 75 | E111: 911 | F111: 7 | G111: 509 | H111: 5 | I111: 484 | J111: 3 | K111: 706 | L111: 8 | M111: 792 | N111: 7 | O111: 3,666 | P111: 31 | Q111: 221 | R111: 2 | S111: 1,574 | T111: 13 | U111: A
B112: 9 | C112: 5,043 | D112: 42 | E112: 456 | F112: 1 | G112: 241 | H112: 0 | I112: 272 | J112: 1 | K112: 297 | L112: 0 | M112: 364 | N112: 3 | O112: 1,865 | P112: 14 | Q112: 170 | R112: 1 | S112: 1,379 | T112: 22 | U112: S
B113: 10 | C113: 4,338 | D113: 47 | E113: 353 | F113: 3 | G113: 163 | H113: 4 | I113: 214 | J113: 6 | K113: 248 | L113: 1 | M113: 312 | N113: 2 | O113: 1,337 | P113: 14 | Q113: 144 | R113: 4 | S113: 1,568 | T113: 14 | U113: O
B114: 11 | C114: 4,717 | D114: 53 | E114: 327 | F114: 2 | G114: 175 | H114: 1 | I114: 194 | J114: 1 | K114: 267 | L114: 1 | M114: 288 | N114: 2 | O114: 1,318 | P114: 20 | Q114: 225 | R114: 1 | S114: 1,924 | T114: 24 | U114: N
B115: 12 | C115: 5,518 | D115: 54 | E115: 365 | F115: 4 | G115: 179 | H115: 0 | I115: 214 | J115: 0 | K115: 316 | L115: 2 | M115: 338 | N115: 3 | O115: 1,569 | P115: 10 | Q115: 278 | R115: 3 | S115: 2,259 | T115: 31 | U115: D
A117: 2011 | B117: 1 | C117: 4,454 | D117: 31 | E117: 323 | F117: 1 | G117: 155 | H117: 2 | I117: 216 | J117: 1 | K117: 250 | L117: 1 | M117: 270 | N117: 4 | O117: 1,181 | P117: 8 | Q117: 232 | R117: 2 | S117: 1,827 | T117: 13 | U117: J | V117: 2011
B118: 2 | C118: =SUM(E118,G118,I118,K118,M118,O118,Q118,S118) -> 5,953 | D118: =SUM(F118,H118,J118,L118,N118,P118,R118,T118) -> 44 | E118: 486 | F118: 1 | G118: 257 | H118: 0 | I118: 279 | J118: 1 | K118: 334 | L118: 5 | M118: 398 | N118: 3 | O118: 1,535 | P118: 7 | Q118: 291 | R118: 4 | S118: 2,373 | T118: 24 | U118: F
B119: 3 | C119: 7,742 | D119: 73 | E119: 643 | F119: 3 | G119: 285 | H119: 1 | I119: 355 | J119: 1 | K119: 473 | L119: 1 | M119: 547 | N119: 2 | O119: 2,101 | P119: 30 | Q119: 356 | R119: 4 | S119: 2,982 | T119: 31 | U119: M
B120: 4 | C120: 7,908 | D120: 79 | E120: 652 | F120: 1 | G120: 322 | H120: 1 | I120: 361 | J120: 3 | K120: 438 | L120: 2 | M120: 578 | N120: 6 | O120: 2,271 | P120: 21 | Q120: 364 | R120: 3 | S120: 2,922 | T120: 43 | U120: A
B121: 5 | C121: 6,571 | D121: 68 | E121: 486 | F121: 1 | G121: 275 | H121: 2 | I121: 304 | J121: 3 | K121: 379 | L121: 2 | M121: 425 | N121: 2 | O121: 1,682 | P121: 13 | Q121: 348 | R121: 2 | S121: 2,672 | T121: 43 | U121: M
B122: 6 | C122: 6,017 | D122: 51 | E122: 432 | F122: 2 | G122: 194 | H122: 0 | I122: 243 | J122: 0 | K122: 374 | L122: 0 | M122: 404 | N122: 3 | O122: 1,619 | P122: 12 | Q122: 287 | R122: 3 | S122: 2,463 | T122: 31 | U122: J
B123: 7 | C123: 6,222 | D123: 71 | E123: 459 | F123: 4 | G123: 239 | H123: 4 | I123: 269 | J123: 1 | K123: 385 | L123: 3 | M123: 485 | N123: 6 | O123: 1,687 | P123: 17 | Q123: 272 | R123: 4 | S123: 2,427 | T123: 32 | U123: J
B124: 8 | C124: 6,088 | D124: 69 | E124: 440 | F124: 2 | G124: 232 | H124: 1 | I124: 322 | J124: 1 | K124: 349 | L124: 3 | M124: 444 | N124: 9 | O124: 1,730 | P124: 19 | Q124: 279 | R124: 4 | S124: 2,291 | T124: 31 | U124: A
B125: 9 | C125: 9,633 | D125: 135 | E125: 829 | F125: 13 | G125: 374 | H125: 3 | I125: 501 | J125: 8 | K125: 646 | L125: 10 | M125: 752 | N125: 7 | O125: 3,220 | P125: 52 | Q125: 356 | R125: 3 | S125: 2,956 | T125: 39 | U125: S
B126: 10 | C126: 11,331 | D126: 196 | E126: 988 | F126: 9 | G126: 443 | H126: 4 | I126: 565 | J126: 7 | K126: 747 | L126: 8 | M126: 821 | N126: 10 | O126: 3,929 | P126: 84 | Q126: 414 | R126: 8 | S126: 3,422 | T126: 66 | U126: O
B127: 11 | C127: 10,188 | D127: 192 | E127: 747 | F127: 6 | G127: 381 | H127: 4 | I127: 450 | J127: 10 | K127: 587 | L127: 12 | M127: 669 | N127: 16 | O127: 3,355 | P127: 75 | Q127: 418 | R127: 8 | S127: 3,581 | T127: 62 | U127: N
B128: 12 | C128: 11,397 | D128: 193 | E128: 630 | F128: 6 | G128: 346 | H128: 3 | I128: 555 | J128: 13 | K128: 636 | L128: 9 | M128: 726 | N128: 19 | O128: 3,269 | P128: 60 | Q128: 532 | R128: 8 | S128: 4,703 | T128: 76 | U128: D
A130: 2012 | B130: 1 | C130: 2,665 | D130: 38 | E130: 135 | F130: 1 | G130: 76 | H130: 1 | I130: 115 | J130: 2 | K130: 110 | L130: 1 | M130: 128 | N130: 1 | O130: 666 | P130: 8 | Q130: 135 | R130: 4 | S130: 1,300 | T130: 19 | U130: J | V130: 2012
B131: 2 | C131: =SUM(E131,G131,I131,K131,M131,O131,Q131,S131) -> 7,393 | D131: =SUM(F131,H131,J131,L131,N131,P131,R131,T131) -> 126 | E131: 460 | F131: 2 | G131: 235 | H131: 1 | I131: 298 | J131: 3 | K131: 364 | L131: 5 | M131: 437 | N131: 4 | O131: 1,764 | P131: 32 | Q131: 426 | R131: 5 | S131: 3,409 | T131: 73 | U131: F
B132: 3 | C132: 9,605 | D132: 178 | E132: 655 | F132: 5 | G132: 301 | H132: 3 | I132: 372 | J132: 4 | K132: 545 | L132: 7 | M132: 585 | N132: 8 | O132: 2,312 | P132: 36 | Q132: 533 | R132: 7 | S132: 4,302 | T132: 107 | U132: M
B133: 4 | C133: 7,795 | D133: 131 | E133: 447 | F133: 3 | G133: 248 | H133: 1 | I133: 254 | J133: 2 | K133: 351 | L133: 2 | M133: 429 | N133: 3 | O133: 1,676 | P133: 27 | Q133: 483 | R133: 8 | S133: 3,907 | T133: 86 | U133: A
B134: 5 | C134: 9,506 | D134: 173 | E134: 547 | F134: 5 | G134: 283 | H134: 4 | I134: 301 | J134: 2 | K134: 465 | L134: 7 | M134: 488 | N134: 5 | O134: 2,128 | P134: 32 | Q134: 563 | R134: 11 | S134: 4,731 | T134: 106 | U134: M
B135: 6 | C135: 9,148 | D135: 221 | E135: 508 | F135: 6 | G135: 275 | H135: 2 | I135: 304 | J135: 3 | K135: 410 | L135: 6 | M135: 429 | N135: 7 | O135: 1,899 | P135: 43 | Q135: 535 | R135: 15 | S135: 4,790 | T135: 139 | U135: J
B136: 7 | C136: 8,754 | D136: 274 | E136: 435 | F136: 7 | G136: 262 | H136: 7 | I136: 281 | J136: 4 | K136: 406 | L136: 13 | M136: 408 | N136: 18 | O136: 1,813 | P136: 39 | Q136: 530 | R136: 21 | S136: 4,620 | T136: 164 | U136: J
B137: 8 | C137: 7,886 | D137: 286 | E137: 414 | F137: 11 | G137: 255 | H137: 4 | I137: 242 | J137: 4 | K137: 333 | L137: 9 | M137: 385 | N137: 10 | O137: 1,508 | P137: 58 | Q137: 407 | R137: 14 | S137: 4,343 | T137: 176 | U137: A
B138: 9 | C138: 6,517 | D138: 238 | E138: 306 | F138: 7 | G138: 152 | H138: 5 | I138: 192 | J138: 5 | K138: 227 | L138: 9 | M138: 277 | N138: 8 | O138: 1,175 | P138: 29 | Q138: 341 | R138: 11 | S138: 3,847 | T138: 164 | U138: S
B139: 10 | C139: 9,412 | D139: 366 | E139: 455 | F139: 12 | G139: 248 | H139: 9 | I139: 306 | J139: 13 | K139: 336 | L139: 13 | M139: 381 | N139: 12 | O139: 1,779 | P139: 50 | Q139: 554 | R139: 24 | S139: 5,353 | T139: 234 | U139: O
B140: 11 | C140: =SUM(E140,G140,I140,K140,M140,O140,Q140,S140) -> 13,525 | D140: 540 | E140: 731 | F140: 16 | G140: 368 | H140: 9 | I140: 471 | J140: 18 | K140: 585 | L140: 17 | M140: 627 | N140: 22 | O140: 2,547 | P140: 102 | Q140: 801 | R140: 30 | S140: 7,395 | T140: 325 | U140: N
B141: 12 | C141: 18,746 | D141: 745 | E141: 1,087 | F141: 29 | G141: 617 | H141: 22 | I141: 702 | J141: 22 | K141: 894 | L141: 41 | M141: 955 | N141: 36 | O141: 3,756 | P141: 146 | Q141: 1,182 | R141: 45 | S141: 9,553 | T141: 404 | U141: D
A143: 2013 | B143: 1 | C143: 6,851 | D143: 265 | E143: 469 | F143: 12 | G143: 226 | H143: 7 | I143: 275 | J143: 6 | K143: 328 | L143: 12 | M143: 360 | N143: 13 | O143: 1,349 | P143: 60 | Q143: 438 | R143: 19 | S143: 3,406 | T143: 138 | U143: J | V143: 2013
B144: 2 | C144: =SUM(E144,G144,I144,K144,M144,O144,Q144,S144) -> 11,085 | D144: =SUM(F144,H144,J144,L144,N144,P144,R144,T144) -> 507 | E144: 619 | F144: 20 | G144: 359 | H144: 13 | I144: 410 | J144: 14 | K144: 492 | L144: 18 | M144: 615 | N144: 24 | O144: 1,984 | P144: 73 | Q144: 710 | R144: 41 | S144: 5,895 | T144: 303 | U144: F
B145: 3 | C145: 10,811 | D145: 584 | E145: 520 | F145: 15 | G145: 328 | H145: 16 | I145: 349 | J145: 18 | K145: 445 | L145: 23 | M145: 500 | N145: 24 | O145: 1,946 | P145: 93 | Q145: 727 | R145: 51 | S145: 5,996 | T145: 344 | U145: M
B146: 4 | C146: 16,644 | D146: 1,074 | E146: 838 | F146: 38 | G146: 508 | H146: 38 | I146: 596 | J146: 36 | K146: 704 | L146: 46 | M146: 772 | N146: 53 | O146: 2,880 | P146: 179 | Q146: 1,157 | R146: 67 | S146: 9,190 | T146: 616 | U146: A
B147: 5 | C147: 16,472 | D147: 1,191 | E147: 806 | F147: 42 | G147: 419 | H147: 37 | I147: 519 | J147: 36 | K147: 669 | L147: 47 | M147: 739 | N147: 50 | O147: 2,686 | P147: 153 | Q147: 1,080 | R147: 85 | S147: 9,554 | T147: 742 | U147: M
B148: 6 | C148: 22,400 | D148: 1,433 | E148: 1,065 | F148: 45 | G148: 644 | H148: 39 | I148: 741 | J148: 48 | K148: 966 | L148: 69 | M148: 959 | N148: 53 | O148: 3,439 | P148: 219 | Q148: 1,580 | R148: 126 | S148: 13,006 | T148: 833 | U148: J
B149: 7 | C149: 10,202 | D149: 524 | E149: 606 | F149: 16 | G149: 310 | H149: 11 | I149: 369 | J149: 9 | K149: 506 | L149: 21 | M149: 520 | N149: 34 | O149: 1,640 | P149: 66 | Q149: 789 | R149: 46 | S149: 5,461 | T149: 322 | U149: J
B150: 8 | C150: 6,365 | D150: 337 | E150: 313 | F150: 11 | G150: 170 | H150: 6 | I150: 197 | J150: 8 | K150: 253 | L150: 11 | M150: 264 | N150: 12 | O150: 991 | P150: 46 | Q150: 438 | R150: 29 | S150: 3,738 | T150: 214 | U150: A
B151: 9 | C151: 4,101 | D151: 197 | E151: 170 | F151: 7 | G151: 93 | H151: 3 | I151: 101 | J151: 4 | K151: 155 | L151: 4 | M151: 164 | N151: 7 | O151: 557 | P151: 25 | Q151: 223 | R151: 11 | S151: 2,637 | T151: 136 | U151: S
B152: 10 | C152: 4,718 | D152: 271 | E152: 181 | F152: 4 | G152: 100 | H152: 4 | I152: 114 | J152: 4 | K152: 163 | L152: 4 | M152: 160 | N152: 8 | O152: 584 | P152: 31 | Q152: 238 | R152: 10 | S152: 3,179 | T152: 206 | U152: O
B153: 11 | C153: 3,988 | D153: 262 | E153: 179 | F153: 6 | G153: 116 | H153: 4 | I153: 124 | J153: 6 | K153: 139 | L153: 9 | M153: 148 | N153: 6 | O153: 598 | P153: 37 | Q153: 212 | R153: 16 | S153: 2,472 | T153: 178 | U153: N
B154: 12 | C154: 3,739 | D154: 218 | E154: 169 | F154: 8 | G154: 103 | H154: 5 | I154: 113 | J154: 5 | K154: 155 | L154: 9 | M154: 187 | N154: 11 | O154: 647 | P154: 35 | Q154: 197 | R154: 13 | S154: 2,169 | T154: 132 | U154: D
A156: 2014 | B156: 1 | C156: 1,640 | D156: 113 | E156: 81 | F156: 5 | G156: 53 | H156: 2 | I156: 43 | J156: 4 | K156: 80 | L156: 7 | M156: 78 | N156: 2 | O156: 248 | P156: 18 | Q156: 90 | R156: 7 | S156: 968 | T156: 68 | U156: J | V156: 2014
B157: 2 | C157: =SUM(E157,G157,I157,K157,M157,O157,Q157,S157) -> 1,775 | D157: =SUM(F157,H157,J157,L157,N157,P157,R157,T157) -> 149 | E157: 59 | F157: 3 | G157: 32 | H157: 1 | I157: 40 | J157: 1 | K157: 54 | L157: 4 | M157: 83 | N157: 5 | O157: 281 | P157: 20 | Q157: 112 | R157: 15 | S157: 1,115 | T157: 100 | U157: F
B158: 3 | C158: 1,829 | D158: 201 | E158: 53 | F158: 3 | G158: 34 | H158: 3 | I158: 43 | J158: 6 | K158: 56 | L158: 4 | M158: 79 | N158: 7 | O158: 251 | P158: 29 | Q158: 94 | R158: 8 | S158: 1,220 | T158: 141 | U158: M
B159: 4 | C159: 3,395 | D159: 452 | E159: 80 | F159: 6 | G159: 59 | H159: 5 | I159: 88 | J159: 9 | K159: 123 | L159: 14 | M159: 149 | N159: 15 | O159: 594 | P159: 89 | Q159: 221 | R159: 23 | S159: 2,082 | T159: 291 | U159: A
B160: 5 | C160: 4,978 | D160: 798 | E160: 145 | F160: 10 | G160: 109 | H160: 7 | I160: 157 | J160: 15 | K160: 217 | L160: 32 | M160: 301 | N160: 47 | O160: 949 | P160: 169 | Q160: 334 | R160: 54 | S160: 2,765 | T160: 464 | U160: M
B161: 6 | C161: 7,878 | D161: 1,224 | E161: 274 | F161: 28 | G161: 192 | H161: 19 | I161: 279 | J161: 32 | K161: 375 | L161: 43 | M161: 492 | N161: 77 | O161: 1,540 | P161: 260 | Q161: 564 | R161: 93 | S161: 4,162 | T161: 673 | U161: J
B162: 7 | C162: 7,988 | D162: 1,229 | E162: 275 | F162: 24 | G162: 210 | H162: 19 | I162: 246 | J162: 28 | K162: 371 | L162: 47 | M162: 521 | N162: 77 | O162: 1,462 | P162: 237 | Q162: 515 | R162: 77 | S162: 4,388 | T162: 720 | U162: J
B163: 8 | C163: 8,510 | D163: 1,334 | E163: 365 | F163: 36 | G163: 257 | H163: 25 | I163: 307 | J163: 42 | K163: 412 | L163: 49 | M163: 546 | N163: 88 | O163: 1,583 | P163: 256 | Q163: 644 | R163: 104 | S163: 4,397 | T163: 732 | U163: A
B164: 9 | C164: 8,022 | D164: 1,352 | E164: 378 | F164: 38 | G164: 244 | H164: 25 | I164: 370 | J164: 45 | K164: 426 | L164: 62 | M164: 567 | N164: 95 | O164: 1,543 | P164: 275 | Q164: 699 | R164: 116 | S164: 3,795 | T164: 696 | U164: S
B165: 10 | C165: 11,736 | D165: 2,291 | E165: 513 | F165: 59 | G165: 388 | H165: 48 | I165: 529 | J165: 73 | K165: 676 | L165: 107 | M165: 861 | N165: 148 | O165: 1,809 | P165: 351 | Q165: 1,098 | R165: 207 | S165: 5,861 | T165: 1,298 | U165: O
B166: 11 | C166: 12,606 | D166: 2,463 | E166: 724 | F166: 82 | G166: 431 | H166: 51 | I166: 604 | J166: 96 | K166: 757 | L166: 114 | M166: 865 | N166: 157 | O166: 1,853 | P166: 373 | Q166: 1,222 | R166: 237 | S166: 6,151 | T166: 1,353 | U166: N
B167: 12 | C167: 13,361 | D167: 2,643 | E167: 836 | F167: 93 | G167: 498 | H167: 70 | I167: 591 | J167: 85 | K167: 761 | L167: 124 | M167: 890 | N167: 159 | O167: 1,887 | P167: 380 | Q167: 1,289 | R167: 232 | S167: 6,609 | T167: 1,500 | U167: D
A169: 2015 | B169: 1 | C169: 7,807 | D169: 1,557 | E169: 616 | F169: 67 | G169: 302 | H169: 45 | I169: 340 | J169: 43 | K169: 446 | L169: 81 | M169: 511 | N169: 88 | O169: 1,022 | P169: 199 | Q169: 756 | R169: 144 | S169: 3,814 | T169: 891 | U169: J | V169: 2015
B170: 2 | C170: =SUM(E170,G170,I170,K170,M170,O170,Q170,S170) -> 11,058 | D170: =SUM(F170,H170,J170,L170,N170,P170,R170,T170) -> 2,358 | E170: 1,005 | F170: 147 | G170: 488 | H170: 75 | I170: 572 | J170: 93 | K170: 676 | L170: 117 | M170: 787 | N170: 168 | O170: 1,326 | P170: 298 | Q170: 1,067 | R170: 214 | S170: 5,137 | T170: 1,246 | U170: F
B171: 3 | C171: 11,136 | D171: 2,330 | E171: 921 | F171: 135 | G171: 448 | H171: 72 | I171: 538 | J171: 94 | K171: 735 | L171: 133 | M171: 771 | N171: 150 | O171: 1,502 | P171: 346 | Q171: 1,126 | R171: 236 | S171: 5,094 | T171: 1,165 | U171: M
B172: 4 | C172: 18,858 | D172: 4,671 | E172: 1,936 | F172: 323 | G172: 873 | H172: 170 | I172: 980 | J172: 206 | K172: 1,312 | L172: 271 | M172: 1,398 | N172: 330 | O172: 2,518 | P172: 654 | Q172: 2,033 | R172: 514 | S172: 7,807 | T172: 2,202 | U172: A
B173: 5 | C173: 18,843 | D173: 4,722 | E173: 1,991 | F173: 360 | G173: 874 | H173: 177 | I173: 972 | J173: 228 | K173: 1,353 | L173: 292 | M173: 1,478 | N173: 367 | O173: 2,520 | P173: 643 | Q173: 2,144 | R173: 568 | S173: 7,512 | T173: 2,088 | U173: M
B174: 6 | C174: 23,336 | D174: 6,114 | E174: 2,106 | F174: 401 | G174: 1,059 | H174: 208 | I174: 1,288 | J174: 299 | K174: 1,614 | L174: 375 | M174: 1,816 | N174: 450 | O174: 3,307 | P174: 913 | Q174: 2,456 | R174: 701 | S174: 9,690 | T174: 2,767 | U174: J
B175: 7 | C175: 12,958 | D175: 3,217 | E175: 1,035 | F175: 167 | G175: 516 | H175: 95 | I175: 586 | J175: 112 | K175: 755 | L175: 176 | M175: 924 | N175: 180 | O175: 1,689 | P175: 422 | Q175: 1,442 | R175: 335 | S175: 6,011 | T175: 1,730 | U175: J
B176: 8 | C176: 7,968 | D176: 1,875 | E176: 645 | F176: 99 | G176: 317 | H176: 64 | I176: 382 | J176: 72 | K176: 459 | L176: 104 | M176: 492 | N176: 108 | O176: 947 | P176: 224 | Q176: 858 | R176: 196 | S176: 3,868 | T176: 1,008 | U176: A
B177: 9 | C177: 5,631 | D177: 1,455 | E177: 402 | F177: 75 | G177: 201 | H177: 38 | I177: 259 | J177: 46 | K177: 345 | L177: 82 | M177: 373 | N177: 86 | O177: 744 | P177: 186 | Q177: 570 | R177: 135 | S177: 2,738 | T177: 807 | U177: S
B178: 10 | C178: 6,004 | D178: 1,680 | E178: 320 | F178: 57 | G178: 197 | H178: 35 | I178: 246 | J178: 50 | K178: 254 | L178: 61 | M178: 365 | N178: 86 | O178: 711 | P178: 204 | Q178: 570 | R178: 149 | S178: 3,340 | T178: 1,039 | U178: O
B179: 11 | C179: 9,390 | D179: 2,865 | E179: 590 | F179: 122 | G179: 358 | H179: 86 | I179: 443 | J179: 116 | K179: 573 | L179: 166 | M179: 663 | N179: 176 | O179: 1,270 | P179: 370 | Q179: 989 | R179: 303 | S179: 4,504 | T179: 1,528 | U179: N
B180: 12 | C180: 12,983 | D180: 3,854 | E180: 946 | F180: 196 | G180: 503 | H180: 111 | I180: 624 | J180: 165 | K180: 839 | L180: 204 | M180: 998 | N180: 264 | O180: 1,693 | P180: 511 | Q180: 1,401 | R180: 420 | S180: 5,979 | T180: 1,984 | U180: D
A182: 2016 | B182: 1 | C182: 8,177 | D182: 2,314 | E182: 729 | F182: 131 | G182: 330 | H182: 67 | I182: 376 | J182: 88 | K182: 546 | L182: 138 | M182: 536 | N182: 128 | O182: 950 | P182: 276 | Q182: 863 | R182: 249 | S182: 3,847 | T182: 1,236 | U182: J | V182: 2016
B183: 2 | C183: =SUM(E183,G183,I183,K183,M183,O183,Q183,S183) -> 6,639 | D183: =SUM(F183,H183,J183,L183,N183,P183,R183,T183) -> 1,968 | E183: 590 | F183: 122 | G183: 254 | H183: 69 | I183: 333 | J183: 84 | K183: 433 | L183: 110 | M183: 431 | N183: 95 | O183: 813 | P183: 256 | Q183: 688 | R183: 236 | S183: 3,097 | T183: 998 | U183: F
B184: 3 | C184: 8,332 | D184: 2,698 | E184: 774 | F184: 176 | G184: 354 | H184: 97 | I184: 437 | J184: 129 | K184: 540 | L184: 147 | M184: 625 | N184: 202 | O184: 1,045 | P184: 351 | Q184: 963 | R184: 342 | S184: 3,594 | T184: 1,254 | U184: M
B185: 4 | C185: 9,462 | D185: 3,097 | E185: 949 | F185: 220 | G185: 425 | H185: 123 | I185: 535 | J185: 151 | K185: 650 | L185: 186 | M185: 741 | N185: 216 | O185: 1,323 | P185: 436 | Q185: 982 | R185: 347 | S185: 3,857 | T185: 1,421 | U185: A
B186: 5 | C186: 8,134 | D186: 2,776 | E186: 769 | F186: 188 | G186: 371 | H186: 99 | I186: 433 | J186: 126 | K186: 565 | L186: 173 | M186: 622 | N186: 192 | O186: 1,134 | P186: 394 | Q186: 960 | R186: 333 | S186: 3,281 | T186: 1,271 | U186: M
B187: 6 | C187: 12,837 | D187: 4,741 | E187: 1,219 | F187: 315 | G187: 529 | H187: 152 | I187: 639 | J187: 208 | K187: 905 | L187: 318 | M187: 1,064 | N187: 382 | O187: 1,789 | P187: 652 | Q187: 1,411 | R187: 546 | S187: 5,280 | T187: 2,167 | U187: J
B188: 7 | C188: 18,784 | D188: 7,311 | E188: 1,584 | F188: 432 | G188: 778 | H188: 265 | I188: 935 | J188: 336 | K188: 1,392 | L188: 513 | M188: 1,504 | N188: 581 | O188: 2,658 | P188: 1,055 | Q188: 2,240 | R188: 918 | S188: 7,693 | T188: 3,211 | U188: J
B189: 8 | C189: 21,306 | D189: 8,452 | E189: 2,000 | F189: 577 | G189: 1,013 | H189: 330 | I189: 1,102 | J189: 395 | K189: 1,486 | L189: 552 | M189: 1,711 | N189: 673 | O189: 3,008 | P189: 1,204 | Q189: 2,615 | R189: 1,073 | S189: 8,371 | T189: 3,649 | U189: A
B190: 9 | C190: 20,076 | D190: 8,046 | E190: 2,103 | F190: 628 | G190: 961 | H190: 345 | I190: 1,098 | J190: 382 | K190: 1,477 | L190: 558 | M190: 1,606 | N190: 649 | O190: 2,641 | P190: 1,071 | Q190: 2,018 | R190: 833 | S190: 8,172 | T190: 3,580 | U190: S
B191: 10 | C191: 25,644 | D191: 10,203 | E191: 2,831 | F191: 871 | G191: 1,274 | H191: 441 | I191: 1,377 | J191: 486 | K191: 1,854 | L191: 669 | M191: 1,957 | N191: 789 | O191: 3,135 | P191: 1,247 | Q191: 2,693 | R191: 1,166 | S191: 10,524 | T191: 4,534 | U191: O
B192: 11 | C192: 28,937 | D192: 12,612 | E192: 2,488 | F192: 794 | G192: 1,247 | H192: 472 | I192: 1,481 | J192: 574 | K192: 2,006 | L192: 794 | M192: 2,354 | N192: 984 | O192: 4,100 | P192: 1,843 | Q192: 3,502 | R192: 1,621 | S192: 11,759 | T192: 5,531 | U192: N
B193: 12 | C193: 28,457 | D193: 12,546 | E193: 2,130 | F193: 725 | G193: 1,121 | H193: 425 | I193: 1,356 | J193: 539 | K193: 1,820 | L193: 787 | M193: 2,372 | N193: 1,025 | O193: 3,934 | P193: 1,802 | Q193: 4,022 | R193: 1,862 | S193: 11,702 | T193: 5,383 | U193: D
A195: 2017 | B195: 1 | C195: 18,773 | D195: 8,047 | E195: 1,622 | F195: 551 | G195: 778 | H195: 293 | I195: 958 | J195: 347 | K195: 1,272 | L195: 529 | M195: 1,590 | N195: 676 | O195: 2,770 | P195: 1,161 | Q195: 2,726 | R195: 1,340 | S195: 7,058 | T195: 3,151 | U195: J | V195: 2017
B196: 2 | C196: =SUM(E196,G196,I196,K196,M196,O196,Q196,S196) -> 24,121 | D196: =SUM(F196,H196,J196,L196,N196,P196,R196,T196) -> 9,936 | E196: 2,062 | F196: 669 | G196: 959 | H196: 361 | I196: 1,257 | J196: 480 | K196: 1,640 | L196: 670 | M196: 1,925 | N196: 764 | O196: 3,520 | P196: 1,447 | Q196: 3,302 | R196: 1,427 | S196: 9,457 | T196: 4,118 | U196: F
B197: 3 | C197: 19,110 | D197: 7,975 | E197: 1,561 | F197: 524 | G197: 740 | H197: 282 | I197: 908 | J197: 331 | K197: 1,298 | L197: 492 | M197: 1,620 | N197: 664 | O197: 2,942 | P197: 1,300 | Q197: 2,547 | R197: 1,058 | S197: 7,493 | T197: 3,324 | U197: M
B198: 4 | C198: 13,361 | D198: 5,629 | E198: 882 | F198: 268 | G198: 441 | H198: 173 | I198: 586 | J198: 221 | K198: 847 | L198: 317 | M198: 1,139 | N198: 475 | O198: 2,016 | P198: 904 | Q198: 1,808 | R198: 824 | S198: 5,643 | T198: 2,447 | U198: A
B199: 5 | C199: 12,384 | D199: 5,353 | E199: 838 | F199: 259 | G199: 411 | H199: 145 | I199: 528 | J199: 196 | K199: 771 | L199: 313 | M199: 1,035 | N199: 454 | O199: 1,793 | P199: 815 | Q199: 1,637 | R199: 730 | S199: 5,371 | T199: 2,442 | U199: M
B200: 6 | C200: 14,133 | D200: 5,899 | E200: 945 | F200: 301 | G200: 537 | H200: 183 | I200: 619 | J200: 219 | K200: 845 | L200: 337 | M200: 1,085 | N200: 444 | O200: 1,871 | P200: 842 | Q200: 1,783 | R200: 764 | S200: 6,447 | T200: 2,809 | U200: J
B201: 7 | C201: 10,546 | D201: 4,233 | E201: 735 | F201: 220 | G201: 420 | H201: 137 | I201: 438 | J201: 158 | K201: 590 | L201: 209 | M201: 737 | N201: 281 | O201: 1,242 | P201: 490 | Q201: 1,117 | R201: 454 | S201: 5,267 | T201: 2,283 | U201: J
B202: 8 | C202: 10,968 | D202: 4,418 | E202: 872 | F202: 277 | G202: 446 | H202: 144 | I202: 453 | J202: 171 | K202: 622 | L202: 219 | M202: 813 | N202: 314 | O202: 1,458 | P202: 574 | Q202: 1,077 | R202: 433 | S202: 5,227 | T202: 2,284 | U202: A
B203: 9 | C203: 11,466 | D203: 4,871 | E203: 836 | F203: 291 | G203: 391 | H203: 137 | I203: 462 | J203: 148 | K203: 669 | L203: 259 | M203: 894 | N203: 362 | O203: 1,588 | P203: 657 | Q203: 1,111 | R203: 446 | S203: 5,514 | T203: 2,571 | U203: S
B204: 10 | C204: 9,591 | D204: 4,174 | E204: 611 | F204: 211 | G204: 327 | H204: 107 | I204: 345 | J204: 124 | K204: 526 | L204: 216 | M204: 617 | N204: 277 | O204: 1,351 | P204: 510 | Q204: 885 | R204: 382 | S204: 4,929 | T204: 2,346 | U204: O
B205: 11 | C205: 14,146 | D205: 6,299 | E205: 801 | F205: 277 | G205: 366 | H205: 139 | I205: 499 | J205: 192 | K205: 707 | L205: 284 | M205: 921 | N205: 399 | O205: 1,877 | P205: 771 | Q205: 1,283 | R205: 551 | S205: 7,691 | T205: 3,686 | U205: N
B206: 12 | C206: 15,626 | D206: 7,121 | E206: 863 | F206: 313 | G206: 456 | H206: 159 | I206: 496 | J206: 172 | K206: 710 | L206: 281 | M206: 1,006 | N206: 405 | O206: 2,050 | P206: 854 | Q206: 1,298 | R206: 588 | S206: 8,748 | T206: 4,349 | U206: D
A208: 2018 | B208: 1 | C208: 14,423 | D208: 6,579 | E208: 713 | F208: 244 | G208: 384 | H208: 143 | I208: 500 | J208: 172 | K208: 612 | L208: 225 | M208: 895 | N208: 354 | O208: 2,018 | P208: 856 | Q208: 1,188 | R208: 514 | S208: 8,112 | T208: 4,070 | U208: J | V208: 2018
B209: 2 | C209: =SUM(E209,G209,I209,K209,M209,O209,Q209,S209) -> 16,233 | D209: =SUM(F209,H209,J209,L209,N209,P209,R209,T209) -> 7,556 | E209: 746 | F209: 252 | G209: 420 | H209: 158 | I209: 502 | J209: 174 | K209: 797 | L209: 344 | M209: 991 | N209: 401 | O209: 2,221 | P209: 953 | Q209: 1,472 | R209: 675 | S209: 9,084 | T209: 4,599 | U209: F
B210: 3 | C210: 15,989 | D210: 7,719 | E210: 715 | F210: 222 | G210: 334 | H210: 109 | I210: 501 | J210: 189 | K210: 801 | L210: 308 | M210: 1,101 | N210: 453 | O210: 2,178 | P210: 952 | Q210: 1,544 | R210: 706 | S210: 8,815 | T210: 4,780 | U210: M
B211: 4 | C211: 13,143 | D211: 6,441 | E211: 556 | F211: 176 | G211: 340 | H211: 111 | I211: 396 | J211: 149 | K211: 626 | L211: 238 | M211: 703 | N211: 274 | O211: 1,778 | P211: 804 | Q211: 1,179 | R211: 573 | S211: 7,566 | T211: 4,115 | U211: A
B212: 5 | C212: 11,554 | D212: 5,684 | E212: 471 | F212: 146 | G212: 320 | H212: 130 | I212: 324 | J212: 126 | K212: 507 | L212: 195 | M212: 746 | N212: 295 | O212: 1,613 | P212: 719 | Q212: 978 | R212: 453 | S212: 6,594 | T212: 3,621 | U212: M
B213: 6 | C213: 12,855 | D213: 6,279 | E213: 519 | F213: 165 | G213: 340 | H213: 114 | I213: 386 | J213: 125 | K213: 584 | L213: 238 | M213: 768 | N213: 335 | O213: 1,977 | P213: 912 | Q213: 1,117 | R213: 492 | S213: 7,163 | T213: 3,898 | U213: J
B214: 7 | C214: 11,885 | D214: 6,195 | E214: 428 | F214: 130 | G214: 221 | H214: 67 | I214: 356 | J214: 139 | K214: 480 | L214: 216 | M214: 798 | N214: 385 | O214: 1,525 | P214: 743 | Q214: 1,116 | R214: 515 | S214: 6,961 | T214: 4,000 | U214: J
B215: 8 | C215: 11,609 | D215: 6,197 | E215: 442 | F215: 155 | G215: 272 | H215: 109 | I215: 296 | J215: 120 | K215: 575 | L215: 261 | M215: 825 | N215: 402 | O215: 1,539 | P215: 757 | Q215: 1,086 | R215: 548 | S215: 6,575 | T215: 3,845 | U215: A
B216: 9 | C216: 9,521 | D216: 5,198 | E216: 343 | F216: 126 | G216: 207 | H216: 86 | I216: 257 | J216: 103 | K216: 480 | L216: 215 | M216: 600 | N216: 304 | O216: 1,331 | P216: 687 | Q216: 886 | R216: 442 | S216: 5,417 | T216: 3,236 | U216: S
... 49 more rows

Sheet 13. DTI 수준별 대출금액 및 잔액 현황
A1: 13. DTI 수준별 대출금액 및 잔액 현황 | I1: Bogeumjari(Mortgage) Loan Origination and Outstanding by DTI
A3: 단위 : 억원 | R3: Hundred million won
A4: 연월중1) | C4: 합계 Total | E4: DTI2) 10% 이하 | G4: 10%초과 ~ 20%이하 | I4: 20%초과 ~ 30%이하 | K4: 30%초과 ~ 40%이하 | M4: 40%초과 ~ 50%이하 | O4: 50%초과 | Q4: 연월중
E5: 10% or less | G5: Over 10% ~ 20% or less | I5: Over 20% ~ 30% or less | K5: Over 30% ~ 40% or less | M5: Over 40% ~ 50% or less | O5: Over 50%
A6: During | C6: 대출금액 | D6: 대출잔액 | E6: 대출금액 | F6: 대출잔액 | G6: 대출금액 | H6: 대출잔액 | I6: 대출금액 | J6: 대출잔액 | K6: 대출금액 | L6: 대출잔액 | M6: 대출금액 | N6: 대출잔액 | O6: 대출금액 | P6: 대출잔액 | Q6: During
C7: Origination | D7: Outstanding | E7: Origination | F7: Outstanding | G7: Origination | H7: Outstanding | I7: Origination | J7: Outstanding | K7: Origination | L7: Outstanding | M7: Origination | N7: Outstanding | O7: Origination | P7: Outstanding
A8: 2004 | C8: =SUM(E8,G8,I8,K8,M8,O8) -> 33,315 | D8: =SUM(F8,H8,J8,L8,N8,P8) -> 54 | E8: =SUM(E28:E37) -> 1,542 | F8: =SUM(F28:F37) -> 4 | G8: 4,328 | H8: 11 | I8: 8,289 | J8: 14 | K8: 8,154 | L8: 12 | M8: 2,450 | N8: 2 | O8: 8,552 | P8: 11 | Q8: 2004
A9: 2005 | C9: =SUM(E9,G9,I9,K9,M9,O9) -> 42,304 | D9: =SUM(F9,H9,J9,L9,N9,P9) -> 137 | E9: =SUM(E39:E50) -> 927 | F9: =SUM(F39:F50) -> 5 | G9: 6,389 | H9: 21 | I9: 11,675 | J9: 27 | K9: 11,309 | L9: 20 | M9: 2,987 | N9: 8 | O9: 9,018 | P9: 56 | Q9: 2005
A10: 2006 | C10: 13,761 | D10: 35 | E10: =SUM(E52:E63) -> 201 | F10: 1 | G10: 1,993 | H10: 5 | I10: 4,376 | J10: 12 | K10: 4,803 | L10: 9 | M10: 974 | N10: 0 | O10: 1,414 | P10: 7 | Q10: 2006
A11: 2007 | C11: 35,684 | D11: 55 | E11: =SUM(E65:E76) -> 424 | F11: 1 | G11: 4,551 | H11: 9 | I11: 9,720 | J11: 17 | K11: 11,139 | L11: 18 | M11: 3,483 | N11: 3 | O11: 6,366 | P11: 8 | Q11: 2007
A12: 2008 | C12: 41,919 | D12: 68 | E12: =SUM(E78:E89) -> 325 | F12: 2 | G12: 3,644 | H12: 7 | I12: 8,933 | J12: 17 | K12: 13,062 | L12: 21 | M12: 4,853 | N12: 5 | O12: 11,102 | P12: 16 | Q12: 2008
A13: 2009 | C13: 59,100 | D13: 139 | E13: =SUM(E91:E102) -> 822 | F13: 4 | G13: 7,307 | H13: 27 | I13: 14,184 | J13: 43 | K13: 15,512 | L13: 34 | M13: 7,292 | N13: 13 | O13: 13,984 | P13: 18 | Q13: 2009
A14: 2010 | C14: 57,879 | D14: 495 | E14: =SUM(E104:E115) -> 974 | F14: 15 | G14: 7,630 | H14: 82 | I14: 14,702 | J14: 112 | K14: 15,708 | L14: 150 | M14: 6,337 | N14: 38 | O14: 12,527 | P14: 98 | Q14: 2010
A15: 2011 | C15: 93,504 | D15: 1,203 | E15: =SUM(E117:E128) -> 872 | F15: 17 | G15: 10,545 | H15: 165 | I15: 22,918 | J15: 306 | K15: 29,264 | L15: 369 | M15: 8,364 | N15: 91 | O15: 21,541 | P15: 254 | Q15: =A15 -> 2011
A16: 2012 | C16: 110,951 | D16: 3,315 | E16: =SUM(E130:E141) -> 1,690 | F16: 73 | G16: 17,924 | H16: 709 | I16: 32,521 | J16: 1,003 | K16: 36,878 | L16: 1,016 | M16: 6,541 | N16: 145 | O16: 15,398 | P16: 369 | Q16: 2012
A17: 2013 | C17: 117,376 | D17: 6,862 | E17: =SUM(E143:E154) -> 2,619 | F17: =+SUM(F143:F154) -> 209 | G17: 25,343 | H17: 1,793 | I17: 38,052 | J17: 2,195 | K17: 35,678 | L17: 1,869 | M17: 5,495 | N17: 270 | O17: 10,189 | P17: 527 | Q17: 2013
A18: 2014 | C18: 83,718 | D18: 14,249 | E18: =+SUM(E156:E167) -> 2,851 | F18: =+SUM(F156:F167) -> 502 | G18: 22,925 | H18: 4,160 | I18: 25,749 | J18: 4,179 | K18: 18,089 | L18: 2,857 | M18: 5,344 | N18: 917 | O18: 8,760 | P18: 1,635 | Q18: 2014
A19: 2015 | C19: 145,971 | D19: 36,699 | E19: =+SUM(E169:E180) -> 6,825 | F19: =+SUM(F169:F180) -> 1,747 | G19: 42,506 | H19: 11,493 | I19: 43,468 | J19: 10,929 | K19: 24,940 | L19: 5,836 | M19: 13,612 | N19: 3,174 | O19: 14,621 | P19: 3,520 | Q19: 2015
A20: 2016 | C20: 196,785 | D20: 76,764 | E20: =+SUM(E182:E193) -> 9,877 | F20: 3,671 | G20: 61,306 | H20: 25,111 | I20: 57,551 | J20: 22,518 | K20: 32,208 | L20: 12,167 | M20: 18,544 | N20: 6,820 | O20: 17,300 | P20: 6,476 | Q20: 2016
A21: 2017 | C21: 174,224 | D21: 73,953 | E21: =+SUM(E195:E206) -> 6,046 | F21: =+SUM(F195:F206) -> 2,454 | G21: =+SUM(G195:G206) -> 49,813 | H21: 22,050 | I21: 53,124 | J21: 22,621 | K21: 30,845 | L21: 12,661 | M21: 18,557 | N21: =+SUM(N195:N206) -> 7,630 | O21: 15,840 | P21: 6,537 | Q21: 2017
A22: 2018 | C22: 162,439 | D22: 83,455 | E22: =+SUM(E208:E219) -> 4,421 | F22: =+SUM(F208:F219) -> 2,276 | G22: 47,251 | H22: 25,809 | I22: 52,343 | J22: 26,979 | K22: 28,908 | L22: 13,854 | M22: 17,154 | N22: 8,264 | O22: 12,362 | P22: 6,273 | Q22: 2018
A23: 2019 | C23: 310,809 | D23: 229,625 | E23: =SUM(E221:E232) -> 25,984 | F23: =SUM(F221:F232) -> 19,000 | G23: =+SUM(G221:G232) -> 111,217 | H23: 83,362 | I23: 86,363 | J23: 63,971 | K23: 44,717 | L23: 32,451 | M23: 25,567 | N23: 18,416 | O23: =SUM(O221:O232) -> 16,962 | P23: =SUM(P221:P232) -> 12,426 | Q23: 2019
A24: 2020 | C24: 384,216 | D24: 327,436 | E24: =SUM(E234:E245) -> 26,658 | F24: =SUM(F234:F245) -> 21,496 | G24: 129,813 | H24: 109,830 | I24: 110,283 | J24: 95,202 | K24: 61,613 | L24: 53,259 | M24: 35,676 | N24: 30,535 | O24: 20,173 | P24: 17,113 | Q24: 2020
A25: 2021 | C25: =SUM(E25,G25,I25,K25,M25,O25) -> 262,566 | D25: 250,190 | E25: =SUM(E247:E258) -> 8,212 | F25: =SUM(F247:F258) -> 7,711 | G25: 69,106 | H25: 65,809 | I25: 85,340 | J25: 81,719 | K25: 54,914 | L25: 52,425 | M25: 32,680 | N25: 30,946 | O25: 12,313 | P25: 11,579 | Q25: 2021
A26: 2022 | C26: =SUM(E26,G26,I26,K26,M26,O26) -> 19,650 | D26: =SUM(F26,H26,J26,L26,N26,P26) -> 19,262 | E26: =SUM(E260:E264) -> 463 | F26: =SUM(F260:F264) -> 453 | G26: 4,442 | H26: 4,352 | I26: 6,287 | J26: 6,183 | K26: 4,644 | L26: 4,544 | M26: 2,848 | N26: 2,786 | O26: 966 | P26: 945 | Q26: 2022
A28: 2004 | B28: 3 | C28: =SUM(E28,G28,I28,K28,M28,O28) -> 351 | D28: =SUM(F28,H28,J28,L28,N28,P28) -> 1 | E28: 18 | F28: 0 | G28: 50 | H28: 0 | I28: 102 | J28: 0 | K28: 93 | L28: 0 | M28: 29 | N28: 0 | O28: 60 | P28: 0 | Q28: M | R28: 2004
B29: 4 | C29: =SUM(E29,G29,I29,K29,M29,O29) -> 3,611 | D29: =SUM(F29,H29,J29,L29,N29,P29) -> 4 | E29: 492 | F29: 1 | G29: 465 | H29: 2 | I29: 884 | J29: 1 | K29: 818 | L29: 1 | M29: 269 | N29: 0 | O29: 682 | P29: 0 | Q29: A
B30: 5 | C30: 4,558 | D30: 5 | E30: 521 | F30: 1 | G30: 557 | H30: 1 | I30: 1,123 | J30: 2 | K30: 1,047 | L30: 0 | M30: 306 | N30: 0 | O30: 1,004 | P30: 1 | Q30: M
B31: 6 | C31: 3,944 | D31: 4 | E31: 211 | F31: 0 | G31: 506 | H31: 1 | I31: 995 | J31: 2 | K31: 983 | L31: 0 | M31: 334 | N31: 0 | O31: 914 | P31: 0 | Q31: J
B32: 7 | C32: 3,380 | D32: 4 | E32: 63 | F32: 0 | G32: 411 | H32: 1 | I32: 858 | J32: 1 | K32: 858 | L32: 1 | M32: 265 | N32: 0 | O32: 926 | P32: 0 | Q32: J
B33: 8 | C33: 3,282 | D33: 5 | E33: 41 | F33: 0 | G33: 418 | H33: 0 | I33: 787 | J33: 1 | K33: 870 | L33: 3 | M33: 260 | N33: 0 | O33: 906 | P33: 0 | Q33: A
B34: 9 | C34: 2,891 | D34: 4 | E34: 46 | F34: 0 | G34: 372 | H34: 0 | I34: 699 | J34: 1 | K34: 706 | L34: 1 | M34: 226 | N34: 0 | O34: 841 | P34: 1 | Q34: S
B35: 10 | C35: 3,446 | D35: 5 | E35: 47 | F35: 0 | G35: 476 | H35: 2 | I35: 856 | J35: 2 | K35: 849 | L35: 1 | M35: 239 | N35: 0 | O35: 978 | P35: 1 | Q35: O
B36: 11 | C36: 3,566 | D36: 7 | E36: 48 | F36: 0 | G36: 494 | H36: 1 | I36: 932 | J36: 2 | K36: 880 | L36: 2 | M36: 222 | N36: 0 | O36: 989 | P36: 2 | Q36: N
B37: 12 | C37: 4,286 | D37: 16 | E37: 55 | F37: 2 | G37: 579 | H37: 3 | I37: 1,053 | J37: 3 | K37: 1,050 | L37: 3 | M37: 300 | N37: 0 | O37: 1,250 | P37: 5 | Q37: D
A39: 2005 | B39: 1 | C39: 3,443 | D39: 17 | E39: 52 | F39: 0 | G39: 508 | H39: 1 | I39: 881 | J39: 3 | K39: 842 | L39: 3 | M39: 240 | N39: 0 | O39: 921 | P39: 10 | Q39: J | R39: 2005
B40: 2 | C40: =SUM(E40,G40,I40,K40,M40,O40) -> 4,840 | D40: =SUM(F40,H40,J40,L40,N40,P40) -> 16 | E40: 98 | F40: 0 | G40: 756 | H40: 2 | I40: 1,299 | J40: 3 | K40: 1,201 | L40: 2 | M40: 308 | N40: 0 | O40: 1,179 | P40: 9 | Q40: F
B41: 3 | C41: 6,923 | D41: 18 | E41: 151 | F41: 0 | G41: 1,076 | H41: 3 | I41: 1,873 | J41: 5 | K41: 1,781 | L41: 3 | M41: 483 | N41: 1 | O41: 1,560 | P41: 6 | Q41: M
B42: 4 | C42: 5,707 | D42: 15 | E42: 106 | F42: 0 | G42: 890 | H42: 3 | I42: 1,576 | J42: 2 | K42: 1,460 | L42: 2 | M42: 395 | N42: 2 | O42: 1,279 | P42: 6 | Q42: A
B43: 5 | C43: 3,927 | D43: 12 | E43: 66 | F43: 0 | G43: 554 | H43: 2 | I43: 1,051 | J43: 2 | K43: 1,073 | L43: 1 | M43: 264 | N43: 0 | O43: 919 | P43: 6 | Q43: M
B44: 6 | C44: 3,713 | D44: 14 | E44: 59 | F44: 1 | G44: 532 | H44: 3 | I44: 975 | J44: 2 | K44: 981 | L44: 2 | M44: 299 | N44: 1 | O44: 866 | P44: 5 | Q44: J
B45: 7 | C45: 3,087 | D45: 17 | E45: 44 | F45: 0 | G45: 460 | H45: 1 | I45: 876 | J45: 2 | K45: 831 | L45: 2 | M45: 228 | N45: 3 | O45: 648 | P45: 10 | Q45: J
B46: 8 | C46: 3,165 | D46: 6 | E46: 106 | F46: 0 | G46: 457 | H46: 1 | I46: 871 | J46: 2 | K46: 888 | L46: 1 | M46: 264 | N46: 0 | O46: 579 | P46: 2 | Q46: A
B47: 9 | C47: 2,649 | D47: 6 | E47: 94 | F47: 1 | G47: 376 | H47: 1 | I47: 749 | J47: 2 | K47: 790 | L47: 1 | M47: 198 | N47: 0 | O47: 443 | P47: 0 | Q47: S
B48: 10 | C48: 1,928 | D48: 5 | E48: 76 | F48: 0 | G48: 314 | H48: 2 | I48: 569 | J48: 2 | K48: 558 | L48: 1 | M48: 142 | N48: 0 | O48: 269 | P48: 1 | Q48: O
B49: 11 | C49: 1,436 | D49: 5 | E49: 51 | F49: 0 | G49: 239 | H49: 2 | I49: 469 | J49: 1 | K49: 438 | L49: 1 | M49: 78 | N49: 0 | O49: 160 | P49: 1 | Q49: N
B50: 12 | C50: 1,485 | D50: 4 | E50: 22 | F50: 0 | G50: 228 | H50: 1 | I50: 486 | J50: 1 | K50: 466 | L50: 1 | M50: 89 | N50: 0 | O50: 194 | P50: 0 | Q50: D
A52: 2006 | B52: 1 | C52: 656 | D52: 4 | E52: 15 | F52: 0 | G52: 76 | H52: 0 | I52: 201 | J52: 0 | K52: 203 | L52: 1 | M52: 41 | N52: 0 | O52: 122 | P52: 3 | Q52: J | R52: 2006
B53: 2 | C53: =SUM(E53,G53,I53,K53,M53,O53) -> 1,004 | D53: =SUM(F53,H53,J53,L53,N53,P53) -> 5 | E53: 18 | F53: 0 | G53: 171 | H53: 0 | I53: 322 | J53: 2 | K53: 312 | L53: 0 | M53: 55 | N53: 0 | O53: 127 | P53: 3 | Q53: F
B54: 3 | C54: 1,010 | D54: 3 | E54: 11 | F54: 0 | G54: 157 | H54: 1 | I54: 354 | J54: 1 | K54: 332 | L54: 0 | M54: 61 | N54: 0 | O54: 96 | P54: 1 | Q54: M
B55: 4 | C55: 881 | D55: 1 | E55: 16 | F55: 0 | G55: 155 | H55: 1 | I55: 259 | J55: 0 | K55: 318 | L55: 0 | M55: 66 | N55: 0 | O55: 67 | P55: 0 | Q55: A
B56: 5 | C56: 736 | D56: 1 | E56: 8 | F56: 0 | G56: 127 | H56: 0 | I56: 237 | J56: 0 | K56: 253 | L56: 0 | M56: 56 | N56: 0 | O56: 55 | P56: 0 | Q56: M
B57: 6 | C57: 811 | D57: 2 | E57: 11 | F57: 0 | G57: 140 | H57: 1 | I57: 278 | J57: 0 | K57: 258 | L57: 1 | M57: 35 | N57: 0 | O57: 88 | P57: 0 | Q57: J
B58: 7 | C58: 1,276 | D58: 0 | E58: 20 | F58: 0 | G58: 191 | H58: 0 | I58: 410 | J58: 0 | K58: 389 | L58: 0 | M58: 97 | N58: 0 | O58: 169 | P58: 0 | Q58: J
B59: 8 | C59: 1,379 | D59: 4 | E59: 17 | F59: 0 | G59: 187 | H59: 0 | I59: 419 | J59: 1 | K59: 464 | L59: 2 | M59: 104 | N59: 0 | O59: 188 | P59: 0 | Q59: A
B60: 9 | C60: 1,861 | D60: 4 | E60: 23 | F60: 0 | G60: 238 | H60: 0 | I60: 548 | J60: 2 | K60: 706 | L60: 1 | M60: 156 | N60: 0 | O60: 190 | P60: 1 | Q60: S
B61: 10 | C61: 1,245 | D61: 4 | E61: 11 | F61: 0 | G61: 158 | H61: 1 | I61: 384 | J61: 3 | K61: 496 | L61: 1 | M61: 85 | N61: 0 | O61: 110 | P61: 0 | Q61: O
B62: 11 | C62: 1,207 | D62: 5 | E62: 20 | F62: 0 | G62: 151 | H62: 1 | I62: 431 | J62: 2 | K62: 468 | L62: 3 | M62: 73 | N62: 0 | O62: 65 | P62: 0 | Q62: N
B63: 12 | C63: 1,694 | D63: 0 | E63: 33 | F63: 0 | G63: 241 | H63: 0 | I63: 533 | J63: 0 | K63: 606 | L63: 0 | M63: 145 | N63: 0 | O63: 136 | P63: 0 | Q63: D
A65: 2007 | B65: 1 | C65: 2,408 | D65: 6 | E65: 57 | F65: 0 | G65: 401 | H65: 1 | I65: 701 | J65: 4 | K65: 677 | L65: 0 | M65: 252 | N65: 0 | O65: 320 | P65: 0 | Q65: J | R65: 2007
B66: 2 | C66: =SUM(E66,G66,I66,K66,M66,O66) -> 2,762 | D66: =SUM(F66,H66,J66,L66,N66,P66) -> 5 | E66: 48 | F66: 0 | G66: 475 | H66: 0 | I66: 846 | J66: 2 | K66: 828 | L66: 3 | M66: 260 | N66: 0 | O66: 306 | P66: 0 | Q66: F
B67: 3 | C67: 2,496 | D67: 4 | E67: 39 | F67: 0 | G67: 400 | H67: 1 | I67: 763 | J67: 0 | K67: 760 | L67: 3 | M67: 226 | N67: 0 | O67: 308 | P67: 0 | Q67: M
B68: 4 | C68: 2,415 | D68: 6 | E68: 30 | F68: 0 | G68: 386 | H68: 0 | I68: 731 | J68: 1 | K68: 769 | L68: 1 | M68: 189 | N68: 1 | O68: 309 | P68: 2 | Q68: A
B69: 5 | C69: 2,489 | D69: 4 | E69: 32 | F69: 0 | G69: 341 | H69: 1 | I69: 738 | J69: 2 | K69: 791 | L69: 2 | M69: 221 | N69: 0 | O69: 367 | P69: 0 | Q69: M
B70: 6 | C70: 2,711 | D70: 3 | E70: 37 | F70: 0 | G70: 369 | H70: 1 | I70: 770 | J70: 0 | K70: 856 | L70: 1 | M70: 218 | N70: 0 | O70: 461 | P70: 1 | Q70: J
B71: 7 | C71: 3,588 | D71: 8 | E71: 40 | F71: 0 | G71: 450 | H71: 1 | I71: 912 | J71: 2 | K71: 1,089 | L71: 4 | M71: 393 | N71: 0 | O71: 703 | P71: 1 | Q71: J
B72: 8 | C72: 3,198 | D72: 2 | E72: 26 | F72: 0 | G72: 352 | H72: 1 | I72: 894 | J72: 0 | K72: 1,029 | L72: 0 | M72: 349 | N72: 0 | O72: 547 | P72: 1 | Q72: A
B73: 9 | C73: 2,482 | D73: 4 | E73: 23 | F73: 0 | G73: 283 | H73: 0 | I73: 658 | J73: 0 | K73: 795 | L73: 2 | M73: 244 | N73: 0 | O73: 478 | P73: 1 | Q73: S
B74: 10 | C74: 3,407 | D74: 4 | E74: 22 | F74: 0 | G74: 322 | H74: 0 | I74: 849 | J74: 2 | K74: 1,137 | L74: 1 | M74: 337 | N74: 1 | O74: 739 | P74: 1 | Q74: O
B75: 11 | C75: 3,244 | D75: 5 | E75: 27 | F75: 0 | G75: 324 | H75: 2 | I75: 814 | J75: 1 | K75: 1,055 | L75: 2 | M75: 306 | N75: 0 | O75: 718 | P75: 0 | Q75: N
B76: 12 | C76: 4,483 | D76: 4 | E76: 42 | F76: 0 | G76: 447 | H76: 0 | I76: 1,045 | J76: 2 | K76: 1,353 | L76: 0 | M76: 486 | N76: 1 | O76: 1,110 | P76: 1 | Q76: D
